Workbook

Sheet souhrn
F2: Oděv | G2: Metabolizmus | H2: Fyzická činnost
F3: [clo] | G3: [met] | H3: [met]
F4: 1 | G4: 1.2 | H4: 0
S5: 0.5 | U5: POMOCNÉ VÝPOČTY
A7: č. měření | B7: Datum | C7: Čas | D7: f | E7: V | F7: Tp | G7: Tk1 | H7: Ta1 | I7: RH | J7: v | K7: Tr | L7: To | M7: PMV | N7: PPD | O7: DR | P7: Qvz | Q7: Qz | R7: Qc | S7: Kategorie tepelného prostředí | U7: 24.11.16 | V7: Ta | W7: RH | X7: v | Y7: Tr | Z7: To | AA7: PMV | AC7: Ta | AD7: RH | AE7: v | AF7: Tr | AG7: To | AH7: PMV | AJ7: Ta | AK7: RH | AL7: v | AM7: Tr | AN7: To | AO7: PMV | AQ7: Ta | AR7: RH | AS7: v | AT7: Tr | AU7: To | AV7: PMV | AX7: Ta | AY7: RH | AZ7: v | BA7: Tr | BB7: To | BC7: PMV | BE7: Ta | BF7: RH | BG7: v | BH7: Tr | BI7: To | BJ7: PMV
D8: [Hz] | E8: [m3/h] | F8: [°C] | G8: [°C] | H8: [°C] | I8: [%] | J8: [m/s] | K8: [°C] | L8: [°C] | M8: [-] | N8: [%] | O8: [%] | P8: W | Q8: W | R8: W | V8: [°C] | W8: [%] | X8: [m/s] | Y8: [°C] | Z8: [°C] | AA8: [1] | AC8: [°C] | AD8: [%] | AE8: [m/s] | AF8: [°C] | AG8: [°C] | AH8: [1] | AJ8: [°C] | AK8: [%] | AL8: [m/s] | AM8: [°C] | AN8: [°C] | AO8: [1] | AQ8: [°C] | AR8: [%] | AS8: [m/s] | AT8: [°C] | AU8: [°C] | AV8: [1] | AX8: [°C] | AY8: [%] | AZ8: [m/s] | BA8: [°C] | BB8: [°C] | BC8: [1] | BE8: [°C] | BF8: [%] | BG8: [m/s] | BH8: [°C] | BI8: [°C] | BJ8: [1]
A9: 1 | B9: 24.11.16 | C9: 13:54:37 | D9: 10 | E9: =prutok!AQ51 -> 205.9944524 | F9: ='24.11.'!F8 -> 19.02 | G9: ='24.11.'!G8 -> 20.67 | H9: ='24.11.'!H8 -> 20.72 | I9: ='24.11.'!I8 -> 43.1 | J9: ='24.11.'!J8 -> 0.03766666667 | K9: =((G9+273)^4+2.5*10^8*J9^0.6*(G9-H9))^(1/4)-273 -> 20.65274624 | L9: =TOPERA(H9,K9,J9) -> 20.68637312 | M9: =PMVx($F$4,$G$4,$H$4,H9,I9,J9,K9,0) -> -0.2005244138 | N9: =PPD(M9) -> 5.833837222 | O9: ='24.11.'!O8 -> 0 | P9: =1.2*E9/3600*1010*(F9-H9) -> -117.8974916 | Q9: 590 | R9: =P9+Q9 -> 472.1025084 | S9: B | U9: 15 | V9: 15 | W9: =AVERAGE($I$9:$I$17) -> 43.26666667 | X9: 0.01 | Y9: =((U9+273)^4+2.5*10^8*X9^0.6*(U9-V9))^(1/4)-273 -> 15 | Z9: =TOPERA(V9,Y9,X9) -> 15 | AA9: =PMVx($F$4,$G$4,$H$4,V9,W9,X9,Y9,0) -> -1.449449764 | AC9: 15 | AD9: =AVERAGE($I$9:$I$17) -> 43.26666667 | AE9: 0.05 | AF9: =(($U$9+273)^4+2.5*10^8*AE9^0.6*($U$9-AC9))^(1/4)-273 -> 15 | AG9: =TOPERA(AC9,AF9,AE9) -> 15 | AH9: =PMVx($F$4,$G$4,$H$4,AC9,AD9,AE9,AF9,0) -> -1.449436969 | AJ9: 15 | AK9: 43 | AL9: 0.1 | AM9: =(($U$9+273)^4+2.5*10^8*AL9^0.6*($U$9-AJ9))^(1/4)-273 -> 15 | AN9: =TOPERA(AJ9,AM9,AL9) -> 15 | AO9: =PMVx($F$4,$G$4,$H$4,AJ9,AK9,AL9,AM9,0) -> -1.450482261 | AQ9: 15 | AR9: =AVERAGE($I$9:$I$17) -> 43.26666667 | AS9: 0.15 | AT9: =(($U$9+273)^4+2.5*10^8*AS9^0.6*($U$9-AQ9))^(1/4)-273 -> 15 | AU9: =TOPERA(AQ9,AT9,AS9) -> 15 | AV9: =PMVx($F$4,$G$4,$H$4,AQ9,AR9,AS9,AT9,0) -> -1.580018024 | AX9: 15 | AY9: =AVERAGE($I$9:$I$17) -> 43.26666667 | AZ9: 0.2 | BA9: =(($U$9+273)^4+2.5*10^8*AZ9^0.6*($U$9-AX9))^(1/4)-273 -> 15 | BB9: =TOPERA(AX9,BA9,AZ9) -> 15 | BC9: =PMVx($F$4,$G$4,$H$4,AX9,AY9,AZ9,BA9,0) -> -1.700461849 | BE9: 15 | BF9: =AVERAGE($I$9:$I$17) -> 43.26666667 | BG9: 0.25 | BH9: =(($U$9+273)^4+2.5*10^8*BG9^0.6*($U$9-BE9))^(1/4)-273 -> 15 | BI9: =TOPERA(BE9,BH9,BG9) -> 15 | BJ9: =PMVx($F$4,$G$4,$H$4,BE9,BF9,BG9,BH9,0) -> -1.797472935
A10: 2 | B10: 24.11.16 | C10: 14:24:38 | D10: 14 | E10: =prutok!AQ50 -> 300.3733524 | F10: ='24.11.'!F9 -> 18.955 | G10: ='24.11.'!G9 -> 20.67 | H10: ='24.11.'!H9 -> 20.7 | I10: ='24.11.'!I9 -> 43.3 | J10: ='24.11.'!J9 -> 0.075 | K10: =((G10+273)^4+2.5*10^8*J10^0.6*(G10-H10))^(1/4)-273 -> 20.65435073 | L10: =TOPERA(H10,K10,J10) -> 20.67717537 | M10: -0.2016846299 | N10: =PPD(M10) -> 5.84353099 | O10: ='24.11.'!O9 -> 6.533238174 | P10: =1.2*E10/3600*1010*(F10-H10) -> -176.4643383 | Q10: 590 | R10: =P10+Q10 -> 413.5356617 | S10: B | U10: 25 | V10: 25 | W10: =W9 -> 43.26666667 | X10: 0.01 | Y10: =((U10+273)^4+2.5*10^8*X10^0.6*(U10-V10))^(1/4)-273 -> 25 | Z10: =TOPERA(V10,Y10,X10) -> 25 | AA10: =PMVx($F$4,$G$4,$H$4,V10,W10,X10,Y10,0) -> 0.7591901597 | AC10: 25 | AD10: =AD9 -> 43.26666667 | AE10: 0.05 | AF10: =(($U$10+273)^4+2.5*10^8*AE10^0.6*($U$10-AC10))^(1/4)-273 -> 25 | AG10: =TOPERA(AC10,AF10,AE10) -> 25 | AH10: =PMVx($F$4,$G$4,$H$4,AC10,AD10,AE10,AF10,0) -> 0.7591901597 | AJ10: 25 | AK10: 43 | AL10: 0.1 | AM10: =(($U$10+273)^4+2.5*10^8*AL10^0.6*($U$10-AJ10))^(1/4)-273 -> 25 | AN10: =TOPERA(AJ10,AM10,AL10) -> 25 | AO10: =PMVx($F$4,$G$4,$H$4,AJ10,AK10,AL10,AM10,0) -> 0.7095872633 | AQ10: 25 | AR10: =AR9 -> 43.26666667 | AS10: 0.15 | AT10: =(($U$10+273)^4+2.5*10^8*AS10^0.6*($U$10-AQ10))^(1/4)-273 -> 25 | AU10: =TOPERA(AQ10,AT10,AS10) -> 25 | AV10: =PMVx($F$4,$G$4,$H$4,AQ10,AR10,AS10,AT10,0) -> 0.6402152394 | AX10: 25 | AY10: =AY9 -> 43.26666667 | AZ10: 0.2 | BA10: =(($U$10+273)^4+2.5*10^8*AZ10^0.6*($U$10-AX10))^(1/4)-273 -> 25 | BB10: =TOPERA(AX10,BA10,AZ10) -> 25 | BC10: =PMVx($F$4,$G$4,$H$4,AX10,AY10,AZ10,BA10,0) -> 0.5862017344 | BE10: 25 | BF10: =BF9 -> 43.26666667 | BG10: 0.25 | BH10: =(($U$10+273)^4+2.5*10^8*BG10^0.6*($U$10-BE10))^(1/4)-273 -> 25 | BI10: =TOPERA(BE10,BH10,BG10) -> 25 | BJ10: =PMVx($F$4,$G$4,$H$4,BE10,BF10,BG10,BH10,0) -> 0.5426431158
A11: 3 | B11: 24.11.16 | C11: 14:55:39 | D11: 18 | E11: =prutok!AQ49 -> 397.9494986 | F11: ='24.11.'!F10 -> 18.985 | G11: ='24.11.'!G10 -> 20.6 | H11: ='24.11.'!H10 -> 20.6 | I11: ='24.11.'!I10 -> 43.3 | J11: ='24.11.'!J10 -> 0.0785 | K11: 20.6 | L11: 20.6 | M11: -0.2195033412 | N11: =PPD(M11) -> 5.999485434 | O11: ='24.11.'!O10 -> 7.322477701 | P11: -216.3717749 | Q11: 590 | R11: 373.6282251 | S11: B
A12: 4 | B12: 24.11.16 | C12: 15:25:10 | D12: 22 | E12: =prutok!AQ48 -> 494.6847309 | F12: ='24.11.'!F11 -> 19.12 | G12: ='24.11.'!G11 -> 20.59 | H12: ='24.11.'!H11 -> 20.58 | I12: ='24.11.'!I11 -> 43.4 | J12: ='24.11.'!J11 -> 0.1 | K12: 20.59620358 | L12: 20.58810179 | M12: -0.2463469101 | N12: =PPD(M12) -> 6.259553971 | O12: ='24.11.'!O11 -> 11.17723807 | P12: -243.1540347 | Q12: 590 | R12: 346.8459653 | S12: B | U12: 25.11.16 | V12: Ta | W12: RH | X12: v | Y12: Tr | Z12: To | AA12: PMV | AC12: Ta | AD12: RH | AE12: v | AF12: Tr | AG12: To | AH12: PMV | AJ12: Ta | AK12: RH | AL12: v | AM12: Tr | AN12: To | AO12: PMV | AQ12: Ta | AR12: RH | AS12: v | AT12: Tr | AU12: To | AV12: PMV | AX12: Ta | AY12: RH | AZ12: v | BA12: Tr | BB12: To | BC12: PMV | BE12: Ta | BF12: RH | BG12: v | BH12: Tr | BI12: To | BJ12: PMV
A13: 5 | B13: 24.11.16 | C13: 15:55:41 | D13: 26 | E13: =prutok!AQ47 -> 589.143686 | F13: ='24.11.'!F12 -> 19.275 | G13: ='24.11.'!G12 -> 20.61 | H13: ='24.11.'!H12 -> 20.59 | I13: ='24.11.'!I12 -> 43.5 | J13: ='24.11.'!J12 -> 0.11675 | K13: 20.62361198 | L13: 20.60680599 | M13: -0.2825635236 | N13: 6.658431713 | O13: ='24.11.'!O12 -> 13.75674444 | P13: -260.8237288 | Q13: 590 | R13: 329.1762712 | S13: B | V13: [°C] | W13: [%] | X13: [m/s] | Y13: [°C] | Z13: [°C] | AA13: [1] | AC13: [°C] | AD13: [%] | AE13: [m/s] | AF13: [°C] | AG13: [°C] | AH13: [1] | AJ13: [°C] | AK13: [%] | AL13: [m/s] | AM13: [°C] | AN13: [°C] | AO13: [1] | AQ13: [°C] | AR13: [%] | AS13: [m/s] | AT13: [°C] | AU13: [°C] | AV13: [1] | AX13: [°C] | AY13: [%] | AZ13: [m/s] | BA13: [°C] | BB13: [°C] | BC13: [1] | BE13: [°C] | BF13: [%] | BG13: [m/s] | BH13: [°C] | BI13: [°C] | BJ13: [1]
A14: 6 | B14: 24.11.16 | C14: 16:45:13 | D14: 30 | E14: =prutok!AQ46 -> 682.2167601 | F14: ='24.11.'!F13 -> 19.39 | G14: ='24.11.'!G13 -> 20.57 | H14: ='24.11.'!H13 -> 20.52 | I14: ='24.11.'!I13 -> 43.5 | J14: ='24.11.'!J13 -> 0.1256666667 | K14: 20.6055769 | L14: 20.56278845 | M14: -0.3127297069 | N14: 7.032907004 | O14: ='24.11.'!O13 -> 15.34982717 | P14: -259.5379961 | Q14: 590 | R14: 330.4620039 | S14: B | U14: 15 | V14: 15 | W14: 40 | X14: 0.01 | Y14: =(($U$14+273)^4+2.5*10^8*X14^0.6*($U$14-V14))^(1/4)-273 -> 15 | Z14: =TOPERA(V14,Y14,X14) -> 15 | AA14: =PMVx($F$4,$G$4,$H$4,V14,W14,X14,Y14,0) -> -1.461845512 | AC14: 15 | AD14: =AVERAGE($I$18:$I$21) -> 40.05 | AE14: 0.05 | AF14: =(($U$14+273)^4+2.5*10^8*AE14^0.6*($U$14-AC14))^(1/4)-273 -> 15 | AG14: =TOPERA(AC14,AF14,AE14) -> 15 | AH14: =PMVx($F$4,$G$4,$H$4,AC14,AD14,AE14,AF14,0) -> -1.461642986 | AJ14: 15 | AK14: =AVERAGE($I$18:$I$21) -> 40.05 | AL14: 0.1 | AM14: =(($U$14+273)^4+2.5*10^8*AL14^0.6*($U$14-AJ14))^(1/4)-273 -> 15 | AN14: =TOPERA(AJ14,AM14,AL14) -> 15 | AO14: =PMVx($F$4,$G$4,$H$4,AJ14,AK14,AL14,AM14,0) -> -1.46167638 | AQ14: 15 | AR14: =AVERAGE($I$18:$I$21) -> 40.05 | AS14: 0.15 | AT14: =(($U$14+273)^4+2.5*10^8*AS14^0.6*($U$14-AQ14))^(1/4)-273 -> 15 | AU14: =TOPERA(AQ14,AT14,AS14) -> 15 | AV14: =PMVx($F$4,$G$4,$H$4,AQ14,AR14,AS14,AT14,0) -> -1.592224041 | AX14: 15 | AY14: =AVERAGE($I$18:$I$21) -> 40.05 | AZ14: 0.2 | BA14: =(($U$14+273)^4+2.5*10^8*AZ14^0.6*($U$14-AX14))^(1/4)-273 -> 15 | BB14: =TOPERA(AX14,BA14,AZ14) -> 15 | BC14: =PMVx($F$4,$G$4,$H$4,AX14,AY14,AZ14,BA14,0) -> -1.712667866 | BE14: 15 | BF14: =AVERAGE($I$18:$I$21) -> 40.05 | BG14: 0.25 | BH14: =(($U$14+273)^4+2.5*10^8*BG14^0.6*($U$14-BE14))^(1/4)-273 -> 15 | BI14: =TOPERA(BE14,BH14,BG14) -> 15 | BJ14: =PMVx($F$4,$G$4,$H$4,BE14,BF14,BG14,BH14,0) -> -1.809678952
A15: 7 | B15: 24.11.16 | C15: 17:24:44 | D15: 34 | E15: =prutok!AQ45 -> 775.5726423 | F15: ='24.11.'!F14 -> 19.675 | G15: ='24.11.'!G14 -> 20.61 | H15: ='24.11.'!H14 -> 20.58 | I15: ='24.11.'!I14 -> 43.3 | J15: ='24.11.'!J14 -> 0.134 | K15: 20.63217698 | L15: 20.60608849 | M15: -0.3214809274 | N15: 7.148746479 | O15: ='24.11.'!O14 -> 17.03366512 | P15: -236.3040579 | Q15: 590 | R15: 353.6959421 | S15: B | U15: 25 | V15: 25 | W15: =W14 -> 40 | X15: 0.01 | Y15: =(($U$15+273)^4+2.5*10^8*X15^0.6*($U$15-V15))^(1/4)-273 -> 25 | Z15: =TOPERA(V15,Y15,X15) -> 25 | AA15: =PMVx($F$4,$G$4,$H$4,V15,W15,X15,Y15,0) -> 0.7361467074 | AC15: 25 | AD15: =AD14 -> 40.05 | AE15: 0.05 | AF15: =(($U$15+273)^4+2.5*10^8*AE15^0.6*($U$15-AC15))^(1/4)-273 -> 25 | AG15: =TOPERA(AC15,AF15,AE15) -> 25 | AH15: =PMVx($F$4,$G$4,$H$4,AC15,AD15,AE15,AF15,0) -> 0.7364994133 | AJ15: 25 | AK15: =AK14 -> 40.05 | AL15: 0.1 | AM15: =(($U$15+273)^4+2.5*10^8*AL15^0.6*($U$15-AJ15))^(1/4)-273 -> 25 | AN15: =TOPERA(AJ15,AM15,AL15) -> 25 | AO15: =PMVx($F$4,$G$4,$H$4,AJ15,AK15,AL15,AM15,0) -> 0.688777615 | AQ15: 25 | AR15: =AR14 -> 40.05 | AS15: 0.15 | AT15: =(($U$15+273)^4+2.5*10^8*AS15^0.6*($U$15-AQ15))^(1/4)-273 -> 25 | AU15: =TOPERA(AQ15,AT15,AS15) -> 25 | AV15: =PMVx($F$4,$G$4,$H$4,AQ15,AR15,AS15,AT15,0) -> 0.617524493 | AX15: 25 | AY15: =AY14 -> 40.05 | AZ15: 0.2 | BA15: =(($U$15+273)^4+2.5*10^8*AZ15^0.6*($U$15-AX15))^(1/4)-273 -> 25 | BB15: =TOPERA(AX15,BA15,AZ15) -> 25 | BC15: =PMVx($F$4,$G$4,$H$4,AX15,AY15,AZ15,BA15,0) -> 0.563510988 | BE15: 25 | BF15: =BF14 -> 40.05 | BG15: 0.25 | BH15: =(($U$15+273)^4+2.5*10^8*BG15^0.6*($U$15-BE15))^(1/4)-273 -> 25 | BI15: =TOPERA(BE15,BH15,BG15) -> 25 | BJ15: =PMVx($F$4,$G$4,$H$4,BE15,BF15,BG15,BH15,0) -> 0.5199523694
A16: 8 | B16: 24.11.16 | C16: 18:19:16 | D16: 18 | E16: 379.6998174 | F16: ='24.11.'!F15 -> 15.81 | G16: ='24.11.'!G15 -> 19.98 | H16: ='24.11.'!H15 -> 19.87 | I16: ='24.11.'!I15 -> 43 | J16: ='24.11.'!J15 -> 0.1156666667 | K16: =((G16+273)^4+2.5*10^8*J16^0.6*(G16-H16))^(1/4)-273 -> 20.0549061 | L16: =TOPERA(H16,K16,J16) -> 19.96245305 | M16: -0.4239218369 | N16: =PPD(M16) -> 8.74705446 | O16: ='24.11.'!O15 -> 14.59193944 | P16: -518.9990237 | Q16: 590 | R16: 71.00097625 | S16: B
A17: 9 | B17: 24.11.16 | C17: 18:47:17 | D17: 22 | E17: 456.6140791 | F17: ='24.11.'!F16 -> 15.26 | G17: ='24.11.'!G16 -> 19.69 | H17: ='24.11.'!H16 -> 19.51 | I17: ='24.11.'!I16 -> 43 | J17: ='24.11.'!J16 -> 0.127 | K17: =((G17+273)^4+2.5*10^8*J17^0.6*(G17-H17))^(1/4)-273 -> 19.81999354 | L17: =TOPERA(H17,K17,J17) -> 19.66499677 | M17: -0.5172661771 | N17: =PPD(M17) -> 10.59521569 | O17: ='24.11.'!O16 -> 17.40360288 | P17: -653.3386449 | Q17: 590 | R17: -63.33864491 | S17: B | U17: 29.11.16 | V17: Ta | W17: RH | X17: v | Y17: Tr | Z17: To | AA17: PMV | AC17: Ta | AD17: RH | AE17: v | AF17: Tr | AG17: To | AH17: PMV | AJ17: Ta | AK17: RH | AL17: v | AM17: Tr | AN17: To | AO17: PMV | AQ17: Ta | AR17: RH | AS17: v | AT17: Tr | AU17: To | AV17: PMV | AX17: Ta | AY17: RH | AZ17: v | BA17: Tr | BB17: To | BC17: PMV | BE17: Ta | BF17: RH | BG17: v | BH17: Tr | BI17: To | BJ17: PMV
A18: 10 | B18: 25.11.16 | C18: 16:14:32 | D18: 14 | E18: 292.623865 | F18: ='25.11.'!F8 -> 17.535 | G18: ='25.11.'!G8 -> 20.29 | H18: ='25.11.'!H8 -> 20.29 | I18: ='25.11.'!I8 -> 39.8 | J18: ='25.11.'!J8 -> 0.07733333333 | K18: =((G18+273)^4+2.5*10^8*J18^0.6*(G18-H18))^(1/4)-273 -> 20.29 | L18: =TOPERA(H18,K18,J18) -> 20.29 | M18: -0.3066114684 | N18: =PPD(M18) -> 6.953846371 | O18: ='25.11.'!O8 -> 7.518880195 | P18: -271.4135118 | Q18: 590 | R18: 318.5864882 | S18: B | V18: [°C] | W18: [%] | X18: [m/s] | Y18: [°C] | Z18: [°C] | AA18: [1] | AC18: [°C] | AD18: [%] | AE18: [m/s] | AF18: [°C] | AG18: [°C] | AH18: [1] | AJ18: [°C] | AK18: [%] | AL18: [m/s] | AM18: [°C] | AN18: [°C] | AO18: [1] | AQ18: [°C] | AR18: [%] | AS18: [m/s] | AT18: [°C] | AU18: [°C] | AV18: [1] | AX18: [°C] | AY18: [%] | AZ18: [m/s] | BA18: [°C] | BB18: [°C] | BC18: [1] | BE18: [°C] | BF18: [%] | BG18: [m/s] | BH18: [°C] | BI18: [°C] | BJ18: [1]
A19: 11 | B19: 25.11.16 | C19: 16:49:33 | D19: 22 | E19: 474.9793797 | F19: ='25.11.'!F9 -> 17.685 | G19: ='25.11.'!G9 -> 20.15 | H19: ='25.11.'!H9 -> 20.08 | I19: ='25.11.'!I9 -> 40.1 | J19: ='25.11.'!J9 -> 0.0905 | K19: =((G19+273)^4+2.5*10^8*J19^0.6*(G19-H19))^(1/4)-273 -> 20.19107771 | L19: =TOPERA(H19,K19,J19) -> 20.13553886 | M19: -0.3408294658 | N19: =PPD(M19) -> 7.416389264 | O19: ='25.11.'!O9 -> 10.17354337 | P19: -382.9837901 | Q19: 590 | R19: 207.0162099 | S19: B | U19: 15 | V19: 15 | W19: =AVERAGE($I$22:$I$25) -> 27.75 | X19: 0.01 | Y19: =(($U$19+273)^4+2.5*10^8*X19^0.6*($U$19-V19))^(1/4)-273 -> 15 | Z19: =TOPERA(V19,Y19,X19) -> 15 | AA19: =PMVx($F$4,$G$4,$H$4,V19,W19,X19,Y19,0) -> -1.508329567 | AC19: 15 | AD19: =AVERAGE($I$22:$I$25) -> 27.75 | AE19: 0.05 | AF19: =(($U$19+273)^4+2.5*10^8*AE19^0.6*($U$19-AC19))^(1/4)-273 -> 15 | AG19: =TOPERA(AC19,AF19,AE19) -> 15 | AH19: =PMVx($F$4,$G$4,$H$4,AC19,AD19,AE19,AF19,0) -> -1.508316772 | AJ19: 15 | AK19: =AVERAGE($I$22:$I$25) -> 27.75 | AL19: 0.1 | AM19: =(($U$19+273)^4+2.5*10^8*AL19^0.6*($U$19-AJ19))^(1/4)-273 -> 15 | AN19: =TOPERA(AJ19,AM19,AL19) -> 15 | AO19: =PMVx($F$4,$G$4,$H$4,AJ19,AK19,AL19,AM19,0) -> -1.508350166 | AQ19: 15 | AR19: =AVERAGE($I$22:$I$25) -> 27.75 | AS19: 0.15 | AT19: =(($U$19+273)^4+2.5*10^8*AS19^0.6*($U$19-AQ19))^(1/4)-273 -> 15 | AU19: =TOPERA(AQ19,AT19,AS19) -> 15 | AV19: =PMVx($F$4,$G$4,$H$4,AQ19,AR19,AS19,AT19,0) -> -1.638897827 | AX19: 15 | AY19: =AVERAGE($I$22:$I$25) -> 27.75 | AZ19: 0.2 | BA19: =(($U$19+273)^4+2.5*10^8*AZ19^0.6*($U$19-AX19))^(1/4)-273 -> 15 | BB19: =TOPERA(AX19,BA19,AZ19) -> 15 | BC19: =PMVx($F$4,$G$4,$H$4,AX19,AY19,AZ19,BA19,0) -> -1.759341652 | BE19: 15 | BF19: =AVERAGE($I$22:$I$25) -> 27.75 | BG19: 0.25 | BH19: =(($U$19+273)^4+2.5*10^8*BG19^0.6*($U$19-BE19))^(1/4)-273 -> 15 | BI19: =TOPERA(BE19,BH19,BG19) -> 15 | BJ19: =PMVx($F$4,$G$4,$H$4,BE19,BF19,BG19,BH19,0) -> -1.856352738
A20: 12 | B20: 25.11.16 | C20: 17:22:34 | D20: 30 | E20: 643.9255224 | F20: ='25.11.'!F10 -> 17.97 | G20: ='25.11.'!G10 -> 20.01 | H20: ='25.11.'!H10 -> 19.92 | I20: ='25.11.'!I10 -> 40.1 | J20: ='25.11.'!J10 -> 0.12675 | K20: 20.07472918 | L20: 19.99736459 | M20: -0.4572266685 | N20: 9.363397933 | O20: ='25.11.'!O10 -> 15.87766515 | P20: -422.7371054 | Q20: 590 | R20: 167.2628946 | S20: B | U20: 25 | V20: 25 | W20: =W19 -> 27.75 | X20: 0.01 | Y20: =(($U$20+273)^4+2.5*10^8*X20^0.6*($U$20-V20))^(1/4)-273 -> 25 | Z20: =TOPERA(V20,Y20,X20) -> 25 | AA20: =PMVx($F$4,$G$4,$H$4,V20,W20,X20,Y20,0) -> 0.6497337612 | AC20: 25 | AD20: =AD19 -> 27.75 | AE20: 0.05 | AF20: =(($U$20+273)^4+2.5*10^8*AE20^0.6*($U$20-AC20))^(1/4)-273 -> 25 | AG20: =TOPERA(AC20,AF20,AE20) -> 25 | AH20: =PMVx($F$4,$G$4,$H$4,AC20,AD20,AE20,AF20,0) -> 0.6497337612 | AJ20: 25 | AK20: =AK19 -> 27.75 | AL20: 0.1 | AM20: =(($U$20+273)^4+2.5*10^8*AL20^0.6*($U$20-AJ20))^(1/4)-273 -> 25 | AN20: =TOPERA(AJ20,AM20,AL20) -> 25 | AO20: =PMVx($F$4,$G$4,$H$4,AJ20,AK20,AL20,AM20,0) -> 0.6020119629 | AQ20: 25 | AR20: =AR19 -> 27.75 | AS20: 0.15 | AT20: =(($U$20+273)^4+2.5*10^8*AS20^0.6*($U$20-AQ20))^(1/4)-273 -> 25 | AU20: =TOPERA(AQ20,AT20,AS20) -> 25 | AV20: =PMVx($F$4,$G$4,$H$4,AQ20,AR20,AS20,AT20,0) -> 0.5307588409 | AX20: 25 | AY20: =AY19 -> 27.75 | AZ20: 0.2 | BA20: =(($U$20+273)^4+2.5*10^8*AZ20^0.6*($U$20-AX20))^(1/4)-273 -> 25 | BB20: =TOPERA(AX20,BA20,AZ20) -> 25 | BC20: =PMVx($F$4,$G$4,$H$4,AX20,AY20,AZ20,BA20,0) -> 0.4767453359 | BE20: 25 | BF20: =BF19 -> 27.75 | BG20: 0.25 | BH20: =(($U$20+273)^4+2.5*10^8*BG20^0.6*($U$20-BE20))^(1/4)-273 -> 25 | BI20: =TOPERA(BE20,BH20,BG20) -> 25 | BJ20: =PMVx($F$4,$G$4,$H$4,BE20,BF20,BG20,BH20,0) -> 0.4331867173
A21: 13 | B21: 25.11.16 | C21: 18:07:05 | D21: 38 | E21: 866.064318 | F21: ='25.11.'!F11 -> 18.425 | G21: ='25.11.'!G11 -> 19.91 | H21: ='25.11.'!H11 -> 19.83 | I21: ='25.11.'!I11 -> 40.2 | J21: ='25.11.'!J11 -> 0.16 | K21: 19.97623569 | L21: 19.90311785 | M21: -0.5462198832 | N21: 11.24494679 | O21: ='25.11.'!O11 -> 22.55985473 | P21: -409.6628568 | Q21: 590 | R21: 180.3371432 | S21: C
A22: 14 | B22: 29.11.16 | C22: 11:55:25 | D22: 38 | E22: 871.0849711 | F22: ='29.11.'!F8 -> 17.64 | G22: ='29.11.'!G8 -> 18.99 | H22: ='29.11.'!H8 -> 18.92 | I22: ='29.11.'!I8 -> 28.8 | J22: ='29.11.'!J8 -> 0.2155 | K22: 19.05994979 | L22: =TOPERA(H22,K22,J22) -> 18.98479017 | M22: -0.9028086936 | N22: =PPD(M22) -> 22.21103291 | O22: ='29.11.'!O8 -> 30.47852306 | P22: -375.3795502 | Q22: 590 | R22: 214.6204498 | S22: Mimo rozsah | U22: 29.11.16 | V22: Ta | W22: RH | X22: v | Y22: Tr | Z22: To | AA22: PMV | AC22: Ta | AD22: RH | AE22: v | AF22: Tr | AG22: To | AH22: PMV | AJ22: Ta | AK22: RH | AL22: v | AM22: Tr | AN22: To | AO22: PMV | AQ22: Ta | AR22: RH | AS22: v | AT22: Tr | AU22: To | AV22: PMV | AX22: Ta | AY22: RH | AZ22: v | BA22: Tr | BB22: To | BC22: PMV | BE22: Ta | BF22: RH | BG22: v | BH22: Tr | BI22: To | BJ22: PMV
A23: 15 | B23: 29.11.16 | C23: 12:39:56 | D23: 42 | E23: 964.0574739 | F23: ='29.11.'!F9 -> 18.27 | G23: ='29.11.'!G9 -> 19.31 | H23: ='29.11.'!H9 -> 19.26 | I23: ='29.11.'!I9 -> 27.8 | J23: ='29.11.'!J9 -> 0.21725 | K23: 19.36004761 | L23: =TOPERA(H23,K23,J23) -> 19.30623036 | M23: -0.8375063941 | N23: 19.79852921 | O23: ='29.11.'!O9 -> 30.42092792 | P23: -321.3203561 | Q23: 590 | R23: 268.6796439 | S23: Mimo rozsah | V23: [°C] | W23: [%] | X23: [m/s] | Y23: [°C] | Z23: [°C] | AA23: [1] | AC23: [°C] | AD23: [%] | AE23: [m/s] | AF23: [°C] | AG23: [°C] | AH23: [1] | AJ23: [°C] | AK23: [%] | AL23: [m/s] | AM23: [°C] | AN23: [°C] | AO23: [1] | AQ23: [°C] | AR23: [%] | AS23: [m/s] | AT23: [°C] | AU23: [°C] | AV23: [1] | AX23: [°C] | AY23: [%] | AZ23: [m/s] | BA23: [°C] | BB23: [°C] | BC23: [1] | BE23: [°C] | BF23: [%] | BG23: [m/s] | BH23: [°C] | BI23: [°C] | BJ23: [1]
A24: 16 | B24: 29.11.16 | C24: 13:29:28 | D24: 46 | E24: 1041.246829 | F24: ='29.11.'!F10 -> 17.53 | G24: ='29.11.'!G10 -> 19.09 | H24: ='29.11.'!H10 -> 19 | I24: ='29.11.'!I10 -> 27.5 | J24: ='29.11.'!J10 -> 0.2345 | K24: 19.18450339 | L24: 19.0837277 | M24: -0.9160479027 | N24: 22.72141296 | O24: ='29.11.'!O10 -> 35.91237731 | P24: -515.3130557 | Q24: 590 | R24: 74.68694428 | S24: Mimo rozsah | U24: 15 | V24: 15 | W24: =AVERAGE($I$26:$I$30) -> 25.44 | X24: 0.01 | Y24: =(($U$24+273)^4+2.5*10^8*X24^0.6*($U$24-V24))^(1/4)-273 -> 15 | Z24: =TOPERA(V24,Y24,X24) -> 15 | AA24: =PMVx($F$4,$G$4,$H$4,V24,W24,X24,Y24,0) -> -1.517095132 | AC24: 15 | AD24: =AVERAGE($I$26:$I$30) -> 25.44 | AE24: 0.05 | AF24: =(($U$24+273)^4+2.5*10^8*AE24^0.6*($U$24-AC24))^(1/4)-273 -> 15 | AG24: =TOPERA(AC24,AF24,AE24) -> 15 | AH24: =PMVx($F$4,$G$4,$H$4,AC24,AD24,AE24,AF24,0) -> -1.517082337 | AJ24: 15 | AK24: =AVERAGE($I$26:$I$30) -> 25.44 | AL24: 0.1 | AM24: =(($U$24+273)^4+2.5*10^8*AL24^0.6*($U$24-AJ24))^(1/4)-273 -> 15 | AN24: =TOPERA(AJ24,AM24,AL24) -> 15 | AO24: =PMVx($F$4,$G$4,$H$4,AJ24,AK24,AL24,AM24,0) -> -1.517115731 | AQ24: 15 | AR24: =AVERAGE($I$26:$I$30) -> 25.44 | AS24: 0.15 | AT24: =(($U$24+273)^4+2.5*10^8*AS24^0.6*($U$24-AQ24))^(1/4)-273 -> 15 | AU24: =TOPERA(AQ24,AT24,AS24) -> 15 | AV24: =PMVx($F$4,$G$4,$H$4,AQ24,AR24,AS24,AT24,0) -> -1.647663392 | AX24: 15 | AY24: =AVERAGE($I$26:$I$30) -> 25.44 | AZ24: 0.2 | BA24: =(($U$24+273)^4+2.5*10^8*AZ24^0.6*($U$24-AX24))^(1/4)-273 -> 15 | BB24: =TOPERA(AX24,BA24,AZ24) -> 15 | BC24: =PMVx($F$4,$G$4,$H$4,AX24,AY24,AZ24,BA24,0) -> -1.768107216 | BE24: 15 | BF24: =AVERAGE($I$26:$I$30) -> 25.44 | BG24: 0.25 | BH24: =(($U$24+273)^4+2.5*10^8*BG24^0.6*($U$24-BE24))^(1/4)-273 -> 15 | BI24: =TOPERA(BE24,BH24,BG24) -> 15 | BJ24: =PMVx($F$4,$G$4,$H$4,BE24,BF24,BG24,BH24,0) -> -1.865118303
A25: 17 | B25: 29.11.16 | C25: 14:43:00 | D25: 50 | E25: 1127.783578 | F25: ='29.11.'!F11 -> 18.115 | G25: ='29.11.'!G11 -> 19.14 | H25: ='29.11.'!H11 -> 19.07 | I25: ='29.11.'!I11 -> 26.9 | J25: ='29.11.'!J11 -> 0.20225 | K25: 19.20723388 | L25: 19.13446228 | M25: -0.8574707562 | N25: 20.51739294 | O25: ='29.11.'!O11 -> 31.36246872 | P25: -362.6012167 | Q25: 590 | R25: 227.3987833 | S25: Mimo rozsah | U25: 25 | V25: 25 | W25: =W24 -> 25.44 | X25: 0.01 | Y25: =(($U$25+273)^4+2.5*10^8*X25^0.6*($U$25-V25))^(1/4)-273 -> 25 | Z25: =TOPERA(V25,Y25,X25) -> 25 | AA25: =PMVx($F$4,$G$4,$H$4,V25,W25,X25,Y25,0) -> 0.6334387485 | AC25: 25 | AD25: =AD24 -> 25.44 | AE25: 0.05 | AF25: =(($U$25+273)^4+2.5*10^8*AE25^0.6*($U$25-AC25))^(1/4)-273 -> 25 | AG25: =TOPERA(AC25,AF25,AE25) -> 25 | AH25: =PMVx($F$4,$G$4,$H$4,AC25,AD25,AE25,AF25,0) -> 0.6334387485 | AJ25: 25 | AK25: =AK24 -> 25.44 | AL25: 0.1 | AM25: =(($U$25+273)^4+2.5*10^8*AL25^0.6*($U$25-AJ25))^(1/4)-273 -> 25 | AN25: =TOPERA(AJ25,AM25,AL25) -> 25 | AO25: =PMVx($F$4,$G$4,$H$4,AJ25,AK25,AL25,AM25,0) -> 0.5857169502 | AQ25: 25 | AR25: =AR24 -> 25.44 | AS25: 0.15 | AT25: =(($U$25+273)^4+2.5*10^8*AS25^0.6*($U$25-AQ25))^(1/4)-273 -> 25 | AU25: =TOPERA(AQ25,AT25,AS25) -> 25 | AV25: =PMVx($F$4,$G$4,$H$4,AQ25,AR25,AS25,AT25,0) -> 0.5144638282 | AX25: 25 | AY25: =AY24 -> 25.44 | AZ25: 0.2 | BA25: =(($U$25+273)^4+2.5*10^8*AZ25^0.6*($U$25-AX25))^(1/4)-273 -> 25 | BB25: =TOPERA(AX25,BA25,AZ25) -> 25 | BC25: =PMVx($F$4,$G$4,$H$4,AX25,AY25,AZ25,BA25,0) -> 0.4604503232 | BE25: 25 | BF25: =BF24 -> 25.44 | BG25: 0.25 | BH25: =(($U$25+273)^4+2.5*10^8*BG25^0.6*($U$25-BE25))^(1/4)-273 -> 25 | BI25: =TOPERA(BE25,BH25,BG25) -> 25 | BJ25: =PMVx($F$4,$G$4,$H$4,BE25,BF25,BG25,BH25,0) -> 0.4168917046
A26: 18 | B26: 29.11.16 | C26: 15:41:32 | D26: 50 | E26: =prutok!AQ89 -> 1112.009279 | F26: ='29.11.'!F12 -> 22.025 | G26: ='29.11.'!G12 -> 20.32 | H26: ='29.11.'!H12 -> 20.44 | I26: ='29.11.'!I12 -> 25.2 | J26: ='29.11.'!J12 -> 0.18075 | K26: =((G26+273)^4+2.5*10^8*J26^0.6*(G26-H26))^(1/4)-273 -> 20.21345824 | L26: 20.32672912 | M26: -0.5600930242 | N26: =PPD(M26) -> 11.56913598 | O26: ='29.11.'!O12 -> 22.94945661 | P26: 593.3866849 | Q26: 590 | R26: 1183.386685 | S26: C
A27: 19 | B27: 29.11.16 | C27: 16:17:03 | D27: 45 | E27: =prutok!AQ90 -> 1003.868046 | F27: ='29.11.'!F13 -> 21.82 | G27: ='29.11.'!G13 -> 20.4 | H27: ='29.11.'!H13 -> 20.5 | I27: ='29.11.'!I13 -> 25.3 | J27: ='29.11.'!J13 -> 0.1545 | K27: 20.3192698 | L27: 20.4096349 | M27: -0.4974290453 | N27: 10.17100493 | O27: ='29.11.'!O13 -> 18.74019402 | P27: 446.1189595 | Q27: 590 | R27: 1036.11896 | S27: C | U27: 01.12.16 | V27: Ta | W27: RH | X27: v | Y27: Tr | Z27: To | AA27: PMV | AC27: Ta | AD27: RH | AE27: v | AF27: Tr | AG27: To | AH27: PMV | AJ27: Ta | AK27: RH | AL27: v | AM27: Tr | AN27: To | AO27: PMV | AQ27: Ta | AR27: RH | AS27: v | AT27: Tr | AU27: To | AV27: PMV | AX27: Ta | AY27: RH | AZ27: v | BA27: Tr | BB27: To | BC27: PMV | BE27: Ta | BF27: RH | BG27: v | BH27: Tr | BI27: To | BJ27: PMV
A28: 20 | B28: 29.11.16 | C28: 16:49:04 | D28: 40 | E28: =prutok!AQ91 -> 906.6946099 | F28: ='29.11.'!F14 -> 21.7 | G28: ='29.11.'!G14 -> 20.34 | H28: ='29.11.'!H14 -> 20.42 | I28: ='29.11.'!I14 -> 25.4 | J28: ='29.11.'!J14 -> 0.16275 | K28: 20.2733321 | L28: 20.34666605 | M28: -0.5259169438 | N28: 10.78553937 | O28: ='29.11.'!O14 -> 19.84995926 | P28: 390.7249306 | Q28: 590 | R28: 980.7249306 | S28: C | U28: 13.12.16 | V28: [°C] | W28: [%] | X28: [m/s] | Y28: [°C] | Z28: [°C] | AA28: [1] | AC28: [°C] | AD28: [%] | AE28: [m/s] | AF28: [°C] | AG28: [°C] | AH28: [1] | AJ28: [°C] | AK28: [%] | AL28: [m/s] | AM28: [°C] | AN28: [°C] | AO28: [1] | AQ28: [°C] | AR28: [%] | AS28: [m/s] | AT28: [°C] | AU28: [°C] | AV28: [1] | AX28: [°C] | AY28: [%] | AZ28: [m/s] | BA28: [°C] | BB28: [°C] | BC28: [1] | BE28: [°C] | BF28: [%] | BG28: [m/s] | BH28: [°C] | BI28: [°C] | BJ28: [1]
A29: 21 | B29: 29.11.16 | C29: 17:22:35 | D29: 35 | E29: =prutok!AQ92 -> 795.8639426 | F29: ='29.11.'!F15 -> 21.94 | G29: ='29.11.'!G15 -> 20.27 | H29: ='29.11.'!H15 -> 20.38 | I29: ='29.11.'!I15 -> 25.6 | J29: ='29.11.'!J15 -> 0.13725 | K29: 20.18717505 | L29: 20.28358753 | M29: -0.4897557426 | N29: 10.01147508 | O29: ='29.11.'!O15 -> 15.92665499 | P29: 417.9877427 | Q29: 590 | R29: 1007.987743 | S29: B | U29: 15 | V29: 15 | W29: =AVERAGE($I$31:$I$38) -> 28.95 | X29: 0.01 | Y29: =(($U$29+273)^4+2.5*10^8*X29^0.6*($U$29-V29))^(1/4)-273 -> 15 | Z29: =TOPERA(V29,Y29,X29) -> 15 | AA29: =PMVx($F$4,$G$4,$H$4,V29,W29,X29,Y29,0) -> -1.503776027 | AC29: 15 | AD29: =AVERAGE($I$31:$I$38) -> 28.95 | AE29: 0.05 | AF29: =(($U$29+273)^4+2.5*10^8*AE29^0.6*($U$29-AC29))^(1/4)-273 -> 15 | AG29: =TOPERA(AC29,AF29,AE29) -> 15 | AH29: =PMVx($F$4,$G$4,$H$4,AC29,AD29,AE29,AF29,0) -> -1.503763232 | AJ29: 15 | AK29: =AVERAGE($I$31:$I$38) -> 28.95 | AL29: 0.1 | AM29: =(($U$29+273)^4+2.5*10^8*AL29^0.6*($U$29-AJ29))^(1/4)-273 -> 15 | AN29: =TOPERA(AJ29,AM29,AL29) -> 15 | AO29: =PMVx($F$4,$G$4,$H$4,AJ29,AK29,AL29,AM29,0) -> -1.503796626 | AQ29: 15 | AR29: =AVERAGE($I$31:$I$38) -> 28.95 | AS29: 0.15 | AT29: =(($U$29+273)^4+2.5*10^8*AS29^0.6*($U$29-AQ29))^(1/4)-273 -> 15 | AU29: =TOPERA(AQ29,AT29,AS29) -> 15 | AV29: =PMVx($F$4,$G$4,$H$4,AQ29,AR29,AS29,AT29,0) -> -1.634344287 | AX29: 15 | AY29: =AVERAGE($I$31:$I$38) -> 28.95 | AZ29: 0.2 | BA29: =(($U$29+273)^4+2.5*10^8*AZ29^0.6*($U$29-AX29))^(1/4)-273 -> 15 | BB29: =TOPERA(AX29,BA29,AZ29) -> 15 | BC29: =PMVx($F$4,$G$4,$H$4,AX29,AY29,AZ29,BA29,0) -> -1.754788111 | BE29: 15 | BF29: =AVERAGE($I$31:$I$34) -> 28.875 | BG29: 0.25 | BH29: =(($U$29+273)^4+2.5*10^8*BG29^0.6*($U$29-BE29))^(1/4)-273 -> 15 | BI29: =TOPERA(BE29,BH29,BG29) -> 15 | BJ29: =PMVx($F$4,$G$4,$H$4,BE29,BF29,BG29,BH29,0) -> -1.852083794
A30: 22 | B30: 29.11.16 | C30: 17:58:36 | D30: 30 | E30: =prutok!AQ93 -> 679.7156804 | F30: ='29.11.'!F16 -> 22.51 | G30: ='29.11.'!G16 -> 20.32 | H30: ='29.11.'!H16 -> 20.45 | I30: ='29.11.'!I16 -> 25.7 | J30: ='29.11.'!J16 -> 0.13825 | K30: 20.22173119 | L30: 20.3358656 | M30: -0.479565184 | N30: 9.803540398 | O30: ='29.11.'!O16 -> 15.86755578 | P30: 471.4054816 | Q30: 590 | R30: 1061.405482 | S30: B | U30: 25 | V30: 25 | W30: =W29 -> 28.95 | X30: 0.01 | Y30: =(($U$30+273)^4+2.5*10^8*X30^0.6*($U$30-V30))^(1/4)-273 -> 25 | Z30: =TOPERA(V30,Y30,X30) -> 25 | AA30: =PMVx($F$4,$G$4,$H$4,V30,W30,X30,Y30,0) -> 0.6581987029 | AC30: 25 | AD30: =AD29 -> 28.95 | AE30: 0.05 | AF30: =(($U$30+273)^4+2.5*10^8*AE30^0.6*($U$30-AC30))^(1/4)-273 -> 25 | AG30: =TOPERA(AC30,AF30,AE30) -> 25 | AH30: =PMVx($F$4,$G$4,$H$4,AC30,AD30,AE30,AF30,0) -> 0.6581987029 | AJ30: 25 | AK30: =AK29 -> 28.95 | AL30: 0.1 | AM30: =(($U$30+273)^4+2.5*10^8*AL30^0.6*($U$30-AJ30))^(1/4)-273 -> 25 | AN30: =TOPERA(AJ30,AM30,AL30) -> 25 | AO30: =PMVx($F$4,$G$4,$H$4,AJ30,AK30,AL30,AM30,0) -> 0.6104769046 | AQ30: 25 | AR30: =AR29 -> 28.95 | AS30: 0.15 | AT30: =(($U$30+273)^4+2.5*10^8*AS30^0.6*($U$30-AQ30))^(1/4)-273 -> 25 | AU30: =TOPERA(AQ30,AT30,AS30) -> 25 | AV30: =PMVx($F$4,$G$4,$H$4,AQ30,AR30,AS30,AT30,0) -> 0.5392237826 | AX30: 25 | AY30: =AY29 -> 28.95 | AZ30: 0.2 | BA30: =(($U$30+273)^4+2.5*10^8*AZ30^0.6*($U$30-AX30))^(1/4)-273 -> 25 | BB30: =TOPERA(AX30,BA30,AZ30) -> 25 | BC30: =PMVx($F$4,$G$4,$H$4,AX30,AY30,AZ30,BA30,0) -> 0.4852102776 | BE30: 25 | BF30: =BF29 -> 28.875 | BG30: 0.25 | BH30: =(($U$30+273)^4+2.5*10^8*BG30^0.6*($U$30-BE30))^(1/4)-273 -> 25 | BI30: =TOPERA(BE30,BH30,BG30) -> 25 | BJ30: =PMVx($F$4,$G$4,$H$4,BE30,BF30,BG30,BH30,0) -> 0.4411226001
A31: 23 | B31: 01.12.16 | C31: 12:14:00 | D31: 25 | E31: =prutok!AQ94 -> 557.2787711 | F31: ='1.12.'!F8 -> 22.93 | G31: ='1.12.'!G8 -> 20.48 | H31: ='1.12.'!H8 -> 20.28 | I31: ='1.12.'!I8 -> 28.6 | J31: ='1.12.'!J8 -> 0.04625 | K31: 20.55817502 | L31: =TOPERA(H31,K31,J31) -> 20.41908751 | M31: -0.3421063942 | N31: 7.434611699 | O31: ='1.12.'!O8 -> 0 | P31: 497.1855436 | Q31: 590 | R31: 1087.185544 | S31: B
A32: 24 | B32: 01.12.16 | C32: 14:16:04 | D32: 20 | E32: =prutok!AQ95 -> 438.3945264 | F32: ='1.12.'!F9 -> 23.93 | G32: ='1.12.'!G9 -> 20.63 | H32: ='1.12.'!H9 -> 20.65 | I32: ='1.12.'!I9 -> 28.5 | J32: ='1.12.'!J9 -> 0.0255 | K32: 20.62453683 | L32: 20.63726841 | M32: -0.291172226 | N32: 6.761377079 | O32: ='1.12.'!O9 -> 0 | P32: 484.1044624 | Q32: 590 | R32: 1074.104462 | S32: B
A33: 25 | B33: 01.12.16 | C33: 15:35:37 | D33: 15 | E33: =prutok!AQ96 -> 322.607231 | F33: ='1.12.'!F10 -> 25.36 | G33: ='1.12.'!G10 -> 20.51 | H33: ='1.12.'!H10 -> 20.52 | I33: ='1.12.'!I10 -> 28.8 | J33: ='1.12.'!J10 -> 0.02725 | K33: 20.50715398 | L33: 20.51357699 | M33: -0.3164876122 | N33: 7.082252761 | O33: ='1.12.'!O10 -> 0 | P33: 525.6777294 | Q33: 590 | R33: 1115.677729 | S33: B
A34: 26 | B34: 01.12.16 | C34: 16:34:39 | D34: 10 | E34: =prutok!AQ97 -> 215.2080081 | F34: ='1.12.'!F11 -> 23.88 | G34: ='1.12.'!G11 -> 20.06 | H34: ='1.12.'!H11 -> 19.95 | I34: ='1.12.'!I11 -> 29.6 | J34: ='1.12.'!J11 -> 0.02675 | K34: =((G34+273)^4+2.5*10^8*J34^0.6*(G34-H34))^(1/4)-273 -> 20.0910977 | L34: 20.02054885 | M34: -0.4212183534 | N34: 8.69911373 | O34: ='1.12.'!O11 -> 0 | P34: 284.7417155 | Q34: 590 | R34: 874.7417155 | S34: B
A35: 27 | B35: 13.12.16 | C35: 12:37:28 | D35: 40 | E35: =prutok!AQ104 -> 896.8063501 | F35: ='13.12.'!F9 -> 27.33 | G35: ='13.12.'!G9 -> 22.42 | H35: ='13.12.'!H9 -> 22.72 | I35: ='13.12.'!I9 -> 28.4 | J35: ='13.12.'!J9 -> 0.14925 | K35: =((G35+273)^4+2.5*10^8*J35^0.6*(G35-H35))^(1/4)-273 -> 22.18743569 | L35: 22.45371785 | M35: -0.01920907871 | N35: 5.007638377 | O35: ='13.12.'!O9 -> 15.64304224 | P35: 1391.873349 | Q35: 590 | R35: 1981.873349 | S35: B
A36: 28 | B36: 13.12.16 | C36: 13:30:29 | D36: 30 | E36: =prutok!AQ105 -> 667.1363036 | F36: ='13.12.'!F10 -> 29 | G36: ='13.12.'!G10 -> 22.47 | H36: ='13.12.'!H10 -> 22.99 | I36: ='13.12.'!I10 -> 28.3 | J36: ='13.12.'!J10 -> 0.03725 | K36: =((G36+273)^4+2.5*10^8*J36^0.6*(G36-H36))^(1/4)-273 -> 22.29485202 | L36: 22.64242601 | M36: 0.1492167291 | N36: 5.461364941 | O36: ='13.12.'!O10 -> 0 | P36: 1349.861359 | Q36: 590 | R36: 1939.861359 | S36: A
A37: 29 | B37: 13.12.16 | C37: 14:30:31 | D37: 30 | E37: =prutok!AQ107 -> 671.6390704 | F37: ='13.12.'!F11 -> 25.345 | G37: ='13.12.'!G11 -> 21.9 | H37: ='13.12.'!H11 -> 22.13 | I37: ='13.12.'!I11 -> 29.4 | J37: ='13.12.'!J11 -> 0.09675 | K37: =((G37+273)^4+2.5*10^8*J37^0.6*(G37-H37))^(1/4)-273 -> 21.76187278 | L37: 21.94593639 | M37: -0.02736013051 | N37: 5.015496434 | O37: ='13.12.'!O11 -> 8.240512608 | P37: 726.9709358 | Q37: 590 | R37: 1316.970936 | S37: A
A38: 30 | B38: 13.12.16 | C38: 15:12:03 | D38: 40 | E38: =prutok!AQ108 -> 893.4551459 | F38: ='13.12.'!F12 -> 24 | G38: ='13.12.'!G12 -> 21.58 | H38: ='13.12.'!H12 -> 21.72 | I38: ='13.12.'!I12 -> 30 | J38: ='13.12.'!J12 -> 0.1405 | K38: =((G38+273)^4+2.5*10^8*J38^0.6*(G38-H38))^(1/4)-273 -> 21.47450366 | L38: 21.59725183 | M38: -0.1868239701 | N38: 5.723624071 | O38: ='13.12.'!O12 -> 14.97308575 | P38: 685.81617 | Q38: 590 | R38: 1275.81617 | S38: B
A71: č. měření | B71: f | C71: V | D71: Tp | E71: Tk1 | F71: Ta1 | G71: RH | H71: v
B72: [Hz] | C72: [m3/h] | D72: [°C] | E72: [°C] | F72: [°C] | G72: [%] | H72: [m/s]
A73: 1 | B73: 10 | C73: 205.9944524 | D73: 19.02 | E73: 20.67 | F73: 20.72 | G73: 43.1 | H73: =J9 -> 0.03766666667
A74: 2 | B74: 14 | C74: 300.3733524 | D74: 18.955 | E74: 20.67 | F74: 20.7 | G74: 43.3 | H74: =J10 -> 0.075 | L74: č. měření | M74: f | N74: V | O74: Tp | P74: Tk1 | Q74: Ta1 | R74: RH | S74: v
A75: 3 | B75: 18 | C75: 397.9494986 | D75: 18.985 | E75: 20.6 | F75: 20.6 | G75: 43.3 | H75: 0.0785 | M75: [Hz] | N75: [m3/h] | O75: [°C] | P75: [°C] | Q75: [°C] | R75: [%] | S75: [m/s]
A76: 4 | B76: 22 | C76: 494.6847309 | D76: 19.12 | E76: 20.59 | F76: 20.58 | G76: 43.4 | H76: 0.1 | L76: 18 | M76: 50 | N76: 1112.009279 | O76: 22.025 | P76: 20.32 | Q76: 20.44 | R76: 25.2 | S76: =J26 -> 0.18075
A77: 5 | B77: 26 | C77: 589.143686 | D77: 19.275 | E77: 20.61 | F77: 20.59 | G77: 43.5 | H77: 0.11675 | L77: 19 | M77: 45 | N77: 1003.868046 | O77: 21.82 | P77: 20.4 | Q77: 20.5 | R77: 25.3 | S77: 0.1545
A78: 6 | B78: 30 | C78: 682.2167601 | D78: 19.39 | E78: 20.57 | F78: 20.52 | G78: 43.5 | H78: 0.1256666667 | L78: 20 | M78: 40 | N78: 906.6946099 | O78: 21.7 | P78: 20.34 | Q78: 20.42 | R78: 25.4 | S78: 0.16275
A79: 7 | B79: 34 | C79: 775.5726423 | D79: 19.675 | E79: 20.61 | F79: 20.58 | G79: 43.3 | H79: 0.134 | L79: 21 | M79: 35 | N79: 795.8639426 | O79: 21.94 | P79: 20.27 | Q79: 20.38 | R79: 25.6 | S79: 0.13725
A80: 8 | B80: 18 | C80: 379.6998174 | D80: 15.81 | E80: 19.98 | F80: 19.87 | G80: 43 | H80: 0.1156666667 | L80: 22 | M80: 30 | N80: 679.7156804 | O80: 22.51 | P80: 20.32 | Q80: 20.45 | R80: 25.7 | S80: 0.13825
A81: 9 | B81: 22 | C81: 456.6140791 | D81: 15.26 | E81: 19.69 | F81: 19.51 | G81: 43 | H81: 0.127 | L81: 23 | M81: 25 | N81: 557.2787711 | O81: 22.93 | P81: 20.48 | Q81: 20.28 | R81: 28.6 | S81: 0.04625
A82: 10 | B82: 14 | C82: 292.623865 | D82: 17.535 | E82: 20.29 | F82: 20.29 | G82: 39.8 | H82: 0.07733333333 | L82: 24 | M82: 20 | N82: 438.3945264 | O82: 23.93 | P82: 20.63 | Q82: 20.65 | R82: 28.5 | S82: 0.0255
A83: 11 | B83: 22 | C83: 474.9793797 | D83: 17.685 | E83: 20.15 | F83: 20.08 | G83: 40.1 | H83: 0.0905 | L83: 25 | M83: 15 | N83: 322.607231 | O83: 25.36 | P83: 20.51 | Q83: 20.52 | R83: 28.8 | S83: 0.02725
A84: 12 | B84: 30 | C84: 643.9255224 | D84: 17.97 | E84: 20.01 | F84: 19.92 | G84: 40.1 | H84: 0.12675 | L84: 26 | M84: 10 | N84: 215.2080081 | O84: 23.88 | P84: 20.06 | Q84: 19.95 | R84: 29.6 | S84: 0.02675
A85: 13 | B85: 38 | C85: 866.064318 | D85: 18.425 | E85: 19.91 | F85: 19.83 | G85: 40.2 | H85: 0.16 | L85: 27 | M85: 40 | N85: 896.8063501 | O85: 27.33 | P85: 22.42 | Q85: 22.72 | R85: 28.4 | S85: 0.14925
A86: 14 | B86: 38 | C86: 871.0849711 | D86: 17.64 | E86: 18.99 | F86: 18.92 | G86: 28.8 | H86: 0.2155 | L86: 28 | M86: 30 | N86: 667.1363036 | O86: 29 | P86: 22.47 | Q86: 22.99 | R86: 28.3 | S86: 0.03725
A87: 15 | B87: 42 | C87: 964.0574739 | D87: 18.27 | E87: 19.31 | F87: 19.26 | G87: 27.8 | H87: 0.21725 | L87: 29 | M87: 30 | N87: 671.6390704 | O87: 25.345 | P87: 21.9 | Q87: 22.13 | R87: 29.4 | S87: 0.09675
A88: 16 | B88: 46 | C88: 1041.246829 | D88: 17.53 | E88: 19.09 | F88: 19 | G88: 27.5 | H88: 0.2345 | L88: 30 | M88: 40 | N88: 893.4551459 | O88: 24 | P88: 21.58 | Q88: 21.72 | R88: 30 | S88: 0.1405
A89: 17 | B89: 50 | C89: 1127.783578 | D89: 18.115 | E89: 19.14 | F89: 19.07 | G89: 26.9 | H89: 0.20225
W91: Oděv | X91: Metabolizmus | Y91: práce
A92: č. měření | B92: Tr | C92: To | D92: PMV | E92: PPD | F92: DR | G92: Qvz | H92: Kategorie tepelného prostředí | L92: č. měření | M92: Tr | N92: To | O92: PMV | P92: PPD | Q92: DR | R92: Qvz | S92: Kategorie tepelného prostředí | T92: Qc | W92: [clo] | X92: [met] | Y92: [met]
B93: [°C] | C93: [°C] | D93: [-] | E93: [%] | F93: [%] | G93: W | M93: [°C] | N93: [°C] | O93: [-] | P93: [%] | Q93: [%] | R93: W | T93: W | W93: 1 | X93: 1.2 | Y93: 0
A94: 1 | B94: 20.65274624 | C94: =L9 -> 20.68637312 | D94: =M9 -> -0.2005244138 | E94: 5.833837222 | F94: 0 | G94: -117.8974916 | H94: B | L94: 18 | M94: =K26 -> 20.21345824 | N94: =L26 -> 20.32672912 | O94: -0.5600930242 | P94: 11.56913598 | Q94: 22.94945661 | R94: 593.3866849 | S94: C | T94: 1183.386685
A95: 2 | B95: 20.65435073 | C95: =L10 -> 20.67717537 | D95: =M10 -> -0.2016846299 | E95: =N10 -> 5.84353099 | F95: =O10 -> 6.533238174 | G95: -176.4643383 | H95: B | L95: 19 | M95: =K27 -> 20.3192698 | N95: =L27 -> 20.4096349 | O95: =M27 -> -0.4974290453 | P95: =N27 -> 10.17100493 | Q95: =O27 -> 18.74019402 | R95: 446.1189595 | S95: C | T95: 1036.11896
A96: 3 | B96: 20.6 | C96: 20.6 | D96: -0.2195033412 | E96: 5.999485434 | F96: 7.322477701 | G96: -216.3717749 | H96: B | L96: 20 | M96: 20.2733321 | N96: 20.34666605 | O96: -0.5259169438 | P96: 10.78553937 | Q96: 19.84995926 | R96: 390.7249306 | S96: C | T96: 980.7249306
A97: 4 | B97: 20.59620358 | C97: 20.58810179 | D97: -0.2463469101 | E97: 6.259553971 | F97: 11.17723807 | G97: -243.1540347 | H97: B | L97: 21 | M97: 20.18717505 | N97: 20.28358753 | O97: -0.4897557426 | P97: 10.01147508 | Q97: 15.92665499 | R97: 417.9877427 | S97: B | T97: 1007.987743
A98: 5 | B98: 20.62361198 | C98: 20.60680599 | D98: -0.2825635236 | E98: 6.658431713 | F98: 13.75674444 | G98: -260.8237288 | H98: B | L98: 22 | M98: 20.22173119 | N98: 20.3358656 | O98: -0.479565184 | P98: 9.803540398 | Q98: 15.86755578 | R98: 471.4054816 | S98: B | T98: 1061.405482
A99: 6 | B99: 20.6055769 | C99: 20.56278845 | D99: -0.3127297069 | E99: 7.032907004 | F99: 15.34982717 | G99: -259.5379961 | H99: B | L99: 23 | M99: 20.55817502 | N99: 20.41908751 | O99: -0.3421063942 | P99: 7.434611699 | Q99: 0 | R99: 497.1855436 | S99: B | T99: 1087.185544
A100: 7 | B100: 20.63217698 | C100: 20.60608849 | D100: -0.3214809274 | E100: 7.148746479 | F100: 17.03366512 | G100: -236.3040579 | H100: B | L100: 24 | M100: 20.62453683 | N100: 20.63726841 | O100: -0.291172226 | P100: 6.761377079 | Q100: 0 | R100: 484.1044624 | S100: B | T100: 1074.104462
A101: 8 | B101: 20.0549061 | C101: 19.96245305 | D101: -0.4239218369 | E101: 8.74705446 | F101: 14.59193944 | G101: -518.9990237 | H101: B | L101: 25 | M101: 20.50715398 | N101: 20.51357699 | O101: -0.3164876122 | P101: 7.082252761 | Q101: 0 | R101: 525.6777294 | S101: B | T101: 1115.677729
A102: 9 | B102: 19.80860986 | C102: 19.66499677 | D102: -0.5172661771 | E102: 10.59521569 | F102: 17.40360288 | G102: -653.3386449 | H102: B | L102: 26 | M102: 20.0910977 | N102: 20.02054885 | O102: -0.4212183534 | P102: 8.69911373 | Q102: 0 | R102: 284.7417155 | S102: B | T102: 874.7417155
A103: 10 | B103: 20.29 | C103: 20.29 | D103: -0.3066114684 | E103: 6.953846371 | F103: 7.518880195 | G103: -271.4135118 | H103: B | L103: 27 | M103: 22.18743569 | N103: 22.45371785 | O103: -0.01920907871 | P103: 5.007638377 | Q103: 15.64304224 | R103: 1391.873349 | S103: A | T103: 1981.873349
A104: 11 | B104: 20.19107771 | C104: 20.13553886 | D104: -0.3408294658 | E104: 7.416389264 | F104: 10.17354337 | G104: -382.9837901 | H104: B | L104: 28 | M104: 22.29485202 | N104: 22.64242601 | O104: 0.1492167291 | P104: 5.461364941 | Q104: 0 | R104: 1349.861359 | S104: A | T104: 1939.861359
A105: 12 | B105: 20.07472918 | C105: 19.99736459 | D105: -0.4572266685 | E105: 9.363397933 | F105: 15.87766515 | G105: -422.7371054 | H105: B | L105: 29 | M105: 21.76187278 | N105: 21.94593639 | O105: -0.02736013051 | P105: 5.015496434 | Q105: 8.240512608 | R105: 726.9709358 | S105: A | T105: 1316.970936
A106: 13 | B106: 19.97623569 | C106: 19.90311785 | D106: -0.5462198832 | E106: 11.24494679 | F106: 22.55985473 | G106: -409.6628568 | H106: C | L106: 30 | M106: 21.47450366 | N106: 21.59725183 | O106: -0.1868239701 | P106: 5.723624071 | Q106: 14.97308575 | R106: 685.81617 | S106: A | T106: 1275.81617
A107: 14 | B107: 19.05994979 | C107: 18.98479017 | D107: -0.9028086936 | E107: 22.21103291 | F107: 30.47852306 | G107: -375.3795502 | H107: Mimo rozsah
A108: 15 | B108: 19.36004761 | C108: 19.30623036 | D108: -0.8375063941 | E108: 19.79852921 | F108: 30.42092792 | G108: -321.3203561 | H108: Mimo rozsah
A109: 16 | B109: 19.18450339 | C109: 19.0837277 | D109: -0.9160479027 | E109: 22.72141296 | F109: 35.91237731 | G109: -515.3130557 | H109: Mimo rozsah
A110: 17 | B110: 19.20723388 | C110: 19.13446228 | D110: -0.8574707562 | E110: 20.51739294 | F110: 31.36246872 | G110: -362.6012167 | H110: Mimo rozsah

Sheet grafy
B2: Všechna měření
B3: číslo měření | C3: Datum | D3: Čas | E3: f | F3: V | G3: Tp | H3: Tg | I3: Ta | J3: RH | K3: v | L3: Tr | M3: To | N3: PMV | O3: PPD | P3: DR | AF3: měřicí místnost
E4: [Hz] | F4: [m3/h] | G4: [°C] | H4: [°C] | I4: [°C] | J4: [%] | K4: [m/s] | L4: [°C] | M4: [°C] | N4: [1] | O4: [%] | P4: [%] | AG4: lambda | AH4: d | AI4: 1/alfa | AJ4: U | AK4: S | AM4: u stredni
B5: 1 | C5: 24.11.16 | D5: 13:54:37 | E5: 10 | F5: 205.9944524 | G5: 19.02 | H5: 20.67 | I5: 20.72 | J5: 43.1 | K5: 0.03766666667 | L5: 20.65274624 | M5: 20.68637312 | N5: -0.2005244138 | O5: 5.833837222 | P5: 0 | AF5: stena svisla | AG5: 0.147 | AH5: =2/100 -> 0.02 | AI5: 0.13 | AJ5: =1/(AI5+AH5/AG5+AI5) -> 2.524905531 | AK5: =2*4*3+7.15*3 -> 45.45 | AM5: =AH11/AK9 -> 2.840114196
B6: 2 | C6: 24.11.16 | D6: 14:19:38 | E6: 14 | F6: 300.3733524 | G6: 18.955 | H6: 20.67 | I6: 20.7 | J6: 43.3 | K6: 0.075 | L6: 20.65435073 | M6: 20.67717537 | N6: -0.2016846299 | O6: 5.84353099 | P6: 6.533238174 | AF6: podlaha | AG6: 0.147 | AH6: =2.5/100 -> 0.025 | AI6: 0.17 | AJ6: =1/(AI6+AH6/AG6+AI6) -> 1.960522806 | AK6: =4*7.15 -> 28.6
B7: 3 | C7: 24.11.16 | D7: 14:40:39 | E7: 18 | F7: 397.9494986 | G7: 18.985 | H7: 20.6 | I7: 20.6 | J7: 43.3 | K7: 0.0785 | L7: 20.6 | M7: 20.6 | N7: -0.2195033412 | O7: 5.999485434 | P7: 7.322477701 | AF7: strop | AG7: 0.147 | AH7: 0.02 | AI7: 0.1 | AJ7: =1/(AI7+AH7/AG7+AI7) -> 2.975708502 | AK7: =7.15*4 -> 28.6
B8: 4 | C8: 24.11.16 | D8: 15:25:10 | E8: 22 | F8: 494.6847309 | G8: 19.12 | H8: 20.59 | I8: 20.58 | J8: 43.4 | K8: 0.1 | L8: 20.59620358 | M8: 20.58810179 | N8: -0.2463469101 | O8: 6.259553971 | P8: 11.17723807 | AF8: sklo | AJ8: 4.5 | AK8: =7.15*3 -> 21.45
B9: 5 | C9: 24.11.16 | D9: 15:55:41 | E9: 26 | F9: 589.143686 | G9: 19.275 | H9: 20.61 | I9: 20.59 | J9: 43.5 | K9: 0.11675 | L9: 20.62361198 | M9: 20.60680599 | N9: -0.2825635236 | O9: 6.658431713 | P9: 13.75674444 | AK9: =SUM(AK5:AK8) -> 124.1
B10: 6 | C10: 24.11.16 | D10: 16:45:13 | E10: 30 | F10: 682.2167601 | G10: 19.39 | H10: 20.57 | I10: 20.52 | J10: 43.5 | K10: 0.1256666667 | L10: 20.6055769 | M10: 20.56278845 | N10: -0.3127297069 | O10: 7.032907004 | P10: 15.34982717 | AF10: dt | AG10: 0 | AH10: 1 | AI10: 2 | AJ10: 3 | AK10: 4 | AL10: 5 | AM10: 6 | AN10: 7 | AO10: 8 | AP10: 9 | AQ10: 10
B11: 7 | C11: 24.11.16 | D11: 17:24:44 | E11: 34 | F11: 775.5726423 | G11: 19.675 | H11: 20.61 | I11: 20.58 | J11: 43.3 | K11: 0.134 | L11: 20.63217698 | M11: 20.60608849 | N11: -0.3214809274 | O11: 7.148746479 | P11: 17.03366512 | AF11: Qz | AG11: 0 | AH11: =($AJ$5*$AK$5+$AJ$6*$AK$6+$AJ$7*$AK$7+$AJ$8*$AK$8)*AH10 -> 352.4581718 | AI11: =($AJ$5*$AK$5+$AJ$6*$AK$6+$AJ$7*$AK$7+$AJ$8*$AK$8)*AI10 -> 704.9163436 | AJ11: 1057.374515 | AK11: 1409.832687 | AL11: 1762.290859 | AM11: 2114.749031 | AN11: 2467.207202 | AO11: 2819.665374 | AP11: 3172.123546 | AQ11: 3524.581718
B12: 8 | C12: 24.11.16 | D12: 18:19:16 | E12: 18 | F12: 379.6998174 | G12: 15.81 | H12: 19.98 | I12: 19.87 | J12: 43 | K12: 0.1156666667 | L12: 20.0549061 | M12: 19.96245305 | N12: -0.4239218369 | O12: 8.74705446 | P12: 14.59193944
B13: 9 | C13: 24.11.16 | D13: 18:47:17 | E13: 22 | F13: 456.6140791 | G13: 15.26 | H13: 19.69 | I13: 19.51 | J13: 43 | K13: 0.109 | L13: 19.80860986 | M13: 19.65930493 | N13: -0.4732542481 | O13: 9.677014411 | P13: 13.9779403 | AF13: s izolací 50mm
B14: 10 | C14: 25.11.16 | D14: 16:14:32 | E14: 14 | F14: 292.623865 | G14: 17.535 | H14: 20.29 | I14: 20.29 | J14: 39.8 | K14: 0.07733333333 | L14: 20.29 | M14: 20.29 | N14: -0.3066114684 | O14: 6.953846371 | P14: 7.518880195
B15: 11 | C15: 25.11.16 | D15: 16:49:33 | E15: 22 | F15: 474.9793797 | G15: 17.685 | H15: 20.15 | I15: 20.08 | J15: 40.1 | K15: 0.0905 | L15: 20.19107771 | M15: 20.13553886 | N15: -0.3408294658 | O15: 7.416389264 | P15: 10.17354337 | AF15: měřicí místnost | AG15: dřevo | AI15: izolace
B16: 12 | C16: 25.11.16 | D16: 17:22:34 | E16: 30 | F16: 643.9255224 | G16: 17.97 | H16: 20.01 | I16: 19.92 | J16: 40.1 | K16: 0.12675 | L16: 20.07472918 | M16: 19.99736459 | N16: -0.4572266685 | O16: 9.363397933 | P16: 15.87766515 | AG16: lambda | AH16: d | AI16: lambda | AJ16: d | AK16: 1/alfa | AL16: U | AM16: S | AO16: u stredni
B17: 13 | C17: 25.11.16 | D17: 18:07:05 | E17: 38 | F17: 866.064318 | G17: 18.425 | H17: 19.91 | I17: 19.83 | J17: 40.2 | K17: 0.16 | L17: 19.97623569 | M17: 19.90311785 | N17: -0.5462198832 | O17: 11.24494679 | P17: 22.55985473 | AF17: stena svisla | AG17: 0.147 | AH17: =2/100 -> 0.02 | AI17: 0.04 | AJ17: 0.05 | AK17: 0.13 | AL17: =1/(AK17+AH17/AG17+AJ17/AI17+AK17) -> 0.6075133281 | AM17: =2*4*3+7.15*3 -> 45.45 | AO17: =AH23/AM21 -> 1.27653522
B18: 14 | C18: 29.11.16 | D18: 11:55:25 | E18: 38 | F18: 871.0849711 | G18: 17.64 | H18: 18.99 | I18: 18.92 | J18: 28.8 | K18: 0.2155 | L18: 19.05994979 | M18: 18.98479017 | N18: -0.9028086936 | O18: 22.21103291 | P18: 30.47852306 | AF18: podlaha | AG18: 0.147 | AH18: =2.5/100 -> 0.025 | AI18: 0.04 | AJ18: 0.05 | AK18: 0.17 | AL18: =1/(AK18+AH18/AG18+AJ18/AI18+AK18) -> 0.5681598578 | AM18: =4*7.15 -> 28.6
B19: 15 | C19: 29.11.16 | D19: 12:39:56 | E19: 42 | F19: 964.0574739 | G19: 18.27 | H19: 19.31 | I19: 19.26 | J19: 27.8 | K19: 0.21725 | L19: 19.36004761 | M19: 19.30623036 | N19: -0.8375063941 | O19: 19.79852921 | P19: 30.42092792 | AF19: strop | AG19: 0.147 | AH19: 0.02 | AI19: 0.04 | AJ19: 0.05 | AK19: 0.1 | AL19: =1/(AK19+AH19/AG19+AJ19/AI19+AK19) -> 0.6304953892 | AM19: =7.15*4 -> 28.6
B20: 16 | C20: 29.11.16 | D20: 13:29:28 | E20: 46 | F20: 1041.246829 | G20: 17.53 | H20: 19.09 | I20: 19 | J20: 27.5 | K20: 0.2345 | L20: 19.18450339 | M20: 19.0837277 | N20: -0.9160479027 | O20: 22.72141296 | P20: 35.91237731 | AF20: sklo | AL20: 4.5 | AM20: =7.15*3 -> 21.45
B21: 17 | C21: 29.11.16 | D21: 14:43:00 | E21: 50 | F21: 1127.783578 | G21: 18.115 | H21: 19.14 | I21: 19.07 | J21: 26.9 | K21: 0.20225 | L21: 19.20723388 | M21: 19.13446228 | N21: -0.8574707562 | O21: 20.51739294 | P21: 31.36246872 | AM21: =SUM(AM17:AM20) -> 124.1
B22: 18 | C22: 29.11.16 | D22: 15:41:32 | E22: 50 | F22: 1112.009279 | G22: 22.025 | H22: 20.32 | I22: 20.44 | J22: 25.2 | K22: 0.18075 | L22: 20.21345824 | M22: 20.32672912 | N22: -0.5600930242 | O22: 11.56913598 | P22: 22.94945661 | AF22: dt | AG22: 0 | AH22: 1 | AI22: 2 | AJ22: 3 | AK22: 4 | AL22: 5 | AM22: 6 | AN22: 7 | AO22: 8 | AP22: 9 | AQ22: 10
B23: 19 | C23: 29.11.16 | D23: 16:17:03 | E23: 45 | F23: 1003.868046 | G23: 21.82 | H23: 20.4 | I23: 20.5 | J23: 25.3 | K23: 0.1545 | L23: 20.3192698 | M23: 20.4096349 | N23: -0.4974290453 | O23: 10.17100493 | P23: 18.74019402 | AF23: Qz | AG23: 0 | AH23: =($AL$17*$AM$17+$AL$18*$AM$18+$AL$19*$AM$19+$AL$20*$AM$20)*AH22 -> 158.4180208 | AI23: =($AL$17*$AM$17+$AL$18*$AM$18+$AL$19*$AM$19+$AL$20*$AM$20)*AI22 -> 316.8360417 | AJ23: 475.2540625 | AK23: 633.6720833 | AL23: 792.0901041 | AM23: 950.508125 | AN23: 1108.926146 | AO23: 1267.344167 | AP23: 1425.762187 | AQ23: 1584.180208
B24: 20 | C24: 29.11.16 | D24: 16:49:04 | E24: 40 | F24: 906.6946099 | G24: 21.7 | H24: 20.34 | I24: 20.42 | J24: 25.4 | K24: 0.16275 | L24: 20.2733321 | M24: 20.34666605 | N24: -0.5259169438 | O24: 10.78553937 | P24: 19.84995926
B25: 21 | C25: 29.11.16 | D25: 17:22:35 | E25: 35 | F25: 795.8639426 | G25: 21.94 | H25: 20.27 | I25: 20.38 | J25: 25.6 | K25: 0.13725 | L25: 20.18717505 | M25: 20.28358753 | N25: -0.4897557426 | O25: 10.01147508 | P25: 15.92665499
B26: 22 | C26: 29.11.16 | D26: 17:58:36 | E26: 30 | F26: 679.7156804 | G26: 22.51 | H26: 20.32 | I26: 20.45 | J26: 25.7 | K26: 0.13825 | L26: 20.22173119 | M26: 20.3358656 | N26: -0.479565184 | O26: 9.803540398 | P26: 15.86755578 | AF26: s izolací 100mm
B27: 23 | C27: 01.12.16 | D27: 12:14:00 | E27: 25 | F27: 557.2787711 | G27: 22.93 | H27: 20.48 | I27: 20.28 | J27: 28.6 | K27: 0.04625 | L27: 20.55817502 | M27: 20.41908751 | N27: -0.3421063942 | O27: 7.434611699 | P27: 0
B28: 24 | C28: 01.12.16 | D28: 14:16:04 | E28: 20 | F28: 438.3945264 | G28: 23.93 | H28: 20.63 | I28: 20.65 | J28: 28.5 | K28: 0.0255 | L28: 20.62453683 | M28: 20.63726841 | N28: -0.291172226 | O28: 6.761377079 | P28: 0 | AF28: měřicí místnost | AG28: dřevo | AI28: izolace
B29: 25 | C29: 01.12.16 | D29: 15:35:37 | E29: 15 | F29: 322.607231 | G29: 25.36 | H29: 20.51 | I29: 20.52 | J29: 28.8 | K29: 0.02725 | L29: 20.50715398 | M29: 20.51357699 | N29: -0.3164876122 | O29: 7.082252761 | P29: 0 | AG29: lambda | AH29: d | AI29: lambda | AJ29: d | AK29: 1/alfa | AL29: U | AM29: S | AO29: u stredni
B30: 26 | C30: 01.12.16 | D30: 16:34:39 | E30: 10 | F30: 215.2080081 | G30: 23.88 | H30: 20.06 | I30: 19.95 | J30: 29.6 | K30: 0.02675 | L30: 20.0910977 | M30: 20.02054885 | N30: -0.4212183534 | O30: 8.69911373 | P30: 0 | AF30: stena svisla | AG30: 0.147 | AH30: =2/100 -> 0.02 | AI30: 0.04 | AJ30: 0.1 | AK30: 0.13 | AL30: =1/(AK30+AH30/AG30+AJ30/AI30+AK30) -> 0.3452973786 | AM30: =2*4*3+7.15*3 -> 45.45 | AO30: =AH36/AM34 -> 1.062084166
B31: 27 | C31: 13.12.16 | D31: 12:37:28 | E31: 40 | F31: 896.8063501 | G31: 27.33 | H31: 22.42 | I31: 22.72 | J31: 28.4 | K31: 0.14925 | L31: 22.18743569 | M31: 22.45371785 | N31: -0.01920907871 | O31: 5.007638377 | P31: 15.64304224 | AF31: podlaha | AG31: 0.147 | AH31: =2.5/100 -> 0.025 | AI31: 0.04 | AJ31: 0.1 | AK31: 0.17 | AL31: =1/(AK31+AH31/AG31+AJ31/AI31+AK31) -> 0.3322184054 | AM31: =4*7.15 -> 28.6
B32: 28 | C32: 13.12.16 | D32: 13:30:29 | E32: 30 | F32: 667.1363036 | G32: 29 | H32: 22.47 | I32: 22.99 | J32: 28.3 | K32: 0.03725 | L32: 22.29485202 | M32: 22.64242601 | N32: 0.1492167291 | O32: 5.461364941 | P32: 0 | AF32: strop | AG32: 0.147 | AH32: 0.02 | AI32: 0.04 | AJ32: 0.1 | AK32: 0.1 | AL32: =1/(AK32+AH32/AG32+AJ32/AI32+AK32) -> 0.3526025426 | AM32: =7.15*4 -> 28.6
B33: 29 | C33: 13.12.16 | D33: 14:30:31 | E33: 30 | F33: 671.6390704 | G33: 25.345 | H33: 21.9 | I33: 22.13 | J33: 29.4 | K33: 0.09675 | L33: 21.76187278 | M33: 21.94593639 | N33: -0.02736013051 | O33: 5.015496434 | P33: 8.240512608 | AF33: sklo | AL33: 4.5 | AM33: =7.15*3 -> 21.45
B34: 30 | C34: 13.12.16 | D34: 15:12:03 | E34: 40 | F34: 893.4551459 | G34: 24 | H34: 21.58 | I34: 21.72 | J34: 30 | K34: 0.1405 | L34: 21.47450366 | M34: 21.59725183 | N34: -0.1868239701 | O34: 5.723624071 | P34: 14.97308575 | AM34: =SUM(AM30:AM33) -> 124.1
AF35: dt | AG35: 0 | AH35: 1 | AI35: 2 | AJ35: 3 | AK35: 4 | AL35: 5 | AM35: 6 | AN35: 7 | AO35: 8 | AP35: 9 | AQ35: 10
B36: Vybraná měření | AF36: Qz | AG36: 0 | AH36: =($AL$30*$AM$30+$AL$31*$AM$31+$AL$32*$AM$32+$AL$33*$AM$33)*AH35 -> 131.804645 | AI36: =($AL$30*$AM$30+$AL$31*$AM$31+$AL$32*$AM$32+$AL$33*$AM$33)*AI35 -> 263.6092899 | AJ36: 395.4139349 | AK36: 527.2185799 | AL36: 659.0232248 | AM36: 790.8278698 | AN36: 922.6325148 | AO36: 1054.43716 | AP36: 1186.241805 | AQ36: 1318.04645
B37: číslo měření | C37: Datum | D37: Čas | E37: f | F37: V | G37: Tp | H37: Tg | I37: Ta | J37: RH | K37: v | L37: Tr | M37: To | N37: PMV | O37: PPD | P37: DR
E38: [Hz] | F38: [m3/h] | G38: [°C] | H38: [°C] | I38: [°C] | J38: [%] | K38: [m/s] | L38: [°C] | M38: [°C] | N38: [1] | O38: [%] | P38: [%]
B39: 2 | C39: 24.11.16 | D39: 14:19:38 | E39: 14 | F39: 300.3733524 | G39: 18.955 | H39: 20.67 | I39: 20.7 | J39: 43.3 | K39: 0.075 | L39: 20.65435073 | M39: 20.67717537 | N39: -0.2016846299 | O39: 5.84353099 | P39: 6.533238174 | AF39: s izolací 20mm
B40: 4 | C40: 24.11.16 | D40: 15:25:10 | E40: 22 | F40: 494.6847309 | G40: 19.12 | H40: 20.59 | I40: 20.58 | J40: 43.4 | K40: 0.1 | L40: 20.59620358 | M40: 20.58810179 | N40: -0.2463469101 | O40: 6.259553971 | P40: 11.17723807
B41: 9 | C41: 24.11.16 | D41: 18:47:17 | E41: 22 | F41: 456.6140791 | G41: 15.26 | H41: 19.69 | I41: 19.51 | J41: 43 | K41: 0.109 | L41: 19.80860986 | M41: 19.65930493 | N41: -0.4732542481 | O41: 9.677014411 | P41: 13.9779403 | AF41: měřicí místnost | AG41: dřevo | AI41: izolace
B42: 13 | C42: 25.11.16 | D42: 18:07:05 | E42: 38 | F42: 866.064318 | G42: 18.425 | H42: 19.91 | I42: 19.83 | J42: 40.2 | K42: 0.16 | L42: 19.97623569 | M42: 19.90311785 | N42: -0.5462198832 | O42: 11.24494679 | P42: 22.55985473 | AG42: lambda | AH42: d | AI42: lambda | AJ42: d | AK42: 1/alfa | AL42: U | AM42: S | AO42: u stredni
B43: 16 | C43: 29.11.16 | D43: 13:29:28 | E43: 46 | F43: 1041.246829 | G43: 17.53 | H43: 19.09 | I43: 19 | J43: 27.5 | K43: 0.2345 | L43: 19.18450339 | M43: 19.0837277 | N43: -0.9160479027 | O43: 22.72141296 | P43: 35.91237731
B44: 17 | C44: 29.11.16 | D44: 14:43:00 | E44: 50 | F44: 1127.783578 | G44: 18.115 | H44: 19.14 | I44: 19.07 | J44: 26.9 | K44: 0.20225 | L44: 19.20723388 | M44: 19.13446228 | N44: -0.8574707562 | O44: 20.51739294 | P44: 31.36246872 | AF44: stena svisla | AG44: 0.147 | AH44: =2/100 -> 0.02 | AI44: 0.04 | AJ44: 0.02 | AK44: 0.13 | AL44: =1/(AK44+AH44/AG44+AJ44/AI44+AK44) -> 1.116003644 | AM44: =2*4*3+7.15*3 -> 45.45 | AO44: =AH50/AM48 -> 1.69033513
B45: 18 | C45: 29.11.16 | D45: 15:41:32 | E45: 50 | F45: 1112.009279 | G45: 22.025 | H45: 20.32 | I45: 20.44 | J45: 25.2 | K45: 0.18075 | L45: 20.21345824 | M45: 20.32672912 | N45: -0.5600930242 | O45: 11.56913598 | P45: 22.94945661 | AF45: podlaha | AG45: 0.147 | AH45: =2.5/100 -> 0.025 | AI45: 0.04 | AJ45: 0.02 | AK45: 0.17 | AL45: =1/(AK45+AH45/AG45+AJ45/AI45+AK45) -> 0.9900323276 | AM45: =4*7.15 -> 28.6
B46: 22 | C46: 29.11.16 | D46: 17:58:36 | E46: 30 | F46: 679.7156804 | G46: 22.51 | H46: 20.32 | I46: 20.45 | J46: 25.7 | K46: 0.13825 | L46: 20.22173119 | M46: 20.3358656 | N46: -0.479565184 | O46: 9.803540398 | P46: 15.86755578 | AF46: strop | AG46: 0.147 | AH46: 0.02 | AI46: 0.04 | AJ46: 0.02 | AK46: 0.1 | AL46: =1/(AK46+AH46/AG46+AJ46/AI46+AK46) -> 1.196094386 | AM46: =7.15*4 -> 28.6
B47: 25 | C47: 01.12.16 | D47: 15:35:37 | E47: 15 | F47: 322.607231 | G47: 25.36 | H47: 20.51 | I47: 20.52 | J47: 28.8 | K47: 0.02725 | L47: 20.50715398 | M47: 20.51357699 | N47: -0.3164876122 | O47: 7.082252761 | P47: 0 | AF47: sklo | AL47: 4.5 | AM47: =7.15*3 -> 21.45
B48: 27 | C48: 13.12.16 | D48: 12:37:28 | E48: 40 | F48: 896.8063501 | G48: 27.33 | H48: 22.42 | I48: 22.72 | J48: 28.4 | K48: 0.14925 | L48: 22.18743569 | M48: 22.45371785 | N48: -0.01920907871 | O48: 5.007638377 | P48: 15.64304224 | AM48: =SUM(AM44:AM47) -> 124.1
B49: 28 | C49: 13.12.16 | D49: 13:30:29 | E49: 30 | F49: 667.1363036 | G49: 29 | H49: 22.47 | I49: 22.99 | J49: 28.3 | K49: 0.03725 | L49: 22.29485202 | M49: 22.64242601 | N49: 0.1492167291 | O49: 5.461364941 | P49: 0 | AF49: dt | AG49: 0 | AH49: 1 | AI49: 2 | AJ49: 3 | AK49: 4 | AL49: 5 | AM49: 6 | AN49: 7 | AO49: 8 | AP49: 9 | AQ49: 10
B50: 29 | C50: 13.12.16 | D50: 14:30:31 | E50: 30 | F50: 671.6390704 | G50: 25.345 | H50: 21.9 | I50: 22.13 | J50: 29.4 | K50: 0.09675 | L50: 21.76187278 | M50: 21.94593639 | N50: -0.02736013051 | O50: 5.015496434 | P50: 8.240512608 | AF50: Qz | AG50: 0 | AH50: =($AL$44*$AM$44+$AL$45*$AM$45+$AL$46*$AM$46+$AL$47*$AM$47)*AH49 -> 209.7705896 | AI50: =($AL$44*$AM$44+$AL$45*$AM$45+$AL$46*$AM$46+$AL$47*$AM$47)*AI49 -> 419.5411792 | AJ50: 629.3117689 | AK50: 839.0823585 | AL50: 1048.852948 | AM50: 1258.623538 | AN50: 1468.394127 | AO50: 1678.164717 | AP50: 1887.935307 | AQ50: 2097.705896
B51: 30 | C51: 13.12.16 | D51: 15:12:03 | E51: 40 | F51: 893.4551459 | G51: 24 | H51: 21.58 | I51: 21.72 | J51: 30 | K51: 0.1405 | L51: 21.47450366 | M51: 21.59725183 | N51: -0.1868239701 | O51: 5.723624071 | P51: 14.97308575
AF53: Tloušťka izolace | AG53: Průměrný součinitel prostupu tepla
B54: 25 | C54: 01.12.16 | D54: 15:35:37 | E54: 15 | F54: 322.607231 | G54: 25.36 | H54: 20.51 | I54: 20.52 | J54: 28.8 | K54: 0.02725 | L54: 20.50715398 | M54: 20.51357699 | N54: -0.3164876122 | O54: 7.082252761 | P54: 0 | AF54: [m] | AG54: [w/m2K]
B55: 27 | C55: 13.12.16 | D55: 12:37:28 | E55: 40 | F55: 896.8063501 | G55: 27.33 | H55: 22.42 | I55: 22.72 | J55: 28.4 | K55: 0.14925 | L55: 22.18743569 | M55: 22.45371785 | N55: -0.01920907871 | O55: 5.007638377 | P55: 15.64304224 | AF55: 0 | AG55: 2.84
B56: 28 | C56: 13.12.16 | D56: 13:30:29 | E56: 30 | F56: 667.1363036 | G56: 29 | H56: 22.47 | I56: 22.99 | J56: 28.3 | K56: 0.03725 | L56: 22.29485202 | M56: 22.64242601 | N56: 0.1492167291 | O56: 5.461364941 | P56: 0 | AF56: 20 | AG56: 1.69
B57: 29 | C57: 13.12.16 | D57: 14:30:31 | E57: 30 | F57: 671.6390704 | G57: 25.345 | H57: 21.9 | I57: 22.13 | J57: 29.4 | K57: 0.09675 | L57: 21.76187278 | M57: 21.94593639 | N57: -0.02736013051 | O57: 5.015496434 | P57: 8.240512608 | AF57: 50 | AG57: 1.28
B58: 30 | C58: 13.12.16 | D58: 15:12:03 | E58: 40 | F58: 893.4551459 | G58: 24 | H58: 21.58 | I58: 21.72 | J58: 30 | K58: 0.1405 | L58: 21.47450366 | M58: 21.59725183 | N58: -0.1868239701 | O58: 5.723624071 | P58: 14.97308575 | AF58: 100 | AG58: 1.06
B64: PPD= f(PMV) | E64: PD=f(dt),vertikální
B65: -2 | C65: =PPD(B65) -> 76.76181359 | E65: 0.1 | F65: =100/(1+EXP(5.76-0.856*E65)) -> 0.3420984685
B66: -1.99 | C66: =PPD(B66) -> 76.30792752 | E66: 0.2 | F66: =100/(1+EXP(5.76-0.856*E66)) -> 0.3725580732
B67: -1.98 | C67: =PPD(B67) -> 75.85007718 | E67: 0.3 | F67: 0.405718685
B68: -1.97 | C68: =PPD(B68) -> 75.38833423 | E68: 0.4 | F68: 0.441817764
B69: -1.96 | C69: 74.92277206 | E69: 0.5 | F69: 0.4811132655
B70: -1.95 | C70: 74.45346574 | E70: 0.6 | F70: 0.5238853385
B71: -1.94 | C71: 73.98049199 | E71: 0.7 | F71: 0.5704381509
B72: -1.93 | C72: 73.50392908 | E72: 0.8 | F72: 0.6211018498
B73: -1.92 | C73: 73.02385683 | E73: 0.9 | F73: 0.6762346628
B74: -1.91 | C74: 72.54035653 | E74: 1 | F74: 0.7362251471
B75: -1.9 | C75: 72.05351089 | E75: 1.1 | F75: 0.8014945936
B76: -1.89 | C76: 71.56340398 | E76: 1.2 | F76: 0.8724995894
B77: -1.88 | C77: 71.0701212 | E77: 1.3 | F77: 0.9497347453
B78: -1.87 | C78: 70.5737492 | E78: 1.4 | F78: 1.033735591
B79: -1.86 | C79: 70.07437582 | E79: 1.5 | F79: 1.125081638
B80: -1.85 | C80: 69.57209007 | E80: 1.6 | F80: 1.224399616
B81: -1.84 | C81: 69.06698202 | E81: 1.7 | F81: 1.332366868
B82: -1.83 | C82: 68.55914279 | E82: 1.8 | F82: 1.449714914
B83: -1.82 | C83: 68.04866446 | E83: 1.9 | F83: 1.57723316
B84: -1.81 | C84: 67.53564004 | E84: 2 | F84: 1.715772745
B85: -1.8 | C85: 67.02016337 | E85: 2.1 | F85: 1.866250502
B86: -1.79 | C86: 66.50232911 | E86: 2.2 | F86: 2.029653017
B87: -1.78 | C87: 65.98223266 | E87: 2.3 | F87: 2.207040733
B88: -1.77 | C88: 65.45997008 | E88: 2.4 | F88: 2.399552071
B89: -1.76 | C89: 64.93563808 | E89: 2.5 | F89: 2.608407515
B90: -1.75 | C90: 64.40933391 | E90: 2.6 | F90: 2.834913581
B91: -1.74 | C91: 63.88115534 | E91: 2.7 | F91: 3.080466608
B92: -1.73 | C92: 63.3512006 | E92: 2.8 | F92: 3.346556263
B93: -1.72 | C93: 62.81956828 | E93: 2.9 | F93: 3.634768657
B94: -1.71 | C94: 62.28635733 | E94: 3 | F94: 3.946788933
B95: -1.7 | C95: 61.75166696 | E95: 3.1 | F95: 4.284403181
B96: -1.69 | C96: 61.21559663 | E96: 3.2 | F96: 4.649499508
B97: -1.68 | C97: 60.67824593 | E97: 3.3 | F97: 5.044068052
B98: -1.67 | C98: 60.13971459 | E98: 3.4 | F98: 5.470199741
B99: -1.66 | C99: 59.60010237 | E99: 3.5 | F99: 5.930083525
B100: -1.65 | C100: 59.05950905 | E100: 3.6 | F100: 6.426001843
B101: -1.64 | C101: 58.51803436 | E101: 3.7 | F101: 6.960324005
B102: -1.63 | C102: 57.97577792 | E102: 3.8 | F102: 7.535497214
B103: -1.62 | C103: 57.4328392 | E103: 3.9 | F103: 8.154034877
B104: -1.61 | C104: 56.88931745 | E104: 4 | F104: 8.818501915
B105: -1.6 | C105: 56.34531168 | E105: 4.1 | F105: 9.531496731
B106: -1.59 | C106: 55.80092059 | E106: 4.2 | F106: 10.29562956
B107: -1.58 | C107: 55.25624253 | E107: 4.3 | F107: 11.11349693
B108: -1.57 | C108: 54.71137545 | E108: 4.4 | F108: 11.98765203
B109: -1.56 | C109: 54.16641684 | E109: 4.5 | F109: 12.92057085
B110: -1.55 | C110: 53.62146372 | E110: 4.6 | F110: 13.91461411
B111: -1.54 | C111: 53.07661256 | E111: 4.7 | F111: 14.97198503
B112: -1.53 | C112: 52.53195926 | E112: 4.8 | F112: 16.09468321
B113: -1.52 | C113: 51.98759909 | E113: 4.9 | F113: 17.28445515
B114: -1.51 | C114: 51.44362667 | E114: 5 | F114: 18.54274193
B115: -1.5 | C115: 50.90013592 | E115: 5.1 | F115: 19.87062509
B116: -1.49 | C116: 50.35722 | E116: 5.2 | F116: 21.26877168
B117: -1.48 | C117: 49.81497132 | E117: 5.3 | F117: 22.73738003
B118: -1.47 | C118: 49.27348147 | E118: 5.4 | F118: 24.27612763
B119: -1.46 | C119: 48.73284118 | E119: 5.5 | F119: 25.88412309
B120: -1.45 | C120: 48.19314031 | E120: 5.6 | F120: 27.55986398
B121: -1.44 | C121: 47.6544678 | E121: 5.7 | F121: 29.30120267
B122: -1.43 | C122: 47.11691165 | E122: 5.8 | F122: 31.10532206
B123: -1.42 | C123: 46.58055889 | E123: 5.9 | F123: 32.96872316
B124: -1.41 | C124: 46.04549554 | E124: 6 | F124: 34.88722614
B125: -1.4 | C125: 45.51180659 | E125: 6.1 | F125: 36.85598615
B126: -1.39 | C126: 44.97957596 | E126: 6.2 | F126: 38.86952476
B127: -1.38 | C127: 44.4488865 | E127: 6.3 | F127: 40.92177731
B128: -1.37 | C128: 43.91981996 | E128: 6.4 | F128: 43.00615585
B129: -1.36 | C129: 43.39245696 | E129: 6.5 | F129: 45.11562651
B130: -1.35 | C130: 42.86687694 | E130: 6.6 | F130: =100/(1+EXP(5.76-0.856*E130)) -> 47.24279986
B131: -1.34 | C131: 42.34315821 | E131: 6.7 | F131: 49.38003178
B132: -1.33 | C132: =PPD(B132) -> 41.82137787 | E132: 6.8 | F132: 51.51953193
B133: -1.32 | C133: 41.30161182 | E133: 6.9 | F133: 53.65347693
B134: -1.31 | C134: 40.78393472 | E134: 7 | F134: 55.77412433
B135: -1.3 | C135: 40.26842001 | E135: 7.1 | F135: 57.87392427
B136: -1.29 | C136: 39.75513988 | E136: 7.2 | F136: 59.94562511
B137: -1.28 | C137: 39.24416523 | E137: 7.3 | F137: 61.98237023
B138: -1.27 | C138: 38.73556571 | E138: 7.4 | F138: 63.9777831
B139: -1.26 | C139: 38.22940968 | E139: 7.5 | F139: 65.92603885
B140: -1.25 | C140: 37.72576418 | E140: 7.6 | F140: 67.82192063
B141: -1.24 | C141: 37.22469496 | E141: 7.7 | F141: 69.66086037
B142: -1.23 | C142: 36.72626647 | E142: 7.8 | F142: 71.43896352
B143: -1.22 | C143: 36.23054182 | E143: 7.9 | F143: 73.15301855
B144: -1.21 | C144: 35.73758281 | E144: 8 | F144: 74.80049215
B145: -1.2 | C145: 35.2474499
B146: -1.19 | C146: 34.76020223
B147: -1.18 | C147: 34.27589762
B148: -1.17 | C148: 33.79459253
B149: -1.16 | C149: 33.3163421
B150: -1.15 | C150: 32.84120015
B151: -1.14 | C151: 32.36921915
B152: -1.13 | C152: 31.90045026
B153: -1.12 | C153: 31.4349433
B154: -1.11 | C154: 30.97274678
B155: -1.1 | C155: 30.51390792
B156: -1.09 | C156: 30.05847259
B157: -1.08 | C157: 29.6064854
B158: -1.07 | C158: 29.15798964
B159: -1.06 | C159: 28.71302734
B160: -1.05 | C160: 28.27163923
B161: -1.04 | C161: 27.83386482
B162: -1.03 | C162: 27.39974232
B163: -1.02 | C163: 26.96930872
B164: -1.01 | C164: 26.54259979
B165: -1 | C165: 26.11965008
B166: -0.99 | C166: 25.70049293
B167: -0.98 | C167: 25.28516049
B168: -0.97 | C168: 24.87368374
B169: -0.96 | C169: 24.4660925
B170: -0.95 | C170: 24.06241544
B171: -0.94 | C171: 23.66268012
B172: -0.93 | C172: 23.26691297
B173: -0.92 | C173: 22.87513933
B174: -0.91 | C174: 22.48738346
B175: -0.9 | C175: 22.10366856
B176: -0.89 | C176: 21.72401678
B177: -0.88 | C177: 21.34844927
B178: -0.87 | C178: 20.97698614
B179: -0.86 | C179: 20.60964653
B180: -0.85 | C180: 20.24644862
B181: -0.84 | C181: 19.88740963
B182: -0.83 | C182: 19.53254584
B183: -0.82 | C183: 19.18187263
B184: -0.81 | C184: 18.8354045
B185: -0.8 | C185: 18.49315507
B186: -0.79 | C186: 18.1551371
B187: -0.78 | C187: 17.82136254
B188: -0.77 | C188: 17.49184252
B189: -0.76 | C189: 17.16658739
B190: -0.75 | C190: 16.8456067
B191: -0.74 | C191: 16.52890931
B192: -0.73 | C192: 16.2165033
B193: -0.72 | C193: 15.90839607
B194: -0.71 | C194: 15.60459433
B195: -0.7 | C195: 15.30510413
B196: -0.69 | C196: =PPD(B196) -> 15.00993087
B197: -0.68 | C197: 14.71907933
B198: -0.67 | C198: 14.43255369
B199: -0.66 | C199: 14.15035754
B200: -0.65 | C200: 13.87249392
B201: -0.64 | C201: 13.59896533
B202: -0.63 | C202: 13.32977374
B203: -0.62 | C203: 13.06492061
B204: -0.61 | C204: 12.80440696
B205: -0.6 | C205: 12.54823331
B206: -0.59 | C206: 12.29639975
B207: -0.58 | C207: 12.04890596
... 258 more rows

Sheet tabulky
C3: Klimatizační jednotka Robatherm | L3: Klimatizační jednotka Robatherm | V3: výpočet | W3: vyvolání | X3: poznámka
C4: Přívodní větev | G4: Odvodní větev | L4: Přívodní větev | P4: Odvodní větev | V4: PMV
C5: Jmenovitý průtok vzduchu | E5: 5000 | F5: m3/h | G5: Jmenovitý průtok vzduchu | I5: 5000 | J5: m3/h | L5: Jmenovitý průtok vzduchu | N5: 5000 | O5: m3/h | P5: 5000 | Q5: m3/h | V5: PPD
C6: Výkon motoru ventilátoru | E6: 3 | F6: kW | G6: Výkon motoru ventilátoru | I6: 3 | J6: kW | L6: Výkon motoru ventilátoru | N6: 3 | O6: kW | P6: 3 | Q6: kW | V6: To
C7: Jmenovité otáčky motoru | D7: Otáčky motoru | E7: 3637 | F7: 1/min | G7: Jmenovité otáčky motoru | H7: Otáčky motoru | I7: 3143 | J7: 1/min | L7: Jmenovité otáčky motoru | M7: Otáčky motoru | N7: 3637 | O7: 1/min | P7: 3143 | Q7: 1/min | V7: DR
C8: Tlak na výstupu z jednotky | E8: 750 | F8: Pa | G8: Tlak na výstupu z jednotky | I8: 750 | J8: Pa | L8: Tlak na výstupu z jednotky | N8: 750 | O8: Pa | P8: 750 | Q8: Pa
C9: Tlaková ztráta jednotky | E9: 627 | F9: Pa | G9: Tlaková ztráta jednotky | I9: 627 | J9: Pa | L9: Tlaková ztráta jednotky | N9: 627 | O9: Pa | P9: 627 | Q9: Pa
C10: Celková tlaková ztráta | E10: 1377 | F10: Pa | G10: Celková tlaková ztráta | I10: 1377 | J10: Pa | L10: Celková tlaková ztráta | N10: 1377 | O10: Pa | P10: 1377 | Q10: Pa
C11: Pracovní bod ventilátoru | E11: 2,73 | F11: kW | G11: Pracovní bod ventilátoru | I11: 2,73 | J11: kW | L11: Pracovní bod ventilátoru | N11: 2,73 | O11: kW | P11: 2,73 | Q11: kW
C12: Třída filtrace | L12: Třída filtrace
C13: ČSN EN 779/1822 | E13: G3 | L13: ČSN EN 779/1822 | N13: G3
C14: ČSN EN 779/1822 | E14: G7 | L14: ČSN EN 779/1822 | N14: G7
C15: Chladič vzduchu - vodní | L15: Chladič vzduchu - vodní
C16: Výkon | E16: 30,9 | F16: kW | L16: Výkon | N16: 30,9 | O16: kW
C17: Průtok vzduchu | E17: 5000 | F17: m3/h | L17: Průtok vzduchu | N17: 5000 | O17: m3/h
C18: Teplota vzduchu - vstup | E18: 32 | F18: °C | L18: Teplota vzduchu - vstup | N18: 32 | O18: °C
C19: Teplota vzduchu - výstup | E19: 16 | F19: °C | L19: Teplota vzduchu - výstup | N19: 16 | O19: °C
C20: Teploty vody | E20: 7/12 | F20: °C | L20: Teploty vody | N20: 7/12 | O20: °C
C21: Průtok vody | E21: 5,3 | F21: m3/h | L21: Průtok vody | N21: 5,3 | O21: m3/h
C22: Předehřívač vzduchu - vodní | L22: Předehřívač vzduchu - vodní
C23: Výkon | E23: 90,7 | F23: kW | L23: Výkon | N23: 90,7 | O23: kW
C24: Průtok vzduchu | E24: 5000 | F24: m3/h | L24: Průtok vzduchu | N24: 5000 | O24: m3/h
C25: Teplota vzduchu - vstup | E25: -15 | F25: °C | L25: Teplota vzduchu - vstup | N25: -15 | O25: °C
C26: Teplota vzduchu - výstup | E26: 37 | F26: °C | L26: Teplota vzduchu - výstup | N26: 37 | O26: °C
C27: Teploty vody | E27: 80/60 | F27: °C | L27: Teploty vody | N27: 80/60 | O27: °C
C28: Průtok vody | E28: 3,9 | F28: m3/h | L28: Průtok vody | N28: 3,9 | O28: m3/h
C29: Ohřívač vzduchu - vodní | L29: Ohřívač vzduchu - vodní
C30: Výkon | E30: 20,9 | F30: kW | L30: Výkon | N30: 20,9 | O30: kW
C31: Průtok vzduchu | E31: 5000 | F31: m3/h | L31: Průtok vzduchu | N31: 5000 | O31: m3/h
C32: Teplota vzduchu - vstup | E32: 15 | F32: °C | L32: Teplota vzduchu - vstup | N32: 15 | O32: °C
C33: Teplota vzduchu - výstup | E33: 27 | F33: °C | L33: Teplota vzduchu - výstup | N33: 27 | O33: °C
C34: Teploty vody | E34: 80/60 | F34: °C | L34: Teploty vody | N34: 80/60 | O34: °C
C35: Průtok vody | E35: 3,68 | F35: m3/h | L35: Průtok vody | N35: 3,68 | O35: m3/h
C38: č. měření | D38: f | E38: V | F38: Tp | G38: v | H38: To | I38: PMV | J38: PPD | K38: DR
D39: [Hz] | E39: [m3/h] | F39: [°C] | G39: [m/s] | H39: [°C] | I39: [-] | J39: [%] | K39: [%]
C40: 17 | D40: 50 | E40: 1127.783578 | F40: 18.1 | G40: 0.2 | H40: 19.13446228 | I40: -0.8574707562 | J40: 20.51739294 | K40: 31.36246872
C41: 22 | D41: 30 | E41: 680 | F41: 22.5 | G41: 0.14 | H41: 20.3 | I41: -0.48 | J41: 9.8 | K41: 15.9
C42: 28 | D42: 30 | E42: 667 | F42: 29 | G42: 0.04 | H42: 22.6 | I42: 0.15 | J42: 5.5 | K42: 0

Sheet prutok
A1: Clonková trať - naměřené parametry - úvodní měření | AD1: Výpočet průtoku vzduchu clonkou
D3: Barometrický tlak | K3: Parametry vnitřního vzduchu | S3: Mikromanometr | Z3: U trubice | AD3: Clonka | AK3: Vlastnosti vzduchu | AO3: Průtok vzduchu
A4: datum | C4: Frekvence | D4: hb | E4: hbmin | F4: hvrch | G4: Dh1 | H4: tb | I4: pb | K4: ts | L4: tm | M4: pv'' | N4: pvm'' | O4: pv | P4: j | Q4: ri | S4: l0 | T4: l | U4: kM | V4: rL | W4: Dpcl | Y4: rv | Z4: hs | AA4: pstat | AB4: p1s | AD4: d | AE4: D | AF4: A | AG4: b | AH4: e1 | AI4: Dpcl | AJ4: tp,cl | AK4: p | AL4: m | AM4: rcl | AN4: n | AO4: C | AP4: qm | AQ4: Vvzd | AR4: ReD
D5: mm | E5: mm | F5: mm | G5: mm | H5: °C | I5: Pa | L5: °C | M5: Pa | N5: Pa | O5: Pa | P5: - | Q5: kg/m3 | S5: mm | T5: mm | U5: - | V5: kg/m3 | W5: Pa | Y5: kg/m3 | Z5: mm | AA5: Pa | AB5: Pa | AD5: mm | AE5: mm | AF5: m2 | AG5: - | AH5: - | AI5: Pa | AJ5: °C | AK5: Pa | AL5: Pa.s | AM5: kg/m3 | AN5: m2/s | AO5: - | AP5: kg/s | AQ5: m3/h | AR5: -
A6: Clonka 100
A7: 2016-11-01 | C7: 50 | D7: 744.8 | E7: 743.7 | F7: =D7-E7 -> 1.1 | G7: =-0.1496*F7^2+0.8867*F7+0.005 -> 0.799354 | H7: 20.8 | I7: =133.37*(D7+G7-0.000163*(D7+G7)*H7) -> 99103.44248 | K7: 20.8 | L7: 15 | M7: =EXP(23.58-4044.2/(235.6+K7)) -> 2457.719286 | N7: =POWER(10,(658+10.24*L7)/(236+L7)) -> 1711.851688 | O7: =N7-0.000662*I7*(K7-L7) -> 1331.33411 | P7: =O7/M7 -> 0.5416949437 | Q7: =(I7-0.378*O7)/287/(K7+273.15) -> 1.16875216 | S7: 12 | T7: 282 | U7: 0.5 | V7: =806.2-0.85*H7 -> 788.52 | W7: =9.81*V7*U7*(T7-S7)/1000 -> 1044.276462 | Y7: 998.205 | Z7: 112 | AA7: =9.81*Y7*Z7/1000 -> 1096.747798 | AB7: =I7+AA7 -> 100200.1903 | AD7: 100 | AE7: 250 | AF7: =PI()*((AE7/1000)^2)/4 -> 0.04908738521 | AG7: =AD7/AE7 -> 0.4 | AH7: =1-(0.41+0.35*AG7^4)*AI7/(1.41*AB7) -> 0.996903291 | AI7: =W7 -> 1044.276462 | AJ7: 20.8 | AK7: =I7 -> 99103.44248 | AL7: =(1.49*(273+AJ7)^1.5/(273+AJ7+117))/10^6 -> 1.826558225e-05 | AM7: =Q7*AB7/I7 -> 1.181686387 | AN7: =AL7/AM7 -> 1.545721644e-05 | AO7: =0.5959+0.0312*AG7^2.1-0.184*AG7^8+0.0029*AG7^2.5*(10^6/AR7)^0.75 -> 0.6025827234 | AP7: =AO7*AH7*PI()*(AD7/1000)^2*SQRT(2*AI7*AM7)/(SQRT(1-AG7^4)*4) -> 0.2374459727 | AQ7: =AP7/AM7*3600 -> 723.3776332 | AR7: =4*AP7/(PI()*AL7*(AE7/1000)) -> 66206.61702
C8: 45 | D8: 744.8 | E8: 743.7 | F8: =D8-E8 -> 1.1 | G8: =-0.1496*F8^2+0.8867*F8+0.005 -> 0.799354 | H8: 20.8 | I8: =133.37*(D8+G8-0.000163*(D8+G8)*H8) -> 99103.44248 | K8: 20.8 | L8: 15 | M8: =EXP(23.58-4044.2/(235.6+K8)) -> 2457.719286 | N8: =POWER(10,(658+10.24*L8)/(236+L8)) -> 1711.851688 | O8: =N8-0.000662*I8*(K8-L8) -> 1331.33411 | P8: =O8/M8 -> 0.5416949437 | Q8: =(I8-0.378*O8)/287/(K8+273.15) -> 1.16875216 | S8: 12 | T8: 231 | U8: 0.5 | V8: =806.2-0.85*H8 -> 788.52 | W8: =9.81*V8*U8*(T8-S8)/1000 -> 847.0242414 | Y8: 998.205 | Z8: 92 | AA8: =9.81*Y8*Z8/1000 -> 900.8999766 | AB8: =I8+AA8 -> 100004.3425 | AD8: 100 | AE8: 250 | AF8: =PI()*((AE8/1000)^2)/4 -> 0.04908738521 | AG8: =AD8/AE8 -> 0.4 | AH8: 0.9974833059 | AI8: =W8 -> 847.0242414 | AJ8: 20.8 | AK8: =I8 -> 99103.44248 | AL8: =(1.49*(273+AJ8)^1.5/(273+AJ8+117))/10^6 -> 1.826558225e-05 | AM8: =Q8*AB8/I8 -> 1.179376703 | AN8: =AL8/AM8 -> 1.548748775e-05 | AO8: 0.6027665171 | AP8: 0.2138283032 | AQ8: =AP8/AM8*3600 -> 652.7023038 | AR8: 59621.34635
C9: 40 | D9: 744.8 | E9: 743.7 | F9: 1.1 | G9: 0.799354 | H9: 20.8 | I9: 99103.44248 | K9: 20.8 | L9: 15 | M9: 2457.719286 | N9: 1711.851688 | O9: 1331.33411 | P9: 0.5416949437 | Q9: =(I9-0.378*O9)/287/(K9+273.15) -> 1.16875216 | S9: 23 | T9: 376 | U9: =1/4 -> 0.25 | V9: 788.52 | W9: 682.6473909 | Y9: 998.205 | Z9: 72 | AA9: =9.81*Y9*Z9/1000 -> 705.0521556 | AB9: 99808.49464 | AD9: 100 | AE9: 250 | AF9: 0.04908738521 | AG9: 0.4 | AH9: 0.9979677255 | AI9: 682.6473909 | AJ9: 20.8 | AK9: 99103.44248 | AL9: =(1.49*(273+AJ9)^1.5/(273+AJ9+117))/10^6 -> 1.826558225e-05 | AM9: =Q9*AB9/I9 -> 1.17706702 | AN9: =AL9/AM9 -> 1.551787786e-05 | AO9: 0.6029717813 | AP9: 0.1919325082 | AQ9: 587.0158775 | AR9: 53516.18275
C10: 35 | D10: 744.8 | E10: 743.7 | F10: 1.1 | G10: 0.799354 | H10: 20.8 | I10: 99103.44248 | K10: 20.8 | L10: 15 | M10: 2457.719286 | N10: 1711.851688 | O10: 1331.33411 | P10: 0.5416949437 | Q10: 1.16875216 | S10: 23 | T10: 293 | U10: =1/4 -> 0.25 | V10: 788.52 | W10: 522.138231 | Y10: 998.205 | Z10: 54 | AA10: 528.7891167 | AB10: 99632.2316 | AD10: 100 | AE10: 250 | AF10: 0.04908738521 | AG10: 0.4 | AH10: 0.998442819 | AI10: 522.138231 | AJ10: 20.8 | AK10: 99103.44248 | AL10: 1.826558225e-05 | AM10: =Q10*AB10/I10 -> 1.174988305 | AN10: 1.55453311e-05 | AO10: 0.6032505535 | AP10: 0.1678675249 | AQ10: 514.3226423 | AR10: 46806.18841
C11: 30 | D11: 744.8 | E11: 743.7 | F11: 1.1 | G11: 0.799354 | H11: 20.8 | I11: 99103.44248 | K11: 20.8 | L11: 15 | M11: 2457.719286 | N11: 1711.851688 | O11: 1331.33411 | P11: 0.5416949437 | Q11: 1.16875216 | S11: 46 | T11: 442 | U11: =1/8 -> 0.125 | V11: 788.52 | W11: =9.81*V11*U11*(T11-S11)/1000 -> 382.9013694 | Y11: 998.205 | Z11: 41 | AA11: 401.4880331 | AB11: 99504.93051 | AD11: 100 | AE11: 250 | AF11: 0.04908738521 | AG11: 0.4 | AH11: 0.9988566064 | AI11: 382.9013694 | AJ11: 20.8 | AK11: 99103.44248 | AL11: 1.826558225e-05 | AM11: 1.173487011 | AN11: 1.556521894e-05 | AO11: 0.6036093377 | AP11: 0.1438063094 | AQ11: 441.1661219 | AR11: 40097.24462
C12: 25 | D12: 744.8 | E12: 743.7 | F12: 1.1 | G12: 0.799354 | H12: 20.8 | I12: 99103.44248 | K12: 20.8 | L12: 15 | M12: 2457.719286 | N12: 1711.851688 | O12: 1331.33411 | P12: 0.5416949437 | Q12: 1.16875216 | S12: 46 | T12: 321 | U12: =1/8 -> 0.125 | V12: 788.52 | W12: =9.81*V12*U12*(T12-S12)/1000 -> 265.9037288 | Y12: 998.205 | Z12: 26 | AA12: 254.6021673 | AB12: 99358.04465 | AD12: 100 | AE12: 250 | AF12: 0.04908738521 | AG12: 0.4 | AH12: 0.9992048028 | AI12: 265.9037288 | AJ12: 20.8 | AK12: 99103.44248 | AL12: 1.826558225e-05 | AM12: 1.171754749 | AN12: 1.558822976e-05 | AO12: 0.6040880947 | AP12: 0.1198868656 | AQ12: 368.3302473 | AR12: 33427.83081
C13: 20 | D13: 744.8 | E13: 743.7 | F13: 1.1 | G13: 0.799354 | H13: 20.8 | I13: 99103.44248 | K13: 20.8 | L13: 15 | M13: 2457.719286 | N13: 1711.851688 | O13: 1331.33411 | P13: 0.5416949437 | Q13: 1.16875216 | S13: 46 | T13: 218 | U13: =1/8 -> 0.125 | V13: 788.52 | W13: 166.3106958 | Y13: 998.205 | Z13: 17 | AA13: 166.4706479 | AB13: 99269.91313 | AD13: 100 | AE13: 250 | AF13: 0.04908738521 | AG13: 0.4 | AH13: 0.9995021987 | AI13: 166.3106958 | AJ13: 20.8 | AK13: 99103.44248 | AL13: 1.826558225e-05 | AM13: 1.170715391 | AN13: 1.560206895e-05 | AO13: 0.6048068663 | AP13: 0.09491229232 | AQ13: 291.8593665 | AR13: 26464.21718
C14: 15 | D14: 744.8 | E14: 743.7 | F14: 1.1 | G14: 0.799354 | H14: 20.8 | I14: 99103.44248 | K14: 20.8 | L14: 15 | M14: 2457.719286 | N14: 1711.851688 | O14: 1331.33411 | P14: 0.5416949437 | Q14: 1.16875216 | S14: 46 | T14: 140 | U14: =1/8 -> 0.125 | V14: 788.52 | W14: 90.8907291 | Y14: 998.205 | Z14: 9 | AA14: 88.13151945 | AB14: 99191.574 | AD14: 100 | AE14: 250 | AF14: 0.04908738521 | AG14: 0.4 | AH14: 0.999727731 | AI14: 90.8907291 | AJ14: 20.8 | AK14: 99103.44248 | AL14: 1.826558225e-05 | AM14: 1.169791518 | AN14: 1.561439109e-05 | AO14: 0.6059370772 | AP14: 0.07028449615 | AQ14: 216.2985304 | AR14: 19597.29477
C15: 10 | D15: 744.8 | E15: 743.7 | F15: 1.1 | G15: 0.799354 | H15: 20.8 | I15: 99103.44248 | K15: 20.8 | L15: 15 | M15: 2457.719286 | N15: 1711.851688 | O15: 1331.33411 | P15: 0.5416949437 | Q15: 1.16875216 | S15: 46 | T15: 86 | U15: =1/8 -> 0.125 | V15: 788.52 | W15: 38.676906 | Y15: 998.205 | Z15: 3 | AA15: 29.37717315 | AB15: 99132.81965 | AD15: 100 | AE15: 250 | AF15: 0.04908738521 | AG15: 0.4 | AH15: 0.9998840722 | AI15: =W15 -> 38.676906 | AJ15: 20.8 | AK15: 99103.44248 | AL15: 1.826558225e-05 | AM15: 1.169098613 | AN15: 1.562364547e-05 | AO15: 0.6080339936 | AP15: 0.04600077909 | AQ15: 141.6499882 | AR15: 12826.31131
A16: Clonka 140
A17: 2016-10-21 | C17: 50 | D17: 743.1 | E17: 741.8 | F17: =D17-E17 -> 1.3 | G17: =-0.1496*F17^2+0.8867*F17+0.005 -> 0.904886 | H17: 20.1 | I17: =133.37*(D17+G17-0.000163*(D17+G17)*H17) -> 98902.83117 | K17: 20.1 | L17: 14.1 | M17: =EXP(23.58-4044.2/(235.6+K17)) -> 2353.853735 | N17: =POWER(10,(658+10.24*L17)/(236+L17)) -> 1615.298162 | O17: =N17-0.000662*I17*(K17-L17) -> 1222.456117 | P17: =O17/M17 -> 0.5193424291 | Q17: =(I17-0.378*O17)/287/(K17+273.15) -> 1.169647412 | S17: 23 | T17: 353 | U17: 0.25 | V17: =806.2-0.85*H17 -> 789.115 | W17: =9.81*V17*U17*(T17-S17)/1000 -> 638.6504974 | Y17: 998.205 | Z17: =140-41 -> 99 | AA17: 969.446714 | AB17: 99872.27789 | AD17: 140 | AE17: 250 | AF17: =PI()*((AE17/1000)^2)/4 -> 0.04908738521 | AG17: =AD17/AE17 -> 0.56 | AH17: =1-(0.41+0.35*AG17^4)*AI17/(1.41*AB17) -> 0.9979844503 | AI17: =W17 -> 638.6504974 | AJ17: 20.1 | AK17: =I17 -> 98902.83117 | AL17: =(1.49*(273+AJ17)^1.5/(273+AJ17+117))/10^6 -> 1.823140869e-05 | AM17: =Q17*AB17/I17 -> 1.18111231 | AN17: =AL17/AM17 -> 1.543579602e-05 | AO17: =0.5959+0.0312*AG17^2.1-0.184*AG17^8+0.0029*AG17^2.5*(10^6/AR17)^0.75 -> 0.6070026057 | AP17: =AO17*AH17*PI()*(AD17/1000)^2*SQRT(2*AI17*AM17)/(SQRT(1-AG17^4)*4) -> 0.3814453268 | AQ17: 1162.635564 | AR17: =4*AP17/(PI()*AL17*(AE17/1000)) -> 106557.0483
C18: 45 | D18: 743.1 | E18: 741.8 | F18: 1.3 | G18: 0.904886 | H18: 20.1 | I18: =133.37*(D18+G18-0.000163*(D18+G18)*H18) -> 98902.83117 | K18: 20.1 | L18: 14.1 | M18: 2353.853735 | N18: 1615.298162 | O18: 1222.456117 | P18: 0.5193424291 | Q18: 1.169647412 | S18: 23 | T18: 288 | U18: 0.25 | V18: =806.2-0.85*H18 -> 789.115 | W18: 512.8557024 | Y18: 998.205 | Z18: =131-51 -> 80 | AA18: 783.391284 | AB18: 99686.22246 | AD18: 140 | AE18: 250 | AF18: 0.04908738521 | AG18: 0.56 | AH18: 0.9983784317 | AI18: 512.8557024 | AJ18: 20.1 | AK18: 98902.83117 | AL18: 1.823140869e-05 | AM18: 1.178911976 | AN18: 1.546460555e-05 | AO18: 0.6073155396 | AP18: 0.3418130278 | AQ18: 1043.78183 | AR18: 95485.73481
C19: 40 | D19: 743.1 | E19: 741.8 | F19: 1.3 | G19: 0.904886 | H19: 20.1 | I19: 98902.83117 | K19: 20.1 | L19: 14.1 | M19: 2353.853735 | N19: 1615.298162 | O19: 1222.456117 | P19: 0.5193424291 | Q19: 1.169647412 | S19: 44 | T19: 465 | U19: 0.125 | V19: 789.115 | W19: 407.3816051 | Y19: 998.205 | Z19: =121-61 -> 60 | AA19: 587.543463 | AB19: 99490.37464 | AD19: 140 | AE19: 250 | AF19: 0.04908738521 | AG19: 0.56 | AH19: 0.9987093884 | AI19: 407.3816051 | AJ19: 20.1 | AK19: 98902.83117 | AL19: 1.823140869e-05 | AM19: 1.176595835 | AN19: 1.549504779e-05 | AO19: 0.6076730324 | AP19: 0.3046240586 | AQ19: 932.0503934 | AR19: 85096.96738
C20: 35 | D20: 743.1 | E20: 741.8 | F20: 1.3 | G20: 0.904886 | H20: 20.1 | I20: 98902.83117 | K20: 20.1 | L20: 14.1 | M20: 2353.853735 | N20: 1615.298162 | O20: 1222.456117 | P20: 0.5193424291 | Q20: 1.169647412 | S20: 44 | T20: 365 | U20: =1/8 -> 0.125 | V20: 789.115 | W20: 310.6163783 | Y20: 998.205 | Z20: =114-68 -> 46 | AA20: 450.4499883 | AB20: 99353.28116 | AD20: 140 | AE20: 250 | AF20: 0.04908738521 | AG20: 0.56 | AH20: 0.9990145892 | AI20: 310.6163783 | AJ20: 20.1 | AK20: 98902.83117 | AL20: 1.823140869e-05 | AM20: 1.174974537 | AN20: 1.551642876e-05 | AO20: 0.6081340816 | AP20: 0.2660959841 | AQ20: 815.2904705 | AR20: 74334.11983
C21: 30 | D21: 743.1 | E21: 741.8 | F21: 1.3 | G21: 0.904886 | H21: 20.1 | I21: 98902.83117 | K21: 20.1 | L21: 14.1 | M21: 2353.853735 | N21: 1615.298162 | O21: 1222.456117 | P21: 0.5193424291 | Q21: 1.169647412 | S21: 44 | T21: 272 | U21: =1/8 -> 0.125 | V21: 789.115 | W21: 220.6247173 | Y21: 998.205 | Z21: =108-74 -> 34 | AA21: 332.9412957 | AB21: 99235.77247 | AD21: 140 | AE21: 250 | AF21: 0.04908738521 | AG21: 0.56 | AH21: 0.9992992532 | AI21: 220.6247173 | AJ21: 20.1 | AK21: 98902.83117 | AL21: 1.823140869e-05 | AM21: 1.173584852 | AN21: 1.553480233e-05 | AO21: 0.6087853205 | AP21: 0.224432015 | AQ21: 688.4506499 | AR21: 62695.25771
C22: 25 | D22: 743.1 | E22: 741.8 | F22: 1.3 | G22: 0.904886 | H22: 20.1 | I22: 98902.83117 | K22: 20.1 | L22: 14.1 | M22: 2353.853735 | N22: 1615.298162 | O22: 1222.456117 | P22: 0.5193424291 | Q22: 1.169647412 | S22: 44 | T22: 204 | U22: =1/8 -> 0.125 | V22: 789.115 | W22: 154.824363 | Y22: 998.205 | Z22: =102-79 -> 23 | AA22: 225.2249942 | AB22: 99128.05617 | AD22: 140 | AE22: 250 | AF22: 0.04908738521 | AG22: 0.56 | AH22: 0.9995077135 | AI22: 154.824363 | AJ22: 20.1 | AK22: 98902.83117 | AL22: 1.823140869e-05 | AM22: 1.172310975 | AN22: 1.555168304e-05 | AO22: 0.6095525377 | AP22: 0.1881824434 | AQ22: 577.8814759 | AR22: 52568.91172
C23: 20 | D23: 743.1 | E23: 741.8 | F23: 1.3 | G23: 0.904886 | H23: 20.1 | I23: 98902.83117 | K23: 20.1 | L23: 14.1 | M23: 2353.853735 | N23: 1615.298162 | O23: 1222.456117 | P23: 0.5193424291 | Q23: 1.169647412 | S23: 44 | T23: 142 | U23: =1/8 -> 0.125 | V23: 789.115 | W23: 94.82992234 | Y23: 998.205 | Z23: =98-83 -> 15 | AA23: 146.8858657 | AB23: 99049.71704 | AD23: 140 | AE23: 250 | AF23: 0.04908738521 | AG23: 0.56 | AH23: 0.999698236 | AI23: 94.82992234 | AJ23: 20.1 | AK23: 98902.83117 | AL23: 1.823140869e-05 | AM23: 1.171384518 | AN23: 1.556398297e-05 | AO23: 0.6107933352 | AP23: 0.1475456452 | AQ23: 453.4500111 | AR23: 41216.99059
C24: 15 | D24: 743.1 | E24: 741.8 | F24: 1.3 | G24: 0.904886 | H24: 20.1 | I24: 98902.83117 | K24: 20.1 | L24: 14.1 | M24: 2353.853735 | N24: 1615.298162 | O24: 1222.456117 | P24: 0.5193424291 | Q24: 1.169647412 | S24: 44 | T24: 97 | U24: =1/8 -> 0.125 | V24: 789.115 | W24: 51.28557024 | Y24: 998.205 | Z24: =94-88 -> 6 | AA24: 58.7543463 | AB24: 98961.58552 | AD24: 140 | AE24: 250 | AF24: 0.04908738521 | AG24: 0.56 | AH24: 0.9998366558 | AI24: 51.28557024 | AJ24: 20.1 | AK24: 98902.83117 | AL24: 1.823140869e-05 | AM24: 1.170342255 | AN24: 1.557784368e-05 | AO24: 0.6127022304 | AP24: 0.108811124 | AQ24: 334.7055484 | AR24: 30396.47199
A26: clonka lindab
A27: 2016-10-21 | C27: 50 | D27: 743.1 | E27: 741.8 | F27: =D27-E27 -> 1.3 | G27: =-0.1496*F27^2+0.8867*F27+0.005 -> 0.904886 | H27: 20.1 | I27: =133.37*(D27+G27-0.000163*(D27+G27)*H27) -> 98902.83117 | K27: 20.1 | L27: 14.1 | M27: =EXP(23.58-4044.2/(235.6+K27)) -> 2353.853735 | N27: =POWER(10,(658+10.24*L27)/(236+L27)) -> 1615.298162 | O27: =N27-0.000662*I27*(K27-L27) -> 1222.456117 | P27: =O27/M27 -> 0.5193424291 | Q27: =(I27-0.378*O27)/287/(K27+273.15) -> 1.169647412 | S27: 44 | T27: 86 | U27: 0.125 | V27: =806.2-0.85*K27 -> 789.115 | W27: =9.81*V27*U27*(T27-S27)/1000 -> 40.64139529 | AI27: =W27 -> 40.64139529 | AJ27: 20.1 | AQ27: =45.7*SQRT(AI27) -> 291.3402609
C28: 45 | D28: 743.1 | E28: 741.8 | F28: 1.3 | G28: 0.904886 | H28: 20.1 | I28: 98902.83117 | K28: 20.1 | L28: 14.1 | M28: 2353.853735 | N28: 1615.298162 | O28: 1222.456117 | P28: 0.5193424291 | Q28: 1.169647412 | S28: 44 | T28: 78 | U28: 0.125 | V28: 789.115 | W28: 32.90017714 | AI28: 32.90017714 | AJ28: 20.1 | AQ28: 262.1291494
C29: 40 | D29: 743.1 | E29: 741.8 | F29: 1.3 | G29: 0.904886 | H29: 20.1 | I29: 98902.83117 | K29: 20.1 | L29: 14.1 | M29: 2353.853735 | N29: 1615.298162 | O29: 1222.456117 | P29: 0.5193424291 | Q29: 1.169647412 | S29: 44 | T29: 71 | U29: =1/8 -> 0.125 | V29: 789.115 | W29: 26.12661126 | AI29: 26.12661126 | AJ29: 20.1 | AQ29: 233.5918799
C30: 35 | D30: 743.1 | E30: 741.8 | F30: 1.3 | G30: 0.904886 | H30: 20.1 | I30: 98902.83117 | K30: 20.1 | L30: 14.1 | M30: 2353.853735 | N30: 1615.298162 | O30: 1222.456117 | P30: 0.5193424291 | Q30: 1.169647412 | S30: 44 | T30: 65 | U30: 0.125 | V30: 789.115 | W30: 20.32069764 | AI30: 20.32069764 | AJ30: 20.1 | AQ30: 206.0086741
C31: 30 | D31: 743.1 | E31: 741.8 | F31: 1.3 | G31: 0.904886 | H31: 20.1 | I31: 98902.83117 | K31: 20.1 | L31: 14.1 | M31: 2353.853735 | N31: 1615.298162 | O31: 1222.456117 | P31: 0.5193424291 | Q31: 1.169647412 | S31: 44 | T31: 60 | U31: 0.125 | V31: 789.115 | W31: 15.4824363 | AI31: 15.4824363 | AJ31: 20.1 | AQ31: 179.819113
C32: 25 | D32: 743.1 | E32: 741.8 | F32: 1.3 | G32: 0.904886 | H32: 20.1 | I32: 98902.83117 | K32: 20.1 | L32: 14.1 | M32: 2353.853735 | N32: 1615.298162 | O32: 1222.456117 | P32: 0.5193424291 | Q32: 1.169647412 | S32: 44 | T32: 55 | U32: 0.125 | V32: 789.115 | W32: 10.64417496 | AI32: 10.64417496 | AJ32: 20.1 | AQ32: 149.098132
C33: 20 | D33: 743.1 | E33: 741.8 | F33: 1.3 | G33: 0.904886 | H33: 20.1 | I33: 98902.83117 | K33: 20.1 | L33: 14.1 | M33: 2353.853735 | N33: 1615.298162 | O33: 1222.456117 | P33: 0.5193424291 | Q33: 1.169647412 | S33: 44 | T33: 51 | U33: 0.125 | V33: 789.115 | W33: 6.773565881 | AI33: 6.773565881 | AJ33: 20.1 | AQ33: 118.9391635
C34: 15 | D34: 743.1 | E34: 741.8 | F34: 1.3 | G34: 0.904886 | H34: 20.1 | I34: 98902.83117 | K34: 20.1 | L34: 14.1 | M34: 2353.853735 | N34: 1615.298162 | O34: 1222.456117 | P34: 0.5193424291 | Q34: 1.169647412 | S34: 44 | T34: 45 | U34: 0.125 | V34: 789.115 | W34: 0.9676522688 | AI34: 0.9676522688 | AJ34: 20.1 | AQ34: 44.95477824
D38: Barometrický tlak | K38: Parametry vnitřního vzduchu | S38: Mikromanometr | Z38: U trubice | AD38: Clonka | AK38: Vlastnosti vzduchu | AO38: Průtok vzduchu
A39: datum | B39: číslo měření | C39: Frekvence | D39: hb | E39: hbmin | F39: hvrch | G39: Dh1 | H39: tb | I39: pb | K39: ts | L39: tm | M39: pv'' | N39: pvm'' | O39: pv | P39: j | Q39: ri | S39: l0 | T39: l | U39: kM | V39: rL | W39: Dpcl | Y39: rv | Z39: hs | AA39: pstat | AB39: p1s | AD39: d | AE39: D | AF39: A | AG39: b | AH39: e1 | AI39: Dpcl | AJ39: tp,cl | AK39: p | AL39: m | AM39: rcl | AN39: n | AO39: C | AP39: qm | AQ39: Vvzd | AR39: ReD
D40: mm | E40: mm | F40: mm | G40: mm | H40: °C | I40: Pa | L40: °C | M40: Pa | N40: Pa | O40: Pa | P40: - | Q40: kg/m3 | S40: mm | T40: mm | U40: - | V40: kg/m3 | W40: Pa | Y40: kg/m3 | Z40: mm | AA40: Pa | AB40: Pa | AD40: mm | AE40: mm | AF40: m2 | AG40: - | AH40: - | AI40: Pa | AJ40: °C | AK40: Pa | AL40: Pa.s | AM40: kg/m3 | AN40: m2/s | AO40: - | AP40: kg/s | AQ40: m3/h | AR40: -
A42: Clonka 140
A43: 2016-11-24
B45: 1 | C45: 34 | D45: 749 | E45: 747.8 | F45: =D45-E45 -> 1.2 | G45: =-0.1496*F45^2+0.8867*F45+0.005 -> 0.853616 | H45: 19 | I45: =133.37*(D45+G45-0.000163*(D45+G45)*H45) -> 99698.25206 | K45: 19 | L45: 15 | M45: =EXP(23.58-4044.2/(235.6+K45)) -> 2198.378353 | N45: =POWER(10,(658+10.24*L45)/(236+L45)) -> 1711.851688 | O45: =N45-0.000662*I45*(K45-L45) -> 1447.850717 | P45: =O45/M45 -> 0.6585994238 | Q45: =(I45-0.378*O45)/287/(K45+273.15) -> 1.1825218 | S45: 57 | T45: 350 | U45: 0.125 | V45: =806.2-0.85*H45 -> 790.05 | W45: =9.81*V45*U45*(T45-S45)/1000 -> 283.8580521 | Y45: 998.205 | Z45: 41 | AA45: =9.81*Y45*Z45/1000 -> 401.4880331 | AB45: =I45+AA45 -> 100099.7401 | AD45: 140 | AE45: 250 | AF45: =PI()*((AE45/1000)^2)/4 -> 0.04908738521 | AG45: =AD45/AE45 -> 0.56 | AH45: =1-(0.41+0.35*AG45^4)*AI45/(1.41*AB45) -> 0.9991061936 | AI45: =W45 -> 283.8580521 | AJ45: 19 | AK45: =I45 -> 99698.25206 | AL45: =(1.49*(273+AJ45)^1.5/(273+AJ45+117))/10^6 -> 1.817762909e-05 | AM45: =Q45*AB45/I45 -> 1.187283853 | AN45: =AL45/AM45 -> 1.531026388e-05 | AO45: =0.5959+0.0312*AG45^2.1-0.184*AG45^8+0.0029*AG45^2.5*(10^6/AR45)^0.75 -> 0.608267003 | AP45: =AO45*AH45*PI()*(AD45/1000)^2*SQRT(2*AI45*AM45)/(SQRT(1-AG45^4)*4) -> 0.2557846875 | AQ45: =AP45/AM45*3600 -> 775.5726423 | AR45: =4*AP45/(PI()*AL45*(AE45/1000)) -> 71665.05101
B46: 2 | C46: 30 | D46: 749 | E46: 747.8 | F46: 1.2 | G46: 0.853616 | H46: 19 | I46: 99698.25206 | K46: 19 | L46: 15 | M46: 2198.378353 | N46: 1711.851688 | O46: 1447.850717 | P46: 0.6585994238 | Q46: =(I46-0.378*O46)/287/(K46+273.15) -> 1.1825218 | S46: 57 | T46: 283 | U46: =1/8 -> 0.125 | V46: =806.2-0.85*H46 -> 790.05 | W46: 218.9485316 | Y46: 998.205 | Z46: 30 | AA46: 293.7717315 | AB46: =I46+AA46 -> 99992.02379 | AD46: 140 | AE46: 250 | AF46: 0.04908738521 | AG46: 0.56 | AH46: 0.9993098367 | AI46: 218.9485316 | AJ46: 19 | AK46: 99698.25206 | AL46: 1.817762909e-05 | AM46: 1.186006229 | AN46: 1.532675685e-05 | AO46: 0.60876748 | AP46: 0.2247537019 | AQ46: 682.2167601 | AR46: 62970.87473
B47: 3 | C47: 26 | D47: 749 | E47: 747.8 | F47: 1.2 | G47: 0.853616 | H47: 19 | I47: 99698.25206 | K47: 19 | L47: 15 | M47: 2198.378353 | N47: 1711.851688 | O47: 1447.850717 | P47: 0.6585994238 | Q47: 1.1825218 | S47: 57 | T47: 225 | U47: 0.125 | V47: 790.05 | W47: 162.7582005 | Y47: 998.205 | Z47: 22 | AA47: 215.4326031 | AB47: 99913.68466 | AD47: 140 | AE47: 250 | AF47: 0.04908738521 | AG47: 0.56 | AH47: 0.999486556 | AI47: 162.7582005 | AJ47: 19 | AK47: 99698.25206 | AL47: 1.817762909e-05 | AM47: 1.185077048 | AN47: =AL47/AM47 -> 1.533877407e-05 | AO47: 0.6094006042 | AP47: 0.1939390723 | AQ47: 589.143686 | AR47: 54337.31645
B48: 4 | C48: 22 | D48: 749 | E48: 747.8 | F48: 1.2 | G48: 0.853616 | H48: 19 | I48: 99698.25206 | K48: 19 | L48: 15 | M48: 2198.378353 | N48: 1711.851688 | O48: 1447.850717 | P48: 0.6585994238 | Q48: 1.1825218 | S48: 57 | T48: 175 | U48: 0.125 | V48: =806.2-0.85*H48 -> 790.05 | W48: 114.3182599 | Y48: 998.205 | Z48: 15 | AA48: 146.8858657 | AB48: 99845.13793 | AD48: 140 | AE48: 250 | AF48: 0.04908738521 | AG48: 0.56 | AH48: 0.9996391191 | AI48: 114.3182599 | AJ48: 19 | AK48: 99698.25206 | AL48: 1.817762909e-05 | AM48: 1.184264014 | AN48: 1.534930461e-05 | AO48: 0.6102509754 | AP48: 0.1627325904 | AQ48: 494.6847309 | AR48: 45593.97009
B49: 5 | C49: 18 | D49: 749 | E49: 747.8 | F49: 1.2 | G49: 0.853616 | H49: 19 | I49: 99698.25206 | K49: 19 | L49: 15 | M49: 2198.378353 | N49: 1711.851688 | O49: 1447.850717 | P49: 0.6585994238 | Q49: 1.1825218 | S49: 57 | T49: 133 | U49: 0.125 | V49: 790.05 | W49: 73.62870975 | Y49: 998.205 | Z49: 10 | AA49: 97.9239105 | AB49: 99796.17597 | AD49: 140 | AE49: 250 | AF49: 0.04908738521 | AG49: 0.56 | AH49: 0.9997674542 | AI49: 73.62870975 | AJ49: 19 | AK49: 99698.25206 | AL49: 1.817762909e-05 | AM49: 1.183683276 | AN49: 1.535683528e-05 | AO49: 0.6114766586 | AP49: 0.1308461573 | AQ49: 397.9494986 | AR49: 36660.11687
B50: 6 | C50: 14 | D50: 749 | E50: 747.8 | F50: 1.2 | G50: 0.853616 | H50: 19 | I50: 99698.25206 | K50: 19 | L50: 15 | M50: 2198.378353 | N50: 1711.851688 | O50: 1447.850717 | P50: 0.6585994238 | Q50: 1.1825218 | S50: 57 | T50: 100 | U50: 0.125 | V50: =806.2-0.85*H50 -> 790.05 | W50: 41.65834894 | Y50: 998.205 | Z50: 5 | AA50: 48.96195525 | AB50: 99747.21402 | AD50: 140 | AE50: 250 | AF50: 0.04908738521 | AG50: 0.56 | AH50: 0.9998683635 | AI50: 41.65834894 | AJ50: 19 | AK50: 99698.25206 | AL50: 1.817762909e-05 | AM50: 1.183102538 | AN50: 1.536437334e-05 | AO50: 0.6133883126 | AP50: 0.09871457657 | AQ50: 300.3733524 | AR50: 27657.57886
B51: 7 | C51: 10 | D51: 749 | E51: 747.8 | F51: =D51-E51 -> 1.2 | G51: =-0.1496*F51^2+0.8867*F51+0.005 -> 0.853616 | H51: 19 | I51: 99698.25206 | K51: 19 | L51: 15 | M51: =EXP(23.58-4044.2/(235.6+K51)) -> 2198.378353 | N51: =POWER(10,(658+10.24*L51)/(236+L51)) -> 1711.851688 | O51: 1447.850717 | P51: 0.6585994238 | Q51: 1.1825218 | S51: 57 | T51: 77 | U51: 0.125 | V51: 790.05 | W51: 19.37597625 | Y51: 998.205 | Z51: 2 | AA51: =9.81*Y51*Z51/1000 -> 19.5847821 | AB51: 99717.83684 | AD51: 140 | AE51: 250 | AF51: =PI()*((AE51/1000)^2)/4 -> 0.04908738521 | AG51: =AD51/AE51 -> 0.56 | AH51: 0.9999387557 | AI51: =W51 -> 19.37597625 | AJ51: 19 | AK51: 99698.25206 | AL51: 1.817762909e-05 | AM51: 1.182754095 | AN51: =AL51/AM51 -> 1.536889973e-05 | AO51: 0.6166721182 | AP51: 0.06767799505 | AQ51: =AP51/AM51*3600 -> 205.9944524 | AR51: 18961.83472
A54: Clonka 140
A55: 2016-11-24 | B55: 9 | C55: 22 | D55: 749 | E55: 747.8 | F55: =D55-E55 -> 1.2 | G55: =-0.1496*F55^2+0.8867*F55+0.005 -> 0.853616 | H55: 19 | I55: =133.37*(D55+G55-0.000163*(D55+G55)*H55) -> 99698.25206 | K55: 11.2 | L55: 10 | M55: =EXP(23.58-4044.2/(235.6+K55)) -> 1330.689074 | N55: =POWER(10,(658+10.24*L55)/(236+L55)) -> 1233.266432 | O55: =N55-0.000662*I55*(K55-L55) -> 1154.06614 | P55: =O55/M55 -> 0.8672695692 | Q55: =(I55-0.378*O55)/287/(K55+273.15) -> 1.216320308 | S55: 57 | T55: 160 | U55: =1/8 -> 0.125 | V55: =806.2-0.85*H55 -> 790.05 | W55: =9.81*V55*U55*(T55-S55)/1000 -> 99.78627769 | Y55: 998.205 | Z55: 13 | AA55: =9.81*Y55*Z55/1000 -> 127.3010836 | AB55: =I55+AA55 -> 99825.55315 | AD55: 140 | AE55: 250 | AF55: =PI()*((AE55/1000)^2)/4 -> 0.04908738521 | AG55: =AD55/AE55 -> 0.56 | AH55: =1-(0.41+0.35*AG55^4)*AJ55/(1.41*AB55) -> 0.9999646368 | AI55: =W55 -> 99.78627769 | AJ55: 11.2 | AK55: =I55 -> 99698.25206 | AL55: =(1.49*(273+AJ55)^1.5/(273+AJ55+117))/10^6 -> 1.779350294e-05 | AM55: =Q55*AB55/I55 -> 1.217873384 | AN55: =AL55/AM55 -> 1.461030611e-05 | AO55: =0.5959+0.0312*AG55^2.1-0.184*AG55^8+0.0029*AG55^2.5*(10^6/AR55)^0.75 -> 0.6104186586 | AP55: =AO55*AH55*PI()*(AD55/1000)^2*SQRT(2*AI55*AM55)/(SQRT(1-AG55^4)*4) -> 0.154272908 | AQ55: =AP55/AM55*3600 -> 456.0264443 | AR55: =4*AP55/(PI()*AL55*(AE55/1000)) -> 44156.87406
A56: zima | B56: 8 | C56: 18 | D56: 749 | E56: 747.8 | F56: =D56-E56 -> 1.2 | G56: =-0.1496*F56^2+0.8867*F56+0.005 -> 0.853616 | H56: 19 | I56: =133.37*(D56+G56-0.000163*(D56+G56)*H56) -> 99698.25206 | K56: 11.2 | L56: 10 | M56: =EXP(23.58-4044.2/(235.6+K56)) -> 1330.689074 | N56: =POWER(10,(658+10.24*L56)/(236+L56)) -> 1233.266432 | O56: =N56-0.000662*I56*(K56-L56) -> 1154.06614 | P56: =O56/M56 -> 0.8672695692 | Q56: =(I56-0.378*O56)/287/(K56+273.15) -> 1.216320308 | S56: 57 | T56: 128 | U56: =1/8 -> 0.125 | V56: =806.2-0.85*H56 -> 790.05 | W56: =9.81*V56*U56*(T56-S56)/1000 -> 68.78471569 | Y56: 998.205 | Z56: 10 | AA56: =9.81*Y56*Z56/1000 -> 97.9239105 | AB56: 99796.17597 | AD56: 140 | AE56: 250 | AF56: =PI()*((AE56/1000)^2)/4 -> 0.04908738521 | AG56: =AD56/AE56 -> 0.56 | AH56: =1-(0.41+0.35*AG56^4)*AJ56/(1.41*AB56) -> 0.9999646264 | AI56: =W56 -> 68.78471569 | AJ56: 11.2 | AK56: =I56 -> 99698.25206 | AL56: =(1.49*(273+AJ56)^1.5/(273+AJ56+117))/10^6 -> 1.779350294e-05 | AM56: =Q56*AB56/I56 -> 1.217514982 | AN56: =AL56/AM56 -> 1.461460697e-05 | AO56: =0.5959+0.0312*AG56^2.1-0.184*AG56^8+0.0029*AG56^2.5*(10^6/AR56)^0.75 -> 0.6114668971 | AP56: =AO56*AH56*PI()*(AD56/1000)^2*SQRT(2*AI56*AM56)/(SQRT(1-AG56^4)*4) -> 0.1282866491 | AQ56: =AP56/AM56*3600 -> 379.3234118 | AR56: =4*AP56/(PI()*AL56*(AE56/1000)) -> 36718.93842
A59: Clonka 140
A60: 2016-11-25
A61: zima | B61: 13 | C61: 38 | D61: 749 | E61: 747.8 | F61: =D61-E61 -> 1.2 | G61: =-0.1496*F61^2+0.8867*F61+0.005 -> 0.853616 | H61: 19 | I61: =133.37*(D61+G61-0.000163*(D61+G61)*H61) -> 99698.25206 | K61: 17.1 | L61: 15.1 | M61: =EXP(23.58-4044.2/(235.6+K61)) -> 1950.893474 | N61: =POWER(10,(658+10.24*L61)/(236+L61)) -> 1722.88572 | O61: =N61-0.000662*I61*(K61-L61) -> 1590.885235 | P61: =O61/M61 -> 0.8154649426 | Q61: =(I61-0.378*O61)/287/(K61+273.15) -> 1.189613633 | S61: 56 | T61: 420 | U61: =1/8 -> 0.125 | V61: =806.2-0.85*H61 -> 790.05 | W61: =9.81*V61*U61*(T61-S61)/1000 -> 352.6427678 | Y61: 998.205 | Z61: 54 | AA61: =9.81*Y61*Z61/1000 -> 528.7891167 | AB61: 100227.0412 | AD61: 140 | AE61: 250 | AF61: =PI()*((AE61/1000)^2)/4 -> 0.04908738521 | AG61: =AD61/AE61 -> 0.56 | AH61: =1-(0.41+0.35*AG61^4)*AJ61/(1.41*AB61) -> 0.9999462243 | AI61: =W61 -> 352.6427678 | AJ61: 17.1 | AK61: =I61 -> 99698.25206 | AL61: =(1.49*(273+AJ61)^1.5/(273+AJ61+117))/10^6 -> 1.808451055e-05 | AM61: =Q61*AB61/I61 -> 1.195923219 | AN61: =AL61/AM61 -> 1.512179901e-05 | AO61: =0.5959+0.0312*AG61^2.1-0.184*AG61^8+0.0029*AG61^2.5*(10^6/AR61)^0.75 -> 0.6078528356 | AP61: =AO61*AH61*PI()*(AD61/1000)^2*SQRT(2*AI61*AM61)/(SQRT(1-AG61^4)*4) -> 0.2861771635 | AQ61: =AP61/AM61*3600 -> 861.4581371 | AR61: =4*AP61/(PI()*AL61*(AE61/1000)) -> 80593.18617
B62: 12 | C62: 30 | D62: 749 | E62: 747.8 | F62: =D62-E62 -> 1.2 | G62: =-0.1496*F62^2+0.8867*F62+0.005 -> 0.853616 | H62: 19 | I62: =133.37*(D62+G62-0.000163*(D62+G62)*H62) -> 99698.25206 | K62: 17.1 | L62: 15.1 | M62: =EXP(23.58-4044.2/(235.6+K62)) -> 1950.893474 | N62: =POWER(10,(658+10.24*L62)/(236+L62)) -> 1722.88572 | O62: =N62-0.000662*I62*(K62-L62) -> 1590.885235 | P62: =O62/M62 -> 0.8154649426 | Q62: =(I62-0.378*O62)/287/(K62+273.15) -> 1.189613633 | S62: 56 | T62: 257 | U62: =1/8 -> 0.125 | V62: =806.2-0.85*H62 -> 790.05 | W62: =9.81*V62*U62*(T62-S62)/1000 -> 194.7285613 | Y62: 998.205 | Z62: 28 | AA62: =9.81*Y62*Z62/1000 -> 274.1869494 | AB62: 99972.43901 | AD62: 140 | AE62: 250 | AF62: =PI()*((AE62/1000)^2)/4 -> 0.04908738521 | AG62: =AD62/AE62 -> 0.56 | AH62: =1-(0.41+0.35*AG62^4)*AJ62/(1.41*AB62) -> 0.9999460873 | AI62: =W62 -> 194.7285613 | AJ62: 17.1 | AK62: =I62 -> 99698.25206 | AL62: =(1.49*(273+AJ62)^1.5/(273+AJ62+117))/10^6 -> 1.808451055e-05 | AM62: =Q62*AB62/I62 -> 1.19288527 | AN62: =AL62/AM62 -> 1.516031005e-05 | AO62: =0.5959+0.0312*AG62^2.1-0.184*AG62^8+0.0029*AG62^2.5*(10^6/AR62)^0.75 -> 0.6089727299 | AP62: =AO62*AH62*PI()*(AD62/1000)^2*SQRT(2*AI62*AM62)/(SQRT(1-AG62^4)*4) -> 0.2127792822 | AQ62: =AP62/AM62*3600 -> 642.145087 | AR62: =4*AP62/(PI()*AL62*(AE62/1000)) -> 59922.88165
B63: 11 | C63: 22 | D63: 749 | E63: 747.8 | F63: =D63-E63 -> 1.2 | G63: =-0.1496*F63^2+0.8867*F63+0.005 -> 0.853616 | H63: 19 | I63: =133.37*(D63+G63-0.000163*(D63+G63)*H63) -> 99698.25206 | K63: 17.1 | L63: 15.1 | M63: =EXP(23.58-4044.2/(235.6+K63)) -> 1950.893474 | N63: =POWER(10,(658+10.24*L63)/(236+L63)) -> 1722.88572 | O63: =N63-0.000662*I63*(K63-L63) -> 1590.885235 | P63: =O63/M63 -> 0.8154649426 | Q63: =(I63-0.378*O63)/287/(K63+273.15) -> 1.189613633 | S63: 56 | T63: 165 | U63: =1/8 -> 0.125 | V63: =806.2-0.85*H63 -> 790.05 | W63: =9.81*V63*U63*(T63-S63)/1000 -> 105.5990706 | Y63: 998.205 | Z63: 14 | AA63: =9.81*Y63*Z63/1000 -> 137.0934747 | AB63: 99835.34554 | AD63: 140 | AE63: 250 | AF63: =PI()*((AE63/1000)^2)/4 -> 0.04908738521 | AG63: =AD63/AE63 -> 0.56 | AH63: =1-(0.41+0.35*AG63^4)*AJ63/(1.41*AB63) -> 0.9999460133 | AI63: =W63 -> 105.5990706 | AJ63: 17.1 | AK63: =I63 -> 99698.25206 | AL63: =(1.49*(273+AJ63)^1.5/(273+AJ63+117))/10^6 -> 1.808451055e-05 | AM63: =Q63*AB63/I63 -> 1.191249452 | AN63: =AL63/AM63 -> 1.518112812e-05 | AO63: =0.5959+0.0312*AG63^2.1-0.184*AG63^8+0.0029*AG63^2.5*(10^6/AR63)^0.75 -> 0.6104133198 | AP63: =AO63*AH63*PI()*(AD63/1000)^2*SQRT(2*AI63*AM63)/(SQRT(1-AG63^4)*4) -> 0.1569541137 | AQ63: =AP63/AM63*3600 -> 474.3211497 | AR63: =4*AP63/(PI()*AL63*(AE63/1000)) -> 44201.40291
B64: 10 | C64: 14 | D64: 749 | E64: 747.8 | F64: =D64-E64 -> 1.2 | G64: =-0.1496*F64^2+0.8867*F64+0.005 -> 0.853616 | H64: 19 | I64: =133.37*(D64+G64-0.000163*(D64+G64)*H64) -> 99698.25206 | K64: 17.1 | L64: 15.1 | M64: =EXP(23.58-4044.2/(235.6+K64)) -> 1950.893474 | N64: =POWER(10,(658+10.24*L64)/(236+L64)) -> 1722.88572 | O64: =N64-0.000662*I64*(K64-L64) -> 1590.885235 | P64: =O64/M64 -> 0.8154649426 | Q64: =(I64-0.378*O64)/287/(K64+273.15) -> 1.189613633 | S64: 56 | T64: 97 | U64: =1/8 -> 0.125 | V64: =806.2-0.85*H64 -> 790.05 | W64: =9.81*V64*U64*(T64-S64)/1000 -> 39.72075131 | Y64: 998.205 | Z64: 3 | AA64: =9.81*Y64*Z64/1000 -> 29.37717315 | AB64: 99727.62924 | AD64: 140 | AE64: 250 | AF64: =PI()*((AE64/1000)^2)/4 -> 0.04908738521 | AG64: =AD64/AE64 -> 0.56 | AH64: =1-(0.41+0.35*AG64^4)*AJ64/(1.41*AB64) -> 0.999945955 | AI64: =W64 -> 39.72075131 | AJ64: 17.1 | AK64: =I64 -> 99698.25206 | AL64: =(1.49*(273+AJ64)^1.5/(273+AJ64+117))/10^6 -> 1.808451055e-05 | AM64: =Q64*AB64/I64 -> 1.189964165 | AN64: =AL64/AM64 -> 1.519752533e-05 | AO64: =0.5959+0.0312*AG64^2.1-0.184*AG64^8+0.0029*AG64^2.5*(10^6/AR64)^0.75 -> 0.6135057816 | AP64: =AO64*AH64*PI()*(AD64/1000)^2*SQRT(2*AI64*AM64)/(SQRT(1-AG64^4)*4) -> 0.09669668816 | AQ64: =AP64/AM64*3600 -> 292.5366053 | AR64: =4*AP64/(PI()*AL64*(AE64/1000)) -> 27231.71233
D74: Barometrický tlak | K74: Parametry vnitřního vzduchu | S74: Mikromanometr | Z74: U trubice | AD74: Clonka | AK74: Vlastnosti vzduchu | AO74: Průtok vzduchu
A75: Clonka 140 | C75: Frekvence | D75: hb | E75: hbmin | F75: hvrch | G75: Dh1 | H75: tb | I75: pb | K75: ts | L75: tm | M75: pv'' | N75: pvm'' | O75: pv | P75: j | Q75: ri | S75: l0 | T75: l | U75: kM | V75: rL | W75: Dpcl | Y75: rv | Z75: hs | AA75: pstat | AB75: p1s | AD75: d | AE75: D | AF75: A | AG75: b | AH75: e1 | AI75: Dpcl | AJ75: tp,cl | AK75: p | AL75: m | AM75: rcl | AN75: n | AO75: C | AP75: qm | AQ75: Vvzd | AR75: ReD
A76: 2016-11-29 | D76: mm | E76: mm | F76: mm | G76: mm | H76: °C | I76: Pa | L76: °C | M76: Pa | N76: Pa | O76: Pa | P76: - | Q76: kg/m3 | S76: mm | T76: mm | U76: - | V76: kg/m3 | W76: Pa | Y76: kg/m3 | Z76: mm | AA76: Pa | AB76: Pa | AD76: mm | AE76: mm | AF76: m2 | AG76: - | AH76: - | AI76: Pa | AJ76: °C | AK76: Pa | AL76: Pa.s | AM76: kg/m3 | AN76: m2/s | AO76: - | AP76: kg/s | AQ76: m3/h | AR76: -
A80: zima
B81: 17 | C81: 50 | D81: 758.4 | E81: 757.2 | F81: =D81-E81 -> 1.2 | G81: =-0.1496*F81^2+0.8867*F81+0.005 -> 0.853616 | H81: 19 | I81: =133.37*(D81+G81-0.000163*(D81+G81)*H81) -> 100948.0474 | K81: 17.2 | L81: 10 | M81: =EXP(23.58-4044.2/(235.6+K81)) -> 1963.283131 | N81: =POWER(10,(658+10.24*L81)/(236+L81)) -> 1233.266432 | O81: =N81-0.000662*I81*(K81-L81) -> 752.1076584 | P81: =O81/M81 -> 0.3830867013 | Q81: =(I81-0.378*O81)/287/(K81+273.15) -> 1.208006806 | S81: 30 | T81: 343 | U81: 0.25 | V81: =806.2-0.85*H81 -> 790.05 | W81: =9.81*V81*U81*(T81-S81)/1000 -> 606.4680566 | Y81: 998.205 | Z81: 96 | AA81: =9.81*Y81*Z81/1000 -> 940.0695408 | AB81: =I81+AA81 -> 101888.117 | AD81: 140 | AE81: 250 | AF81: =PI()*((AE81/1000)^2)/4 -> 0.04908738521 | AG81: =AD81/AE81 -> 0.56 | AH81: =1-(0.41+0.35*AG81^4)*AJ81/(1.41*AB81) -> 0.9999467916 | AI81: =W81 -> 606.4680566 | AJ81: 17.2 | AK81: =I81 -> 100948.0474 | AL81: =(1.49*(273+AJ81)^1.5/(273+AJ81+117))/10^6 -> 1.808941871e-05 | AM81: =Q81*AB81/I81 -> 1.21925626 | AN81: =AL81/AM81 -> 1.483643702e-05 | AO81: =0.5959+0.0312*AG81^2.1-0.184*AG81^8+0.0029*AG81^2.5*(10^6/AR81)^0.75 -> 0.607003089 | AP81: =AO81*AH81*PI()*(AD81/1000)^2*SQRT(2*AI81*AM81)/(SQRT(1-AG81^4)*4) -> 0.3784077288 | AQ81: =AP81/AM81*3600 -> 1117.294099 | AR81: =4*AP81/(PI()*AL81*(AE81/1000)) -> 106538.2348
B82: 16 | C82: 46 | D82: 758.4 | E82: 757.2 | F82: =D82-E82 -> 1.2 | G82: =-0.1496*F82^2+0.8867*F82+0.005 -> 0.853616 | H82: 19 | I82: =133.37*(D82+G82-0.000163*(D82+G82)*H82) -> 100948.0474 | K82: 17.2 | L82: 10 | M82: =EXP(23.58-4044.2/(235.6+K82)) -> 1963.283131 | N82: =POWER(10,(658+10.24*L82)/(236+L82)) -> 1233.266432 | O82: =N82-0.000662*I82*(K82-L82) -> 752.1076584 | P82: =O82/M82 -> 0.3830867013 | Q82: =(I82-0.378*O82)/287/(K82+273.15) -> 1.208006806 | S82: 30 | T82: 297 | U82: 0.25 | V82: =806.2-0.85*H82 -> 790.05 | W82: =9.81*V82*U82*(T82-S82)/1000 -> 517.3385659 | Y82: 998.205 | Z82: 81 | AA82: =9.81*Y82*Z82/1000 -> 793.183675 | AB82: =I82+AA82 -> 101741.2311 | AD82: 140 | AE82: 250 | AF82: =PI()*((AE82/1000)^2)/4 -> 0.04908738521 | AG82: =AD82/AE82 -> 0.56 | AH82: =1-(0.41+0.35*AG82^4)*AJ82/(1.41*AB82) -> 0.9999467148 | AI82: =W82 -> 517.3385659 | AJ82: 17.2 | AK82: =I82 -> 100948.0474 | AL82: =(1.49*(273+AJ82)^1.5/(273+AJ82+117))/10^6 -> 1.808941871e-05 | AM82: =Q82*AB82/I82 -> 1.217498532 | AN82: =AL82/AM82 -> 1.485785668e-05 | AO82: =0.5959+0.0312*AG82^2.1-0.184*AG82^8+0.0029*AG82^2.5*(10^6/AR82)^0.75 -> 0.6072282638 | AP82: =AO82*AH82*PI()*(AD82/1000)^2*SQRT(2*AI82*AM82)/(SQRT(1-AG82^4)*4) -> 0.3493745209 | AQ82: =AP82/AM82*3600 -> 1033.059377 | AR82: =4*AP82/(PI()*AL82*(AE82/1000)) -> 98364.12395
B83: 15 | C83: 42 | D83: 758.4 | E83: 757.2 | F83: =D83-E83 -> 1.2 | G83: =-0.1496*F83^2+0.8867*F83+0.005 -> 0.853616 | H83: 19 | I83: =133.37*(D83+G83-0.000163*(D83+G83)*H83) -> 100948.0474 | K83: 17.2 | L83: 10 | M83: =EXP(23.58-4044.2/(235.6+K83)) -> 1963.283131 | N83: =POWER(10,(658+10.24*L83)/(236+L83)) -> 1233.266432 | O83: =N83-0.000662*I83*(K83-L83) -> 752.1076584 | P83: =O83/M83 -> 0.3830867013 | Q83: =(I83-0.378*O83)/287/(K83+273.15) -> 1.208006806 | S83: 56 | T83: 514 | U83: =1/8 -> 0.125 | V83: =806.2-0.85*H83 -> 790.05 | W83: =9.81*V83*U83*(T83-S83)/1000 -> 443.7098561 | Y83: 998.205 | Z83: 68 | AA83: =9.81*Y83*Z83/1000 -> 665.8825914 | AB83: =I83+AA83 -> 101613.93 | AD83: 140 | AE83: 250 | AF83: =PI()*((AE83/1000)^2)/4 -> 0.04908738521 | AG83: =AD83/AE83 -> 0.56 | AH83: =1-(0.41+0.35*AG83^4)*AJ83/(1.41*AB83) -> 0.999946648 | AI83: =W83 -> 443.7098561 | AJ83: 17.2 | AK83: =I83 -> 100948.0474 | AL83: =(1.49*(273+AJ83)^1.5/(273+AJ83+117))/10^6 -> 1.808941871e-05 | AM83: =Q83*AB83/I83 -> 1.215975169 | AN83: =AL83/AM83 -> 1.487647048e-05 | AO83: =0.5959+0.0312*AG83^2.1-0.184*AG83^8+0.0029*AG83^2.5*(10^6/AR83)^0.75 -> 0.6074586474 | AP83: =AO83*AH83*PI()*(AD83/1000)^2*SQRT(2*AI83*AM83)/(SQRT(1-AG83^4)*4) -> 0.3234790672 | AQ83: =AP83/AM83*3600 -> 957.6878473 | AR83: =4*AP83/(PI()*AL83*(AE83/1000)) -> 91073.42739
B84: 14 | C84: 38 | D84: 758.4 | E84: 757.2 | F84: =D84-E84 -> 1.2 | G84: =-0.1496*F84^2+0.8867*F84+0.005 -> 0.853616 | H84: 19 | I84: =133.37*(D84+G84-0.000163*(D84+G84)*H84) -> 100948.0474 | K84: 17.2 | L84: 10 | M84: =EXP(23.58-4044.2/(235.6+K84)) -> 1963.283131 | N84: =POWER(10,(658+10.24*L84)/(236+L84)) -> 1233.266432 | O84: =N84-0.000662*I84*(K84-L84) -> 752.1076584 | P84: =O84/M84 -> 0.3830867013 | Q84: =(I84-0.378*O84)/287/(K84+273.15) -> 1.208006806 | S84: 56 | T84: 430 | U84: =1/8 -> 0.125 | V84: =806.2-0.85*H84 -> 790.05 | W84: =9.81*V84*U84*(T84-S84)/1000 -> 362.3307559 | Y84: 998.205 | Z84: 55 | AA84: =9.81*Y84*Z84/1000 -> 538.5815078 | AB84: =I84+AA84 -> 101486.6289 | AD84: 140 | AE84: 250 | AF84: =PI()*((AE84/1000)^2)/4 -> 0.04908738521 | AG84: =AD84/AE84 -> 0.56 | AH84: =1-(0.41+0.35*AG84^4)*AJ84/(1.41*AB84) -> 0.9999465811 | AI84: =W84 -> 362.3307559 | AJ84: 17.2 | AK84: =I84 -> 100948.0474 | AL84: =(1.49*(273+AJ84)^1.5/(273+AJ84+117))/10^6 -> 1.808941871e-05 | AM84: =Q84*AB84/I84 -> 1.214451805 | AN84: =AL84/AM84 -> 1.489513098e-05 | AO84: =0.5959+0.0312*AG84^2.1-0.184*AG84^8+0.0029*AG84^2.5*(10^6/AR84)^0.75 -> 0.6077830176 | AP84: =AO84*AH84*PI()*(AD84/1000)^2*SQRT(2*AI84*AM84)/(SQRT(1-AG84^4)*4) -> 0.2922865604 | AQ84: =AP84/AM84*3600 -> 866.4251746 | AR84: =4*AP84/(PI()*AL84*(AE84/1000)) -> 82291.37999
A86: Clonka 140
A87: 2016-11-29
A88: topeni 22
B89: 18 | C89: 50 | D89: 758.4 | E89: 757.2 | F89: =D89-E89 -> 1.2 | G89: =-0.1496*F89^2+0.8867*F89+0.005 -> 0.853616 | H89: 19 | I89: =133.37*(D89+G89-0.000163*(D89+G89)*H89) -> 100948.0474 | K89: 17.2 | L89: 10 | M89: =EXP(23.58-4044.2/(235.6+K89)) -> 1963.283131 | N89: =POWER(10,(658+10.24*L89)/(236+L89)) -> 1233.266432 | O89: =N89-0.000662*I89*(K89-L89) -> 752.1076584 | P89: =O89/M89 -> 0.3830867013 | Q89: =(I89-0.378*O89)/287/(K89+273.15) -> 1.208006806 | S89: 30 | T89: 340 | U89: 0.25 | V89: =806.2-0.85*H89 -> 790.05 | W89: =9.81*V89*U89*(T89-S89)/1000 -> 600.6552638 | Y89: 998.205 | Z89: 96 | AA89: =9.81*Y89*Z89/1000 -> 940.0695408 | AB89: =I89+AA89 -> 101888.117 | AD89: 140 | AE89: 250 | AF89: =PI()*((AE89/1000)^2)/4 -> 0.04908738521 | AG89: =AD89/AE89 -> 0.56 | AH89: =1-(0.41+0.35*AG89^4)*AJ89/(1.41*AB89) -> 0.9999288492 | AI89: =W89 -> 600.6552638 | AJ89: 23 | AK89: =I89 -> 100948.0474 | AL89: =(1.49*(273+AJ89)^1.5/(273+AJ89+117))/10^6 -> 1.837273383e-05 | AM89: =Q89*AB89/I89 -> 1.21925626 | AN89: =AL89/AM89 -> 1.506880419e-05 | AO89: =0.5959+0.0312*AG89^2.1-0.184*AG89^8+0.0029*AG89^2.5*(10^6/AR89)^0.75 -> 0.6070590278 | AP89: =AO89*AH89*PI()*(AD89/1000)^2*SQRT(2*AI89*AM89)/(SQRT(1-AG89^4)*4) -> 0.376617854 | AQ89: =AP89/AM89*3600 -> 1112.009279 | AR89: =4*AP89/(PI()*AL89*(AE89/1000)) -> 104399.2145
B90: 19 | C90: 45 | D90: 758.4 | E90: 757.2 | F90: 1.2 | G90: 0.853616 | H90: 19 | I90: 100948.0474 | K90: 17.2 | L90: 10 | M90: 1963.283131 | N90: 1233.266432 | O90: 752.1076584 | P90: 0.3830867013 | Q90: 1.208006806 | S90: 30 | T90: 282 | U90: 0.25 | V90: =806.2-0.85*H90 -> 790.05 | W90: 488.2746015 | Y90: 998.205 | Z90: 80 | AA90: 783.391284 | AB90: =I90+AA90 -> 101731.4387 | AD90: 140 | AE90: 250 | AF90: =PI()*((AE90/1000)^2)/4 -> 0.04908738521 | AG90: =AD90/AE90 -> 0.56 | AH90: 0.9999287397 | AI90: 488.2746015 | AJ90: 23 | AK90: =I90 -> 100948.0474 | AL90: =(1.49*(273+AJ90)^1.5/(273+AJ90+117))/10^6 -> 1.837273383e-05 | AM90: 1.217381351 | AN90: 1.50920119e-05 | AO90: 0.6073591667 | AP90: 0.3394695104 | AQ90: 1003.868046 | AR90: 94101.62013
B91: 20 | C91: 40 | D91: 758.4 | E91: 757.2 | F91: 1.2 | G91: 0.853616 | H91: 19 | I91: 100948.0474 | K91: 17.2 | L91: 10 | M91: 1963.283131 | N91: 1233.266432 | O91: 752.1076584 | P91: 0.3830867013 | Q91: 1.208006806 | S91: 56 | T91: 466 | U91: =1/8 -> 0.125 | V91: =806.2-0.85*H91 -> 790.05 | W91: 397.2075131 | Y91: 998.205 | Z91: 62 | AA91: 607.1282451 | AB91: 101555.1757 | AD91: 140 | AE91: 250 | AF91: 0.04908738521 | AG91: 0.56 | AH91: 0.999928616 | AI91: 397.2075131 | AJ91: 23 | AK91: 100948.0474 | AL91: 1.837273383e-05 | AM91: 1.215272078 | AN91: 1.511820617e-05 | AO91: 0.6076826338 | AP91: 0.3060779563 | AQ91: 906.6946099 | AR91: 84845.41525
B92: 21 | C92: 35 | D92: 758.4 | E92: 757.2 | F92: 1.2 | G92: 0.853616 | H92: 19 | I92: 100948.0474 | K92: 17.2 | L92: 10 | M92: 1963.283131 | N92: 1233.266432 | O92: 752.1076584 | P92: 0.3830867013 | Q92: 1.208006806 | S92: 56 | T92: 371 | U92: 0.125 | V92: 790.05 | W92: 305.1716259 | Y92: 998.205 | Z92: 48 | AA92: 470.0347704 | AB92: 101418.0822 | AD92: 140 | AE92: 250 | AF92: 0.04908738521 | AG92: 0.56 | AH92: 0.9999285195 | AI92: 305.1716259 | AJ92: 23 | AK92: 100948.0474 | AL92: 1.837273383e-05 | AM92: 1.213631533 | AN92: 1.513864244e-05 | AO92: 0.6081321724 | AP92: 0.268301549 | AQ92: 795.8639426 | AR92: 74373.72038
B93: 22 | C93: 30 | D93: 758.4 | E93: 757.2 | F93: 1.2 | G93: 0.853616 | H93: 19 | I93: 100948.0474 | K93: 17.2 | L93: 10 | M93: 1963.283131 | N93: 1233.266432 | O93: 752.1076584 | P93: 0.3830867013 | Q93: 1.208006806 | S93: 56 | T93: 285 | U93: 0.125 | V93: 790.05 | W93: 221.8549281 | Y93: 998.205 | Z93: 34 | AA93: 332.9412957 | AB93: 101280.9887 | AD93: 140 | AE93: 250 | AF93: 0.04908738521 | AG93: 0.56 | AH93: 0.9999284227 | AI93: 221.8549281 | AJ93: 23 | AK93: 100948.0474 | AL93: 1.837273383e-05 | AM93: 1.211990987 | AN93: 1.515913404e-05 | AO93: 0.6087378227 | AP93: 0.2288359107 | AQ93: 679.7156804 | AR93: 63433.76734
A94: zde zacni 1.12 | B94: 23 | C94: 25 | D94: 747.4 | E94: 746.4 | F94: 1 | G94: 0.7421 | H94: 19 | I94: 99470.69411 | K94: 17.2 | L94: 10 | M94: 1963.283131 | N94: 1233.266432 | O94: 759.1493152 | P94: 0.3866733754 | Q94: 1.190246011 | S94: 55 | T94: 206 | U94: 0.125 | V94: 790.05 | W94: 146.2886207 | Y94: 998.205 | Z94: 20 | AA94: 195.847821 | AB94: 99666.54193 | AD94: 140 | AE94: 250 | AF94: 0.04908738521 | AG94: 0.56 | AH94: 0.9999272633 | AI94: 146.2886207 | AJ94: 23 | AK94: 99470.69411 | AL94: 1.837273383e-05 | AM94: 1.192589486 | AN94: 1.540574863e-05 | AO94: 0.6096787542 | AP94: 0.1846124452 | AQ94: 557.2787711 | AR94: 51174.93519
B95: 24 | C95: 20 | D95: 747.4 | E95: 746.4 | F95: 1 | G95: 0.7421 | H95: 19 | I95: 99470.69411 | K95: 17.2 | L95: 10 | M95: 1963.283131 | N95: 1233.266432 | O95: 759.1493152 | P95: 0.3866733754 | Q95: 1.190246011 | S95: 55 | T95: 148 | U95: 0.125 | V95: 790.05 | W95: 90.09828956 | Y95: 998.205 | Z95: 13 | AA95: 127.3010836 | AB95: 99597.99519 | AD95: 140 | AE95: 250 | AF95: 0.04908738521 | AG95: 0.56 | AH95: 0.9999272132 | AI95: 90.09828956 | AJ95: 23 | AK95: 99470.69411 | AL95: 1.837273383e-05 | AM95: 1.191769269 | AN95: 1.541635139e-05 | AO95: 0.6109297994 | AP95: 0.1451292012 | AQ95: 438.3945264 | AR95: 40230.10181
B96: 25 | C96: 15 | D96: 747.4 | E96: 746.4 | F96: =D96-E96 -> 1 | G96: =-0.1496*F96^2+0.8867*F96+0.005 -> 0.7421 | H96: 19 | I96: 99470.69411 | K96: 17.2 | L96: 10 | M96: =EXP(23.58-4044.2/(235.6+K96)) -> 1963.283131 | N96: =POWER(10,(658+10.24*L96)/(236+L96)) -> 1233.266432 | O96: 759.1493152 | P96: 0.3866733754 | Q96: 1.190246011 | S96: 55 | T96: 105 | U96: 0.125 | V96: 790.05 | W96: 48.43994063 | Y96: 998.205 | Z96: 5 | AA96: 48.96195525 | AB96: 99519.65606 | AD96: 140 | AE96: 250 | AF96: 0.04908738521 | AG96: 0.56 | AH96: 0.9999271559 | AI96: 48.43994063 | AJ96: 23 | AK96: 99470.69411 | AL96: 1.837273383e-05 | AM96: 1.190831879 | AN96: 1.542848672e-05 | AO96: 0.6128947703 | AP96: 0.1067141598 | AQ96: =AP96/AM96*3600 -> 322.607231 | AR96: 29581.37629
B97: 26 | C97: 10 | D97: 747.4 | E97: 746.4 | F97: =D97-E97 -> 1 | G97: =-0.1496*F97^2+0.8867*F97+0.005 -> 0.7421 | H97: 19 | I97: =133.37*(D97+G97-0.000163*(D97+G97)*H97) -> 99470.69411 | K97: 17.2 | L97: 10 | M97: =EXP(23.58-4044.2/(235.6+K97)) -> 1963.283131 | N97: =POWER(10,(658+10.24*L97)/(236+L97)) -> 1233.266432 | O97: =N97-0.000662*I97*(K97-L97) -> 759.1493152 | P97: =O97/M97 -> 0.3866733754 | Q97: =(I97-0.378*O97)/287/(K97+273.15) -> 1.190246011 | S97: 55 | T97: 77 | U97: 0.125 | V97: =806.2-0.85*H97 -> 790.05 | W97: =9.81*V97*U97*(T97-S97)/1000 -> 21.31357388 | Y97: 998.205 | Z97: 2 | AA97: =9.81*Y97*Z97/1000 -> 19.5847821 | AB97: 99490.27889 | AD97: 140 | AE97: 250 | AF97: =PI()*((AE97/1000)^2)/4 -> 0.04908738521 | AG97: =AD97/AE97 -> 0.56 | AH97: 0.9999271344 | AI97: =W97 -> 21.31357388 | AJ97: 23 | AK97: =I97 -> 99470.69411 | AL97: =(1.49*(273+AJ97)^1.5/(273+AJ97+117))/10^6 -> 1.837273383e-05 | AM97: =Q97*AB97/I97 -> 1.190480358 | AN97: =AL97/AM97 -> 1.543304239e-05 | AO97: 0.6162824607 | AP97: 0.07116691848 | AQ97: =AP97/AM97*3600 -> 215.2080081 | AR97: 19727.61065
A99: Clonka 140
A100: 1900-01-13T02:52:48
A101: topeni
A103: zavreno/3
A104: 1 | B104: 27 | C104: 40 | D104: 754 | E104: 753 | F104: =D104-E104 -> 1 | G104: =-0.1496*F104^2+0.8867*F104+0.005 -> 0.7421 | H104: 19 | I104: =133.37*(D104+G104-0.000163*(D104+G104)*H104) -> 100348.21 | K104: 16 | L104: 10.3 | M104: =EXP(23.58-4044.2/(235.6+K104)) -> 1819.056305 | N104: =POWER(10,(658+10.24*L104)/(236+L104)) -> 1258.242976 | O104: =N104-0.000662*I104*(K104-L104) -> 879.5890408 | P104: =O104/M104 -> 0.4835414046 | Q104: =(I104-0.378*O104)/287/(K104+273.15) -> 1.205211302 | S104: 55 | T104: 455 | U104: =1/8 -> 0.125 | V104: =806.2-0.85*H104 -> 790.05 | W104: =9.81*V104*U104*(T104-S104)/1000 -> 387.519525 | Y104: 998.205 | Z104: 59 | AA104: =9.81*Y104*Z104/1000 -> 577.7510719 | AB104: =I104+AA104 -> 100925.9611 | AD104: 140 | AE104: 250 | AF104: =PI()*((AE104/1000)^2)/4 -> 0.04908738521 | AG104: =AD104/AE104 -> 0.56 | AH104: =1-(0.41+0.35*AG104^4)*AJ104/(1.41*AB104) -> 0.9999219249 | AI104: =W104 -> 387.519525 | AJ104: 25 | AK104: =I104 -> 100348.21 | AL104: =(1.49*(273+AJ104)^1.5/(273+AJ104+117))/10^6 -> 1.846981595e-05 | AM104: =Q104*AB104/I104 -> 1.212150261 | AN104: =AL104/AM104 -> 1.5237233e-05 | AO104: =0.5959+0.0312*AG104^2.1-0.184*AG104^8+0.0029*AG104^2.5*(10^6/AR104)^0.75 -> 0.6077441326 | AP104: =AO104*AH104*PI()*(AD104/1000)^2*SQRT(2*AI104*AM104)/(SQRT(1-AG104^4)*4) -> 0.3019622364 | AQ104: =AP104/AM104*3600 -> 896.8063501 | AR104: =4*AP104/(PI()*AL104*(AE104/1000)) -> 83264.55692
A105: 2 | B105: 28 | C105: 30 | D105: 754 | E105: 753 | F105: =D105-E105 -> 1 | G105: =-0.1496*F105^2+0.8867*F105+0.005 -> 0.7421 | H105: 19 | I105: =133.37*(D105+G105-0.000163*(D105+G105)*H105) -> 100348.21 | K105: 16 | L105: 10.3 | M105: =EXP(23.58-4044.2/(235.6+K105)) -> 1819.056305 | N105: =POWER(10,(658+10.24*L105)/(236+L105)) -> 1258.242976 | O105: =N105-0.000662*I105*(K105-L105) -> 879.5890408 | P105: =O105/M105 -> 0.4835414046 | Q105: =(I105-0.378*O105)/287/(K105+273.15) -> 1.205211302 | S105: 56 | T105: 276 | U105: =1/8 -> 0.125 | V105: =806.2-0.85*H105 -> 790.05 | W105: =9.81*V105*U105*(T105-S105)/1000 -> 213.1357388 | Y105: 998.205 | Z105: 33 | AA105: =9.81*Y105*Z105/1000 -> 323.1489046 | AB105: =I105+AA105 -> 100671.3589 | AD105: 140 | AE105: 250 | AF105: =PI()*((AE105/1000)^2)/4 -> 0.04908738521 | AG105: =AD105/AE105 -> 0.56 | AH105: =1-(0.41+0.35*AG105^4)*AJ105/(1.41*AB105) -> 0.9999217275 | AI105: =W105 -> 213.1357388 | AJ105: 25 | AK105: =I105 -> 100348.21 | AL105: =(1.49*(273+AJ105)^1.5/(273+AJ105+117))/10^6 -> 1.846981595e-05 | AM105: =Q105*AB105/I105 -> 1.209092414 | AN105: =AL105/AM105 -> 1.527576861e-05 | AO105: =0.5959+0.0312*AG105^2.1-0.184*AG105^8+0.0029*AG105^2.5*(10^6/AR105)^0.75 -> 0.6088452665 | AP105: =AO105*AH105*PI()*(AD105/1000)^2*SQRT(2*AI105*AM105)/(SQRT(1-AG105^4)*4) -> 0.2240637345 | AQ105: =AP105/AM105*3600 -> 667.1363036 | AR105: =4*AP105/(PI()*AL105*(AE105/1000)) -> 61784.43965
A106: zavreno/1
A107: 3 | B107: 29 | C107: 30 | D107: 754 | E107: 753 | F107: =D107-E107 -> 1 | G107: =-0.1496*F107^2+0.8867*F107+0.005 -> 0.7421 | H107: 19 | I107: =133.37*(D107+G107-0.000163*(D107+G107)*H107) -> 100348.21 | K107: 16 | L107: 10.3 | M107: =EXP(23.58-4044.2/(235.6+K107)) -> 1819.056305 | N107: =POWER(10,(658+10.24*L107)/(236+L107)) -> 1258.242976 | O107: =N107-0.000662*I107*(K107-L107) -> 879.5890408 | P107: =O107/M107 -> 0.4835414046 | Q107: =(I107-0.378*O107)/287/(K107+273.15) -> 1.205211302 | S107: 55 | T107: 278 | U107: =1/8 -> 0.125 | V107: =806.2-0.85*H107 -> 790.05 | W107: =9.81*V107*U107*(T107-S107)/1000 -> 216.0421352 | Y107: 998.205 | Z107: 33 | AA107: =9.81*Y107*Z107/1000 -> 323.1489046 | AB107: =I107+AA107 -> 100671.3589 | AD107: 140 | AE107: 250 | AF107: =PI()*((AE107/1000)^2)/4 -> 0.04908738521 | AG107: =AD107/AE107 -> 0.56 | AH107: =1-(0.41+0.35*AG107^4)*AJ107/(1.41*AB107) -> 0.9999217275 | AI107: =W107 -> 216.0421352 | AJ107: 25 | AK107: =I107 -> 100348.21 | AL107: =(1.49*(273+AJ107)^1.5/(273+AJ107+117))/10^6 -> 1.846981595e-05 | AM107: =Q107*AB107/I107 -> 1.209092414 | AN107: =AL107/AM107 -> 1.527576861e-05 | AO107: =0.5959+0.0312*AG107^2.1-0.184*AG107^8+0.0029*AG107^2.5*(10^6/AR107)^0.75 -> 0.6088176303 | AP107: =AO107*AH107*PI()*(AD107/1000)^2*SQRT(2*AI107*AM107)/(SQRT(1-AG107^4)*4) -> 0.2255760292 | AQ107: =AP107/AM107*3600 -> 671.6390704 | AR107: =4*AP107/(PI()*AL107*(AE107/1000)) -> 62201.44727
A108: 4 | B108: 30 | C108: 40 | D108: 754 | E108: 753 | F108: =D108-E108 -> 1 | G108: =-0.1496*F108^2+0.8867*F108+0.005 -> 0.7421 | H108: 19 | I108: =133.37*(D108+G108-0.000163*(D108+G108)*H108) -> 100348.21 | K108: 16 | L108: 10.3 | M108: =EXP(23.58-4044.2/(235.6+K108)) -> 1819.056305 | N108: =POWER(10,(658+10.24*L108)/(236+L108)) -> 1258.242976 | O108: =N108-0.000662*I108*(K108-L108) -> 879.5890408 | P108: =O108/M108 -> 0.4835414046 | Q108: =(I108-0.378*O108)/287/(K108+273.15) -> 1.205211302 | S108: 55 | T108: 452 | U108: =1/8 -> 0.125 | V108: =806.2-0.85*H108 -> 790.05 | W108: =9.81*V108*U108*(T108-S108)/1000 -> 384.6131286 | Y108: 998.205 | Z108: 59 | AA108: =9.81*Y108*Z108/1000 -> 577.7510719 | AB108: =I108+AA108 -> 100925.9611 | AD108: 140 | AE108: 250 | AF108: =PI()*((AE108/1000)^2)/4 -> 0.04908738521 | AG108: =AD108/AE108 -> 0.56 | AH108: =1-(0.41+0.35*AG108^4)*AJ108/(1.41*AB108) -> 0.9999219249 | AI108: =W108 -> 384.6131286 | AJ108: 25 | AK108: =I108 -> 100348.21 | AL108: =(1.49*(273+AJ108)^1.5/(273+AJ108+117))/10^6 -> 1.846981595e-05 | AM108: =Q108*AB108/I108 -> 1.212150261 | AN108: =AL108/AM108 -> 1.5237233e-05 | AO108: =0.5959+0.0312*AG108^2.1-0.184*AG108^8+0.0029*AG108^2.5*(10^6/AR108)^0.75 -> 0.6077564781 | AP108: =AO108*AH108*PI()*(AD108/1000)^2*SQRT(2*AI108*AM108)/(SQRT(1-AG108^4)*4) -> 0.3008338578 | AQ108: =AP108/AM108*3600 -> 893.4551459 | AR108: =4*AP108/(PI()*AL108*(AE108/1000)) -> 82953.41223

Sheet 24.11.
J1: Oděv | K1: Metabolizmus | L1: Práce venku
J2: [clo] | K2: [met] | L2: [met] | Q2: Project: | R2: 24.11 | AC2: Průměr
J3: 1 | K3: 1.2 | L3: 0 | Q3: Date: | R3: 24. listopadu 2016
Q4: Name: | R4: 1
D6: Tp1 | E6: Tp2 | F6: Tp | G6: Tk1 | H6: Ta | I6: RH | J6: v | K6: Tr | L6: To | M6: PMV | N6: PPD | O6: DR | Q6: Transducer | R6: time | S6: 54T21 | T6: Transducer | U6: time | V6: 54T21 | W6: Transducer | X6: time | Y6: 54T21
D7: [°C] | E7: [°C] | F7: [°C] | G7: [°C] | H7: [°C] | I7: [%] | J7: [m/s] | K7: [°C] | L7: [°C] | M7: [1] | N7: [%] | O7: [%] | Q7: Transducer height | R7: 13:54:02 | S7: 0 | T7: Transducer height | U7: 13:58:05 | V7: 0 | W7: Transducer height | X7: 13:58:05 | Y7: 0
A8: 1 | B8: 24.11.16 | C8: 13:54:37 | D8: 19.15 | E8: 18.89 | F8: =AVERAGEA(D8,E8) -> 19.02 | G8: 20.67 | H8: 20.72 | I8: 43.1 | J8: =AC8 -> 0.03766666667 | K8: =((G8+273)^4+2.5*10^8*J8^0.6*(G8-H8))^(1/4)-273 -> 20.65274624 | L8: =TOPERA(H8,K8,J8) -> 20.68637312 | M8: =PMVx($J$3,$K$3,$L$3,H8,K8,J8,I8,0) -> 1.944668144 | N8: =PPD(M8) -> 74.2017344 | O8: =AC12 -> 0 | Q8: V [m/s] | R8: 13:54:02 | S8: 0.043 | T8: V [m/s] | U8: 13:58:05 | V8: 0.033 | W8: V [m/s] | X8: 13:58:05 | Y8: 0.037 | AC8: =AVERAGE(Y8,V8,S8) -> 0.03766666667
A9: 2 | B9: 24.11.16 | C9: 14:19:38 | D9: 19.08 | E9: 18.83 | F9: =AVERAGEA(D9,E9) -> 18.955 | G9: 20.67 | H9: 20.7 | I9: 43.3 | J9: =AC20 -> 0.075 | K9: =((G9+273)^4+2.5*10^8*J9^0.6*(G9-H9))^(1/4)-273 -> 20.65435073 | L9: =TOPERA(H9,K9,J9) -> 20.67717537 | M9: 1.963672361 | N9: =PPD(M9) -> 75.09418234 | O9: =AC24 -> 6.533238174
A10: 3 | B10: 24.11.16 | C10: 14:40:39 | D10: 19.11 | E10: 18.86 | F10: 18.985 | G10: 20.6 | H10: 20.6 | I10: 43.3 | J10: =AC29 -> 0.0785 | K10: =((G10+273)^4+2.5*10^8*J10^0.6*(G10-H10))^(1/4)-273 -> 20.6 | L10: 20.6 | M10: 1.95015921 | N10: 74.46096648 | O10: =AC33 -> 7.322477701 | Q10: Tu % | R10: 13:54:02 | S10: 47.974 | T10: Tu % | U10: 13:58:05 | V10: 63.256 | W10: Tu % | X10: 13:58:05 | Y10: 56.0612 | AC10: =AVERAGE(Y10,V10,S10) -> 55.76373333
A11: 4 | B11: 24.11.16 | C11: 15:25:10 | D11: 19.25 | E11: 18.99 | F11: 19.12 | G11: 20.59 | H11: 20.58 | I11: 43.4 | J11: =AC44 -> 0.1 | K11: 20.59620358 | L11: 20.58810179 | M11: 1.958299791 | N11: 74.84324224 | O11: =AC48 -> 11.17723807 | Q11: T [C] | R11: 13:54:02 | S11: 20.383 | T11: T [C] | U11: 13:58:05 | V11: 20.418 | W11: T [C] | X11: 13:58:05 | Y11: 20.355 | AC11: =AVERAGE(Y11,V11,S11) -> 20.38533333
A12: 5 | B12: 24.11.16 | C12: 15:55:41 | D12: 19.4 | E12: 19.15 | F12: 19.275 | G12: 20.61 | H12: 20.59 | I12: 43.5 | J12: =AC56 -> 0.11675 | K12: 20.62361198 | L12: 20.60680599 | M12: 1.970572674 | N12: 75.41488083 | O12: =AC60 -> 13.75674444 | Q12: DR % | R12: 13:54:02 | S12: 0 | T12: DR % | U12: 13:58:05 | V12: 0 | W12: DR % | X12: 13:58:05 | Y12: 0 | AC12: 0
A13: 6 | B13: 24.11.16 | C13: 16:45:13 | D13: 19.52 | E13: 19.26 | F13: 19.39 | G13: 20.57 | H13: 20.52 | I13: 43.5 | J13: =AC68 -> 0.1256666667 | K13: 20.6055769 | L13: 20.56278845 | M13: 1.961198691 | N13: 74.97877757 | O13: =AC72 -> 15.34982717
A14: 7 | B14: 24.11.16 | C14: 17:24:44 | D14: 19.8 | E14: 19.55 | F14: 19.675 | G14: 20.61 | H14: 20.58 | I14: 43.3 | J14: =AC80 -> 0.134 | K14: 20.63217698 | L14: 20.60608849 | M14: 1.947766579 | N14: 74.34814613 | O14: =AC84 -> 17.03366512 | Q14: Project: | R14: 24.11
A15: 8 | B15: 24.11.16 | C15: 18:19:16 | D15: 15.91 | E15: 15.71 | F15: 15.81 | G15: 19.98 | H15: 19.87 | I15: 43 | J15: =AC93 -> 0.1156666667 | K15: 20.0549061 | L15: 19.96245305 | M15: 1.818233531 | N15: 67.95822277 | O15: =AC97 -> 14.59193944 | Q15: Date: | R15: 24. listopadu 2016
A16: 9 | B16: 24.11.16 | C16: 18:47:17 | D16: 15.36 | E16: 15.16 | F16: 15.26 | G16: 19.69 | H16: 19.51 | I16: 43 | J16: =AC105 -> 0.127 | K16: 19.81999354 | L16: 19.66499677 | M16: 1.769287753 | N16: 65.42269199 | O16: =AC109 -> 17.40360288 | Q16: Name: | R16: 2
B17: 24.11.16 | C17: 13:43:07 | D17: 19.17 | E17: 18.92 | G17: 20.64 | H17: 20.7 | I17: 43.6
B18: 24.11.16 | C18: 13:43:37 | D18: 19.17 | E18: 18.92 | G18: 20.64 | H18: 20.71 | I18: 43.5 | Q18: Transducer | R18: time | S18: 54T21 | T18: Transducer | U18: time | V18: 54T21
B19: 24.11.16 | C19: 13:44:07 | D19: 19.17 | E19: 18.9 | G19: 20.65 | H19: 20.71 | I19: 43.6 | Q19: Transducer height | R19: 14:19:01 | S19: 0 | T19: Transducer height | U19: 14:23:03 | V19: 0
B20: 24.11.16 | C20: 13:44:37 | D20: 19.17 | E20: 18.9 | G20: 20.65 | H20: 20.72 | I20: 43.6 | Q20: V [m/s] | R20: 14:19:01 | S20: 0.074 | T20: V [m/s] | U20: 14:23:03 | V20: 0.076 | AC20: =AVERAGE(V20,S20) -> 0.075
B21: 24.11.16 | C21: 13:45:07 | D21: 19.16 | E21: 18.9 | G21: 20.66 | H21: 20.72 | I21: 43.7
B22: 24.11.16 | C22: 13:45:37 | D22: 19.17 | E22: 18.9 | G22: 20.66 | H22: 20.73 | I22: 44.2 | Q22: Tu % | R22: 14:19:01 | S22: 56.065 | T22: Tu % | U22: 14:23:03 | V22: 52.804 | AC22: =AVERAGE(V22,S22) -> 54.4345
B23: 24.11.16 | C23: 13:46:07 | D23: 19.16 | E23: 18.9 | G23: 20.66 | H23: 20.73 | I23: 43.5 | Q23: T [C] | R23: 14:19:01 | S23: 20.136 | T23: T [C] | U23: 14:23:03 | V23: 20.199 | AC23: =AVERAGE(V23,S23) -> 20.1675
B24: 24.11.16 | C24: 13:46:37 | D24: 19.16 | E24: 18.9 | G24: 20.67 | H24: 20.74 | I24: 43.3 | Q24: DR % | R24: 14:19:01 | S24: 6.359 | T24: DR % | U24: 14:23:03 | V24: 6.68 | AC24: =dr(AC20,AC22,AC23) -> 6.533238174
B25: 24.11.16 | C25: 13:47:07 | D25: 19.16 | E25: 18.9 | G25: 20.67 | H25: 20.74 | I25: 43.2
B26: 24.11.16 | C26: 13:47:37 | D26: 19.16 | E26: 18.9 | G26: 20.67 | H26: 20.74 | I26: 43.3 | Q26: Project: | R26: 24.11
B27: 24.11.16 | C27: 13:48:07 | D27: 19.16 | E27: 18.9 | G27: 20.67 | H27: 20.74 | I27: 43.3 | Q27: Date: | R27: 24. listopadu 2016
B28: 24.11.16 | C28: 13:48:37 | D28: 19.16 | E28: 18.9 | G28: 20.67 | H28: 20.73 | I28: 43.2 | Q28: Name: | R28: 3
B29: 24.11.16 | C29: 13:49:07 | D29: 19.16 | E29: 18.9 | G29: 20.67 | H29: 20.74 | I29: 43.1 | Q29: V [m/s] | R29: 14:58:13 | S29: 0.078 | T29: V [m/s] | U29: 14:48:45 | V29: 0.079 | AC29: =AVERAGE(S29,V29) -> 0.0785
B30: 24.11.16 | C30: 13:49:37 | D30: 19.16 | E30: 18.9 | G30: 20.67 | H30: 20.74 | I30: 43.1
B31: 24.11.16 | C31: 13:50:07 | D31: 19.16 | E31: 18.9 | G31: 20.67 | H31: 20.74 | I31: 43.1 | Q31: Tu % | R31: 14:58:13 | S31: 58.482 | T31: Tu % | U31: 14:48:45 | V31: 53.391 | AC31: =AVERAGE(S31,V31) -> 55.9365
B32: 24.11.16 | C32: 13:50:37 | D32: 19.15 | E32: 18.9 | G32: 20.67 | H32: 20.74 | I32: 43.1 | Q32: T [C] | R32: 14:58:13 | S32: 20.042 | T32: T [C] | U32: 14:48:45 | V32: 20.055 | AC32: =AVERAGE(S32,V32) -> 20.0485
B33: 24.11.16 | C33: 13:51:07 | D33: 19.15 | E33: 18.9 | G33: 20.67 | H33: 20.73 | I33: 43.1 | J33: 1 | Q33: DR % | R33: 14:58:13 | S33: 7.386 | T33: DR % | U33: 14:48:45 | V33: 7.301 | AC33: =dr(AC29,AC31,AC32) -> 7.322477701
B34: 24.11.16 | C34: 13:51:37 | D34: 19.15 | E34: 18.9 | G34: 20.67 | H34: 20.73 | I34: 43.2
B35: 24.11.16 | C35: 13:52:07 | D35: 19.15 | E35: 18.9 | G35: 20.67 | H35: 20.73 | I35: 43.1
B36: 24.11.16 | C36: 13:52:37 | D36: 19.15 | E36: 18.9 | G36: 20.67 | H36: 20.74 | I36: 43.1
B37: 24.11.16 | C37: 13:53:07 | D37: 19.15 | E37: 18.9 | G37: 20.67 | H37: 20.74 | I37: 43.1
B38: 24.11.16 | C38: 13:53:37 | D38: 19.15 | E38: 18.89 | G38: 20.67 | H38: 20.73 | I38: 43.1 | Q38: Project: | R38: 24.11
B39: 24.11.16 | C39: 13:54:07 | D39: 19.15 | E39: 18.89 | G39: 20.67 | H39: 20.72 | I39: 43.1 | Q39: Date: | R39: 24. listopadu 2016
B40: 24.11.16 | C40: 13:54:37 | D40: 19.15 | E40: 18.89 | G40: 20.67 | H40: 20.72 | I40: 43.1 | Q40: Name: | R40: 4
B41: 24.11.16 | C41: 13:55:07 | D41: 19.15 | E41: 18.89 | G41: 20.67 | H41: 20.72 | I41: 43.1
B42: 24.11.16 | C42: 13:55:37 | D42: 19.15 | E42: 18.89 | G42: 20.67 | H42: 20.72 | I42: 43.2 | Q42: Transducer | R42: time | S42: 54T21 | T42: Transducer | U42: time | W42: Transducer | X42: time
B43: 24.11.16 | C43: 13:56:07 | D43: 19.15 | E43: 18.89 | G43: 20.67 | H43: 20.72 | I43: 43 | Q43: Transducer height | R43: 15:25:10 | S43: 0 | T43: Transducer height | U43: 15:21:05 | V43: 0 | W43: Transducer height | X43: 15:29:06 | Y43: 0
B44: 24.11.16 | C44: 13:56:37 | D44: 19.15 | E44: 18.89 | G44: 20.67 | H44: 20.71 | I44: 43.1 | Q44: V [m/s] | R44: 15:25:10 | S44: 0.113 | T44: V [m/s] | U44: 15:21:05 | V44: 0.094 | W44: V [m/s] | X44: 15:29:06 | Y44: 0.093 | AC44: =AVERAGE(Y44,V44,S44) -> 0.1
B45: 24.11.16 | C45: 13:57:07 | D45: 19.14 | E45: 18.89 | G45: 20.66 | H45: 20.71 | I45: 43
B46: 24.11.16 | C46: 13:57:37 | D46: 19.14 | E46: 18.89 | G46: 20.66 | H46: 20.71 | I46: 43 | Q46: Tu % | R46: 15:25:10 | S46: 49.86 | T46: Tu % | U46: 15:21:05 | V46: 50.484 | W46: Tu % | X46: 15:29:06 | Y46: 58.776 | AC46: =AVERAGE(Y46,V46,S46) -> 53.04
B47: 24.11.16 | C47: 13:58:07 | D47: 19.14 | E47: 18.89 | G47: 20.66 | H47: 20.71 | I47: 43 | Q47: T [C] | R47: 15:25:10 | S47: 19.965 | T47: T [C] | U47: 15:21:05 | V47: 19.969 | W47: T [C] | X47: 15:29:06 | Y47: 19.963 | AC47: =AVERAGE(Y47,V47,S47) -> 19.96566667
B48: 24.11.16 | C48: 13:58:38 | D48: 19.15 | E48: 18.89 | G48: 20.66 | H48: 20.72 | I48: 43.1 | Q48: DR % | R48: 15:25:10 | S48: 13.218 | T48: DR % | U48: 15:21:05 | V48: 9.826 | W48: DR % | X48: 15:29:06 | Y48: 10.315 | AC48: =dr(AC44,AC46,AC47) -> 11.17723807
B49: 24.11.16 | C49: 13:59:08 | D49: 19.14 | E49: 18.89 | G49: 20.66 | H49: 20.72 | I49: 43.2
B50: 24.11.16 | C50: 13:59:38 | D50: 19.14 | E50: 18.89 | G50: 20.66 | H50: 20.72 | I50: 43.1 | Q50: Project: | R50: 24.11
B51: 24.11.16 | C51: 14:00:08 | D51: 19.15 | E51: 18.88 | G51: 20.66 | H51: 20.71 | I51: 43.2 | Q51: Date: | R51: 24. listopadu 2016
B52: 24.11.16 | C52: 14:00:38 | D52: 19.13 | E52: 18.88 | G52: 20.66 | H52: 20.71 | I52: 43.1 | Q52: Remarks: | R52: 5
B53: 24.11.16 | C53: 14:01:08 | D53: 19.11 | E53: 18.87 | G53: 20.66 | H53: 20.72 | I53: 43
B54: 24.11.16 | C54: 14:01:38 | D54: 19.1 | E54: 18.86 | G54: 20.66 | H54: 20.73 | I54: 43 | Q54: Transducer | R54: time | S54: 54T21 | T54: Transducer | U54: time | V54: 54T21 | W54: Transducer | X54: time | Z54: Transducer | AA54: time
B55: 24.11.16 | C55: 14:02:08 | D55: 19.09 | E55: 18.85 | G55: 20.67 | H55: 20.74 | I55: 43 | Q55: Transducer height | R55: 15:45:03 | S55: 0 | T55: Transducer height | U55: 16:09:31 | V55: 0 | W55: Transducer height | X55: 15:53:09 | Y55: 0 | Z55: Transducer height | AA55: 16:05:06 | AB55: 0
B56: 24.11.16 | C56: 14:02:38 | D56: 19.08 | E56: 18.84 | G56: 20.67 | H56: 20.74 | I56: 43 | Q56: V [m/s] | R56: 15:45:03 | S56: 0.127 | T56: V [m/s] | U56: 16:09:31 | V56: 0.108 | W56: V [m/s] | X56: 15:53:09 | Y56: 0.115 | Z56: V [m/s] | AA56: 16:05:06 | AB56: 0.117 | AC56: =AVERAGE(AB56,Y56,V56,S56) -> 0.11675
B57: 24.11.16 | C57: 14:03:08 | D57: 19.08 | E57: 18.84 | G57: 20.67 | H57: 20.74 | I57: 43
B58: 24.11.16 | C58: 14:03:38 | D58: 19.07 | E58: 18.83 | G58: 20.67 | H58: 20.74 | I58: 43 | Q58: Tu % | R58: 15:45:03 | S58: 45.052 | T58: Tu % | U58: 16:09:31 | V58: 53.936 | W58: Tu % | X58: 15:53:09 | Y58: 49.723 | Z58: Tu % | AA58: 16:05:06 | AB58: 44.189 | AC58: =AVERAGE(AB58,Y58,V58,S58) -> 48.225
B59: 24.11.16 | C59: 14:04:08 | D59: 19.07 | E59: 18.82 | G59: 20.67 | H59: 20.74 | I59: 43 | Q59: T [C] | R59: 15:45:03 | S59: 19.86 | T59: T [C] | U59: 16:09:31 | V59: 19.949 | W59: T [C] | X59: 15:53:09 | Y59: 19.898 | Z59: T [C] | AA59: 16:05:06 | AB59: 19.867 | AC59: =AVERAGE(AB59,Y59,V59,S59) -> 19.8935
B60: 24.11.16 | C60: 14:04:38 | D60: 19.07 | E60: 18.82 | G60: 20.67 | H60: 20.74 | I60: 43.1 | Q60: DR % | R60: 15:45:03 | S60: 15.138 | T60: DR % | U60: 16:09:31 | V60: 12.81 | W60: DR % | X60: 15:53:09 | Y60: 13.529 | Z60: DR % | AA60: 16:05:06 | AB60: 13.313 | AC60: =dr(AC56,AC58,AC59) -> 13.75674444
B61: 24.11.16 | C61: 14:05:08 | D61: 19.06 | E61: 18.82 | G61: 20.68 | H61: 20.74 | I61: 43.1
B62: 24.11.16 | C62: 14:05:38 | D62: 19.06 | E62: 18.82 | G62: 20.68 | H62: 20.74 | I62: 43.1 | Q62: Project: | R62: 24.11
B63: 24.11.16 | C63: 14:06:08 | D63: 19.06 | E63: 18.82 | G63: 20.68 | H63: 20.73 | I63: 43.1 | Q63: Date: | R63: 24. listopadu 2016
B64: 24.11.16 | C64: 14:06:38 | D64: 19.06 | E64: 18.81 | G64: 20.68 | H64: 20.73 | I64: 43.1 | Q64: Remarks: | R64: 6
B65: 24.11.16 | C65: 14:07:08 | D65: 19.06 | E65: 18.81 | G65: 20.68 | H65: 20.73 | I65: 43.1
B66: 24.11.16 | C66: 14:07:38 | D66: 19.06 | E66: 18.81 | G66: 20.68 | H66: 20.73 | I66: 43.1 | Q66: Transducer | R66: time | S66: 54T21 | W66: Transducer | X66: time | Z66: Transducer | AA66: time
B67: 24.11.16 | C67: 14:08:08 | D67: 19.06 | E67: 18.81 | G67: 20.68 | H67: 20.73 | I67: 43.1 | Q67: Transducer height | R67: 16:30:18 | S67: 0 | W67: Transducer height | X67: 16:58:01 | Y67: 0 | Z67: Transducer height | AA67: 17:03:04 | AB67: 0
B68: 24.11.16 | C68: 14:08:38 | D68: 19.06 | E68: 18.81 | G68: 20.68 | H68: 20.72 | I68: 43.1 | Q68: V [m/s] | R68: 16:30:18 | S68: 0.122 | W68: V [m/s] | X68: 16:58:01 | Y68: 0.132 | Z68: V [m/s] | AA68: 17:03:04 | AB68: 0.123 | AC68: =AVERAGE(AB68,Y68,S68) -> 0.1256666667
B69: 24.11.16 | C69: 14:09:08 | D69: 19.06 | E69: 18.81 | G69: 20.67 | H69: 20.72 | I69: 43.1
B70: 24.11.16 | C70: 14:09:38 | D70: 19.06 | E70: 18.81 | G70: 20.67 | H70: 20.71 | I70: 43.1 | Q70: Tu % | R70: 16:30:18 | S70: 49.846 | W70: Tu % | X70: 16:58:01 | Y70: 41.722 | Z70: Tu % | AA70: 17:03:04 | AB70: 52.674 | AC70: =AVERAGE(AB70,Y70,S70) -> 48.08066667
B71: 24.11.16 | C71: 14:10:08 | D71: 19.06 | E71: 18.81 | G71: 20.67 | H71: 20.7 | I71: 43.1 | Q71: T [C] | R71: 16:30:18 | S71: 19.828 | W71: T [C] | X71: 16:58:01 | Y71: 19.864 | Z71: T [C] | AA71: 17:03:04 | AB71: 19.858 | AC71: =AVERAGE(AB71,Y71,S71) -> 19.85
B72: 24.11.16 | C72: 14:10:38 | D72: 19.06 | E72: 18.81 | G72: 20.67 | H72: 20.71 | I72: 43.1 | Q72: DR % | R72: 16:30:18 | S72: 14.886 | W72: DR % | X72: 16:58:01 | Y72: 15.459 | Z72: DR % | AA72: 17:03:04 | AB72: 15.498 | AC72: =dr(AC68,AC70,AC71) -> 15.34982717
B73: 24.11.16 | C73: 14:11:08 | D73: 19.06 | E73: 18.81 | G73: 20.67 | H73: 20.71 | I73: 43.1
B74: 24.11.16 | C74: 14:11:38 | D74: 19.06 | E74: 18.81 | G74: 20.67 | H74: 20.71 | I74: 43.1 | Q74: Project: | R74: SETUP2.cfg
B75: 24.11.16 | C75: 14:12:08 | D75: 19.06 | E75: 18.81 | G75: 20.67 | H75: 20.7 | I75: 43.1 | Q75: Date: | R75: 24. listopadu 2016
B76: 24.11.16 | C76: 14:12:38 | D76: 19.06 | E76: 18.81 | G76: 20.67 | H76: 20.7 | I76: 43.1 | Q76: Remarks: | R76: 7
B77: 24.11.16 | C77: 14:13:08 | D77: 19.06 | E77: 18.81 | G77: 20.67 | H77: 20.7 | I77: 43.1
B78: 24.11.16 | C78: 14:13:38 | D78: 19.06 | E78: 18.81 | G78: 20.67 | H78: 20.69 | I78: 43.1 | Q78: Transducer | R78: time | S78: 54T21 | W78: Transducer | X78: time | Z78: Transducer | AA78: time
B79: 24.11.16 | C79: 14:14:08 | D79: 19.07 | E79: 18.82 | G79: 20.67 | H79: 20.69 | I79: 43.1 | Q79: Transducer height | R79: 17:19:16 | S79: 0 | W79: Transducer height | X79: 17:28:10 | Y79: 0 | Z79: Transducer height | AA79: 17:33:03 | AB79: 0
B80: 24.11.16 | C80: 14:14:38 | D80: 19.07 | E80: 18.81 | G80: 20.66 | H80: 20.68 | I80: 43.1 | Q80: V [m/s] | R80: 17:19:16 | S80: 0.139 | W80: V [m/s] | X80: 17:28:10 | Y80: 0.139 | Z80: V [m/s] | AA80: 17:33:03 | AB80: 0.124 | AC80: =AVERAGE(AB80,Y80,S80) -> 0.134
B81: 24.11.16 | C81: 14:15:08 | D81: 19.07 | E81: 18.82 | G81: 20.66 | H81: 20.68 | I81: 43.1
B82: 24.11.16 | C82: 14:15:38 | D82: 19.07 | E82: 18.82 | G82: 20.66 | H82: 20.68 | I82: 43.1 | Q82: Tu % | R82: 17:19:16 | S82: 49.287 | W82: Tu % | X82: 17:28:10 | Y82: 48.073 | Z82: Tu % | AA82: 17:33:03 | AB82: 49.722 | AC82: =AVERAGE(AB82,Y82,S82) -> 49.02733333
B83: 24.11.16 | C83: 14:16:08 | D83: 19.07 | E83: 18.82 | G83: 20.66 | H83: 20.68 | I83: 43.2 | J83: 2 | Q83: T [C] | R83: 17:19:16 | S83: 19.852 | W83: T [C] | X83: 17:28:10 | Y83: 19.856 | Z83: T [C] | AA83: 17:33:03 | AB83: 19.687 | AC83: =AVERAGE(AB83,Y83,S83) -> 19.79833333
B84: 24.11.16 | C84: 14:16:38 | D84: 19.07 | E84: 18.82 | G84: 20.66 | H84: 20.68 | I84: 43.2 | Q84: DR % | R84: 17:19:16 | S84: 17.925 | W84: DR % | X84: 17:28:10 | Y84: 17.666 | Z84: DR % | AA84: 17:33:03 | AB84: 15.396 | AC84: =dr(AC80,AC82,AC83) -> 17.03366512
B85: 24.11.16 | C85: 14:17:08 | D85: 19.07 | E85: 18.82 | G85: 20.66 | H85: 20.69 | I85: 43.1
B86: 24.11.16 | C86: 14:17:38 | D86: 19.07 | E86: 18.83 | G86: 20.66 | H86: 20.69 | I86: 43.1 | Q86: ZIMA
B87: 24.11.16 | C87: 14:18:08 | D87: 19.08 | E87: 18.83 | G87: 20.66 | H87: 20.69 | I87: 43.2 | Q87: Project: | R87: SETUP2.cfg
B88: 24.11.16 | C88: 14:18:38 | D88: 19.08 | E88: 18.83 | G88: 20.66 | H88: 20.7 | I88: 43.1 | Q88: Date: | R88: 24. listopadu 2016
B89: 24.11.16 | C89: 14:19:08 | D89: 19.08 | E89: 18.83 | G89: 20.67 | H89: 20.7 | I89: 43.2 | Q89: Remarks: | R89: 8
B90: 24.11.16 | C90: 14:19:38 | D90: 19.08 | E90: 18.83 | G90: 20.67 | H90: 20.7 | I90: 43.3
B91: 24.11.16 | C91: 14:20:08 | D91: 19.08 | E91: 18.84 | G91: 20.67 | H91: 20.7 | I91: 43.3 | Q91: Transducer | R91: time | S91: 54T21 | T91: Transducer | U91: time | W91: Transducer | X91: time
B92: 24.11.16 | C92: 14:20:38 | D92: 19.08 | E92: 18.84 | G92: 20.67 | H92: 20.7 | I92: 43.5 | Q92: Transducer height | R92: 18:16:57 | S92: 0 | T92: Transducer height | U92: 18:20:47 | V92: 0 | W92: Transducer height | X92: 18:24:46 | Y92: 0
B93: 24.11.16 | C93: 14:21:08 | D93: 19.08 | E93: 18.84 | G93: 20.67 | H93: 20.71 | I93: 43.2 | Q93: V [m/s] | R93: 18:16:57 | S93: 0.107 | T93: V [m/s] | U93: 18:20:47 | V93: 0.124 | W93: V [m/s] | X93: 18:24:46 | Y93: 0.116 | AC93: =AVERAGE(Y93,V93,S93) -> 0.1156666667
B94: 24.11.16 | C94: 14:21:38 | D94: 19.08 | E94: 18.83 | G94: 20.67 | H94: 20.71 | I94: 43.1
B95: 24.11.16 | C95: 14:22:08 | D95: 19.08 | E95: 18.84 | G95: 20.67 | H95: 20.71 | I95: 43.2 | Q95: Tu % | R95: 18:16:57 | S95: 52.996 | T95: Tu % | U95: 18:20:47 | V95: 45.374 | W95: Tu % | X95: 18:24:46 | Y95: 55.238 | AC95: =AVERAGE(Y95,V95,S95) -> 51.20266667
B96: 24.11.16 | C96: 14:22:38 | D96: 19.08 | E96: 18.84 | G96: 20.67 | H96: 20.71 | I96: 43.2 | Q96: T [C] | R96: 18:16:57 | S96: 19.23 | T96: T [C] | U96: 18:20:47 | V96: 19.192 | W96: T [C] | X96: 18:24:46 | Y96: 19.151 | AC96: =AVERAGE(Y96,V96,S96) -> 19.191
B97: 24.11.16 | C97: 14:23:08 | D97: 19.09 | E97: 18.84 | G97: 20.67 | H97: 20.71 | I97: 43.1 | Q97: DR % | R97: 18:16:57 | S97: 13.1 | T97: DR % | U97: 18:20:47 | V97: 15.377 | W97: DR % | X97: 18:24:46 | Y97: 15.2 | AC97: =dr(AC93,AC95,AC96) -> 14.59193944
B98: 24.11.16 | C98: 14:23:38 | D98: 19.09 | E98: 18.84 | G98: 20.67 | H98: 20.71 | I98: 43.2
B99: 24.11.16 | C99: 14:24:08 | D99: 19.09 | E99: 18.84 | G99: 20.67 | H99: 20.71 | I99: 43.2 | Q99: Project: | R99: SETUP2.cfg
B100: 24.11.16 | C100: 14:24:38 | D100: 19.08 | E100: 18.84 | G100: 20.67 | H100: 20.71 | I100: 43.2 | Q100: Date: | R100: 24. listopadu 2016
B101: 24.11.16 | C101: 14:25:08 | D101: 19.07 | E101: 18.83 | G101: 20.67 | H101: 20.71 | I101: 43.2 | Q101: Remarks: | R101: 9
B102: 24.11.16 | C102: 14:25:38 | D102: 19.06 | E102: 18.82 | G102: 20.67 | H102: 20.7 | I102: 43.2
B103: 24.11.16 | C103: 14:26:08 | D103: 19.06 | E103: 18.82 | G103: 20.67 | H103: 20.69 | I103: 43.2 | T103: Transducer | U103: time | W103: Transducer | X103: time
B104: 24.11.16 | C104: 14:26:38 | D104: 19.06 | E104: 18.81 | G104: 20.67 | H104: 20.68 | I104: 43.2 | T104: Transducer height | U104: 18:48:38 | V104: 0 | W104: Transducer height | X104: 18:52:55 | Y104: 0
B105: 24.11.16 | C105: 14:27:08 | D105: 19.06 | E105: 18.81 | G105: 20.67 | H105: 20.68 | I105: 43.2 | T105: V [m/s] | U105: 18:48:38 | V105: 0.126 | W105: V [m/s] | X105: 18:52:55 | Y105: 0.128 | AC105: =AVERAGE(Y105,V105,S105) -> 0.127
B106: 24.11.16 | C106: 14:27:38 | D106: 19.05 | E106: 18.81 | G106: 20.66 | H106: 20.67 | I106: 43.2
B107: 24.11.16 | C107: 14:28:08 | D107: 19.06 | E107: 18.81 | G107: 20.66 | H107: 20.67 | I107: 43.2 | T107: Tu % | U107: 18:48:38 | V107: 54.766 | W107: Tu % | X107: 18:52:55 | Y107: 49.741 | AC107: =AVERAGE(Y107,V107) -> 52.2535
B108: 24.11.16 | C108: 14:28:38 | D108: 19.06 | E108: 18.81 | G108: 20.65 | H108: 20.66 | I108: 43.2 | T108: T [C] | U108: 18:48:38 | V108: 18.772 | W108: T [C] | X108: 18:52:55 | Y108: 18.734 | AC108: =AVERAGE(Y108,V108) -> 18.753
B109: 24.11.16 | C109: 14:29:09 | D109: 19.06 | E109: 18.81 | G109: 20.65 | H109: 20.65 | I109: 43.2 | T109: DR % | U109: 18:48:38 | V109: 17.301 | W109: DR % | X109: 18:52:55 | Y109: 17.409 | AC109: =dr(AC105,AC107,AC108) -> 17.40360288
B110: 24.11.16 | C110: 14:29:39 | D110: 19.06 | E110: 18.81 | G110: 20.65 | H110: 20.64 | I110: 43.3
B111: 24.11.16 | C111: 14:30:09 | D111: 19.06 | E111: 18.82 | G111: 20.64 | H111: 20.64 | I111: 43.2
B112: 24.11.16 | C112: 14:30:39 | D112: 19.06 | E112: 18.81 | G112: 20.64 | H112: 20.63 | I112: 43.3
B113: 24.11.16 | C113: 14:31:09 | D113: 19.06 | E113: 18.82 | G113: 20.63 | H113: 20.63 | I113: 43.3
B114: 24.11.16 | C114: 14:31:39 | D114: 19.07 | E114: 18.82 | G114: 20.63 | H114: 20.63 | I114: 43.3
B115: 24.11.16 | C115: 14:32:09 | D115: 19.07 | E115: 18.82 | G115: 20.63 | H115: 20.62 | I115: 43.3
B116: 24.11.16 | C116: 14:32:39 | D116: 19.07 | E116: 18.82 | G116: 20.63 | H116: 20.62 | I116: 43.3
B117: 24.11.16 | C117: 14:33:09 | D117: 19.07 | E117: 18.82 | G117: 20.62 | H117: 20.62 | I117: 43.3
B118: 24.11.16 | C118: 14:33:39 | D118: 19.08 | E118: 18.82 | G118: 20.62 | H118: 20.61 | I118: 43.3
B119: 24.11.16 | C119: 14:34:09 | D119: 19.08 | E119: 18.83 | G119: 20.62 | H119: 20.61 | I119: 43.3
B120: 24.11.16 | C120: 14:34:39 | D120: 19.08 | E120: 18.83 | G120: 20.61 | H120: 20.61 | I120: 43.3
B121: 24.11.16 | C121: 14:35:09 | D121: 19.08 | E121: 18.83 | G121: 20.61 | H121: 20.61 | I121: 43.3
B122: 24.11.16 | C122: 14:35:39 | D122: 19.09 | E122: 18.83 | G122: 20.61 | H122: 20.6 | I122: 43.3
B123: 24.11.16 | C123: 14:36:09 | D123: 19.09 | E123: 18.84 | G123: 20.61 | H123: 20.6 | I123: 43.3
B124: 24.11.16 | C124: 14:36:39 | D124: 19.09 | E124: 18.84 | G124: 20.6 | H124: 20.59 | I124: 43.3
B125: 24.11.16 | C125: 14:37:09 | D125: 19.09 | E125: 18.84 | G125: 20.6 | H125: 20.59 | I125: 43.5
B126: 24.11.16 | C126: 14:37:39 | D126: 19.1 | E126: 18.85 | G126: 20.6 | H126: 20.6 | I126: 43.4
B127: 24.11.16 | C127: 14:38:09 | D127: 19.1 | E127: 18.85 | G127: 20.6 | H127: 20.59 | I127: 43.8
B128: 24.11.16 | C128: 14:38:39 | D128: 19.1 | E128: 18.85 | G128: 20.6 | H128: 20.59 | I128: 43.5
B129: 24.11.16 | C129: 14:39:09 | D129: 19.1 | E129: 18.85 | G129: 20.6 | H129: 20.58 | I129: 43.5 | J129: 3
B130: 24.11.16 | C130: 14:39:39 | D130: 19.1 | E130: 18.85 | G130: 20.6 | H130: 20.59 | I130: 43.3
B131: 24.11.16 | C131: 14:40:09 | D131: 19.1 | E131: 18.85 | G131: 20.6 | H131: 20.59 | I131: 43.3
B132: 24.11.16 | C132: 14:40:39 | D132: 19.11 | E132: 18.86 | G132: 20.6 | H132: 20.6 | I132: 43.3
B133: 24.11.16 | C133: 14:41:09 | D133: 19.11 | E133: 18.86 | G133: 20.6 | H133: 20.6 | I133: 43.3
B134: 24.11.16 | C134: 14:41:39 | D134: 19.11 | E134: 18.86 | G134: 20.6 | H134: 20.6 | I134: 43.3
B135: 24.11.16 | C135: 14:42:09 | D135: 19.11 | E135: 18.86 | G135: 20.6 | H135: 20.6 | I135: 43.3
B136: 24.11.16 | C136: 14:42:39 | D136: 19.11 | E136: 18.86 | G136: 20.6 | H136: 20.6 | I136: 43.3
B137: 24.11.16 | C137: 14:43:09 | D137: 19.12 | E137: 18.86 | G137: 20.6 | H137: 20.6 | I137: 43.3
B138: 24.11.16 | C138: 14:43:39 | D138: 19.12 | E138: 18.87 | G138: 20.6 | H138: 20.59 | I138: 43.3
B139: 24.11.16 | C139: 14:44:09 | D139: 19.12 | E139: 18.87 | G139: 20.59 | H139: 20.59 | I139: 43.3
B140: 24.11.16 | C140: 14:44:39 | D140: 19.12 | E140: 18.87 | G140: 20.59 | H140: 20.59 | I140: 43.3
B141: 24.11.16 | C141: 14:45:09 | D141: 19.12 | E141: 18.87 | G141: 20.59 | H141: 20.59 | I141: 43.4
B142: 24.11.16 | C142: 14:45:39 | D142: 19.12 | E142: 18.87 | G142: 20.59 | H142: 20.59 | I142: 43.5
B143: 24.11.16 | C143: 14:46:09 | D143: 19.13 | E143: 18.88 | G143: 20.59 | H143: 20.59 | I143: 43.5
B144: 24.11.16 | C144: 14:46:39 | D144: 19.13 | E144: 18.88 | G144: 20.6 | H144: 20.6 | I144: 43.4
B145: 24.11.16 | C145: 14:47:09 | D145: 19.13 | E145: 18.88 | G145: 20.6 | H145: 20.6 | I145: 43.4
B146: 24.11.16 | C146: 14:47:39 | D146: 19.13 | E146: 18.88 | G146: 20.6 | H146: 20.6 | I146: 43.4
B147: 24.11.16 | C147: 14:48:09 | D147: 19.13 | E147: 18.88 | G147: 20.6 | H147: 20.6 | I147: 43.3
B148: 24.11.16 | C148: 14:48:39 | D148: 19.13 | E148: 18.88 | G148: 20.6 | H148: 20.6 | I148: 43.3
B149: 24.11.16 | C149: 14:49:09 | D149: 19.13 | E149: 18.88 | G149: 20.6 | H149: 20.6 | I149: 43.3
B150: 24.11.16 | C150: 14:49:39 | D150: 19.14 | E150: 18.89 | G150: 20.6 | H150: 20.6 | I150: 43.3
B151: 24.11.16 | C151: 14:50:09 | D151: 19.14 | E151: 18.89 | G151: 20.6 | H151: 20.6 | I151: 43.3
B152: 24.11.16 | C152: 14:50:39 | D152: 19.14 | E152: 18.89 | G152: 20.6 | H152: 20.6 | I152: 43.3
B153: 24.11.16 | C153: 14:51:09 | D153: 19.14 | E153: 18.89 | G153: 20.6 | H153: 20.6 | I153: 43.3
B154: 24.11.16 | C154: 14:51:39 | D154: 19.14 | E154: 18.89 | G154: 20.6 | H154: 20.61 | I154: 43.3
B155: 24.11.16 | C155: 14:52:09 | D155: 19.14 | E155: 18.89 | G155: 20.6 | H155: 20.61 | I155: 43.3
B156: 24.11.16 | C156: 14:52:39 | D156: 19.15 | E156: 18.89 | G156: 20.6 | H156: 20.61 | I156: 43.3
B157: 24.11.16 | C157: 14:53:09 | D157: 19.14 | E157: 18.89 | G157: 20.6 | H157: 20.61 | I157: 43.3
B158: 24.11.16 | C158: 14:53:39 | D158: 19.14 | E158: 18.89 | G158: 20.6 | H158: 20.6 | I158: 43.3
B159: 24.11.16 | C159: 14:54:09 | D159: 19.15 | E159: 18.89 | G159: 20.6 | H159: 20.6 | I159: 43.3
B160: 24.11.16 | C160: 14:54:39 | D160: 19.15 | E160: 18.9 | G160: 20.6 | H160: 20.61 | I160: 43.3
B161: 24.11.16 | C161: 14:55:09 | D161: 19.15 | E161: 18.9 | G161: 20.6 | H161: 20.61 | I161: 43.3
B162: 24.11.16 | C162: 14:55:39 | D162: 19.15 | E162: 18.9 | G162: 20.6 | H162: 20.62 | I162: 43.3
B163: 24.11.16 | C163: 14:56:09 | D163: 19.15 | E163: 18.9 | G163: 20.61 | H163: 20.62 | I163: 43.3
B164: 24.11.16 | C164: 14:56:39 | D164: 19.15 | E164: 18.9 | G164: 20.61 | H164: 20.62 | I164: 43.3
B165: 24.11.16 | C165: 14:57:09 | D165: 19.15 | E165: 18.9 | G165: 20.61 | H165: 20.63 | I165: 43.3
B166: 24.11.16 | C166: 14:57:39 | D166: 19.15 | E166: 18.9 | G166: 20.61 | H166: 20.63 | I166: 43.3
B167: 24.11.16 | C167: 14:58:09 | D167: 19.15 | E167: 18.9 | G167: 20.62 | H167: 20.63 | I167: 43.3
B168: 24.11.16 | C168: 14:58:39 | D168: 19.15 | E168: 18.9 | G168: 20.62 | H168: 20.63 | I168: 43.2
B169: 24.11.16 | C169: 14:59:09 | D169: 19.15 | E169: 18.9 | G169: 20.62 | H169: 20.63 | I169: 43.3
B170: 24.11.16 | C170: 14:59:40 | D170: 19.15 | E170: 18.9 | G170: 20.62 | H170: 20.62 | I170: 43.3
B171: 24.11.16 | C171: 15:00:10 | D171: 19.15 | E171: 18.9 | G171: 20.62 | H171: 20.62 | I171: 43.2
B172: 24.11.16 | C172: 15:00:40 | D172: 19.16 | E172: 18.9 | G172: 20.62 | H172: 20.62 | I172: 43.3
B173: 24.11.16 | C173: 15:01:10 | D173: 19.16 | E173: 18.9 | G173: 20.62 | H173: 20.62 | I173: 43.3
B174: 24.11.16 | C174: 15:01:40 | D174: 19.15 | E174: 18.9 | G174: 20.62 | H174: 20.63 | I174: 43.3
B175: 24.11.16 | C175: 15:02:10 | D175: 19.15 | E175: 18.9 | G175: 20.62 | H175: 20.63 | I175: 43.3
B176: 24.11.16 | C176: 15:02:40 | D176: 19.15 | E176: 18.9 | G176: 20.62 | H176: 20.62 | I176: 43.3
B177: 24.11.16 | C177: 15:03:10 | D177: 19.15 | E177: 18.9 | G177: 20.62 | H177: 20.62 | I177: 43.3
B178: 24.11.16 | C178: 15:03:40 | D178: 19.15 | E178: 18.9 | G178: 20.62 | H178: 20.61 | I178: 43.3
B179: 24.11.16 | C179: 15:04:10 | D179: 19.16 | E179: 18.9 | G179: 20.62 | H179: 20.61 | I179: 43.3
B180: 24.11.16 | C180: 15:04:40 | D180: 19.16 | E180: 18.9 | G180: 20.62 | H180: 20.61 | I180: 43.3
B181: 24.11.16 | C181: 15:05:10 | D181: 19.16 | E181: 18.9 | G181: 20.62 | H181: 20.61 | I181: 43.3
B182: 24.11.16 | C182: 15:05:40 | D182: 19.16 | E182: 18.9 | G182: 20.61 | H182: 20.6 | I182: 43.3
B183: 24.11.16 | C183: 15:06:10 | D183: 19.17 | E183: 18.9 | G183: 20.61 | H183: 20.6 | I183: 43.3
B184: 24.11.16 | C184: 15:06:40 | D184: 19.17 | E184: 18.92 | G184: 20.61 | H184: 20.6 | I184: 43.3
B185: 24.11.16 | C185: 15:07:10 | D185: 19.17 | E185: 18.92 | G185: 20.61 | H185: 20.59 | I185: 43.3
B186: 24.11.16 | C186: 15:07:40 | D186: 19.18 | E186: 18.92 | G186: 20.6 | H186: 20.58 | I186: 43.3
B187: 24.11.16 | C187: 15:08:10 | D187: 19.18 | E187: 18.93 | G187: 20.6 | H187: 20.57 | I187: 43.3
B188: 24.11.16 | C188: 15:08:40 | D188: 19.18 | E188: 18.93 | G188: 20.6 | H188: 20.57 | I188: 43.3
B189: 24.11.16 | C189: 15:09:10 | D189: 19.19 | E189: 18.93 | G189: 20.59 | H189: 20.58 | I189: 43.3
B190: 24.11.16 | C190: 15:09:40 | D190: 19.19 | E190: 18.93 | G190: 20.59 | H190: 20.58 | I190: 43.3
B191: 24.11.16 | C191: 15:10:10 | D191: 19.19 | E191: 18.94 | G191: 20.59 | H191: 20.58 | I191: 43.3
B192: 24.11.16 | C192: 15:10:40 | D192: 19.2 | E192: 18.94 | G192: 20.59 | H192: 20.57 | I192: 43.3
B193: 24.11.16 | C193: 15:11:10 | D193: 19.2 | E193: 18.95 | G193: 20.59 | H193: 20.57 | I193: 43.3
B194: 24.11.16 | C194: 15:11:40 | D194: 19.2 | E194: 18.95 | G194: 20.59 | H194: 20.57 | I194: 43.3
B195: 24.11.16 | C195: 15:12:10 | D195: 19.2 | E195: 18.95 | G195: 20.59 | H195: 20.57 | I195: 43.3
B196: 24.11.16 | C196: 15:12:40 | D196: 19.21 | E196: 18.95 | G196: 20.58 | H196: 20.57 | I196: 43.3
B197: 24.11.16 | C197: 15:13:10 | D197: 19.21 | E197: 18.95 | G197: 20.58 | H197: 20.57 | I197: 43.3
B198: 24.11.16 | C198: 15:13:40 | D198: 19.21 | E198: 18.95 | G198: 20.58 | H198: 20.57 | I198: 43.3
B199: 24.11.16 | C199: 15:14:10 | D199: 19.21 | E199: 18.95 | G199: 20.58 | H199: 20.56 | I199: 43.3
B200: 24.11.16 | C200: 15:14:40 | D200: 19.21 | E200: 18.96 | G200: 20.58 | H200: 20.56 | I200: 43.4
B201: 24.11.16 | C201: 15:15:10 | D201: 19.21 | E201: 18.96 | G201: 20.58 | H201: 20.57 | I201: 43.4
... 445 more rows

Sheet 25.11.
K1: Oděv | L1: Metabolizmus | M1: Práce venku
K2: [clo] | L2: [met] | M2: [met] | Q2: Project: | R2: 25.11
K3: 1 | L3: 1.2 | M3: 0 | Q3: Date: | R3: 25. listopadu 2016
Q4: Remarks: | R4: 10
D6: Tp1 | E6: Tp2 | F6: Tp | G6: Tk1 | H6: Ta | I6: RH | J6: v | K6: Tr | L6: To | M6: PMV | N6: PPD | O6: DR | Q6: Transducer | R6: time | S6: 54T21 | T6: Transducer | U6: time | V6: 54T21 | W6: Transducer | X6: time | Y6: 54T21
D7: [°C] | E7: [°C] | F7: [°C] | G7: [°C] | H7: [°C] | I7: [%] | J7: [m/s] | K7: [°C] | L7: [°C] | M7: [1] | N7: [%] | O7: [%] | Q7: Transducer height | R7: 16:09:40 | S7: 0,0 | T7: Transducer height | U7: 16:14:18 | V7: 0 | W7: Transducer height | X7: 16:18:47 | Y7: 0
A8: 10 | B8: 25.11.16 | C8: 16:14:32 | D8: 17.63 | E8: 17.44 | F8: =AVERAGEA(D8,E8) -> 17.535 | G8: 20.29 | H8: 20.29 | I8: 39.8 | J8: =AC8 -> 0.07733333333 | K8: =((G8+273)^4+2.5*10^8*J8^0.6*(G8-H8))^(1/4)-273 -> 20.29 | L8: =TOPERA(H8,K8,J8) -> 20.29 | M8: =PMVx($K$3,$L$3,$M$3,H8,K8,J8,I8,0) -> 1.533322528 | N8: =PPD(M8) -> 52.71289401 | O8: =AC12 -> 7.518880195 | Q8: V [m/s] | R8: 16:09:40 | S8: 0.078 | T8: V [m/s] | U8: 16:14:18 | V8: 0.072 | W8: V [m/s] | X8: 16:18:47 | Y8: 0.082 | AC8: =AVERAGE(Y8,V8,S8) -> 0.07733333333
A9: 11 | B9: 25.11.16 | C9: 16:49:33 | D9: 17.81 | E9: 17.56 | F9: =AVERAGEA(D9,E9) -> 17.685 | G9: 20.15 | H9: 20.08 | I9: 40.1 | J9: =AC20 -> 0.0905 | K9: =((G9+273)^4+2.5*10^8*J9^0.6*(G9-H9))^(1/4)-273 -> 20.19107771 | L9: =TOPERA(H9,K9,J9) -> 20.13553886 | M9: =PMVx($K$3,$L$3,$M$3,H9,K9,J9,I9,0) -> 1.536996773 | N9: =PPD(M9) -> 52.91301568 | O9: =AC24 -> 10.17354337
A10: 12 | B10: 25.11.16 | C10: 17:22:34 | D10: 18.1 | E10: 17.84 | F10: =AVERAGEA(D10,E10) -> 17.97 | G10: 20.01 | H10: 19.92 | I10: 40.1 | J10: =AC32 -> 0.12675 | K10: =((G10+273)^4+2.5*10^8*J10^0.6*(G10-H10))^(1/4)-273 -> 20.07472918 | L10: =TOPERA(H10,K10,J10) -> 19.99736459 | M10: =PMVx($K$3,$L$3,$M$3,H10,K10,J10,I10,0) -> 1.515500443 | N10: =PPD(M10) -> 51.742782 | O10: =AC36 -> 15.87766515 | Q10: Tu % | R10: 16:09:40 | S10: 62 | T10: Tu % | U10: 16:14:18 | V10: 62.125 | W10: Tu % | X10: 16:18:47 | Y10: 65.856 | AC10: =AVERAGE(Y10,V10,S10) -> 63.327
A11: 13 | B11: 25.11.16 | C11: 18:07:05 | D11: 18.55 | E11: 18.3 | F11: =AVERAGEA(D11,E11) -> 18.425 | G11: 19.91 | H11: 19.83 | I11: 40.2 | J11: =AC44 -> 0.16 | K11: =((G11+273)^4+2.5*10^8*J11^0.6*(G11-H11))^(1/4)-273 -> 19.97623569 | L11: =TOPERA(H11,K11,J11) -> 19.90311785 | M11: =PMVx($K$3,$L$3,$M$3,H11,K11,J11,I11,0) -> 1.398527184 | N11: =PPD(M11) -> 45.43332523 | O11: =AC48 -> 22.55985473 | Q11: T [C] | R11: 16:09:40 | S11: 20 | T11: T [C] | U11: 16:14:18 | V11: 19.762 | W11: T [C] | X11: 16:18:47 | Y11: 19.801 | AC11: =AVERAGE(Y11,V11,S11) -> 19.85433333
Q12: DR % | R12: 16:09:40 | S12: 8 | T12: DR % | U12: 16:14:18 | V12: 6.364 | W12: DR % | X12: 16:18:47 | Y12: 8.662 | AC12: =dr(AC8,AC10,AC11) -> 7.518880195
Q14: Project: | R14: 25.11
Q15: Date: | R15: 25. listopadu 2016
Q16: Name: | R16: 11
Q18: Transducer | R18: time | S18: 54T21 | T18: Transducer | U18: time | V18: 54T21 | W18: Transducer | X18: time | Y18: 54T21 | Z18: Transducer | AA18: time | AB18: 54T21
Q19: Transducer height | R19: 16:43:10 | S19: 0 | T19: Transducer height | U19: 16:47:24 | V19: 0 | W19: Transducer height | X19: 16:51:39 | Y19: 0 | Z19: Transducer height | AA19: 16:55:08 | AB19: 0
Q20: V [m/s] | R20: 16:43:10 | S20: 0.084 | T20: V [m/s] | U20: 16:47:24 | V20: 0.076 | W20: V [m/s] | X20: 16:51:39 | Y20: 0.103 | Z20: V [m/s] | AA20: 16:55:08 | AB20: 0.099 | AC20: =AVERAGE(AB20,Y20,V20,S20) -> 0.0905
B22: 25.11.16 | C22: 16:09:31 | D22: 17.64 | E22: 17.47 | G22: 20.28 | H22: 20.29 | I22: 39.9 | J22: 10 | Q22: Tu % | R22: 16:43:10 | S22: 66.747 | T22: Tu % | U22: 16:47:24 | V22: 59.855 | W22: Tu % | X22: 16:51:39 | Y22: 58.462 | Z22: Tu % | AA22: 16:55:08 | AB22: 48.589 | AC22: =AVERAGE(AB22,Y22,V22,S22) -> 58.41325
B23: 25.11.16 | C23: 16:10:01 | D23: 17.65 | E23: 17.46 | G23: 20.28 | H23: 20.28 | I23: 39.9 | Q23: T [C] | R23: 16:43:10 | S23: 19.476 | T23: T [C] | U23: 16:47:24 | V23: 19.444 | W23: T [C] | X23: 16:51:39 | Y23: 19.413 | Z23: T [C] | AA23: 16:55:08 | AB23: 19.365 | AC23: =AVERAGE(AB23,Y23,V23,S23) -> 19.4245
B24: 25.11.16 | C24: 16:10:31 | D24: 17.65 | E24: 17.46 | G24: 20.28 | H24: 20.28 | I24: 39.9 | Q24: DR % | R24: 16:43:10 | S24: 9.32 | T24: DR % | U24: 16:47:24 | V24: 7.299 | W24: DR % | X24: 16:51:39 | Y24: 12.605 | Z24: DR % | AA24: 16:55:08 | AB24: 11.068 | AC24: =dr(AC20,AC22,AC23) -> 10.17354337
B25: 25.11.16 | C25: 16:11:01 | D25: 17.63 | E25: 17.46 | G25: 20.28 | H25: 20.29 | I25: 40
B26: 25.11.16 | C26: 16:11:31 | D26: 17.63 | E26: 17.47 | G26: 20.28 | H26: 20.3 | I26: 40 | Q26: Project: | R26: 25.11
B27: 25.11.16 | C27: 16:12:01 | D27: 17.63 | E27: 17.46 | G27: 20.29 | H27: 20.3 | I27: 39.9 | Q27: Date: | R27: 25. listopadu 2016
B28: 25.11.16 | C28: 16:12:31 | D28: 17.63 | E28: 17.45 | G28: 20.29 | H28: 20.3 | I28: 39.8 | Q28: Name: | R28: 12
B29: 25.11.16 | C29: 16:13:02 | D29: 17.63 | E29: 17.45 | G29: 20.29 | H29: 20.3 | I29: 39.9
B30: 25.11.16 | C30: 16:13:32 | D30: 17.63 | E30: 17.45 | G30: 20.29 | H30: 20.3 | I30: 39.9 | Q30: Transducer | R30: time | S30: 54T21 | T30: Transducer | U30: time | V30: 54T21 | W30: Transducer | X30: time | Y30: 54T21 | Z30: Transducer | AA30: time | AB30: 54T21
B31: 25.11.16 | C31: 16:14:02 | D31: 17.63 | E31: 17.45 | G31: 20.29 | H31: 20.29 | I31: 39.9 | Q31: Transducer height | R31: 17:16:16 | S31: 0 | T31: Transducer height | U31: 17:19:48 | V31: 0 | W31: Transducer height | X31: 17:28:10 | Y31: 0 | Z31: Transducer height | AA31: 17:32:32 | AB31: 0
B32: 25.11.16 | C32: 16:14:32 | D32: 17.63 | E32: 17.44 | G32: 20.29 | H32: 20.29 | I32: 39.8 | Q32: V [m/s] | R32: 17:16:16 | S32: 0.124 | T32: V [m/s] | U32: 17:19:48 | V32: 0.13 | W32: V [m/s] | X32: 17:28:10 | Y32: 0.125 | Z32: V [m/s] | AA32: 17:32:32 | AB32: 0.128 | AC32: =AVERAGE(AB32,Y32,V32,S32) -> 0.12675
B33: 25.11.16 | C33: 16:15:02 | D33: 17.62 | E33: 17.44 | G33: 20.29 | H33: 20.29 | I33: 39.9
B34: 25.11.16 | C34: 16:15:32 | D34: 17.62 | E34: 17.45 | G34: 20.29 | H34: 20.29 | I34: 39.8 | Q34: Tu % | R34: 17:16:16 | S34: 45.486 | T34: Tu % | U34: 17:19:48 | V34: 41.419 | W34: Tu % | X34: 17:28:10 | Y34: 45.658 | Z34: Tu % | AA34: 17:32:32 | AB34: 49.911 | AC34: =AVERAGE(AB34,Y34,V34,S34) -> 45.6185
B35: 25.11.16 | C35: 16:16:02 | D35: 17.62 | E35: 17.43 | G35: 20.29 | H35: 20.29 | I35: 39.8 | Q35: T [C] | R35: 17:16:16 | S35: 19.256 | T35: T [C] | U35: 17:19:48 | V35: 19.247 | W35: T [C] | X35: 17:28:10 | Y35: 19.192 | Z35: T [C] | AA35: 17:32:32 | AB35: 19.215 | AC35: =AVERAGE(AB35,Y35,V35,S35) -> 19.2275
B36: 25.11.16 | C36: 16:16:32 | D36: 17.61 | E36: 17.44 | G36: 20.29 | H36: 20.28 | I36: 39.9 | Q36: DR % | R36: 17:16:16 | S36: 15.295 | T36: DR % | U36: 17:19:48 | V36: 15.848 | W36: DR % | X36: 17:28:10 | Y36: 15.695 | Z36: DR % | AA36: 17:32:32 | AB36: 16.695 | AC36: =dr(AC32,AC34,AC35) -> 15.87766515
B37: 25.11.16 | C37: 16:17:02 | D37: 17.62 | E37: 17.44 | G37: 20.29 | H37: 20.28 | I37: 39.8
B38: 25.11.16 | C38: 16:17:32 | D38: 17.62 | E38: 17.43 | G38: 20.29 | H38: 20.29 | I38: 39.8 | Q38: Project: | R38: 25.11
B39: 25.11.16 | C39: 16:18:02 | D39: 17.62 | E39: 17.43 | G39: 20.29 | H39: 20.29 | I39: 39.8 | Q39: Date: | R39: 25. listopadu 2016
B40: 25.11.16 | C40: 16:18:32 | D40: 17.62 | E40: 17.43 | G40: 20.3 | H40: 20.3 | I40: 39.8 | Q40: Name: | R40: 13
B41: 25.11.16 | C41: 16:19:02 | D41: 17.61 | E41: 17.43 | G41: 20.3 | H41: 20.29 | I41: 39.8
B42: 25.11.16 | C42: 16:19:32 | D42: 17.61 | E42: 17.42 | G42: 20.3 | H42: 20.28 | I42: 39.8 | Q42: Transducer | R42: time | S42: 54T21 | T42: Transducer | U42: time | V42: 54T21 | W42: Transducer | X42: time | Y42: 54T21
B43: 25.11.16 | C43: 16:20:02 | D43: 17.61 | E43: 17.42 | G43: 20.3 | H43: 20.29 | I43: 39.8 | Q43: Transducer height | R43: 18:03:00 | S43: 0 | T43: Transducer height | U43: 18:07:31 | V43: 0 | W43: Transducer height | X43: 18:14:36 | Y43: 0
B44: 25.11.16 | C44: 16:20:32 | D44: 17.61 | E44: 17.42 | G44: 20.3 | H44: 20.29 | I44: 39.9 | Q44: V [m/s] | R44: 18:03:00 | S44: 0.146 | T44: V [m/s] | U44: 18:07:31 | V44: 0.173 | W44: V [m/s] | X44: 18:14:36 | Y44: 0.161 | AC44: =AVERAGE(Y44,V44,S44) -> 0.16
B45: 25.11.16 | C45: 16:21:02 | D45: 17.52 | E45: 17.34 | G45: 20.3 | H45: 20.29 | I45: 39.7
B46: 25.11.16 | C46: 16:21:32 | D46: 17.48 | E46: 17.28 | G46: 20.3 | H46: 20.28 | I46: 39.7 | Q46: Tu % | R46: 18:03:00 | S46: 48.379 | T46: Tu % | U46: 18:07:31 | V46: 48.319 | W46: Tu % | X46: 18:14:36 | Y46: 45.067 | AC46: =AVERAGE(Y46,V46,S46) -> 47.255
B47: 25.11.16 | C47: 16:22:02 | D47: 17.45 | E47: 17.23 | G47: 20.3 | H47: 20.27 | I47: 39.7 | Q47: T [C] | R47: 18:03:00 | S47: 19.066 | T47: T [C] | U47: 18:07:31 | V47: 19.074 | W47: T [C] | X47: 18:14:36 | Y47: 19.069 | AC47: =AVERAGE(Y47,V47,S47) -> 19.06966667
B48: 25.11.16 | C48: 16:22:32 | D48: 17.43 | E48: 17.2 | G48: 20.29 | H48: 20.25 | I48: 39.7 | Q48: DR % | R48: 18:03:00 | S48: 20.184 | T48: DR % | U48: 18:07:31 | V48: 25.42 | W48: DR % | X48: 18:14:36 | Y48: 22.294 | AC48: =dr(AC44,AC46,AC47) -> 22.55985473
B49: 25.11.16 | C49: 16:23:02 | D49: 17.41 | E49: 17.19 | G49: 20.28 | H49: 20.22 | I49: 39.8
B50: 25.11.16 | C50: 16:23:32 | D50: 17.41 | E50: 17.18 | G50: 20.28 | H50: 20.19 | I50: 39.8
B51: 25.11.16 | C51: 16:24:02 | D51: 17.4 | E51: 17.16 | G51: 20.26 | H51: 20.18 | I51: 39.8
B52: 25.11.16 | C52: 16:24:32 | D52: 17.4 | E52: 17.16 | G52: 20.26 | H52: 20.18 | I52: 39.8
B53: 25.11.16 | C53: 16:25:02 | D53: 17.38 | E53: 17.17 | G53: 20.25 | H53: 20.17 | I53: 39.8
B54: 25.11.16 | C54: 16:25:32 | D54: 17.4 | E54: 17.17 | G54: 20.24 | H54: 20.16 | I54: 39.8
B55: 25.11.16 | C55: 16:26:02 | D55: 17.41 | E55: 17.18 | G55: 20.23 | H55: 20.16 | I55: 39.8
B56: 25.11.16 | C56: 16:26:32 | D56: 17.42 | E56: 17.19 | G56: 20.23 | H56: 20.14 | I56: 39.9
B57: 25.11.16 | C57: 16:27:02 | D57: 17.43 | E57: 17.2 | G57: 20.22 | H57: 20.12 | I57: 40.1
B58: 25.11.16 | C58: 16:27:32 | D58: 17.44 | E58: 17.2 | G58: 20.21 | H58: 20.11 | I58: 39.9
B59: 25.11.16 | C59: 16:28:02 | D59: 17.46 | E59: 17.21 | G59: 20.2 | H59: 20.1 | I59: 39.9
B60: 25.11.16 | C60: 16:28:32 | D60: 17.46 | E60: 17.23 | G60: 20.19 | H60: 20.09 | I60: 39.8
B61: 25.11.16 | C61: 16:29:02 | D61: 17.48 | E61: 17.24 | G61: 20.19 | H61: 20.08 | I61: 39.8
B62: 25.11.16 | C62: 16:29:32 | D62: 17.49 | E62: 17.25 | G62: 20.18 | H62: 20.08 | I62: 39.9
B63: 25.11.16 | C63: 16:30:02 | D63: 17.5 | E63: 17.27 | G63: 20.17 | H63: 20.08 | I63: 39.9
B64: 25.11.16 | C64: 16:30:32 | D64: 17.51 | E64: 17.28 | G64: 20.17 | H64: 20.08 | I64: 39.9
B65: 25.11.16 | C65: 16:31:02 | D65: 17.52 | E65: 17.29 | G65: 20.17 | H65: 20.09 | I65: 39.9
B66: 25.11.16 | C66: 16:31:32 | D66: 17.54 | E66: 17.31 | G66: 20.16 | H66: 20.08 | I66: 39.9
B67: 25.11.16 | C67: 16:32:02 | D67: 17.55 | E67: 17.32 | G67: 20.16 | H67: 20.08 | I67: 39.9
B68: 25.11.16 | C68: 16:32:32 | D68: 17.56 | E68: 17.33 | G68: 20.16 | H68: 20.07 | I68: 39.9
B69: 25.11.16 | C69: 16:33:02 | D69: 17.57 | E69: 17.34 | G69: 20.15 | H69: 20.07 | I69: 39.9
B70: 25.11.16 | C70: 16:33:32 | D70: 17.59 | E70: 17.35 | G70: 20.15 | H70: 20.06 | I70: 39.9
B71: 25.11.16 | C71: 16:34:02 | D71: 17.6 | E71: 17.36 | G71: 20.15 | H71: 20.06 | I71: 39.9
B72: 25.11.16 | C72: 16:34:32 | D72: 17.61 | E72: 17.37 | G72: 20.15 | H72: 20.06 | I72: 39.9
B73: 25.11.16 | C73: 16:35:02 | D73: 17.62 | E73: 17.38 | G73: 20.15 | H73: 20.06 | I73: 39.9
B74: 25.11.16 | C74: 16:35:32 | D74: 17.63 | E74: 17.4 | G74: 20.14 | H74: 20.06 | I74: 39.9
B75: 25.11.16 | C75: 16:36:02 | D75: 17.64 | E75: 17.41 | G75: 20.14 | H75: 20.04 | I75: 40.1
B76: 25.11.16 | C76: 16:36:32 | D76: 17.65 | E76: 17.42 | G76: 20.14 | H76: 20.04 | I76: 40
B77: 25.11.16 | C77: 16:37:02 | D77: 17.66 | E77: 17.43 | G77: 20.14 | H77: 20.06 | I77: 40
B78: 25.11.16 | C78: 16:37:32 | D78: 17.67 | E78: 17.44 | G78: 20.14 | H78: 20.06 | I78: 40
B79: 25.11.16 | C79: 16:38:02 | D79: 17.68 | E79: 17.45 | G79: 20.13 | H79: 20.06 | I79: 40
B80: 25.11.16 | C80: 16:38:32 | D80: 17.68 | E80: 17.46 | G80: 20.13 | H80: 20.06 | I80: 40
B81: 25.11.16 | C81: 16:39:02 | D81: 17.7 | E81: 17.47 | G81: 20.13 | H81: 20.06 | I81: 39.9
B82: 25.11.16 | C82: 16:39:32 | D82: 17.7 | E82: 17.48 | G82: 20.13 | H82: 20.06 | I82: 39.9
B83: 25.11.16 | C83: 16:40:02 | D83: 17.71 | E83: 17.48 | G83: 20.13 | H83: 20.06 | I83: 40
B84: 25.11.16 | C84: 16:40:32 | D84: 17.72 | E84: 17.49 | G84: 20.13 | H84: 20.06 | I84: 40.5
B85: 25.11.16 | C85: 16:41:02 | D85: 17.73 | E85: 17.49 | G85: 20.14 | H85: 20.07 | I85: 39.9
B86: 25.11.16 | C86: 16:41:32 | D86: 17.74 | E86: 17.5 | G86: 20.14 | H86: 20.07 | I86: 39.9
B87: 25.11.16 | C87: 16:42:02 | D87: 17.74 | E87: 17.51 | G87: 20.14 | H87: 20.07 | I87: 39.9
B88: 25.11.16 | C88: 16:42:33 | D88: 17.75 | E88: 17.51 | G88: 20.14 | H88: 20.07 | I88: 39.9
B89: 25.11.16 | C89: 16:43:03 | D89: 17.76 | E89: 17.52 | G89: 20.14 | H89: 20.07 | I89: 39.9 | J89: 11
B90: 25.11.16 | C90: 16:43:33 | D90: 17.76 | E90: 17.53 | G90: 20.14 | H90: 20.07 | I90: 39.9
B91: 25.11.16 | C91: 16:44:03 | D91: 17.78 | E91: 17.54 | G91: 20.14 | H91: 20.07 | I91: 39.9
B92: 25.11.16 | C92: 16:44:33 | D92: 17.79 | E92: 17.54 | G92: 20.14 | H92: 20.07 | I92: 39.9
B93: 25.11.16 | C93: 16:45:03 | D93: 17.79 | E93: 17.55 | G93: 20.14 | H93: 20.07 | I93: 40.1
B94: 25.11.16 | C94: 16:45:33 | D94: 17.8 | E94: 17.55 | G94: 20.14 | H94: 20.07 | I94: 39.9
B95: 25.11.16 | C95: 16:46:03 | D95: 17.8 | E95: 17.55 | G95: 20.14 | H95: 20.07 | I95: 39.9
B96: 25.11.16 | C96: 16:46:33 | D96: 17.8 | E96: 17.55 | G96: 20.15 | H96: 20.07 | I96: 39.9
B97: 25.11.16 | C97: 16:47:03 | D97: 17.8 | E97: 17.56 | G97: 20.15 | H97: 20.07 | I97: 39.9
B98: 25.11.16 | C98: 16:47:33 | D98: 17.81 | E98: 17.56 | G98: 20.15 | H98: 20.07 | I98: 39.9
B99: 25.11.16 | C99: 16:48:03 | D99: 17.81 | E99: 17.56 | G99: 20.15 | H99: 20.07 | I99: 40
B100: 25.11.16 | C100: 16:48:33 | D100: 17.81 | E100: 17.56 | G100: 20.15 | H100: 20.07 | I100: 40.1
B101: 25.11.16 | C101: 16:49:03 | D101: 17.81 | E101: 17.56 | G101: 20.15 | H101: 20.08 | I101: 40.8
B102: 25.11.16 | C102: 16:49:33 | D102: 17.81 | E102: 17.56 | G102: 20.15 | H102: 20.08 | I102: 40.1
B103: 25.11.16 | C103: 16:50:03 | D103: 17.81 | E103: 17.56 | G103: 20.16 | H103: 20.08 | I103: 40
B104: 25.11.16 | C104: 16:50:33 | D104: 17.81 | E104: 17.56 | G104: 20.16 | H104: 20.08 | I104: 40
B105: 25.11.16 | C105: 16:51:03 | D105: 17.81 | E105: 17.56 | G105: 20.16 | H105: 20.08 | I105: 40
B106: 25.11.16 | C106: 16:51:33 | D106: 17.81 | E106: 17.56 | G106: 20.16 | H106: 20.08 | I106: 40
B107: 25.11.16 | C107: 16:52:03 | D107: 17.82 | E107: 17.56 | G107: 20.16 | H107: 20.08 | I107: 40
B108: 25.11.16 | C108: 16:52:33 | D108: 17.81 | E108: 17.56 | G108: 20.16 | H108: 20.08 | I108: 40.1
B109: 25.11.16 | C109: 16:53:03 | D109: 17.82 | E109: 17.57 | G109: 20.16 | H109: 20.08 | I109: 40
B110: 25.11.16 | C110: 16:53:33 | D110: 17.81 | E110: 17.57 | G110: 20.16 | H110: 20.07 | I110: 40
B111: 25.11.16 | C111: 16:54:03 | D111: 17.82 | E111: 17.57 | G111: 20.16 | H111: 20.07 | I111: 39.9
B112: 25.11.16 | C112: 16:54:33 | D112: 17.81 | E112: 17.57 | G112: 20.15 | H112: 20.07 | I112: 39.9
B113: 25.11.16 | C113: 16:55:03 | D113: 17.81 | E113: 17.57 | G113: 20.15 | H113: 20.07 | I113: 39.9
B114: 25.11.16 | C114: 16:55:33 | D114: 17.81 | E114: 17.56 | G114: 20.15 | H114: 20.08 | I114: 40
B115: 25.11.16 | C115: 16:56:03 | D115: 17.81 | E115: 17.56 | G115: 20.15 | H115: 20.09 | I115: 40.1
B116: 25.11.16 | C116: 16:56:33 | D116: 17.81 | E116: 17.57 | G116: 20.15 | H116: 20.09 | I116: 40
B117: 25.11.16 | C117: 16:57:03 | D117: 17.8 | E117: 17.55 | G117: 20.16 | H117: 20.09 | I117: 39.9
B118: 25.11.16 | C118: 16:57:33 | D118: 17.78 | E118: 17.53 | G118: 20.16 | H118: 20.08 | I118: 39.9
B119: 25.11.16 | C119: 16:58:03 | D119: 17.78 | E119: 17.52 | G119: 20.15 | H119: 20.06 | I119: 39.9
B120: 25.11.16 | C120: 16:58:33 | D120: 17.78 | E120: 17.52 | G120: 20.15 | H120: 20.04 | I120: 39.9
B121: 25.11.16 | C121: 16:59:03 | D121: 17.79 | E121: 17.53 | G121: 20.14 | H121: 20.02 | I121: 40
B122: 25.11.16 | C122: 16:59:33 | D122: 17.79 | E122: 17.54 | G122: 20.14 | H122: 20.01 | I122: 39.9
B123: 25.11.16 | C123: 17:00:03 | D123: 17.8 | E123: 17.55 | G123: 20.13 | H123: 20 | I123: 40
B124: 25.11.16 | C124: 17:00:33 | D124: 17.81 | E124: 17.55 | G124: 20.12 | H124: 19.99 | I124: 40
B125: 25.11.16 | C125: 17:01:03 | D125: 17.82 | E125: 17.56 | G125: 20.11 | H125: 19.98 | I125: 40
B126: 25.11.16 | C126: 17:01:33 | D126: 17.84 | E126: 17.58 | G126: 20.11 | H126: 19.97 | I126: 40
B127: 25.11.16 | C127: 17:02:03 | D127: 17.84 | E127: 17.59 | G127: 20.1 | H127: 19.96 | I127: 40
B128: 25.11.16 | C128: 17:02:33 | D128: 17.85 | E128: 17.6 | G128: 20.09 | H128: 19.96 | I128: 40
B129: 25.11.16 | C129: 17:03:03 | D129: 17.86 | E129: 17.61 | G129: 20.09 | H129: 19.95 | I129: 40
B130: 25.11.16 | C130: 17:03:33 | D130: 17.87 | E130: 17.62 | G130: 20.08 | H130: 19.95 | I130: 40
B131: 25.11.16 | C131: 17:04:03 | D131: 17.89 | E131: 17.63 | G131: 20.07 | H131: 19.95 | I131: 40
B132: 25.11.16 | C132: 17:04:33 | D132: 17.89 | E132: 17.64 | G132: 20.07 | H132: 19.94 | I132: 40
B133: 25.11.16 | C133: 17:05:03 | D133: 17.9 | E133: 17.65 | G133: 20.06 | H133: 19.94 | I133: 40
B134: 25.11.16 | C134: 17:05:33 | D134: 17.91 | E134: 17.66 | G134: 20.06 | H134: 19.94 | I134: 40
B135: 25.11.16 | C135: 17:06:03 | D135: 17.92 | E135: 17.67 | G135: 20.04 | H135: 19.93 | I135: 40.1
B136: 25.11.16 | C136: 17:06:33 | D136: 17.93 | E136: 17.68 | G136: 20.04 | H136: 19.94 | I136: 40.1
B137: 25.11.16 | C137: 17:07:03 | D137: 17.94 | E137: 17.69 | G137: 20.04 | H137: 19.93 | I137: 40.1
B138: 25.11.16 | C138: 17:07:33 | D138: 17.95 | E138: 17.7 | G138: 20.03 | H138: 19.94 | I138: 40.1
B139: 25.11.16 | C139: 17:08:03 | D139: 17.96 | E139: 17.71 | G139: 20.03 | H139: 19.94 | I139: 40.1
B140: 25.11.16 | C140: 17:08:33 | D140: 17.96 | E140: 17.71 | G140: 20.03 | H140: 19.94 | I140: 40.1
B141: 25.11.16 | C141: 17:09:03 | D141: 17.97 | E141: 17.72 | G141: 20.03 | H141: 19.93 | I141: 40.2
B142: 25.11.16 | C142: 17:09:33 | D142: 17.98 | E142: 17.73 | G142: 20.03 | H142: 19.94 | I142: 41.3
B143: 25.11.16 | C143: 17:10:03 | D143: 17.99 | E143: 17.74 | G143: 20.03 | H143: 19.96 | I143: 40.3
B144: 25.11.16 | C144: 17:10:33 | D144: 18 | E144: 17.75 | G144: 20.03 | H144: 19.96 | I144: 40.2
B145: 25.11.16 | C145: 17:11:03 | D145: 18.01 | E145: 17.75 | G145: 20.03 | H145: 19.95 | I145: 40.1
B146: 25.11.16 | C146: 17:11:33 | D146: 18.01 | E146: 17.76 | G146: 20.03 | H146: 19.94 | I146: 40.1
B147: 25.11.16 | C147: 17:12:03 | D147: 18.02 | E147: 17.78 | G147: 20.03 | H147: 19.93 | I147: 40.1
B148: 25.11.16 | C148: 17:12:33 | D148: 18.02 | E148: 17.78 | G148: 20.03 | H148: 19.94 | I148: 40.1
B149: 25.11.16 | C149: 17:13:04 | D149: 18.03 | E149: 17.79 | G149: 20.03 | H149: 19.94 | I149: 40.1 | J149: 12
B150: 25.11.16 | C150: 17:13:34 | D150: 18.03 | E150: 17.79 | G150: 20.03 | H150: 19.95 | I150: 40.6
B151: 25.11.16 | C151: 17:14:04 | D151: 18.04 | E151: 17.8 | G151: 20.03 | H151: 19.95 | I151: 40.2
B152: 25.11.16 | C152: 17:14:34 | D152: 18.04 | E152: 17.8 | G152: 20.03 | H152: 19.96 | I152: 40.1
B153: 25.11.16 | C153: 17:15:04 | D153: 18.05 | E153: 17.81 | G153: 20.03 | H153: 19.96 | I153: 40.1
B154: 25.11.16 | C154: 17:15:34 | D154: 18.05 | E154: 17.81 | G154: 20.03 | H154: 19.96 | I154: 40.1
B155: 25.11.16 | C155: 17:16:04 | D155: 18.05 | E155: 17.81 | G155: 20.03 | H155: 19.96 | I155: 40.1
B156: 25.11.16 | C156: 17:16:34 | D156: 18.06 | E156: 17.82 | G156: 20.03 | H156: 19.96 | I156: 40.1
B157: 25.11.16 | C157: 17:17:04 | D157: 18.06 | E157: 17.82 | G157: 20.03 | H157: 19.96 | I157: 40.2
B158: 25.11.16 | C158: 17:17:34 | D158: 18.06 | E158: 17.82 | G158: 20.03 | H158: 19.96 | I158: 40.2
B159: 25.11.16 | C159: 17:18:04 | D159: 18.07 | E159: 17.83 | G159: 20.03 | H159: 19.95 | I159: 40.1
B160: 25.11.16 | C160: 17:18:34 | D160: 18.07 | E160: 17.83 | G160: 20.03 | H160: 19.95 | I160: 40.1
B161: 25.11.16 | C161: 17:19:04 | D161: 18.07 | E161: 17.83 | G161: 20.03 | H161: 19.96 | I161: 40.1
B162: 25.11.16 | C162: 17:19:34 | D162: 18.08 | E162: 17.84 | G162: 20.03 | H162: 19.95 | I162: 40.1
B163: 25.11.16 | C163: 17:20:04 | D163: 18.08 | E163: 17.84 | G163: 20.03 | H163: 19.95 | I163: 40.1
B164: 25.11.16 | C164: 17:20:34 | D164: 18.08 | E164: 17.84 | G164: 20.03 | H164: 19.94 | I164: 40.1
B165: 25.11.16 | C165: 17:21:04 | D165: 18.08 | E165: 17.84 | G165: 20.02 | H165: 19.94 | I165: 40.2
B166: 25.11.16 | C166: 17:21:34 | D166: 18.09 | E166: 17.84 | G166: 20.02 | H166: 19.93 | I166: 40.2
B167: 25.11.16 | C167: 17:22:04 | D167: 18.09 | E167: 17.84 | G167: 20.02 | H167: 19.92 | I167: 40.1
B168: 25.11.16 | C168: 17:22:34 | D168: 18.1 | E168: 17.84 | G168: 20.01 | H168: 19.92 | I168: 40.1
B169: 25.11.16 | C169: 17:23:04 | D169: 18.1 | E169: 17.85 | G169: 20.01 | H169: 19.92 | I169: 40.1
B170: 25.11.16 | C170: 17:23:34 | D170: 18.11 | E170: 17.86 | G170: 20.02 | H170: 19.92 | I170: 40.1
B171: 25.11.16 | C171: 17:24:04 | D171: 18.11 | E171: 17.86 | G171: 20.02 | H171: 19.93 | I171: 40.1
B172: 25.11.16 | C172: 17:24:34 | D172: 18.11 | E172: 17.86 | G172: 20.02 | H172: 19.93 | I172: 40.1
B173: 25.11.16 | C173: 17:25:04 | D173: 18.11 | E173: 17.86 | G173: 20.02 | H173: 19.94 | I173: 40.1
B174: 25.11.16 | C174: 17:25:34 | D174: 18.11 | E174: 17.86 | G174: 20.01 | H174: 19.93 | I174: 40.4
B175: 25.11.16 | C175: 17:26:04 | D175: 18.11 | E175: 17.86 | G175: 20.01 | H175: 19.92 | I175: 40.2
B176: 25.11.16 | C176: 17:26:34 | D176: 18.11 | E176: 17.86 | G176: 20.01 | H176: 19.92 | I176: 40.2
B177: 25.11.16 | C177: 17:27:04 | D177: 18.11 | E177: 17.86 | G177: 20 | H177: 19.92 | I177: 40.2
B178: 25.11.16 | C178: 17:27:34 | D178: 18.11 | E178: 17.86 | G178: 20 | H178: 19.92 | I178: 40.1
B179: 25.11.16 | C179: 17:28:04 | D179: 18.11 | E179: 17.86 | G179: 20 | H179: 19.92 | I179: 40.1
B180: 25.11.16 | C180: 17:28:34 | D180: 18.11 | E180: 17.86 | G180: 20 | H180: 19.93 | I180: 40.1
B181: 25.11.16 | C181: 17:29:04 | D181: 18.12 | E181: 17.86 | G181: 20 | H181: 19.93 | I181: 40.1
B182: 25.11.16 | C182: 17:29:34 | D182: 18.12 | E182: 17.87 | G182: 20 | H182: 19.92 | I182: 40.2
B183: 25.11.16 | C183: 17:30:04 | D183: 18.12 | E183: 17.87 | G183: 20 | H183: 19.92 | I183: 40.2
B184: 25.11.16 | C184: 17:30:34 | D184: 18.12 | E184: 17.87 | G184: 20 | H184: 19.92 | I184: 40.2
B185: 25.11.16 | C185: 17:31:04 | D185: 18.12 | E185: 17.87 | G185: 20 | H185: 19.92 | I185: 40.1
B186: 25.11.16 | C186: 17:31:34 | D186: 18.13 | E186: 17.88 | G186: 20.01 | H186: 19.92 | I186: 40.1
B187: 25.11.16 | C187: 17:32:04 | D187: 18.13 | E187: 17.88 | G187: 20.01 | H187: 19.93 | I187: 40.1
B188: 25.11.16 | C188: 17:32:34 | D188: 18.13 | E188: 17.89 | G188: 20.01 | H188: 19.93 | I188: 40.1
B189: 25.11.16 | C189: 17:33:04 | D189: 18.13 | E189: 17.89 | G189: 20.01 | H189: 19.93 | I189: 40.1
B190: 25.11.16 | C190: 17:33:34 | D190: 18.13 | E190: 17.88 | G190: 20 | H190: 19.93 | I190: 40.1
B191: 25.11.16 | C191: 17:34:04 | D191: 18.13 | E191: 17.88 | G191: 20 | H191: 19.93 | I191: 40.3
B192: 25.11.16 | C192: 17:34:34 | D192: 18.13 | E192: 17.88 | G192: 20 | H192: 19.93 | I192: 40.2
B193: 25.11.16 | C193: 17:35:04 | D193: 18.14 | E193: 17.88 | G193: 20 | H193: 19.93 | I193: 40.1
B194: 25.11.16 | C194: 17:35:34 | D194: 18.16 | E194: 17.89 | G194: 19.99 | H194: 19.92 | I194: 40.1
B195: 25.11.16 | C195: 17:36:04 | D195: 18.17 | E195: 17.9 | G195: 19.99 | H195: 19.9 | I195: 40.2
B196: 25.11.16 | C196: 17:36:34 | D196: 18.19 | E196: 17.92 | G196: 19.99 | H196: 19.88 | I196: 40.2
B197: 25.11.16 | C197: 17:37:04 | D197: 18.2 | E197: 17.93 | G197: 19.98 | H197: 19.88 | I197: 40.2
B198: 25.11.16 | C198: 17:37:34 | D198: 18.21 | E198: 17.95 | G198: 19.97 | H198: 19.86 | I198: 40.2
B199: 25.11.16 | C199: 17:38:04 | D199: 18.23 | E199: 17.97 | G199: 19.96 | H199: 19.85 | I199: 40.2
B200: 25.11.16 | C200: 17:38:34 | D200: 18.25 | E200: 17.99 | G200: 19.96 | H200: 19.85 | I200: 40.2
B201: 25.11.16 | C201: 17:39:04 | D201: 18.26 | E201: 18.01 | G201: 19.96 | H201: 19.84 | I201: 40.2
B202: 25.11.16 | C202: 17:39:34 | D202: 18.28 | E202: 18.02 | G202: 19.95 | H202: 19.83 | I202: 40.2
B203: 25.11.16 | C203: 17:40:04 | D203: 18.3 | E203: 18.04 | G203: 19.94 | H203: 19.82 | I203: 40.2
B204: 25.11.16 | C204: 17:40:34 | D204: 18.32 | E204: 18.06 | G204: 19.93 | H204: 19.81 | I204: 40.3
... 84 more rows

Sheet 29.11.
K1: Oděv | L1: Metabolizmus | M1: Práce venku
K2: [clo] | L2: [met] | M2: [met]
K3: 1 | L3: 1.2 | M3: 0
Q4: Project: | R4: 29.11
Q5: Date: | R5: 29. listopadu 2016
D6: Tp1 | E6: Tp2 | F6: Tp | G6: Tk1 | H6: Ta | I6: RH | J6: v | K6: Tr | L6: To | M6: PMV | N6: PPD | O6: DR | Q6: Name: | R6: 14 | AC6: Průměr
D7: [°C] | E7: [°C] | F7: [°C] | G7: [°C] | H7: [°C] | I7: [%] | J7: [m/s] | K7: [°C] | L7: [°C] | M7: [1] | N7: [%] | O7: [%] | Q7: V [m/s] | R7: 11:50:36 | S7: 0.218 | T7: V [m/s] | U7: 11:53:38 | V7: 0.207 | W7: V [m/s] | X7: 11:56:39 | Y7: 0.218 | Z7: V [m/s] | AA7: 11:59:41 | AB7: 0.219 | AC7: =AVERAGE(AB7,Y7,V7,S7) -> 0.2155
A8: 14 | B8: 29.11.16 | C8: 11:55:25 | D8: 17.78 | E8: 17.5 | F8: =AVERAGEA(D8,E8) -> 17.64 | G8: 18.99 | H8: 18.92 | I8: 28.8 | J8: =AC7 -> 0.2155 | K8: =((G8+273)^4+2.5*10^8*J8^0.6*(G8-H8))^(1/4)-273 -> 19.05994979 | L8: =TOPERA(H8,K8,J8) -> 18.98479017 | M8: =PMVx($K$3,$L$3,$M$3,H8,K8,J8,I8,0) -> -0.06319614241 | N8: =PPD(M8) -> 5.082687472 | O8: =AC11 -> 30.47852306
A9: 15 | B9: 29.11.16 | C9: 12:39:56 | D9: 18.4 | E9: 18.14 | F9: =AVERAGEA(D9,E9) -> 18.27 | G9: 19.31 | H9: 19.26 | I9: 27.8 | J9: =AC16 -> 0.21725 | K9: 19.36004761 | L9: 19.30623036 | M9: -0.1147639631 | N9: =PPD(M9) -> 5.272801587 | O9: =AC20 -> 30.42092792 | Q9: Tu % | R9: 11:50:36 | S9: 33.112 | T9: Tu % | U9: 11:53:38 | V9: 35.507 | W9: Tu % | X9: 11:56:39 | Y9: 35.336 | Z9: Tu % | AA9: 11:59:41 | AB9: 32.41 | AC9: =AVERAGE(AB9,Y9,V9,S9) -> 34.09125
A10: 16 | B10: 29.11.16 | C10: 13:29:28 | D10: 17.65 | E10: 17.41 | F10: 17.53 | G10: 19.09 | H10: 19 | I10: 27.5 | J10: =AC25 -> 0.2345 | K10: 19.18450339 | L10: 19.0837277 | M10: -0.2151288764 | N10: =PPD(M10) -> 5.959967622 | O10: =AC29 -> 35.91237731 | Q10: T [C] | R10: 11:50:36 | S10: 18.114 | T10: T [C] | U10: 11:53:38 | V10: 18.105 | W10: T [C] | X10: 11:56:39 | Y10: 18.137 | Z10: T [C] | AA10: 11:59:41 | AB10: 18.165 | AC10: =AVERAGE(AB10,Y10,V10,S10) -> 18.13025
A11: 17 | B11: 29.11.16 | C11: 14:43:00 | D11: 18.25 | E11: 17.98 | F11: 18.115 | G11: 19.14 | H11: 19.07 | I11: 26.9 | J11: =AC34 -> 0.20225 | K11: 19.20723388 | L11: 19.13446228 | M11: -0.1927420496 | N11: 5.770269537 | O11: =AC38 -> 31.36246872 | Q11: DR % | R11: 11:50:36 | S11: 30.602 | T11: DR % | U11: 11:53:38 | V11: 29.541 | W11: DR % | X11: 11:56:39 | Y11: 31.377 | Z11: DR % | AA11: 11:59:41 | AB11: 30.31 | AC11: =dr(AC7,AC9,AC10) -> 30.47852306
A12: 18 | B12: 29.11.16 | C12: 15:41:32 | D12: 22.16 | E12: 21.89 | F12: 22.025 | G12: 20.32 | H12: 20.44 | I12: 25.2 | J12: =AC79 -> 0.18075 | K12: 20.21345824 | L12: 20.32672912 | M12: -0.1246612672 | N12: =PPD(M12) -> 5.321917321 | O12: =AC83 -> 22.94945661
A13: 19 | B13: 29.11.16 | C13: 16:17:03 | D13: 21.96 | E13: 21.68 | F13: 21.82 | G13: 20.4 | H13: 20.5 | I13: 25.3 | J13: =AC70 -> 0.1545 | K13: 20.3192698 | L13: 20.4096349 | M13: -0.05011403531 | N13: 5.051993435 | O13: =AC74 -> 18.74019402 | Q13: Project: | R13: 29.11
A14: 20 | B14: 29.11.16 | C14: 16:49:04 | D14: 21.84 | E14: 21.56 | F14: 21.7 | G14: 20.34 | H14: 20.42 | I14: 25.4 | J14: =AC61 -> 0.16275 | K14: 20.2733321 | L14: 20.34666605 | M14: -0.06928056067 | N14: 5.099379546 | O14: =AC65 -> 19.84995926 | Q14: Date: | R14: 29. listopadu 2016
A15: 21 | B15: 29.11.16 | C15: 17:22:35 | D15: 22.09 | E15: 21.79 | F15: 21.94 | G15: 20.27 | H15: 20.38 | I15: 25.6 | J15: =AC52 -> 0.13725 | K15: 20.18717505 | L15: 20.28358753 | M15: 0.00670096277 | N15: 5.000929514 | O15: =AC56 -> 15.92665499 | Q15: Name: | R15: 15
A16: 22 | B16: 29.11.16 | C16: 17:58:36 | D16: 22.66 | E16: 22.36 | F16: 22.51 | G16: 20.32 | H16: 20.45 | I16: 25.7 | J16: =AC43 -> 0.13825 | K16: 20.22173119 | L16: 20.3358656 | M16: 0.02247276659 | N16: 5.010454512 | O16: =AC47 -> 15.86755578 | Q16: V [m/s] | R16: 12:36:51 | S16: 0.202 | T16: V [m/s] | U16: 12:39:53 | V16: 0.223 | W16: V [m/s] | X16: 12:42:54 | Y16: 0.22 | Z16: V [m/s] | AA16: 12:45:56 | AB16: 0.224 | AC16: =AVERAGE(AB16,Y16,V16,S16) -> 0.21725
Q18: Tu % | R18: 12:36:51 | S18: 42.975 | T18: Tu % | U18: 12:39:53 | V18: 34.012 | W18: Tu % | X18: 12:42:54 | Y18: 29.842 | Z18: Tu % | AA18: 12:45:56 | AB18: 32.853 | AC18: =AVERAGE(AB18,Y18,V18,S18) -> 34.9205
Q19: T [C] | R19: 12:36:51 | S19: 18.498 | T19: T [C] | U19: 12:39:53 | V19: 18.479 | W19: T [C] | X19: 12:42:54 | Y19: 18.509 | Z19: T [C] | AA19: 12:45:56 | AB19: 18.506 | AC19: =AVERAGE(AB19,Y19,V19,S19) -> 18.498
Q20: DR % | R20: 12:36:51 | S20: 30.579 | T20: DR % | U20: 12:39:53 | V20: 31.055 | W20: DR % | X20: 12:42:54 | Y20: 28.686 | Z20: DR % | AA20: 12:45:56 | AB20: 30.762 | AC20: =dr(AC16,AC18,AC19) -> 30.42092792
Q22: Project: | R22: 29.11
Q23: Date: | R23: 29. listopadu 2016
Q24: Name: | R24: 16
Q25: V [m/s] | R25: 13:26:22 | S25: 0.243 | T25: V [m/s] | U25: 13:29:24 | V25: 0.224 | W25: V [m/s] | X25: 13:32:25 | Y25: 0.24 | Z25: V [m/s] | AA25: 13:35:27 | AB25: 0.231 | AC25: =AVERAGE(AB25,Y25,V25,S25) -> 0.2345
Q27: Tu % | R27: 13:26:22 | S27: 35.77 | T27: Tu % | U27: 13:29:24 | V27: 37.484 | W27: Tu % | X27: 13:32:25 | Y27: 36.156 | Z27: Tu % | AA27: 13:35:27 | AB27: 44.294 | AC27: =AVERAGE(AB27,Y27,V27,S27) -> 38.426
Q28: T [C] | R28: 13:26:22 | S28: 18.227 | T28: T [C] | U28: 13:29:24 | V28: 18.208 | W28: T [C] | X28: 13:32:25 | Y28: 18.151 | Z28: T [C] | AA28: 13:35:27 | AB28: 18.142 | AC28: =AVERAGE(AB28,Y28,V28,S28) -> 18.182
Q29: DR % | R29: 13:26:22 | S29: 36.121 | T29: DR % | U29: 13:29:24 | V29: 33.386 | W29: DR % | X29: 13:32:25 | Y29: 35.961 | Z29: DR % | AA29: 13:35:27 | AB29: 38.046 | AC29: =dr(AC25,AC27,AC28) -> 35.91237731
Q31: Project: | R31: 29.11
Q32: Date: | R32: 29. listopadu 2016 | T32: 17
Q33: Name: | R33: 17
Q34: V [m/s] | R34: 14:40:25 | S34: 0.224 | T34: V [m/s] | U34: 14:43:27 | V34: 0.194 | W34: V [m/s] | X34: 14:46:28 | Y34: 0.205 | Z34: V [m/s] | AA34: 14:49:30 | AB34: 0.186 | AC34: =AVERAGE(AB34,Y34,V34,S34) -> 0.20225
B36: 29.11.16 | C36: 11:48:54 | D36: 17.69 | E36: 17.41 | G36: 18.93 | H36: 18.86 | I36: 29.1 | J36: 14 | Q36: Tu % | R36: 14:40:25 | S36: 42.053 | T36: Tu % | U36: 14:43:27 | V36: 45.296 | W36: Tu % | X36: 14:46:28 | Y36: 38.344 | Z36: Tu % | AA36: 14:49:30 | AB36: 49.909 | AC36: =AVERAGE(AB36,Y36,V36,S36) -> 43.9005
B37: 29.11.16 | C37: 11:49:25 | D37: 17.7 | E37: 17.42 | G37: 18.94 | H37: 18.87 | I37: 29 | Q37: T [C] | R37: 14:40:25 | S37: 18.33 | T37: T [C] | U37: 14:43:27 | V37: 18.335 | W37: T [C] | X37: 14:46:28 | Y37: 18.303 | Z37: T [C] | AA37: 14:49:30 | AB37: 18.313 | AC37: =AVERAGE(AB37,Y37,V37,S37) -> 18.32025
B38: 29.11.16 | C38: 11:49:55 | D38: 17.71 | E38: 17.43 | G38: 18.95 | H38: 18.87 | I38: 29 | Q38: DR % | R38: 14:40:25 | S38: 35.005 | T38: DR % | U38: 14:43:27 | V38: 30.039 | W38: DR % | X38: 14:46:28 | Y38: 29.816 | Z38: DR % | AA38: 14:49:30 | AB38: 30 | AC38: =dr(AC34,AC36,AC37) -> 31.36246872
B39: 29.11.16 | C39: 11:50:25 | D39: 17.72 | E39: 17.44 | G39: 18.95 | H39: 18.87 | I39: 29
B40: 29.11.16 | C40: 11:50:55 | D40: 17.72 | E40: 17.45 | G40: 18.96 | H40: 18.88 | I40: 29 | Q40: Project: | R40: 29.11
B41: 29.11.16 | C41: 11:51:25 | D41: 17.73 | E41: 17.45 | G41: 18.96 | H41: 18.88 | I41: 29 | Q41: Date: | R41: 29. listopadu 2016
B42: 29.11.16 | C42: 11:51:55 | D42: 17.74 | E42: 17.46 | G42: 18.97 | H42: 18.88 | I42: 28.9 | Q42: Name: | R42: 22
B43: 29.11.16 | C43: 11:52:25 | D43: 17.74 | E43: 17.47 | G43: 18.97 | H43: 18.88 | I43: 28.9 | Q43: V [m/s] | R43: 17:57:44 | S43: 0.123 | T43: V [m/s] | U43: 18:00:46 | V43: 0.127 | W43: V [m/s] | X43: 18:03:48 | Y43: 0.169 | Z43: V [m/s] | AA43: 18:06:49 | AB43: 0.134 | AC43: =AVERAGE(AB43,Y43,V43,S43) -> 0.13825
B44: 29.11.16 | C44: 11:52:55 | D44: 17.74 | E44: 17.47 | G44: 18.97 | H44: 18.88 | I44: 28.9
B45: 29.11.16 | C45: 11:53:25 | D45: 17.76 | E45: 17.48 | G45: 18.98 | H45: 18.89 | I45: 28.9 | Q45: Tu % | R45: 17:57:44 | S45: 43.594 | T45: Tu % | U45: 18:00:46 | V45: 40.109 | W45: Tu % | X45: 18:03:48 | Y45: 22.547 | Z45: Tu % | AA45: 18:06:49 | AB45: 45.116 | AC45: =AVERAGE(AB45,Y45,V45,S45) -> 37.8415
B46: 29.11.16 | C46: 11:53:55 | D46: 17.78 | E46: 17.49 | G46: 18.98 | H46: 18.9 | I46: 28.9 | Q46: T [C] | R46: 17:57:44 | S46: 19.912 | T46: T [C] | U46: 18:00:46 | V46: 19.942 | W46: T [C] | X46: 18:03:48 | Y46: 19.884 | Z46: T [C] | AA46: 18:06:49 | AB46: 19.933 | AC46: =AVERAGE(AB46,Y46,V46,S46) -> 19.91775
B47: 29.11.16 | C47: 11:54:25 | D47: 17.78 | E47: 17.5 | G47: 18.98 | H47: 18.9 | I47: 28.9 | Q47: DR % | R47: 17:57:44 | S47: 14.299 | T47: DR % | U47: 18:00:46 | V47: 14.37 | W47: DR % | X47: 18:03:48 | Y47: 17.144 | Z47: DR % | AA47: 18:06:49 | AB47: 16.252 | AC47: =dr(AC43,AC45,AC46) -> 15.86755578
B48: 29.11.16 | C48: 11:54:55 | D48: 17.78 | E48: 17.5 | G48: 18.99 | H48: 18.92 | I48: 28.8
B49: 29.11.16 | C49: 11:55:25 | D49: 17.78 | E49: 17.5 | G49: 18.99 | H49: 18.92 | I49: 28.8 | Q49: Project: | R49: 29.11
B50: 29.11.16 | C50: 11:55:55 | D50: 17.78 | E50: 17.5 | G50: 19 | H50: 18.92 | I50: 28.7 | Q50: Date: | R50: 29. listopadu 2016
B51: 29.11.16 | C51: 11:56:25 | D51: 17.78 | E51: 17.5 | G51: 19 | H51: 18.93 | I51: 28.7 | Q51: Name: | R51: 21
B52: 29.11.16 | C52: 11:56:55 | D52: 17.76 | E52: 17.5 | G52: 19 | H52: 18.93 | I52: 28.7 | Q52: V [m/s] | R52: 17:19:43 | S52: 0.148 | T52: V [m/s] | U52: 17:22:44 | V52: 0.143 | W52: V [m/s] | X52: 17:25:46 | Y52: 0.135 | Z52: V [m/s] | AA52: 17:28:48 | AB52: 0.123 | AC52: =AVERAGE(AB52,Y52,V52,S52) -> 0.13725
B53: 29.11.16 | C53: 11:57:25 | D53: 17.78 | E53: 17.5 | G53: 19.01 | H53: 18.93 | I53: 28.6
B54: 29.11.16 | C54: 11:57:55 | D54: 17.76 | E54: 17.49 | G54: 19.01 | H54: 18.94 | I54: 28.6 | Q54: Tu % | R54: 17:19:43 | S54: 36.983 | T54: Tu % | U54: 17:22:44 | V54: 42.86 | W54: Tu % | X54: 17:25:46 | Y54: 38.505 | Z54: Tu % | AA54: 17:28:48 | AB54: 34.646 | AC54: =AVERAGE(AB54,Y54,V54,S54) -> 38.2485
B55: 29.11.16 | C55: 11:58:25 | D55: 17.76 | E55: 17.49 | G55: 19.01 | H55: 18.94 | I55: 28.6 | Q55: T [C] | R55: 17:19:43 | S55: 19.746 | T55: T [C] | U55: 17:22:44 | V55: 19.79 | W55: T [C] | X55: 17:25:46 | Y55: 19.791 | Z55: T [C] | AA55: 17:28:48 | AB55: 19.808 | AC55: =AVERAGE(AB55,Y55,V55,S55) -> 19.78375
B56: 29.11.16 | C56: 11:58:55 | D56: 17.76 | E56: 17.49 | G56: 19.02 | H56: 18.95 | I56: 28.6 | Q56: DR % | R56: 17:19:43 | S56: 17.406 | T56: DR % | U56: 17:22:44 | V56: 17.594 | W56: DR % | X56: 17:25:46 | Y56: 15.667 | Z56: DR % | AA56: 17:28:48 | AB56: 13.249 | AC56: =dr(AC52,AC54,AC55) -> 15.92665499
B57: 29.11.16 | C57: 11:59:25 | D57: 17.75 | E57: 17.48 | G57: 19.02 | H57: 18.95 | I57: 28.5
B58: 29.11.16 | C58: 11:59:55 | D58: 17.75 | E58: 17.48 | G58: 19.03 | H58: 18.96 | I58: 28.5 | Q58: Project: | R58: 29.11
B59: 29.11.16 | C59: 12:00:25 | D59: 17.75 | E59: 17.48 | G59: 19.03 | H59: 18.97 | I59: 28.6 | Q59: Date: | R59: 29. listopadu 2016
B60: 29.11.16 | C60: 12:00:55 | D60: 17.75 | E60: 17.48 | G60: 19.04 | H60: 18.97 | I60: 28.5 | Q60: Name: | R60: 20
B61: 29.11.16 | C61: 12:01:25 | D61: 17.76 | E61: 17.49 | G61: 19.04 | H61: 18.97 | I61: 28.5 | Q61: V [m/s] | R61: 16:46:06 | S61: 0.167 | T61: V [m/s] | U61: 16:49:08 | V61: 0.154 | W61: V [m/s] | X61: 16:52:09 | Y61: 0.171 | Z61: V [m/s] | AA61: 16:55:11 | AB61: 0.159 | AC61: =AVERAGE(AB61,Y61,V61,S61) -> 0.16275
B62: 29.11.16 | C62: 12:01:55 | D62: 17.78 | E62: 17.5 | G62: 19.05 | H62: 18.97 | I62: 28.5
B63: 29.11.16 | C63: 12:02:25 | D63: 17.78 | E63: 17.5 | G63: 19.05 | H63: 18.98 | I63: 28.5 | Q63: Tu % | R63: 16:46:06 | S63: 36.414 | T63: Tu % | U63: 16:49:08 | V63: 39.647 | W63: Tu % | X63: 16:52:09 | Y63: 36.922 | Z63: Tu % | AA63: 16:55:11 | AB63: 37.273 | AC63: =AVERAGE(AB63,Y63,V63,S63) -> 37.564
B64: 29.11.16 | C64: 12:02:55 | D64: 17.79 | E64: 17.51 | G64: 19.05 | H64: 18.99 | I64: 28.5 | Q64: T [C] | R64: 16:46:06 | S64: 19.794 | T64: T [C] | U64: 16:49:08 | V64: 19.79 | W64: T [C] | X64: 16:52:09 | Y64: 19.764 | Z64: T [C] | AA64: 16:55:11 | AB64: 19.773 | AC64: =AVERAGE(AB64,Y64,V64,S64) -> 19.78025
B65: 29.11.16 | C65: 12:03:25 | D65: 17.8 | E65: 17.52 | G65: 19.06 | H65: 18.99 | I65: 28.5 | Q65: DR % | R65: 16:46:06 | S65: 20.281 | T65: DR % | U65: 16:49:08 | V65: 18.821 | W65: DR % | X65: 16:52:09 | Y65: 21.059 | Z65: DR % | AA65: 16:55:11 | AB65: 19.144 | AC65: =dr(AC61,AC63,AC64) -> 19.84995926
B66: 29.11.16 | C66: 12:03:55 | D66: 17.8 | E66: 17.51 | G66: 19.06 | H66: 18.98 | I66: 28.4
B67: 29.11.16 | C67: 12:04:25 | D67: 17.8 | E67: 17.51 | G67: 19.06 | H67: 18.99 | I67: 28.3 | Q67: Project: | R67: 29.11
B68: 29.11.16 | C68: 12:04:55 | D68: 17.8 | E68: 17.52 | G68: 19.07 | H68: 18.99 | I68: 28.3 | Q68: Date: | R68: 29. listopadu 2016
B69: 29.11.16 | C69: 12:05:25 | D69: 17.82 | E69: 17.53 | G69: 19.08 | H69: 19.01 | I69: 28.2 | Q69: Name: | R69: 19
B70: 29.11.16 | C70: 12:05:55 | D70: 17.83 | E70: 17.54 | G70: 19.09 | H70: 19.01 | I70: 28.2 | Q70: V [m/s] | R70: 16:14:50 | S70: 0.146 | T70: V [m/s] | U70: 16:17:51 | V70: 0.158 | W70: V [m/s] | X70: 16:20:53 | Y70: 0.137 | Z70: V [m/s] | AA70: 16:23:55 | AB70: 0.177 | AC70: =AVERAGE(AB70,Y70,V70,S70) -> 0.1545
B71: 29.11.16 | C71: 12:06:25 | D71: 17.83 | E71: 17.55 | G71: 19.09 | H71: 19.01 | I71: 28.2
B72: 29.11.16 | C72: 12:06:55 | D72: 17.85 | E72: 17.56 | G72: 19.09 | H72: 19.02 | I72: 28.2 | Q72: Tu % | R72: 16:14:50 | S72: 41.287 | T72: Tu % | U72: 16:17:51 | V72: 38.962 | W72: Tu % | X72: 16:20:53 | Y72: 43.087 | Z72: Tu % | AA72: 16:23:55 | AB72: 32.65 | AC72: =AVERAGE(AB72,Y72,V72,S72) -> 38.9965
B73: 29.11.16 | C73: 12:07:25 | D73: 17.86 | E73: 17.58 | G73: 19.1 | H73: 19.02 | I73: 28.3 | Q73: T [C] | R73: 16:14:50 | S73: 19.86 | T73: T [C] | U73: 16:17:51 | V73: 19.838 | W73: T [C] | X73: 16:20:53 | Y73: 19.864 | Z73: T [C] | AA73: 16:23:55 | AB73: 19.805 | AC73: =AVERAGE(AB73,Y73,V73,S73) -> 19.84175
B74: 29.11.16 | C74: 12:07:55 | D74: 17.89 | E74: 17.6 | G74: 19.1 | H74: 19.03 | I74: 28.4 | Q74: DR % | R74: 16:14:50 | S74: 17.734 | T74: DR % | U74: 16:17:51 | V74: 19.33 | W74: DR % | X74: 16:20:53 | Y74: 16.635 | Z74: DR % | AA74: 16:23:55 | AB74: 20.892 | AC74: =dr(AC70,AC72,AC73) -> 18.74019402
B75: 29.11.16 | C75: 12:08:25 | D75: 17.9 | E75: 17.62 | G75: 19.1 | H75: 19.04 | I75: 28.6
B76: 29.11.16 | C76: 12:08:55 | D76: 17.92 | E76: 17.63 | G76: 19.11 | H76: 19.04 | I76: 28.4 | Q76: Project: | R76: 29.11
B77: 29.11.16 | C77: 12:09:25 | D77: 17.94 | E77: 17.65 | G77: 19.11 | H77: 19.04 | I77: 28.3 | Q77: Date: | R77: 29. listopadu 2016
B78: 29.11.16 | C78: 12:09:55 | D78: 17.95 | E78: 17.66 | G78: 19.11 | H78: 19.04 | I78: 28.2 | Q78: Name: | R78: 18
B79: 29.11.16 | C79: 12:10:25 | D79: 17.97 | E79: 17.68 | G79: 19.11 | H79: 19.04 | I79: 28.3 | Q79: V [m/s] | R79: 15:38:11 | S79: 0.174 | T79: V [m/s] | U79: 15:41:12 | V79: 0.179 | W79: V [m/s] | X79: 15:44:14 | Y79: 0.178 | Z79: V [m/s] | AA79: 15:47:15 | AB79: 0.192 | AC79: =AVERAGE(AB79,Y79,V79,S79) -> 0.18075
B80: 29.11.16 | C80: 12:10:55 | D80: 17.98 | E80: 17.7 | G80: 19.11 | H80: 19.04 | I80: 28.2
B81: 29.11.16 | C81: 12:11:25 | D81: 18 | E81: 17.72 | G81: 19.12 | H81: 19.04 | I81: 28.2 | Q81: Tu % | R81: 15:38:11 | S81: 36.934 | T81: Tu % | U81: 15:41:12 | V81: 34.669 | W81: Tu % | X81: 15:44:14 | Y81: 40.412 | Z81: Tu % | AA81: 15:47:15 | AB81: 40.965 | AC81: =AVERAGE(AB81,Y81,V81,S81) -> 38.245
B82: 29.11.16 | C82: 12:11:55 | D82: 18.02 | E82: 17.73 | G82: 19.12 | H82: 19.04 | I82: 28.2 | Q82: T [C] | R82: 15:38:11 | S82: 19.759 | T82: T [C] | U82: 15:41:12 | V82: 19.767 | W82: T [C] | X82: 15:44:14 | Y82: 19.786 | Z82: T [C] | AA82: 15:47:15 | AB82: 19.811 | AC82: =AVERAGE(AB82,Y82,V82,S82) -> 19.78075
B83: 29.11.16 | C83: 12:12:25 | D83: 18.03 | E83: 17.75 | G83: 19.12 | H83: 19.04 | I83: 28.2 | Q83: DR % | R83: 15:38:11 | S83: 21.565 | T83: DR % | U83: 15:41:12 | V83: 21.796 | W83: DR % | X83: 15:44:14 | Y83: 23.137 | Z83: DR % | AA83: 15:47:15 | AB83: 25.516 | AC83: =dr(AC79,AC81,AC82) -> 22.94945661
B84: 29.11.16 | C84: 12:12:55 | D84: 18.04 | E84: 17.76 | G84: 19.12 | H84: 19.04 | I84: 28.2
B85: 29.11.16 | C85: 12:13:25 | D85: 18.05 | E85: 17.78 | G85: 19.12 | H85: 19.05 | I85: 28.1
B86: 29.11.16 | C86: 12:13:55 | D86: 18.06 | E86: 17.79 | G86: 19.13 | H86: 19.06 | I86: 28.2
B87: 29.11.16 | C87: 12:14:25 | D87: 18.07 | E87: 17.8 | G87: 19.13 | H87: 19.06 | I87: 28.2
B88: 29.11.16 | C88: 12:14:55 | D88: 18.09 | E88: 17.81 | G88: 19.13 | H88: 19.06 | I88: 28.2
B89: 29.11.16 | C89: 12:15:25 | D89: 18.1 | E89: 17.82 | G89: 19.14 | H89: 19.07 | I89: 28.2
B90: 29.11.16 | C90: 12:15:55 | D90: 18.12 | E90: 17.84 | G90: 19.14 | H90: 19.08 | I90: 28.1
B91: 29.11.16 | C91: 12:16:25 | D91: 18.13 | E91: 17.86 | G91: 19.15 | H91: 19.09 | I91: 28.2
B92: 29.11.16 | C92: 12:16:55 | D92: 18.14 | E92: 17.87 | G92: 19.16 | H92: 19.1 | I92: 28.1
B93: 29.11.16 | C93: 12:17:25 | D93: 18.16 | E93: 17.88 | G93: 19.16 | H93: 19.11 | I93: 28.1
B94: 29.11.16 | C94: 12:17:55 | D94: 18.16 | E94: 17.88 | G94: 19.16 | H94: 19.11 | I94: 28.1
B95: 29.11.16 | C95: 12:18:25 | D95: 18.16 | E95: 17.88 | G95: 19.17 | H95: 19.11 | I95: 28.1
B96: 29.11.16 | C96: 12:18:56 | D96: 18.17 | E96: 17.89 | G96: 19.17 | H96: 19.12 | I96: 28.1
B97: 29.11.16 | C97: 12:19:26 | D97: 18.18 | E97: 17.89 | G97: 19.17 | H97: 19.12 | I97: 28.1
B98: 29.11.16 | C98: 12:19:56 | D98: 18.19 | E98: 17.9 | G98: 19.18 | H98: 19.13 | I98: 28.1
B99: 29.11.16 | C99: 12:20:26 | D99: 18.2 | E99: 17.92 | G99: 19.18 | H99: 19.13 | I99: 28.1
B100: 29.11.16 | C100: 12:20:56 | D100: 18.21 | E100: 17.93 | G100: 19.19 | H100: 19.13 | I100: 28.1
B101: 29.11.16 | C101: 12:21:26 | D101: 18.2 | E101: 17.92 | G101: 19.19 | H101: 19.13 | I101: 28.1
B102: 29.11.16 | C102: 12:21:56 | D102: 18.21 | E102: 17.93 | G102: 19.2 | H102: 19.13 | I102: 28.1
B103: 29.11.16 | C103: 12:22:26 | D103: 18.22 | E103: 17.94 | G103: 19.2 | H103: 19.13 | I103: 28.1
B104: 29.11.16 | C104: 12:22:56 | D104: 18.23 | E104: 17.94 | G104: 19.2 | H104: 19.14 | I104: 28.1
B105: 29.11.16 | C105: 12:23:26 | D105: 18.24 | E105: 17.95 | G105: 19.2 | H105: 19.14 | I105: 28.1
B106: 29.11.16 | C106: 12:23:56 | D106: 18.24 | E106: 17.96 | G106: 19.21 | H106: 19.15 | I106: 28.1
B107: 29.11.16 | C107: 12:24:26 | D107: 18.26 | E107: 17.98 | G107: 19.21 | H107: 19.15 | I107: 28.1
B108: 29.11.16 | C108: 12:24:56 | D108: 18.28 | E108: 17.99 | G108: 19.21 | H108: 19.15 | I108: 28.2
B109: 29.11.16 | C109: 12:25:26 | D109: 18.3 | E109: 18.01 | G109: 19.21 | H109: 19.16 | I109: 28.3
B110: 29.11.16 | C110: 12:25:56 | D110: 18.32 | E110: 18.03 | G110: 19.21 | H110: 19.16 | I110: 28.1
B111: 29.11.16 | C111: 12:26:26 | D111: 18.32 | E111: 18.04 | G111: 19.22 | H111: 19.17 | I111: 28.1
B112: 29.11.16 | C112: 12:26:56 | D112: 18.33 | E112: 18.05 | G112: 19.22 | H112: 19.18 | I112: 28.1
B113: 29.11.16 | C113: 12:27:26 | D113: 18.33 | E113: 18.06 | G113: 19.23 | H113: 19.19 | I113: 28
B114: 29.11.16 | C114: 12:27:56 | D114: 18.34 | E114: 18.06 | G114: 19.23 | H114: 19.2 | I114: 28
B115: 29.11.16 | C115: 12:28:26 | D115: 18.33 | E115: 18.06 | G115: 19.24 | H115: 19.21 | I115: 28
B116: 29.11.16 | C116: 12:28:56 | D116: 18.33 | E116: 18.06 | G116: 19.25 | H116: 19.21 | I116: 27.9
B117: 29.11.16 | C117: 12:29:26 | D117: 18.33 | E117: 18.06 | G117: 19.25 | H117: 19.21 | I117: 27.9
B118: 29.11.16 | C118: 12:29:56 | D118: 18.32 | E118: 18.05 | G118: 19.26 | H118: 19.21 | I118: 27.9
B119: 29.11.16 | C119: 12:30:26 | D119: 18.32 | E119: 18.05 | G119: 19.26 | H119: 19.22 | I119: 27.9
B120: 29.11.16 | C120: 12:30:56 | D120: 18.32 | E120: 18.05 | G120: 19.26 | H120: 19.22 | I120: 27.9
B121: 29.11.16 | C121: 12:31:26 | D121: 18.32 | E121: 18.05 | G121: 19.27 | H121: 19.22 | I121: 27.9
B122: 29.11.16 | C122: 12:31:56 | D122: 18.33 | E122: 18.06 | G122: 19.27 | H122: 19.22 | I122: 27.9
B123: 29.11.16 | C123: 12:32:26 | D123: 18.34 | E123: 18.06 | G123: 19.27 | H123: 19.23 | I123: 27.9
B124: 29.11.16 | C124: 12:32:56 | D124: 18.34 | E124: 18.07 | G124: 19.27 | H124: 19.23 | I124: 27.9
B125: 29.11.16 | C125: 12:33:26 | D125: 18.35 | E125: 18.08 | G125: 19.27 | H125: 19.22 | I125: 27.9 | J125: 15
B126: 29.11.16 | C126: 12:33:56 | D126: 18.36 | E126: 18.09 | G126: 19.27 | H126: 19.22 | I126: 28
B127: 29.11.16 | C127: 12:34:26 | D127: 18.37 | E127: 18.1 | G127: 19.28 | H127: 19.22 | I127: 28
B128: 29.11.16 | C128: 12:34:56 | D128: 18.38 | E128: 18.11 | G128: 19.28 | H128: 19.23 | I128: 27.9
B129: 29.11.16 | C129: 12:35:26 | D129: 18.39 | E129: 18.12 | G129: 19.28 | H129: 19.23 | I129: 27.9
B130: 29.11.16 | C130: 12:35:56 | D130: 18.39 | E130: 18.12 | G130: 19.28 | H130: 19.24 | I130: 27.9
B131: 29.11.16 | C131: 12:36:26 | D131: 18.39 | E131: 18.13 | G131: 19.28 | H131: 19.24 | I131: 27.9
B132: 29.11.16 | C132: 12:36:56 | D132: 18.4 | E132: 18.13 | G132: 19.3 | H132: 19.25 | I132: 27.9
B133: 29.11.16 | C133: 12:37:26 | D133: 18.4 | E133: 18.13 | G133: 19.3 | H133: 19.25 | I133: 27.9
B134: 29.11.16 | C134: 12:37:56 | D134: 18.4 | E134: 18.13 | G134: 19.3 | H134: 19.25 | I134: 27.9
B135: 29.11.16 | C135: 12:38:26 | D135: 18.4 | E135: 18.13 | G135: 19.31 | H135: 19.25 | I135: 27.9
B136: 29.11.16 | C136: 12:38:56 | D136: 18.4 | E136: 18.13 | G136: 19.31 | H136: 19.25 | I136: 27.8
B137: 29.11.16 | C137: 12:39:26 | D137: 18.4 | E137: 18.14 | G137: 19.31 | H137: 19.26 | I137: 27.9
B138: 29.11.16 | C138: 12:39:56 | D138: 18.4 | E138: 18.14 | G138: 19.31 | H138: 19.26 | I138: 27.8
B139: 29.11.16 | C139: 12:40:26 | D139: 18.4 | E139: 18.13 | G139: 19.31 | H139: 19.26 | I139: 27.8
B140: 29.11.16 | C140: 12:40:56 | D140: 18.39 | E140: 18.13 | G140: 19.32 | H140: 19.27 | I140: 27.8
B141: 29.11.16 | C141: 12:41:26 | D141: 18.38 | E141: 18.12 | G141: 19.32 | H141: 19.27 | I141: 27.8
B142: 29.11.16 | C142: 12:41:56 | D142: 18.38 | E142: 18.11 | G142: 19.32 | H142: 19.26 | I142: 27.7
B143: 29.11.16 | C143: 12:42:26 | D143: 18.38 | E143: 18.11 | G143: 19.32 | H143: 19.26 | I143: 27.8
B144: 29.11.16 | C144: 12:42:56 | D144: 18.38 | E144: 18.11 | G144: 19.32 | H144: 19.26 | I144: 27.8
B145: 29.11.16 | C145: 12:43:26 | D145: 18.38 | E145: 18.11 | G145: 19.32 | H145: 19.27 | I145: 27.8
B146: 29.11.16 | C146: 12:43:56 | D146: 18.38 | E146: 18.11 | G146: 19.32 | H146: 19.26 | I146: 27.7
B147: 29.11.16 | C147: 12:44:26 | D147: 18.37 | E147: 18.11 | G147: 19.32 | H147: 19.26 | I147: 27.7
B148: 29.11.16 | C148: 12:44:56 | D148: 18.36 | E148: 18.1 | G148: 19.32 | H148: 19.26 | I148: 27.7
B149: 29.11.16 | C149: 12:45:26 | D149: 18.35 | E149: 18.09 | G149: 19.32 | H149: 19.26 | I149: 27.6
B150: 29.11.16 | C150: 12:45:56 | D150: 18.33 | E150: 18.07 | G150: 19.32 | H150: 19.26 | I150: 27.6
B151: 29.11.16 | C151: 12:46:26 | D151: 18.32 | E151: 18.06 | G151: 19.33 | H151: 19.27 | I151: 27.6
B152: 29.11.16 | C152: 12:46:56 | D152: 18.31 | E152: 18.05 | G152: 19.33 | H152: 19.27 | I152: 27.6
B153: 29.11.16 | C153: 12:47:26 | D153: 18.29 | E153: 18.03 | G153: 19.33 | H153: 19.27 | I153: 27.6
B154: 29.11.16 | C154: 12:47:56 | D154: 18.29 | E154: 18.02 | G154: 19.33 | H154: 19.26 | I154: 27.6
B155: 29.11.16 | C155: 12:48:26 | D155: 18.27 | E155: 18.01 | G155: 19.33 | H155: 19.26 | I155: 27.7
B156: 29.11.16 | C156: 12:48:56 | D156: 18.26 | E156: 18 | G156: 19.33 | H156: 19.26 | I156: 27.7
B157: 29.11.16 | C157: 12:49:27 | D157: 18.25 | E157: 17.99 | G157: 19.33 | H157: 19.26 | I157: 27.7
B158: 29.11.16 | C158: 12:49:57 | D158: 18.24 | E158: 17.98 | G158: 19.32 | H158: 19.26 | I158: 27.6
B159: 29.11.16 | C159: 12:50:27 | D159: 18.22 | E159: 17.97 | G159: 19.32 | H159: 19.25 | I159: 27.5
B160: 29.11.16 | C160: 12:50:57 | D160: 18.21 | E160: 17.96 | G160: 19.32 | H160: 19.25 | I160: 27.5
B161: 29.11.16 | C161: 12:51:27 | D161: 18.2 | E161: 17.95 | G161: 19.32 | H161: 19.26 | I161: 27.6
B162: 29.11.16 | C162: 12:51:57 | D162: 18.2 | E162: 17.94 | G162: 19.32 | H162: 19.26 | I162: 27.5
B163: 29.11.16 | C163: 12:52:27 | D163: 18.2 | E163: 17.94 | G163: 19.32 | H163: 19.25 | I163: 27.5
B164: 29.11.16 | C164: 12:52:57 | D164: 18.2 | E164: 17.94 | G164: 19.32 | H164: 19.25 | I164: 27.5
B165: 29.11.16 | C165: 12:53:27 | D165: 18.19 | E165: 17.93 | G165: 19.32 | H165: 19.24 | I165: 27.5
B166: 29.11.16 | C166: 12:53:57 | D166: 18.19 | E166: 17.93 | G166: 19.32 | H166: 19.24 | I166: 27.5
B167: 29.11.16 | C167: 12:54:27 | D167: 18.18 | E167: 17.92 | G167: 19.31 | H167: 19.24 | I167: 27.5
B168: 29.11.16 | C168: 12:54:57 | D168: 18.18 | E168: 17.92 | G168: 19.31 | H168: 19.23 | I168: 27.5
B169: 29.11.16 | C169: 12:55:27 | D169: 18.17 | E169: 17.91 | G169: 19.31 | H169: 19.23 | I169: 27.7
B170: 29.11.16 | C170: 12:55:57 | D170: 18.16 | E170: 17.9 | G170: 19.31 | H170: 19.22 | I170: 27.6
B171: 29.11.16 | C171: 12:56:27 | D171: 18.14 | E171: 17.89 | G171: 19.3 | H171: 19.22 | I171: 27.6
B172: 29.11.16 | C172: 12:56:57 | D172: 18.14 | E172: 17.89 | G172: 19.3 | H172: 19.22 | I172: 27.6
B173: 29.11.16 | C173: 12:57:27 | D173: 18.13 | E173: 17.88 | G173: 19.3 | H173: 19.21 | I173: 27.6
B174: 29.11.16 | C174: 12:57:57 | D174: 18.12 | E174: 17.87 | G174: 19.28 | H174: 19.21 | I174: 27.6
B175: 29.11.16 | C175: 12:58:27 | D175: 18.11 | E175: 17.85 | G175: 19.28 | H175: 19.21 | I175: 27.5
B176: 29.11.16 | C176: 12:58:57 | D176: 18.09 | E176: 17.84 | G176: 19.28 | H176: 19.21 | I176: 27.5
B177: 29.11.16 | C177: 12:59:27 | D177: 18.07 | E177: 17.82 | G177: 19.28 | H177: 19.21 | I177: 27.5
B178: 29.11.16 | C178: 12:59:57 | D178: 18.06 | E178: 17.81 | G178: 19.27 | H178: 19.21 | I178: 27.5
B179: 29.11.16 | C179: 13:00:27 | D179: 18.05 | E179: 17.8 | G179: 19.27 | H179: 19.2 | I179: 27.5
B180: 29.11.16 | C180: 13:00:57 | D180: 18.04 | E180: 17.8 | G180: 19.27 | H180: 19.2 | I180: 27.5
B181: 29.11.16 | C181: 13:01:27 | D181: 18.03 | E181: 17.79 | G181: 19.26 | H181: 19.2 | I181: 27.4
B182: 29.11.16 | C182: 13:01:57 | D182: 18.01 | E182: 17.76 | G182: 19.26 | H182: 19.19 | I182: 27.4
B183: 29.11.16 | C183: 13:02:27 | D183: 17.99 | E183: 17.74 | G183: 19.25 | H183: 19.18 | I183: 27.4
B184: 29.11.16 | C184: 13:02:57 | D184: 17.98 | E184: 17.72 | G184: 19.25 | H184: 19.18 | I184: 27.4
B185: 29.11.16 | C185: 13:03:27 | D185: 17.97 | E185: 17.72 | G185: 19.24 | H185: 19.17 | I185: 27.4
B186: 29.11.16 | C186: 13:03:57 | D186: 17.96 | E186: 17.71 | G186: 19.24 | H186: 19.16 | I186: 27.4
B187: 29.11.16 | C187: 13:04:27 | D187: 17.95 | E187: 17.7 | G187: 19.23 | H187: 19.16 | I187: 27.4
B188: 29.11.16 | C188: 13:04:57 | D188: 17.94 | E188: 17.69 | G188: 19.23 | H188: 19.15 | I188: 27.4
B189: 29.11.16 | C189: 13:05:27 | D189: 17.93 | E189: 17.68 | G189: 19.22 | H189: 19.15 | I189: 27.5
B190: 29.11.16 | C190: 13:05:57 | D190: 17.93 | E190: 17.68 | G190: 19.22 | H190: 19.15 | I190: 27.5
B191: 29.11.16 | C191: 13:06:27 | D191: 17.93 | E191: 17.68 | G191: 19.22 | H191: 19.14 | I191: 27.4
B192: 29.11.16 | C192: 13:06:57 | D192: 17.93 | E192: 17.67 | G192: 19.22 | H192: 19.15 | I192: 27.5
B193: 29.11.16 | C193: 13:07:27 | D193: 17.92 | E193: 17.67 | G193: 19.21 | H193: 19.14 | I193: 27.5
B194: 29.11.16 | C194: 13:07:57 | D194: 17.91 | E194: 17.66 | G194: 19.21 | H194: 19.13 | I194: 27.5
B195: 29.11.16 | C195: 13:08:27 | D195: 17.9 | E195: 17.64 | G195: 19.21 | H195: 19.12 | I195: 27.5
B196: 29.11.16 | C196: 13:08:57 | D196: 17.89 | E196: 17.64 | G196: 19.21 | H196: 19.12 | I196: 27.5
B197: 29.11.16 | C197: 13:09:27 | D197: 17.88 | E197: 17.63 | G197: 19.21 | H197: 19.11 | I197: 27.5
B198: 29.11.16 | C198: 13:09:57 | D198: 17.87 | E198: 17.62 | G198: 19.2 | H198: 19.11 | I198: 27.5
B199: 29.11.16 | C199: 13:10:27 | D199: 17.86 | E199: 17.61 | G199: 19.2 | H199: 19.11 | I199: 27.5
B200: 29.11.16 | C200: 13:10:57 | D200: 17.85 | E200: 17.6 | G200: 19.2 | H200: 19.1 | I200: 27.5
B201: 29.11.16 | C201: 13:11:27 | D201: 17.84 | E201: 17.59 | G201: 19.19 | H201: 19.1 | I201: 27.5
B202: 29.11.16 | C202: 13:11:57 | D202: 17.84 | E202: 17.58 | G202: 19.19 | H202: 19.09 | I202: 27.5
B203: 29.11.16 | C203: 13:12:27 | D203: 17.82 | E203: 17.57 | G203: 19.18 | H203: 19.08 | I203: 27.5
B204: 29.11.16 | C204: 13:12:57 | D204: 17.82 | E204: 17.57 | G204: 19.18 | H204: 19.08 | I204: 27.5
B205: 29.11.16 | C205: 13:13:27 | D205: 17.81 | E205: 17.56 | G205: 19.17 | H205: 19.07 | I205: 27.5
... 578 more rows

Sheet 1.12.
L1: Oděv | M1: Metabolizmus | N1: Práce venku
L2: [clo] | M2: [met] | N2: [met]
L3: 1 | M3: 1.2 | N3: 0
Q4: Project: | R4: 1.12
Q5: Date: | R5: 1. prosince 2016
D6: Tp1 | E6: Tp2 | F6: Tp | G6: Tk1 | H6: Ta | I6: RH | J6: v | K6: Tr | L6: To | M6: PMV | N6: PPD | O6: DR | Q6: Name: | R6: 23 | AC6: Průměr
D7: [°C] | E7: [°C] | F7: [°C] | G7: [°C] | H7: [°C] | I7: [%] | J7: [m/s] | K7: [°C] | L7: [°C] | M7: [1] | N7: [%] | O7: [%] | Q7: V [m/s] | R7: 12:11:07 | S7: 0.051 | T7: V [m/s] | U7: 12:14:09 | V7: 0.046 | W7: V [m/s] | X7: 12:17:10 | Y7: 0.036 | Z7: V [m/s] | AA7: 12:20:11 | AB7: 0.052 | AC7: =AVERAGE(AB7,Y7,V7,S7) -> 0.04625
A8: 23 | B8: 01.12.16 | C8: 12:14:00 | D8: 23.08 | E8: 22.78 | F8: =AVERAGEA(D8,E8) -> 22.93 | G8: 20.48 | H8: 20.28 | I8: 28.6 | J8: =AC7 -> 0.04625 | K8: =((G8+273)^4+2.5*10^8*J8^0.6*(G8-H8))^(1/4)-273 -> 20.55817502 | L8: =TOPERA(H8,K8,J8) -> 20.41908751 | M8: =PMVx($L$3,$M$3,$N$3,H8,K8,J8,I8,0) -> 0.3898119429 | N8: =PPD(M8) -> 8.165131675 | O8: =AC11 -> 0 | Q8: STD [m/s] | R8: 12:11:07 | S8: 0.032 | T8: STD [m/s] | U8: 12:14:09 | V8: 0.031 | W8: STD [m/s] | X8: 12:17:10 | Y8: 0.022 | Z8: STD [m/s] | AA8: 12:20:11 | AB8: 0.032 | AC8: =AVERAGE(AB8,Y8,V8,S8) -> 0.02925
A9: 24 | B9: 01.12.16 | C9: 14:16:04 | D9: 24.16 | E9: 23.7 | F9: =AVERAGEA(D9,E9) -> 23.93 | G9: 20.63 | H9: 20.65 | I9: 28.5 | J9: =AC16 -> 0.0255 | K9: =((G9+273)^4+2.5*10^8*J9^0.6*(G9-H9))^(1/4)-273 -> 20.62453683 | L9: =TOPERA(H9,K9,J9) -> 20.63726841 | M9: =PMVx($L$3,$M$3,$N$3,H9,K9,J9,I9,0) -> 0.4266675111 | N9: =PPD(M9) -> 8.796064267 | O9: =AC20 -> 0 | Q9: Tu % | R9: 12:11:07 | S9: 61.883 | T9: Tu % | U9: 12:14:09 | V9: 67.568 | W9: Tu % | X9: 12:17:10 | Y9: 62.789 | Z9: Tu % | AA9: 12:20:11 | AB9: 61.898 | AC9: =AVERAGE(AB9,Y9,V9,S9) -> 63.5345
A10: 25 | B10: 01.12.16 | C10: 15:35:37 | D10: 25.62 | E10: 25.1 | F10: =AVERAGEA(D10,E10) -> 25.36 | G10: 20.51 | H10: 20.52 | I10: 28.8 | J10: =AC25 -> 0.02725 | K10: =((G10+273)^4+2.5*10^8*J10^0.6*(G10-H10))^(1/4)-273 -> 20.50715398 | L10: =TOPERA(H10,K10,J10) -> 20.51357699 | M10: =PMVx($L$3,$M$3,$N$3,H10,K10,J10,I10,0) -> 0.4394239814 | N10: =PPD(M10) -> 9.028009406 | O10: =AC29 -> 0 | Q10: T [C] | R10: 12:11:07 | S10: 20.255 | T10: T [C] | U10: 12:14:09 | V10: 20.297 | W10: T [C] | X10: 12:17:10 | Y10: 20.296 | Z10: T [C] | AA10: 12:20:11 | AB10: 20.333 | AC10: =AVERAGE(AB10,Y10,V10,S10) -> 20.29525
A11: 26 | B11: 01.12.16 | C11: 16:34:39 | D11: 24.17 | E11: 23.59 | F11: =AVERAGEA(D11,E11) -> 23.88 | G11: 20.06 | H11: 19.95 | I11: 29.6 | J11: =AC34 -> 0.02675 | K11: =((G11+273)^4+2.5*10^8*J11^0.6*(G11-H11))^(1/4)-273 -> 20.0910977 | L11: =TOPERA(H11,K11,J11) -> 20.02054885 | M11: =PMVx($L$3,$M$3,$N$3,H11,K11,J11,I11,0) -> 0.4446879192 | N11: =PPD(M11) -> 9.125758656 | O11: =AC38 -> 0 | Q11: DR % | R11: 12:11:07 | S11: 0.822 | T11: DR % | U11: 12:14:09 | V11: 0 | W11: DR % | X11: 12:17:10 | Y11: 0 | Z11: DR % | AA11: 12:20:11 | AB11: 1.162 | AC11: 0
B13: 01.12.16 | C13: 09:59:56 | D13: 20.09 | E13: 19.54 | G13: 16.91 | H13: 17.03 | I13: 33.5 | Q13: Project: | R13: 1.12
B14: 01.12.16 | C14: 10:00:26 | D14: 20.46 | E14: 19.88 | G14: 16.93 | H14: 17.06 | I14: 33.8 | Q14: Date: | R14: 1. prosince 2016
B15: 01.12.16 | C15: 10:00:56 | D15: 20.9 | E15: 20.3 | G15: 16.96 | H15: 17.09 | I15: 34.4 | Q15: Name: | R15: 24
B16: 01.12.16 | C16: 10:01:26 | D16: 21.27 | E16: 20.66 | G16: 17 | H16: 17.12 | I16: 34.6 | Q16: V [m/s] | R16: 14:13:11 | S16: 0.025 | T16: V [m/s] | U16: 14:16:12 | V16: 0.024 | W16: V [m/s] | X16: 14:19:14 | Y16: 0.026 | Z16: V [m/s] | AA16: 14:22:15 | AB16: 0.027 | AC16: =AVERAGE(AB16,Y16,V16,S16) -> 0.0255
B17: 01.12.16 | C17: 10:01:56 | D17: 21.58 | E17: 21.03 | G17: 17.07 | H17: 17.13 | I17: 33.5 | Q17: STD [m/s] | R17: 14:13:11 | S17: 0.01 | T17: STD [m/s] | U17: 14:16:12 | V17: 0.009 | W17: STD [m/s] | X17: 14:19:14 | Y17: 0.009 | Z17: STD [m/s] | AA17: 14:22:15 | AB17: 0.009 | AC17: =AVERAGE(AB17,Y17,V17,S17) -> 0.00925
B18: 01.12.16 | C18: 10:02:26 | D18: 21.78 | E18: 21.24 | G18: 17.09 | H18: 17.14 | I18: 33.2 | Q18: Tu % | R18: 14:13:11 | S18: 40.287 | T18: Tu % | U18: 14:16:12 | V18: 37.331 | W18: Tu % | X18: 14:19:14 | Y18: 34.134 | Z18: Tu % | AA18: 14:22:15 | AB18: 34.882 | AC18: =AVERAGE(AB18,Y18,V18,S18) -> 36.6585
B19: 01.12.16 | C19: 10:02:56 | D19: 22.05 | E19: 21.51 | G19: 17.14 | H19: 17.17 | I19: 33 | Q19: T [C] | R19: 14:13:11 | S19: 20.548 | T19: T [C] | U19: 14:16:12 | V19: 20.581 | W19: T [C] | X19: 14:19:14 | Y19: 20.572 | Z19: T [C] | AA19: 14:22:15 | AB19: 20.565 | AC19: =AVERAGE(AB19,Y19,V19,S19) -> 20.5665
B20: 01.12.16 | C20: 10:03:26 | D20: 22.24 | E20: 21.76 | G20: 17.18 | H20: 17.2 | I20: 32.8 | Q20: DR % | R20: 14:13:11 | S20: 0 | T20: DR % | U20: 14:16:12 | V20: 0 | W20: DR % | X20: 14:19:14 | Y20: 0 | Z20: DR % | AA20: 14:22:15 | AB20: 0 | AC20: 0
B21: 01.12.16 | C21: 10:03:56 | D21: 22.43 | E21: 21.92 | G21: 17.2 | H21: 17.23 | I21: 32.7
B22: 01.12.16 | C22: 10:04:26 | D22: 22.55 | E22: 22.06 | G22: 17.23 | H22: 17.26 | I22: 32.7 | Q22: Project: | R22: 1.12
B23: 01.12.16 | C23: 10:04:56 | D23: 22.7 | E23: 22.17 | G23: 17.27 | H23: 17.29 | I23: 32.7 | Q23: Date: | R23: 1. prosince 2016
B24: 01.12.16 | C24: 10:05:26 | D24: 22.82 | E24: 22.32 | G24: 17.31 | H24: 17.33 | I24: 32.6 | Q24: Name: | R24: 25
B25: 01.12.16 | C25: 10:05:56 | D25: 22.94 | E25: 22.49 | G25: 17.36 | H25: 17.36 | I25: 32.5 | Q25: V [m/s] | R25: 15:32:08 | S25: 0.028 | T25: V [m/s] | U25: 15:35:11 | V25: 0.027 | W25: V [m/s] | X25: 15:38:13 | Y25: 0.027 | Z25: V [m/s] | AA25: 15:41:14 | AB25: 0.027 | AC25: =AVERAGE(AB25,Y25,V25,S25) -> 0.02725
B26: 01.12.16 | C26: 10:06:26 | D26: 23.01 | E26: 22.56 | G26: 17.4 | H26: 17.39 | I26: 32.5 | Q26: STD [m/s] | R26: 15:32:08 | S26: 0.003 | T26: STD [m/s] | U26: 15:35:11 | V26: 0.003 | W26: STD [m/s] | X26: 15:38:13 | Y26: 0.003 | Z26: STD [m/s] | AA26: 15:41:14 | AB26: 0.002 | AC26: =AVERAGE(AB26,Y26,V26,S26) -> 0.00275
B27: 01.12.16 | C27: 10:06:56 | D27: 23.11 | E27: 22.65 | G27: 17.45 | H27: 17.43 | I27: 32.4 | Q27: Tu % | R27: 15:32:08 | S27: 12.371 | T27: Tu % | U27: 15:35:11 | V27: 12.165 | W27: Tu % | X27: 15:38:13 | Y27: 9.519 | Z27: Tu % | AA27: 15:41:14 | AB27: 8.286 | AC27: =AVERAGE(AB27,Y27,V27,S27) -> 10.58525
B28: 01.12.16 | C28: 10:07:26 | D28: 23.18 | E28: 22.73 | G28: 17.48 | H28: 17.46 | I28: 32.3 | Q28: T [C] | R28: 15:32:08 | S28: 20.514 | T28: T [C] | U28: 15:35:11 | V28: 20.522 | W28: T [C] | X28: 15:38:13 | Y28: 20.507 | Z28: T [C] | AA28: 15:41:14 | AB28: 20.503 | AC28: =AVERAGE(AB28,Y28,V28,S28) -> 20.5115
B29: 01.12.16 | C29: 10:07:56 | D29: 23.25 | E29: 22.81 | G29: 17.52 | H29: 17.49 | I29: 32.2 | Q29: DR % | R29: 15:32:08 | S29: 0 | T29: DR % | U29: 15:35:11 | V29: 0 | W29: DR % | X29: 15:38:13 | Y29: 0 | Z29: DR % | AA29: 15:41:14 | AB29: 0 | AC29: 0
B30: 01.12.16 | C30: 10:08:26 | D30: 23.29 | E30: 22.87 | G30: 17.55 | H30: 17.52 | I30: 32.2
B31: 01.12.16 | C31: 10:08:56 | D31: 23.36 | E31: 22.92 | G31: 17.6 | H31: 17.55 | I31: 32.1 | Q31: Project: | R31: 1.12
B32: 01.12.16 | C32: 10:09:26 | D32: 23.41 | E32: 22.95 | G32: 17.65 | H32: 17.59 | I32: 32 | Q32: Date: | R32: 1. prosince 2016
B33: 01.12.16 | C33: 10:09:56 | D33: 23.46 | E33: 23.02 | G33: 17.7 | H33: 17.63 | I33: 32 | Q33: Name: | R33: 26
B34: 01.12.16 | C34: 10:10:26 | D34: 23.5 | E34: 23.05 | G34: 17.73 | H34: 17.67 | I34: 32 | Q34: V [m/s] | R34: 16:31:42 | S34: 0.027 | T34: V [m/s] | U34: 16:34:44 | V34: 0.026 | W34: V [m/s] | X34: 16:37:45 | Y34: 0.027 | Z34: V [m/s] | AA34: 16:40:47 | AB34: 0.027 | AC34: =AVERAGE(AB34,Y34,V34,S34) -> 0.02675
B35: 01.12.16 | C35: 10:10:56 | D35: 23.55 | E35: 23.11 | G35: 17.79 | H35: 17.7 | I35: 32.3 | Q35: STD [m/s] | R35: 16:31:42 | S35: 0.006 | T35: STD [m/s] | U35: 16:34:44 | V35: 0.004 | W35: STD [m/s] | X35: 16:37:45 | Y35: 0.003 | Z35: STD [m/s] | AA35: 16:40:47 | AB35: 0.004 | AC35: =AVERAGE(AB35,Y35,V35,S35) -> 0.00425
B36: 01.12.16 | C36: 10:11:26 | D36: 23.61 | E36: 23.18 | G36: 17.83 | H36: 17.73 | I36: 32 | Q36: Tu % | R36: 16:31:42 | S36: 23.666 | T36: Tu % | U36: 16:34:44 | V36: 17.051 | W36: Tu % | X36: 16:37:45 | Y36: 12.282 | Z36: Tu % | AA36: 16:40:47 | AB36: 16.623 | AC36: =AVERAGE(AB36,Y36,V36,S36) -> 17.4055
B37: 01.12.16 | C37: 10:11:56 | D37: 23.62 | E37: 23.21 | G37: 17.87 | H37: 17.77 | I37: 32 | Q37: T [C] | R37: 16:31:42 | S37: 20.044 | T37: T [C] | U37: 16:34:44 | V37: 20.042 | W37: T [C] | X37: 16:37:45 | Y37: 20.05 | Z37: T [C] | AA37: 16:40:47 | AB37: 20.054 | AC37: =AVERAGE(AB37,Y37,V37,S37) -> 20.0475
B38: 01.12.16 | C38: 10:12:26 | D38: 23.65 | E38: 23.24 | G38: 17.89 | H38: 17.8 | I38: 31.8 | Q38: DR % | R38: 16:31:42 | S38: 0 | T38: DR % | U38: 16:34:44 | V38: 0 | W38: DR % | X38: 16:37:45 | Y38: 0 | Z38: DR % | AA38: 16:40:47 | AB38: 0 | AC38: 0
B39: 01.12.16 | C39: 10:12:56 | D39: 23.66 | E39: 23.26 | G39: 17.91 | H39: 17.84 | I39: 31.9
B40: 01.12.16 | C40: 10:13:26 | D40: 23.67 | E40: 23.26 | G40: 17.93 | H40: 17.86 | I40: 31.7
B41: 01.12.16 | C41: 10:13:56 | D41: 23.66 | E41: 23.29 | G41: 17.95 | H41: 17.89 | I41: 31.6
B42: 01.12.16 | C42: 10:14:26 | D42: 23.66 | E42: 23.29 | G42: 17.98 | H42: 17.91 | I42: 31.6
B43: 01.12.16 | C43: 10:14:56 | D43: 23.68 | E43: 23.29 | G43: 18.01 | H43: 17.93 | I43: 31.6
B44: 01.12.16 | C44: 10:15:26 | D44: 23.68 | E44: 23.29 | G44: 18.04 | H44: 17.96 | I44: 31.6
B45: 01.12.16 | C45: 10:15:56 | D45: 23.67 | E45: 23.28 | G45: 18.08 | H45: 17.99 | I45: 31.5
B46: 01.12.16 | C46: 10:16:26 | D46: 23.66 | E46: 23.27 | G46: 18.11 | H46: 18.01 | I46: 31.4
B47: 01.12.16 | C47: 10:16:56 | D47: 23.65 | E47: 23.28 | G47: 18.16 | H47: 18.05 | I47: 31.3
B48: 01.12.16 | C48: 10:17:26 | D48: 23.64 | E48: 23.26 | G48: 18.19 | H48: 18.08 | I48: 31.3
B49: 01.12.16 | C49: 10:17:56 | D49: 23.64 | E49: 23.26 | G49: 18.23 | H49: 18.1 | I49: 31.3
B50: 01.12.16 | C50: 10:18:27 | D50: 23.62 | E50: 23.23 | G50: 18.25 | H50: 18.12 | I50: 31.2
B51: 01.12.16 | C51: 10:18:57 | D51: 23.62 | E51: 23.23 | G51: 18.28 | H51: 18.15 | I51: 31.2
B52: 01.12.16 | C52: 10:19:27 | D52: 23.6 | E52: 23.22 | G52: 18.31 | H52: 18.18 | I52: 31.1
B53: 01.12.16 | C53: 10:19:57 | D53: 23.58 | E53: 23.19 | G53: 18.32 | H53: 18.21 | I53: 31.1
B54: 01.12.16 | C54: 10:20:27 | D54: 23.57 | E54: 23.18 | G54: 18.35 | H54: 18.25 | I54: 31.3
B55: 01.12.16 | C55: 10:20:57 | D55: 23.57 | E55: 23.17 | G55: 18.36 | H55: 18.28 | I55: 31.1
B56: 01.12.16 | C56: 10:21:27 | D56: 23.56 | E56: 23.16 | G56: 18.39 | H56: 18.31 | I56: 31.1
B57: 01.12.16 | C57: 10:21:57 | D57: 23.55 | E57: 23.17 | G57: 18.41 | H57: 18.32 | I57: 31
B58: 01.12.16 | C58: 10:22:27 | D58: 23.56 | E58: 23.17 | G58: 18.44 | H58: 18.34 | I58: 30.9
B59: 01.12.16 | C59: 10:22:57 | D59: 23.56 | E59: 23.16 | G59: 18.47 | H59: 18.36 | I59: 30.9
B60: 01.12.16 | C60: 10:23:27 | D60: 23.55 | E60: 23.18 | G60: 18.49 | H60: 18.39 | I60: 30.8
B61: 01.12.16 | C61: 10:23:57 | D61: 23.57 | E61: 23.16 | G61: 18.52 | H61: 18.42 | I61: 30.8
B62: 01.12.16 | C62: 10:24:27 | D62: 23.56 | E62: 23.18 | G62: 18.54 | H62: 18.43 | I62: 30.8
B63: 01.12.16 | C63: 10:24:57 | D63: 23.57 | E63: 23.17 | G63: 18.57 | H63: 18.45 | I63: 30.7
B64: 01.12.16 | C64: 10:25:27 | D64: 23.57 | E64: 23.18 | G64: 18.59 | H64: 18.46 | I64: 30.8
B65: 01.12.16 | C65: 10:25:57 | D65: 23.58 | E65: 23.2 | G65: 18.62 | H65: 18.48 | I65: 30.7
B66: 01.12.16 | C66: 10:26:27 | D66: 23.58 | E66: 23.19 | G66: 18.64 | H66: 18.49 | I66: 30.7
B67: 01.12.16 | C67: 10:26:57 | D67: 23.58 | E67: 23.18 | G67: 18.66 | H67: 18.51 | I67: 30.6
B68: 01.12.16 | C68: 10:27:27 | D68: 23.58 | E68: 23.19 | G68: 18.68 | H68: 18.53 | I68: 30.6
B69: 01.12.16 | C69: 10:27:57 | D69: 23.59 | E69: 23.19 | G69: 18.71 | H69: 18.56 | I69: 30.6
B70: 01.12.16 | C70: 10:28:27 | D70: 23.59 | E70: 23.2 | G70: 18.72 | H70: 18.57 | I70: 30.5
B71: 01.12.16 | C71: 10:28:57 | D71: 23.59 | E71: 23.21 | G71: 18.75 | H71: 18.6 | I71: 30.5
B72: 01.12.16 | C72: 10:29:27 | D72: 23.6 | E72: 23.21 | G72: 18.76 | H72: 18.62 | I72: 30.4
B73: 01.12.16 | C73: 10:29:57 | D73: 23.6 | E73: 23.22 | G73: 18.77 | H73: 18.64 | I73: 30.4
B74: 01.12.16 | C74: 10:30:27 | D74: 23.59 | E74: 23.22 | G74: 18.79 | H74: 18.65 | I74: 30.5
B75: 01.12.16 | C75: 10:30:57 | D75: 23.59 | E75: 23.22 | G75: 18.81 | H75: 18.67 | I75: 30.5
B76: 01.12.16 | C76: 10:31:27 | D76: 23.61 | E76: 23.23 | G76: 18.83 | H76: 18.69 | I76: 30.5
B77: 01.12.16 | C77: 10:31:57 | D77: 23.61 | E77: 23.21 | G77: 18.84 | H77: 18.71 | I77: 30.4
B78: 01.12.16 | C78: 10:32:27 | D78: 23.61 | E78: 23.24 | G78: 18.85 | H78: 18.72 | I78: 30.4
B79: 01.12.16 | C79: 10:32:57 | D79: 23.6 | E79: 23.23 | G79: 18.87 | H79: 18.74 | I79: 30.4
B80: 01.12.16 | C80: 10:33:27 | D80: 23.6 | E80: 23.22 | G80: 18.88 | H80: 18.76 | I80: 30.4
B81: 01.12.16 | C81: 10:33:57 | D81: 23.61 | E81: 23.22 | G81: 18.9 | H81: 18.78 | I81: 30.3
B82: 01.12.16 | C82: 10:34:27 | D82: 23.6 | E82: 23.23 | G82: 18.92 | H82: 18.79 | I82: 30.3
B83: 01.12.16 | C83: 10:34:57 | D83: 23.6 | E83: 23.22 | G83: 18.94 | H83: 18.81 | I83: 30.3
B84: 01.12.16 | C84: 10:35:27 | D84: 23.61 | E84: 23.22 | G84: 18.95 | H84: 18.83 | I84: 30.2
B85: 01.12.16 | C85: 10:35:57 | D85: 23.6 | E85: 23.21 | G85: 18.98 | H85: 18.85 | I85: 30.3
B86: 01.12.16 | C86: 10:36:27 | D86: 23.6 | E86: 23.23 | G86: 18.99 | H86: 18.86 | I86: 30.2
B87: 01.12.16 | C87: 10:36:57 | D87: 23.61 | E87: 23.22 | G87: 19.01 | H87: 18.88 | I87: 30.2
B88: 01.12.16 | C88: 10:37:27 | D88: 23.6 | E88: 23.21 | G88: 19.02 | H88: 18.9 | I88: 30.1
B89: 01.12.16 | C89: 10:37:57 | D89: 23.61 | E89: 23.22 | G89: 19.05 | H89: 18.92 | I89: 30.1
B90: 01.12.16 | C90: 10:38:27 | D90: 23.62 | E90: 23.23 | G90: 19.06 | H90: 18.93 | I90: 30.1
B91: 01.12.16 | C91: 10:38:57 | D91: 23.63 | E91: 23.25 | G91: 19.08 | H91: 18.95 | I91: 30.1
B92: 01.12.16 | C92: 10:39:27 | D92: 23.64 | E92: 23.25 | G92: 19.09 | H92: 18.97 | I92: 30
B93: 01.12.16 | C93: 10:39:57 | D93: 23.65 | E93: 23.26 | G93: 19.1 | H93: 18.99 | I93: 30
B94: 01.12.16 | C94: 10:40:27 | D94: 23.67 | E94: 23.27 | G94: 19.11 | H94: 19.01 | I94: 30.1
B95: 01.12.16 | C95: 10:40:57 | D95: 23.68 | E95: 23.3 | G95: 19.13 | H95: 19.02 | I95: 30
B96: 01.12.16 | C96: 10:41:27 | D96: 23.7 | E96: 23.32 | G96: 19.16 | H96: 19.04 | I96: 30
B97: 01.12.16 | C97: 10:41:57 | D97: 23.7 | E97: 23.31 | G97: 19.17 | H97: 19.05 | I97: 30
B98: 01.12.16 | C98: 10:42:27 | D98: 23.72 | E98: 23.34 | G98: 19.18 | H98: 19.06 | I98: 29.9
B99: 01.12.16 | C99: 10:42:57 | D99: 23.73 | E99: 23.35 | G99: 19.19 | H99: 19.07 | I99: 29.9
B100: 01.12.16 | C100: 10:43:27 | D100: 23.74 | E100: 23.36 | G100: 19.21 | H100: 19.09 | I100: 30
B101: 01.12.16 | C101: 10:43:57 | D101: 23.74 | E101: 23.36 | G101: 19.22 | H101: 19.1 | I101: 29.9
B102: 01.12.16 | C102: 10:44:27 | D102: 23.77 | E102: 23.38 | G102: 19.23 | H102: 19.12 | I102: 30
B103: 01.12.16 | C103: 10:44:57 | D103: 23.78 | E103: 23.39 | G103: 19.24 | H103: 19.12 | I103: 29.9
B104: 01.12.16 | C104: 10:45:27 | D104: 23.8 | E104: 23.4 | G104: 19.25 | H104: 19.14 | I104: 29.9
B105: 01.12.16 | C105: 10:45:57 | D105: 23.82 | E105: 23.42 | G105: 19.26 | H105: 19.16 | I105: 29.9
B106: 01.12.16 | C106: 10:46:27 | D106: 23.83 | E106: 23.42 | G106: 19.27 | H106: 19.17 | I106: 29.9
B107: 01.12.16 | C107: 10:46:57 | D107: 23.84 | E107: 23.45 | G107: 19.27 | H107: 19.18 | I107: 29.9
B108: 01.12.16 | C108: 10:47:27 | D108: 23.87 | E108: 23.46 | G108: 19.28 | H108: 19.2 | I108: 29.9
B109: 01.12.16 | C109: 10:47:58 | D109: 23.89 | E109: 23.49 | G109: 19.28 | H109: 19.21 | I109: 29.8
B110: 01.12.16 | C110: 10:48:28 | D110: 23.91 | E110: 23.51 | G110: 19.31 | H110: 19.22 | I110: 29.8
B111: 01.12.16 | C111: 10:48:58 | D111: 23.91 | E111: 23.54 | G111: 19.32 | H111: 19.23 | I111: 29.8
B112: 01.12.16 | C112: 10:49:28 | D112: 23.93 | E112: 23.54 | G112: 19.33 | H112: 19.24 | I112: 29.8
B113: 01.12.16 | C113: 10:49:58 | D113: 23.92 | E113: 23.59 | G113: 19.34 | H113: 19.26 | I113: 29.7
B114: 01.12.16 | C114: 10:50:28 | D114: 23.73 | E114: 23.45 | G114: 19.36 | H114: 19.28 | I114: 29.7
B115: 01.12.16 | C115: 10:50:58 | D115: 23.6 | E115: 23.32 | G115: 19.37 | H115: 19.31 | I115: 29.6
B116: 01.12.16 | C116: 10:51:28 | D116: 23.46 | E116: 23.18 | G116: 19.41 | H116: 19.32 | I116: 29.6
B117: 01.12.16 | C117: 10:51:58 | D117: 23.32 | E117: 23.04 | G117: 19.44 | H117: 19.33 | I117: 29.6
B118: 01.12.16 | C118: 10:52:28 | D118: 23.21 | E118: 22.93 | G118: 19.49 | H118: 19.36 | I118: 29.5
B119: 01.12.16 | C119: 10:52:58 | D119: 23.14 | E119: 22.85 | G119: 19.53 | H119: 19.38 | I119: 29.5
B120: 01.12.16 | C120: 10:53:28 | D120: 23.05 | E120: 22.76 | G120: 19.56 | H120: 19.39 | I120: 29.5
B121: 01.12.16 | C121: 10:53:58 | D121: 22.96 | E121: 22.68 | G121: 19.56 | H121: 19.4 | I121: 29.5
B122: 01.12.16 | C122: 10:54:28 | D122: 22.9 | E122: 22.6 | G122: 19.59 | H122: 19.41 | I122: 29.5
B123: 01.12.16 | C123: 10:54:58 | D123: 22.85 | E123: 22.56 | G123: 19.59 | H123: 19.41 | I123: 29.5
B124: 01.12.16 | C124: 10:55:28 | D124: 22.79 | E124: 22.5 | G124: 19.58 | H124: 19.42 | I124: 29.5
B125: 01.12.16 | C125: 10:55:58 | D125: 22.76 | E125: 22.45 | G125: 19.58 | H125: 19.42 | I125: 29.5
B126: 01.12.16 | C126: 10:56:28 | D126: 22.72 | E126: 22.41 | G126: 19.59 | H126: 19.43 | I126: 29.5
B127: 01.12.16 | C127: 10:56:58 | D127: 22.68 | E127: 22.39 | G127: 19.6 | H127: 19.44 | I127: 29.5
B128: 01.12.16 | C128: 10:57:28 | D128: 22.66 | E128: 22.37 | G128: 19.61 | H128: 19.45 | I128: 29.4
B129: 01.12.16 | C129: 10:57:58 | D129: 22.65 | E129: 22.36 | G129: 19.62 | H129: 19.46 | I129: 29.5
B130: 01.12.16 | C130: 10:58:28 | D130: 22.65 | E130: 22.35 | G130: 19.62 | H130: 19.46 | I130: 29.5
B131: 01.12.16 | C131: 10:58:58 | D131: 22.64 | E131: 22.34 | G131: 19.62 | H131: 19.46 | I131: 29.5
B132: 01.12.16 | C132: 10:59:28 | D132: 22.65 | E132: 22.34 | G132: 19.61 | H132: 19.46 | I132: 29.5
B133: 01.12.16 | C133: 10:59:58 | D133: 22.65 | E133: 22.35 | G133: 19.61 | H133: 19.47 | I133: 29.5
B134: 01.12.16 | C134: 11:00:28 | D134: 22.66 | E134: 22.35 | G134: 19.61 | H134: 19.47 | I134: 29.5
B135: 01.12.16 | C135: 11:00:58 | D135: 22.66 | E135: 22.36 | G135: 19.61 | H135: 19.48 | I135: 29.5
B136: 01.12.16 | C136: 11:01:28 | D136: 22.67 | E136: 22.36 | G136: 19.61 | H136: 19.48 | I136: 29.5
B137: 01.12.16 | C137: 11:01:58 | D137: 22.67 | E137: 22.37 | G137: 19.61 | H137: 19.49 | I137: 29.5
B138: 01.12.16 | C138: 11:02:28 | D138: 22.69 | E138: 22.38 | G138: 19.62 | H138: 19.5 | I138: 29.5
B139: 01.12.16 | C139: 11:02:58 | D139: 22.7 | E139: 22.38 | G139: 19.64 | H139: 19.5 | I139: 29.5
B140: 01.12.16 | C140: 11:03:28 | D140: 22.7 | E140: 22.4 | G140: 19.68 | H140: 19.51 | I140: 29.5
B141: 01.12.16 | C141: 11:03:58 | D141: 22.72 | E141: 22.4 | G141: 19.69 | H141: 19.52 | I141: 29.4
B142: 01.12.16 | C142: 11:04:28 | D142: 22.72 | E142: 22.4 | G142: 19.68 | H142: 19.53 | I142: 29.4
B143: 01.12.16 | C143: 11:04:58 | D143: 22.72 | E143: 22.4 | G143: 19.7 | H143: 19.53 | I143: 29.4
B144: 01.12.16 | C144: 11:05:28 | D144: 22.72 | E144: 22.4 | G144: 19.71 | H144: 19.54 | I144: 29.4
B145: 01.12.16 | C145: 11:05:58 | D145: 22.7 | E145: 22.39 | G145: 19.71 | H145: 19.55 | I145: 29.4
B146: 01.12.16 | C146: 11:06:28 | D146: 22.7 | E146: 22.4 | G146: 19.7 | H146: 19.56 | I146: 29.3
B147: 01.12.16 | C147: 11:06:58 | D147: 22.69 | E147: 22.4 | G147: 19.7 | H147: 19.57 | I147: 29.3
B148: 01.12.16 | C148: 11:07:28 | D148: 22.69 | E148: 22.38 | G148: 19.73 | H148: 19.58 | I148: 29.4
B149: 01.12.16 | C149: 11:07:58 | D149: 22.69 | E149: 22.38 | G149: 19.73 | H149: 19.58 | I149: 29.3
B150: 01.12.16 | C150: 11:08:28 | D150: 22.69 | E150: 22.38 | G150: 19.73 | H150: 19.59 | I150: 29.3
B151: 01.12.16 | C151: 11:08:58 | D151: 22.69 | E151: 22.38 | G151: 19.73 | H151: 19.6 | I151: 29.3
B152: 01.12.16 | C152: 11:09:28 | D152: 22.68 | E152: 22.38 | G152: 19.74 | H152: 19.61 | I152: 29.3
B153: 01.12.16 | C153: 11:09:58 | D153: 22.69 | E153: 22.39 | G153: 19.75 | H153: 19.61 | I153: 29.3
B154: 01.12.16 | C154: 11:10:28 | D154: 22.69 | E154: 22.38 | G154: 19.76 | H154: 19.62 | I154: 29.3
B155: 01.12.16 | C155: 11:10:58 | D155: 22.7 | E155: 22.39 | G155: 19.76 | H155: 19.62 | I155: 29.3
B156: 01.12.16 | C156: 11:11:28 | D156: 22.72 | E156: 22.39 | G156: 19.76 | H156: 19.63 | I156: 29.3
B157: 01.12.16 | C157: 11:11:58 | D157: 22.73 | E157: 22.4 | G157: 19.77 | H157: 19.64 | I157: 29.3
B158: 01.12.16 | C158: 11:12:28 | D158: 22.73 | E158: 22.41 | G158: 19.79 | H158: 19.65 | I158: 29.3
B159: 01.12.16 | C159: 11:12:58 | D159: 22.75 | E159: 22.42 | G159: 19.79 | H159: 19.66 | I159: 29.3
B160: 01.12.16 | C160: 11:13:28 | D160: 22.76 | E160: 22.43 | G160: 19.8 | H160: 19.66 | I160: 29.3
B161: 01.12.16 | C161: 11:13:58 | D161: 22.77 | E161: 22.45 | G161: 19.8 | H161: 19.66 | I161: 29.3
B162: 01.12.16 | C162: 11:14:28 | D162: 22.79 | E162: 22.45 | G162: 19.81 | H162: 19.67 | I162: 29.2
B163: 01.12.16 | C163: 11:14:58 | D163: 22.8 | E163: 22.47 | G163: 19.81 | H163: 19.68 | I163: 29.3
B164: 01.12.16 | C164: 11:15:28 | D164: 22.81 | E164: 22.48 | G164: 19.81 | H164: 19.69 | I164: 29.3
B165: 01.12.16 | C165: 11:15:58 | D165: 22.82 | E165: 22.5 | G165: 19.81 | H165: 19.69 | I165: 29.3
B166: 01.12.16 | C166: 11:16:28 | D166: 22.85 | E166: 22.52 | G166: 19.81 | H166: 19.7 | I166: 29.3
B167: 01.12.16 | C167: 11:16:58 | D167: 22.85 | E167: 22.52 | G167: 19.83 | H167: 19.7 | I167: 29.2
B168: 01.12.16 | C168: 11:17:28 | D168: 22.86 | E168: 22.54 | G168: 19.86 | H168: 19.71 | I168: 29.3
B169: 01.12.16 | C169: 11:17:59 | D169: 22.86 | E169: 22.54 | G169: 19.87 | H169: 19.72 | I169: 29.2
B170: 01.12.16 | C170: 11:18:29 | D170: 22.87 | E170: 22.55 | G170: 19.91 | H170: 19.73 | I170: 29.2
B171: 01.12.16 | C171: 11:18:59 | D171: 22.87 | E171: 22.55 | G171: 19.92 | H171: 19.73 | I171: 29.2
B172: 01.12.16 | C172: 11:19:29 | D172: 22.87 | E172: 22.55 | G172: 19.91 | H172: 19.73 | I172: 29.2
B173: 01.12.16 | C173: 11:19:59 | D173: 22.88 | E173: 22.56 | G173: 19.91 | H173: 19.74 | I173: 29.2
B174: 01.12.16 | C174: 11:20:29 | D174: 22.89 | E174: 22.57 | G174: 19.9 | H174: 19.75 | I174: 29.2
B175: 01.12.16 | C175: 11:20:59 | D175: 22.9 | E175: 22.57 | G175: 19.9 | H175: 19.75 | I175: 29.2
B176: 01.12.16 | C176: 11:21:29 | D176: 22.91 | E176: 22.58 | G176: 19.92 | H176: 19.75 | I176: 29.2
B177: 01.12.16 | C177: 11:21:59 | D177: 22.93 | E177: 22.6 | G177: 19.93 | H177: 19.76 | I177: 29.2
B178: 01.12.16 | C178: 11:22:29 | D178: 22.94 | E178: 22.62 | G178: 19.94 | H178: 19.77 | I178: 29.2
B179: 01.12.16 | C179: 11:22:59 | D179: 22.96 | E179: 22.63 | G179: 19.95 | H179: 19.77 | I179: 29.2
B180: 01.12.16 | C180: 11:23:29 | D180: 22.96 | E180: 22.64 | G180: 19.96 | H180: 19.77 | I180: 29.2
B181: 01.12.16 | C181: 11:23:59 | D181: 22.98 | E181: 22.65 | G181: 19.96 | H181: 19.78 | I181: 29.2
B182: 01.12.16 | C182: 11:24:29 | D182: 22.99 | E182: 22.67 | G182: 19.96 | H182: 19.79 | I182: 29.2
B183: 01.12.16 | C183: 11:24:59 | D183: 23 | E183: 22.67 | G183: 19.97 | H183: 19.8 | I183: 29.1
B184: 01.12.16 | C184: 11:25:29 | D184: 23.01 | E184: 22.69 | G184: 19.98 | H184: 19.81 | I184: 29.1
B185: 01.12.16 | C185: 11:25:59 | D185: 23.03 | E185: 22.69 | G185: 19.99 | H185: 19.83 | I185: 29.1
B186: 01.12.16 | C186: 11:26:29 | D186: 23.1 | E186: 22.74 | G186: 20 | H186: 19.84 | I186: 29.1
B187: 01.12.16 | C187: 11:26:59 | D187: 23.24 | E187: 22.84 | G187: 20 | H187: 19.85 | I187: 29.2
B188: 01.12.16 | C188: 11:27:29 | D188: 23.48 | E188: 23.06 | G188: 20 | H188: 19.86 | I188: 29.1
B189: 01.12.16 | C189: 11:27:59 | D189: 23.71 | E189: 23.29 | G189: 20 | H189: 19.87 | I189: 29.1
B190: 01.12.16 | C190: 11:28:29 | D190: 23.92 | E190: 23.52 | G190: 20.03 | H190: 19.88 | I190: 29.1
B191: 01.12.16 | C191: 11:28:59 | D191: 24.08 | E191: 23.67 | G191: 20.06 | H191: 19.89 | I191: 29.1
B192: 01.12.16 | C192: 11:29:29 | D192: 24.37 | E192: 23.94 | G192: 20.08 | H192: 19.9 | I192: 29
B193: 01.12.16 | C193: 11:29:59 | D193: 24.41 | E193: 24.06 | G193: 20.1 | H193: 19.91 | I193: 29
B194: 01.12.16 | C194: 11:30:29 | D194: 24.3 | E194: 24.01 | G194: 20.1 | H194: 19.93 | I194: 29
B195: 01.12.16 | C195: 11:30:59 | D195: 24.21 | E195: 23.91 | G195: 20.11 | H195: 19.94 | I195: 28.9
B196: 01.12.16 | C196: 11:31:29 | D196: 24.09 | E196: 23.79 | G196: 20.11 | H196: 19.96 | I196: 29
B197: 01.12.16 | C197: 11:31:59 | D197: 23.96 | E197: 23.67 | G197: 20.13 | H197: 19.98 | I197: 28.9
B198: 01.12.16 | C198: 11:32:29 | D198: 23.86 | E198: 23.55 | G198: 20.13 | H198: 19.99 | I198: 28.9
B199: 01.12.16 | C199: 11:32:59 | D199: 23.78 | E199: 23.49 | G199: 20.14 | H199: 20 | I199: 28.8
B200: 01.12.16 | C200: 11:33:29 | D200: 23.68 | E200: 23.39 | G200: 20.15 | H200: 20.02 | I200: 28.9
B201: 01.12.16 | C201: 11:33:59 | D201: 23.6 | E201: 23.3 | G201: 20.17 | H201: 20.03 | I201: 28.8
... 818 more rows

Sheet 13.12.
M1: Oděv | N1: Metabolizmus | O1: Práce venku
M2: [clo] | N2: [met] | O2: [met]
M3: 1 | N3: 1.2 | O3: 0
Q5: Project: | R5: 13.12.16
Q6: Date: | R6: 13.12.2016
D7: Tp1 | E7: Tp2 | F7: Tp | G7: Tk1 | H7: Ta | I7: RH | J7: v | K7: Tr | L7: To | M7: PMV | N7: PPD | O7: DR | Q7: Name: | R7: 27 | AC7: Průměr
D8: [°C] | E8: [°C] | F8: [°C] | G8: [°C] | H8: [°C] | I8: [%] | J8: [m/s] | K8: [°C] | L8: [°C] | M8: [1] | N8: [%] | O8: [%] | Q8: V [m/s] | R8: 12:34:19 | S8: 0.151 | T8: V [m/s] | U8: 12:37:20 | V8: 0.16 | W8: V [m/s] | X8: 12:40:22 | Y8: 0.135 | Z8: V [m/s] | AA8: 12:43:24 | AB8: 0.151 | AC8: =AVERAGE(AB8,Y8,V8,S8) -> 0.14925
A9: 27 | B9: 13.12.16 | C9: 12:37:28 | D9: 27.5 | E9: 27.16 | F9: =AVERAGEA(D9,E9) -> 27.33 | G9: 22.42 | H9: 22.72 | I9: 28.4 | J9: =AC8 -> 0.14925 | K9: =((G9+273)^4+2.5*10^8*J9^0.6*(G9-H9))^(1/4)-273 -> 22.18743569 | L9: =TOPERA(H9,K9,J9) -> 22.45371785 | M9: =PMVx($M$3,$N$3,$O$3,H9,K9,J9,I9,0) -> 0.5497202394 | N9: =PPD(M9) -> 11.32595653 | O9: =AC12 -> 15.64304224 | Q9: STD [m/s] | R9: 12:34:19 | S9: 0.07 | T9: STD [m/s] | U9: 12:37:20 | V9: 0.06 | W9: STD [m/s] | X9: 12:40:22 | Y9: 0.068 | Z9: STD [m/s] | AA9: 12:43:24 | AB9: 0.061 | AC9: =AVERAGE(AB9,Y9,V9,S9) -> 0.06475
A10: 28 | B10: 13.12.16 | C10: 13:30:29 | D10: 29.19 | E10: 28.81 | F10: =AVERAGEA(D10,E10) -> 29 | G10: 22.47 | H10: 22.99 | I10: 28.3 | J10: =AC17 -> 0.03725 | K10: =((G10+273)^4+2.5*10^8*J10^0.6*(G10-H10))^(1/4)-273 -> 22.29485202 | L10: =TOPERA(H10,K10,J10) -> 22.64242601 | M10: =PMVx($M$3,$N$3,$O$3,H10,K10,J10,I10,0) -> 0.7051891596 | N10: =PPD(M10) -> 15.45997585 | O10: =AC21 -> 0 | Q10: Tu % | R10: 12:34:19 | S10: 46.26 | T10: Tu % | U10: 12:37:20 | V10: 37.228 | W10: Tu % | X10: 12:40:22 | Y10: 50.018 | Z10: Tu % | AA10: 12:43:24 | AB10: 40.532 | AC10: =AVERAGE(AB10,Y10,V10,S10) -> 43.5095
A11: 29 | B11: 13.12.16 | C11: 14:30:31 | D11: 25.51 | E11: 25.18 | F11: =AVERAGEA(D11,E11) -> 25.345 | G11: 21.9 | H11: 22.13 | I11: 29.4 | J11: =AC26 -> 0.09675 | K11: =((G11+273)^4+2.5*10^8*J11^0.6*(G11-H11))^(1/4)-273 -> 21.76187278 | L11: =TOPERA(H11,K11,J11) -> 21.94593639 | M11: =PMVx($M$3,$N$3,$O$3,H11,K11,J11,I11,0) -> 0.7067216372 | N11: =PPD(M11) -> 15.50593525 | O11: =AC30 -> 8.240512608 | Q11: T [C] | R11: 12:34:19 | S11: 22.185 | T11: T [C] | U11: 12:37:20 | V11: 22.11 | W11: T [C] | X11: 12:40:22 | Y11: 22.22 | Z11: T [C] | AA11: 12:43:24 | AB11: 22.204 | AC11: =AVERAGE(AB11,Y11,V11,S11) -> 22.17975
A12: 30 | B12: 13.12.16 | C12: 15:12:03 | D12: 24.14 | E12: 23.86 | F12: =AVERAGEA(D12,E12) -> 24 | G12: 21.58 | H12: 21.72 | I12: 30 | J12: =AC35 -> 0.1405 | K12: =((G12+273)^4+2.5*10^8*J12^0.6*(G12-H12))^(1/4)-273 -> 21.47450366 | L12: =TOPERA(H12,K12,J12) -> 21.59725183 | M12: =PMVx($M$3,$N$3,$O$3,H12,K12,J12,I12,0) -> 0.6091828007 | N12: =PPD(M12) -> 12.78330962 | O12: =AC39 -> 14.97308575 | Q12: DR % | R12: 12:34:19 | S12: 16.358 | T12: DR % | U12: 12:37:20 | V12: 16.204 | W12: DR % | X12: 12:40:22 | Y12: 14.454 | Z12: DR % | AA12: 12:43:24 | AB12: 15.387 | AC12: =dr(AC8,AC10,AC11) -> 15.64304224
B14: 13.12.16 | C14: 10:47:54 | D14: 24.43 | E14: 24.14 | G14: 19.45 | H14: 19.81 | I14: 30.3 | Q14: Project: | R14: 13.12.16
B15: 13.12.16 | C15: 10:48:24 | D15: 24.45 | E15: 24.16 | G15: 19.48 | H15: 19.83 | I15: 30.3 | Q15: Date: | R15: 13.12.2016
B16: 13.12.16 | C16: 10:48:54 | D16: 24.47 | E16: 24.18 | G16: 19.5 | H16: 19.85 | I16: 30.3 | Q16: Name: | R16: 28
B17: 13.12.16 | C17: 10:49:24 | D17: 24.49 | E17: 24.21 | G17: 19.53 | H17: 19.88 | I17: 30.2 | Q17: V [m/s] | R17: 13:27:05 | S17: 0.035 | T17: V [m/s] | U17: 13:30:07 | V17: 0.036 | W17: V [m/s] | X17: 13:33:09 | Y17: 0.041 | Z17: V [m/s] | AA17: 13:36:10 | AB17: 0.037 | AC17: =AVERAGE(AB17,Y17,V17,S17) -> 0.03725
B18: 13.12.16 | C18: 10:49:54 | D18: 24.52 | E18: 24.24 | G18: 19.56 | H18: 19.9 | I18: 30.1 | Q18: STD [m/s] | R18: 13:27:05 | S18: 0.017 | T18: STD [m/s] | U18: 13:30:07 | V18: 0.023 | W18: STD [m/s] | X18: 13:33:09 | Y18: 0.02 | Z18: STD [m/s] | AA18: 13:36:10 | AB18: 0.019 | AC18: =AVERAGE(AB18,Y18,V18,S18) -> 0.01975
B19: 13.12.16 | C19: 10:50:24 | D19: 24.54 | E19: 24.26 | G19: 19.58 | H19: 19.93 | I19: 30.1 | Q19: Tu % | R19: 13:27:05 | S19: 48.953 | T19: Tu % | U19: 13:30:07 | V19: 64.32 | W19: Tu % | X19: 13:33:09 | Y19: 50.35 | Z19: Tu % | AA19: 13:36:10 | AB19: 51.064 | AC19: =AVERAGE(AB19,Y19,V19,S19) -> 53.67175
B20: 13.12.16 | C20: 10:50:54 | D20: 24.55 | E20: 24.27 | G20: 19.6 | H20: 19.95 | I20: 30.1 | Q20: T [C] | R20: 13:27:05 | S20: 22.809 | T20: T [C] | U20: 13:30:07 | V20: 22.691 | W20: T [C] | X20: 13:33:09 | Y20: 22.718 | Z20: T [C] | AA20: 13:36:10 | AB20: 22.73 | AC20: =AVERAGE(AB20,Y20,V20,S20) -> 22.737
B21: 13.12.16 | C21: 10:51:24 | D21: 24.57 | E21: 24.29 | G21: 19.62 | H21: 19.97 | I21: 30 | Q21: DR % | R21: 13:27:05 | S21: 0 | T21: DR % | U21: 13:30:07 | V21: 0 | W21: DR % | X21: 13:33:09 | Y21: 0 | Z21: DR % | AA21: 13:36:10 | AB21: 0 | AC21: 0
B22: 13.12.16 | C22: 10:51:54 | D22: 24.58 | E22: 24.3 | G22: 19.65 | H22: 19.99 | I22: 30
B23: 13.12.16 | C23: 10:52:24 | D23: 24.6 | E23: 24.32 | G23: 19.68 | H23: 20 | I23: 29.9 | Q23: Project: | R23: 13.12.16
B24: 13.12.16 | C24: 10:52:54 | D24: 24.6 | E24: 24.33 | G24: 19.69 | H24: 20.01 | I24: 29.9 | Q24: Date: | R24: 13.12.2016
B25: 13.12.16 | C25: 10:53:24 | D25: 24.63 | E25: 24.34 | G25: 19.71 | H25: 20.03 | I25: 29.8 | Q25: Name: | R25: 29
B26: 13.12.16 | C26: 10:53:54 | D26: 24.63 | E26: 24.34 | G26: 19.73 | H26: 20.06 | I26: 29.8 | Q26: V [m/s] | R26: 14:27:12 | S26: 0.103 | T26: V [m/s] | U26: 14:30:14 | V26: 0.117 | W26: V [m/s] | X26: 14:33:16 | Y26: 0.087 | Z26: V [m/s] | AA26: 14:36:17 | AB26: 0.08 | AC26: =AVERAGE(AB26,Y26,V26,S26) -> 0.09675
B27: 13.12.16 | C27: 10:54:24 | D27: 24.65 | E27: 24.36 | G27: 19.75 | H27: 20.08 | I27: 29.8 | Q27: STD [m/s] | R27: 14:27:12 | S27: 0.05 | T27: STD [m/s] | U27: 14:30:14 | V27: 0.052 | W27: STD [m/s] | X27: 14:33:16 | Y27: 0.045 | Z27: STD [m/s] | AA27: 14:36:17 | AB27: 0.045 | AC27: =AVERAGE(AB27,Y27,V27,S27) -> 0.048
B28: 13.12.16 | C28: 10:54:54 | D28: 24.66 | E28: 24.37 | G28: 19.77 | H28: 20.1 | I28: 29.7 | Q28: Tu % | R28: 14:27:12 | S28: 48.187 | T28: Tu % | U28: 14:30:14 | V28: 44.133 | W28: Tu % | X28: 14:33:16 | Y28: 51.848 | Z28: Tu % | AA28: 14:36:17 | AB28: 5.6459 | AC28: =AVERAGE(AB28,Y28,V28,S28) -> 37.453475
B29: 13.12.16 | C29: 10:55:24 | D29: 24.67 | E29: 24.38 | G29: 19.79 | H29: 20.13 | I29: 29.7 | Q29: T [C] | R29: 14:27:12 | S29: 21.73 | T29: T [C] | U29: 14:30:14 | V29: 21.663 | W29: T [C] | X29: 14:33:16 | Y29: 21.739 | Z29: T [C] | AA29: 14:36:17 | AB29: 21.732 | AC29: =AVERAGE(AB29,Y29,V29,S29) -> 21.716
B30: 13.12.16 | C30: 10:55:54 | D30: 24.69 | E30: 24.4 | G30: 19.81 | H30: 20.14 | I30: 29.6 | Q30: DR % | R30: 14:27:12 | S30: 9.901 | T30: DR % | U30: 14:30:14 | V30: 11.627 | W30: DR % | X30: 14:33:16 | Y30: 7.605 | Z30: DR % | AA30: 14:36:17 | AB30: 6.649 | AC30: =dr(AC26,AC28,AC29) -> 8.240512608
B31: 13.12.16 | C31: 10:56:24 | D31: 24.69 | E31: 24.4 | G31: 19.83 | H31: 20.16 | I31: 29.6
B32: 13.12.16 | C32: 10:56:54 | D32: 24.7 | E32: 24.4 | G32: 19.84 | H32: 20.18 | I32: 29.6 | Q32: Project: | R32: 13.12.16
B33: 13.12.16 | C33: 10:57:24 | D33: 24.7 | E33: 24.41 | G33: 19.86 | H33: 20.18 | I33: 29.5 | Q33: Date: | R33: 13.12.2016
B34: 13.12.16 | C34: 10:57:54 | D34: 24.71 | E34: 24.42 | G34: 19.88 | H34: 20.21 | I34: 29.5 | Q34: Name: | R34: 30
B35: 13.12.16 | C35: 10:58:24 | D35: 24.71 | E35: 24.42 | G35: 19.9 | H35: 20.22 | I35: 29.5 | Q35: V [m/s] | R35: 15:09:27 | S35: 0.151 | T35: V [m/s] | U35: 15:12:28 | V35: 0.147 | W35: V [m/s] | X35: 15:15:30 | Y35: 0.135 | Z35: V [m/s] | AA35: 15:18:32 | AB35: 0.129 | AC35: =AVERAGE(AB35,Y35,V35,S35) -> 0.1405
B36: 13.12.16 | C36: 10:58:54 | D36: 24.72 | E36: 24.42 | G36: 19.9 | H36: 20.23 | I36: 29.5 | Q36: STD [m/s] | R36: 15:09:27 | S36: 0.055 | T36: STD [m/s] | U36: 15:12:28 | V36: 0.054 | W36: STD [m/s] | X36: 15:15:30 | Y36: 0.053 | Z36: STD [m/s] | AA36: 15:18:32 | AB36: 0.052 | AC36: =AVERAGE(AB36,Y36,V36,S36) -> 0.0535
B37: 13.12.16 | C37: 10:59:24 | D37: 24.73 | E37: 24.44 | G37: 19.92 | H37: 20.25 | I37: 29.5 | Q37: Tu % | R37: 15:09:27 | S37: 36.305 | T37: Tu % | U37: 15:12:28 | V37: 37.091 | W37: Tu % | X37: 15:15:30 | Y37: 39.054 | Z37: Tu % | AA37: 15:18:32 | AB37: 40.202 | AC37: =AVERAGE(AB37,Y37,V37,S37) -> 38.163
B38: 13.12.16 | C38: 10:59:54 | D38: 24.75 | E38: 24.46 | G38: 19.94 | H38: 20.27 | I38: 29.5 | Q38: T [C] | R38: 15:09:27 | S38: 21.058 | T38: T [C] | U38: 15:12:28 | V38: 21.031 | W38: T [C] | X38: 15:15:30 | Y38: 21.058 | Z38: T [C] | AA38: 15:18:32 | AB38: 21.015 | AC38: =AVERAGE(AB38,Y38,V38,S38) -> 21.0405
B39: 13.12.16 | C39: 11:00:24 | D39: 24.78 | E39: 24.48 | G39: 19.97 | H39: 20.29 | I39: 29.4 | Q39: DR % | R39: 15:09:27 | S39: 16.177 | T39: DR % | U39: 15:12:28 | V39: 15.732 | W39: DR % | X39: 15:15:30 | Y39: 14.255 | Z39: DR % | AA39: 15:18:32 | AB39: 13.675 | AC39: =dr(AC35,AC37,AC38) -> 14.97308575
B40: 13.12.16 | C40: 11:00:54 | D40: 24.78 | E40: 24.49 | G40: 19.98 | H40: 20.3 | I40: 29.4
B41: 13.12.16 | C41: 11:01:24 | D41: 24.8 | E41: 24.5 | G41: 20 | H41: 20.31 | I41: 29.4
B42: 13.12.16 | C42: 11:01:54 | D42: 24.8 | E42: 24.52 | G42: 20.02 | H42: 20.33 | I42: 29.4
B43: 13.12.16 | C43: 11:02:24 | D43: 24.84 | E43: 24.53 | G43: 20.04 | H43: 20.35 | I43: 29.3
B44: 13.12.16 | C44: 11:02:54 | D44: 24.83 | E44: 24.54 | G44: 20.07 | H44: 20.38 | I44: 29.3
B45: 13.12.16 | C45: 11:03:24 | D45: 24.84 | E45: 24.55 | G45: 20.09 | H45: 20.4 | I45: 29.2
B46: 13.12.16 | C46: 11:03:54 | D46: 24.86 | E46: 24.56 | G46: 20.11 | H46: 20.41 | I46: 29.2
B47: 13.12.16 | C47: 11:04:24 | D47: 24.86 | E47: 24.57 | G47: 20.13 | H47: 20.44 | I47: 29.2
B48: 13.12.16 | C48: 11:04:54 | D48: 24.87 | E48: 24.58 | G48: 20.14 | H48: 20.45 | I48: 29.3
B49: 13.12.16 | C49: 11:05:24 | D49: 24.87 | E49: 24.58 | G49: 20.15 | H49: 20.45 | I49: 29.2
B50: 13.12.16 | C50: 11:05:54 | D50: 24.88 | E50: 24.58 | G50: 20.17 | H50: 20.46 | I50: 29.1
B51: 13.12.16 | C51: 11:06:25 | D51: 24.88 | E51: 24.59 | G51: 20.19 | H51: 20.47 | I51: 29.1
B52: 13.12.16 | C52: 11:06:55 | D52: 24.88 | E52: 24.59 | G52: 20.2 | H52: 20.5 | I52: 29
B53: 13.12.16 | C53: 11:07:25 | D53: 24.89 | E53: 24.6 | G53: 20.22 | H53: 20.52 | I53: 29.1
B54: 13.12.16 | C54: 11:07:55 | D54: 24.89 | E54: 24.59 | G54: 20.24 | H54: 20.54 | I54: 29.1
B55: 13.12.16 | C55: 11:08:25 | D55: 24.9 | E55: 24.6 | G55: 20.26 | H55: 20.56 | I55: 29.1
B56: 13.12.16 | C56: 11:08:55 | D56: 24.9 | E56: 24.62 | G56: 20.27 | H56: 20.58 | I56: 29.1
B57: 13.12.16 | C57: 11:09:25 | D57: 24.91 | E57: 24.63 | G57: 20.28 | H57: 20.6 | I57: 29.1
B58: 13.12.16 | C58: 11:09:55 | D58: 24.92 | E58: 24.64 | G58: 20.3 | H58: 20.62 | I58: 29
B59: 13.12.16 | C59: 11:10:25 | D59: 24.92 | E59: 24.65 | G59: 20.32 | H59: 20.63 | I59: 29
B60: 13.12.16 | C60: 11:10:55 | D60: 24.94 | E60: 24.65 | G60: 20.33 | H60: 20.65 | I60: 29
B61: 13.12.16 | C61: 11:11:25 | D61: 24.94 | E61: 24.66 | G61: 20.35 | H61: 20.66 | I61: 29
B62: 13.12.16 | C62: 11:11:55 | D62: 24.96 | E62: 24.67 | G62: 20.36 | H62: 20.67 | I62: 29
B63: 13.12.16 | C63: 11:12:25 | D63: 24.96 | E63: 24.68 | G63: 20.38 | H63: 20.69 | I63: 28.9
B64: 13.12.16 | C64: 11:12:55 | D64: 24.98 | E64: 24.69 | G64: 20.39 | H64: 20.71 | I64: 28.9
B65: 13.12.16 | C65: 11:13:25 | D65: 24.97 | E65: 24.69 | G65: 20.4 | H65: 20.7 | I65: 28.9
B66: 13.12.16 | C66: 11:13:55 | D66: 24.98 | E66: 24.7 | G66: 20.41 | H66: 20.71 | I66: 29
B67: 13.12.16 | C67: 11:14:25 | D67: 25.01 | E67: 24.72 | G67: 20.42 | H67: 20.73 | I67: 28.9
B68: 13.12.16 | C68: 11:14:55 | D68: 25.02 | E68: 24.74 | G68: 20.45 | H68: 20.74 | I68: 28.8
B69: 13.12.16 | C69: 11:15:25 | D69: 24.96 | E69: 24.71 | G69: 20.46 | H69: 20.76 | I69: 28.7
B70: 13.12.16 | C70: 11:15:55 | D70: 24.96 | E70: 24.68 | G70: 20.48 | H70: 20.77 | I70: 28.8
B71: 13.12.16 | C71: 11:16:25 | D71: 24.98 | E71: 24.7 | G71: 20.5 | H71: 20.79 | I71: 28.9
B72: 13.12.16 | C72: 11:16:55 | D72: 25.03 | E72: 24.72 | G72: 20.51 | H72: 20.79 | I72: 29
B73: 13.12.16 | C73: 11:17:25 | D73: 25.1 | E73: 24.78 | G73: 20.52 | H73: 20.8 | I73: 29.1
B74: 13.12.16 | C74: 11:17:55 | D74: 25.17 | E74: 24.86 | G74: 20.53 | H74: 20.82 | I74: 29.1
B75: 13.12.16 | C75: 11:18:25 | D75: 25.26 | E75: 24.93 | G75: 20.55 | H75: 20.85 | I75: 29.1
B76: 13.12.16 | C76: 11:18:55 | D76: 25.33 | E76: 25.02 | G76: 20.56 | H76: 20.86 | I76: 29.1
B77: 13.12.16 | C77: 11:19:25 | D77: 25.44 | E77: 25.11 | G77: 20.57 | H77: 20.87 | I77: 29.2
B78: 13.12.16 | C78: 11:19:55 | D78: 25.53 | E78: 25.2 | G78: 20.59 | H78: 20.88 | I78: 29.2
B79: 13.12.16 | C79: 11:20:25 | D79: 25.63 | E79: 25.28 | G79: 20.6 | H79: 20.9 | I79: 29.2
B80: 13.12.16 | C80: 11:20:55 | D80: 25.68 | E80: 25.36 | G80: 20.61 | H80: 20.9 | I80: 29.3
B81: 13.12.16 | C81: 11:21:25 | D81: 25.77 | E81: 25.44 | G81: 20.63 | H81: 20.92 | I81: 29.3
B82: 13.12.16 | C82: 11:21:55 | D82: 25.85 | E82: 25.52 | G82: 20.64 | H82: 20.95 | I82: 29.3
B83: 13.12.16 | C83: 11:22:25 | D83: 25.92 | E83: 25.59 | G83: 20.66 | H83: 20.98 | I83: 29.3
B84: 13.12.16 | C84: 11:22:55 | D84: 25.97 | E84: 25.65 | G84: 20.67 | H84: 21 | I84: 29.3
B85: 13.12.16 | C85: 11:23:25 | D85: 26.01 | E85: 25.7 | G85: 20.69 | H85: 21.02 | I85: 29.2
B86: 13.12.16 | C86: 11:23:55 | D86: 26.08 | E86: 25.76 | G86: 20.71 | H86: 21.04 | I86: 29.2
B87: 13.12.16 | C87: 11:24:25 | D87: 26.14 | E87: 25.82 | G87: 20.73 | H87: 21.07 | I87: 29.2
B88: 13.12.16 | C88: 11:24:55 | D88: 26.19 | E88: 25.86 | G88: 20.75 | H88: 21.11 | I88: 29.2
B89: 13.12.16 | C89: 11:25:25 | D89: 26.24 | E89: 25.92 | G89: 20.78 | H89: 21.15 | I89: 29.2
B90: 13.12.16 | C90: 11:25:55 | D90: 26.28 | E90: 25.96 | G90: 20.82 | H90: 21.18 | I90: 29.2
B91: 13.12.16 | C91: 11:26:25 | D91: 26.32 | E91: 26 | G91: 20.84 | H91: 21.22 | I91: 29.2
B92: 13.12.16 | C92: 11:26:55 | D92: 26.35 | E92: 26.03 | G92: 20.86 | H92: 21.23 | I92: 29.2
B93: 13.12.16 | C93: 11:27:25 | D93: 26.39 | E93: 26.07 | G93: 20.88 | H93: 21.24 | I93: 29.3
B94: 13.12.16 | C94: 11:27:55 | D94: 26.43 | E94: 26.1 | G94: 20.9 | H94: 21.25 | I94: 29.3
B95: 13.12.16 | C95: 11:28:25 | D95: 26.45 | E95: 26.14 | G95: 20.92 | H95: 21.26 | I95: 29.2
B96: 13.12.16 | C96: 11:28:55 | D96: 26.49 | E96: 26.18 | G96: 20.94 | H96: 21.3 | I96: 29.2
B97: 13.12.16 | C97: 11:29:25 | D97: 26.51 | E97: 26.19 | G97: 20.95 | H97: 21.31 | I97: 29.2
B98: 13.12.16 | C98: 11:29:55 | D98: 26.54 | E98: 26.22 | G98: 20.97 | H98: 21.34 | I98: 29.2
B99: 13.12.16 | C99: 11:30:25 | D99: 26.56 | E99: 26.25 | G99: 21 | H99: 21.36 | I99: 29.2
B100: 13.12.16 | C100: 11:30:55 | D100: 26.59 | E100: 26.28 | G100: 21.02 | H100: 21.38 | I100: 29.2
B101: 13.12.16 | C101: 11:31:25 | D101: 26.61 | E101: 26.3 | G101: 21.03 | H101: 21.39 | I101: 29.2
B102: 13.12.16 | C102: 11:31:55 | D102: 26.63 | E102: 26.33 | G102: 21.04 | H102: 21.4 | I102: 29.2
B103: 13.12.16 | C103: 11:32:25 | D103: 26.66 | E103: 26.36 | G103: 21.06 | H103: 21.42 | I103: 29.1
B104: 13.12.16 | C104: 11:32:55 | D104: 26.68 | E104: 26.38 | G104: 21.07 | H104: 21.48 | I104: 29.1
B105: 13.12.16 | C105: 11:33:25 | D105: 26.7 | E105: 26.39 | G105: 21.1 | H105: 21.5 | I105: 29.1
B106: 13.12.16 | C106: 11:33:55 | D106: 26.72 | E106: 26.41 | G106: 21.13 | H106: 21.53 | I106: 29.1
B107: 13.12.16 | C107: 11:34:25 | D107: 26.75 | E107: 26.43 | G107: 21.15 | H107: 21.55 | I107: 29.1
B108: 13.12.16 | C108: 11:34:55 | D108: 26.77 | E108: 26.45 | G108: 21.18 | H108: 21.58 | I108: 29.1
B109: 13.12.16 | C109: 11:35:25 | D109: 26.77 | E109: 26.47 | G109: 21.2 | H109: 21.59 | I109: 29
B110: 13.12.16 | C110: 11:35:55 | D110: 26.8 | E110: 26.49 | G110: 21.22 | H110: 21.6 | I110: 29
B111: 13.12.16 | C111: 11:36:26 | D111: 26.82 | E111: 26.51 | G111: 21.24 | H111: 21.61 | I111: 29
B112: 13.12.16 | C112: 11:36:56 | D112: 26.84 | E112: 26.53 | G112: 21.25 | H112: 21.61 | I112: 29
B113: 13.12.16 | C113: 11:37:26 | D113: 26.86 | E113: 26.54 | G113: 21.26 | H113: 21.62 | I113: 29
B114: 13.12.16 | C114: 11:37:56 | D114: 26.88 | E114: 26.56 | G114: 21.27 | H114: 21.62 | I114: 29
B115: 13.12.16 | C115: 11:38:26 | D115: 26.89 | E115: 26.59 | G115: 21.29 | H115: 21.63 | I115: 29
B116: 13.12.16 | C116: 11:38:56 | D116: 26.91 | E116: 26.59 | G116: 21.29 | H116: 21.64 | I116: 29.1
B117: 13.12.16 | C117: 11:39:26 | D117: 26.91 | E117: 26.6 | G117: 21.3 | H117: 21.67 | I117: 29
B118: 13.12.16 | C118: 11:39:56 | D118: 26.93 | E118: 26.62 | G118: 21.32 | H118: 21.69 | I118: 29
B119: 13.12.16 | C119: 11:40:26 | D119: 26.95 | E119: 26.64 | G119: 21.35 | H119: 21.71 | I119: 29
B120: 13.12.16 | C120: 11:40:56 | D120: 26.97 | E120: 26.66 | G120: 21.36 | H120: 21.72 | I120: 29
B121: 13.12.16 | C121: 11:41:26 | D121: 26.98 | E121: 26.66 | G121: 21.37 | H121: 21.73 | I121: 29
B122: 13.12.16 | C122: 11:41:56 | D122: 27 | E122: 26.68 | G122: 21.38 | H122: 21.73 | I122: 29
B123: 13.12.16 | C123: 11:42:26 | D123: 27.02 | E123: 26.7 | G123: 21.39 | H123: 21.75 | I123: 28.9
B124: 13.12.16 | C124: 11:42:56 | D124: 27.02 | E124: 26.72 | G124: 21.41 | H124: 21.77 | I124: 28.9
B125: 13.12.16 | C125: 11:43:26 | D125: 27.03 | E125: 26.72 | G125: 21.42 | H125: 21.79 | I125: 28.9
B126: 13.12.16 | C126: 11:43:56 | D126: 27.04 | E126: 26.73 | G126: 21.45 | H126: 21.83 | I126: 28.9
B127: 13.12.16 | C127: 11:44:26 | D127: 27.06 | E127: 26.75 | G127: 21.47 | H127: 21.86 | I127: 28.9
B128: 13.12.16 | C128: 11:44:56 | D128: 27.08 | E128: 26.75 | G128: 21.49 | H128: 21.88 | I128: 28.9
B129: 13.12.16 | C129: 11:45:26 | D129: 27.08 | E129: 26.77 | G129: 21.51 | H129: 21.89 | I129: 28.9
B130: 13.12.16 | C130: 11:45:56 | D130: 27.1 | E130: 26.79 | G130: 21.53 | H130: 21.91 | I130: 28.9
B131: 13.12.16 | C131: 11:46:26 | D131: 27.11 | E131: 26.79 | G131: 21.55 | H131: 21.93 | I131: 28.8
B132: 13.12.16 | C132: 11:46:56 | D132: 27.11 | E132: 26.8 | G132: 21.58 | H132: 21.94 | I132: 28.8
B133: 13.12.16 | C133: 11:47:26 | D133: 27.13 | E133: 26.8 | G133: 21.59 | H133: 21.94 | I133: 28.8
B134: 13.12.16 | C134: 11:47:56 | D134: 27.13 | E134: 26.81 | G134: 21.6 | H134: 21.97 | I134: 28.8
B135: 13.12.16 | C135: 11:48:26 | D135: 27.13 | E135: 26.82 | G135: 21.62 | H135: 21.99 | I135: 28.8
B136: 13.12.16 | C136: 11:48:56 | D136: 27.15 | E136: 26.84 | G136: 21.63 | H136: 21.99 | I136: 28.8
B137: 13.12.16 | C137: 11:49:26 | D137: 27.16 | E137: 26.84 | G137: 21.64 | H137: 21.99 | I137: 28.8
B138: 13.12.16 | C138: 11:49:56 | D138: 27.17 | E138: 26.86 | G138: 21.65 | H138: 22 | I138: 28.8
B139: 13.12.16 | C139: 11:50:26 | D139: 27.19 | E139: 26.87 | G139: 21.65 | H139: 22.01 | I139: 28.7
B140: 13.12.16 | C140: 11:50:56 | D140: 27.19 | E140: 26.88 | G140: 21.67 | H140: 22.05 | I140: 28.8
B141: 13.12.16 | C141: 11:51:26 | D141: 27.19 | E141: 26.88 | G141: 21.68 | H141: 22.07 | I141: 28.8
B142: 13.12.16 | C142: 11:51:56 | D142: 27.19 | E142: 26.89 | G142: 21.7 | H142: 22.08 | I142: 28.8
B143: 13.12.16 | C143: 11:52:26 | D143: 27.21 | E143: 26.9 | G143: 21.71 | H143: 22.08 | I143: 28.8
B144: 13.12.16 | C144: 11:52:56 | D144: 27.21 | E144: 26.91 | G144: 21.72 | H144: 22.07 | I144: 28.8
B145: 13.12.16 | C145: 11:53:26 | D145: 27.21 | E145: 26.91 | G145: 21.72 | H145: 22.07 | I145: 28.8
B146: 13.12.16 | C146: 11:53:56 | D146: 27.22 | E146: 26.91 | G146: 21.72 | H146: 22.09 | I146: 28.8
B147: 13.12.16 | C147: 11:54:26 | D147: 27.23 | E147: 26.93 | G147: 21.73 | H147: 22.09 | I147: 28.7
B148: 13.12.16 | C148: 11:54:56 | D148: 27.24 | E148: 26.94 | G148: 21.74 | H148: 22.11 | I148: 28.7
B149: 13.12.16 | C149: 11:55:26 | D149: 27.25 | E149: 26.94 | G149: 21.75 | H149: 22.11 | I149: 28.7
B150: 13.12.16 | C150: 11:55:56 | D150: 27.26 | E150: 26.95 | G150: 21.76 | H150: 22.11 | I150: 28.7
B151: 13.12.16 | C151: 11:56:26 | D151: 27.27 | E151: 26.96 | G151: 21.77 | H151: 22.12 | I151: 28.7
B152: 13.12.16 | C152: 11:56:56 | D152: 27.27 | E152: 26.96 | G152: 21.78 | H152: 22.13 | I152: 28.7
B153: 13.12.16 | C153: 11:57:26 | D153: 27.28 | E153: 26.97 | G153: 21.79 | H153: 22.14 | I153: 28.7
B154: 13.12.16 | C154: 11:57:56 | D154: 27.28 | E154: 26.98 | G154: 21.8 | H154: 22.16 | I154: 28.7
B155: 13.12.16 | C155: 11:58:26 | D155: 27.28 | E155: 26.99 | G155: 21.82 | H155: 22.17 | I155: 28.7
B156: 13.12.16 | C156: 11:58:56 | D156: 27.29 | E156: 26.99 | G156: 21.82 | H156: 22.18 | I156: 28.6
B157: 13.12.16 | C157: 11:59:26 | D157: 27.31 | E157: 26.99 | G157: 21.83 | H157: 22.18 | I157: 28.6
B158: 13.12.16 | C158: 11:59:56 | D158: 27.3 | E158: 27 | G158: 21.84 | H158: 22.18 | I158: 28.6
B159: 13.12.16 | C159: 12:00:26 | D159: 27.32 | E159: 27.01 | G159: 21.85 | H159: 22.18 | I159: 28.6
B160: 13.12.16 | C160: 12:00:56 | D160: 27.32 | E160: 27.01 | G160: 21.86 | H160: 22.21 | I160: 28.6
B161: 13.12.16 | C161: 12:01:26 | D161: 27.33 | E161: 27.02 | G161: 21.87 | H161: 22.24 | I161: 28.6
B162: 13.12.16 | C162: 12:01:56 | D162: 27.34 | E162: 27.03 | G162: 21.89 | H162: 22.25 | I162: 28.6
B163: 13.12.16 | C163: 12:02:26 | D163: 27.36 | E163: 27.04 | G163: 21.9 | H163: 22.26 | I163: 28.6
B164: 13.12.16 | C164: 12:02:56 | D164: 27.36 | E164: 27.04 | G164: 21.92 | H164: 22.29 | I164: 28.5
B165: 13.12.16 | C165: 12:03:26 | D165: 27.36 | E165: 27.06 | G165: 21.93 | H165: 22.29 | I165: 28.5
B166: 13.12.16 | C166: 12:03:56 | D166: 27.37 | E166: 27.07 | G166: 21.94 | H166: 22.3 | I166: 28.5
B167: 13.12.16 | C167: 12:04:26 | D167: 27.39 | E167: 27.08 | G167: 21.96 | H167: 22.32 | I167: 28.5
B168: 13.12.16 | C168: 12:04:56 | D168: 27.39 | E168: 27.09 | G168: 21.98 | H168: 22.34 | I168: 28.5
B169: 13.12.16 | C169: 12:05:26 | D169: 27.4 | E169: 27.08 | G169: 21.98 | H169: 22.35 | I169: 28.5
B170: 13.12.16 | C170: 12:05:56 | D170: 27.4 | E170: 27.09 | G170: 22 | H170: 22.36 | I170: 28.6
B171: 13.12.16 | C171: 12:06:26 | D171: 27.41 | E171: 27.1 | G171: 22.01 | H171: 22.37 | I171: 28.6
B172: 13.12.16 | C172: 12:06:57 | D172: 27.42 | E172: 27.11 | G172: 22.02 | H172: 22.36 | I172: 28.5
B173: 13.12.16 | C173: 12:07:27 | D173: 27.42 | E173: 27.11 | G173: 22.02 | H173: 22.35 | I173: 28.5
B174: 13.12.16 | C174: 12:07:57 | D174: 27.42 | E174: 27.12 | G174: 22.02 | H174: 22.35 | I174: 28.5
B175: 13.12.16 | C175: 12:08:27 | D175: 27.43 | E175: 27.12 | G175: 22.03 | H175: 22.36 | I175: 28.5
B176: 13.12.16 | C176: 12:08:57 | D176: 27.43 | E176: 27.12 | G176: 22.03 | H176: 22.37 | I176: 28.5
B177: 13.12.16 | C177: 12:09:27 | D177: 27.44 | E177: 27.13 | G177: 22.03 | H177: 22.37 | I177: 28.5
B178: 13.12.16 | C178: 12:09:57 | D178: 27.45 | E178: 27.13 | G178: 22.04 | H178: 22.39 | I178: 28.5
B179: 13.12.16 | C179: 12:10:27 | D179: 27.44 | E179: 27.13 | G179: 22.05 | H179: 22.39 | I179: 28.5
B180: 13.12.16 | C180: 12:10:57 | D180: 27.44 | E180: 27.14 | G180: 22.06 | H180: 22.39 | I180: 28.5
B181: 13.12.16 | C181: 12:11:27 | D181: 27.45 | E181: 27.14 | G181: 22.06 | H181: 22.39 | I181: 28.5
B182: 13.12.16 | C182: 12:11:57 | D182: 27.46 | E182: 27.15 | G182: 22.07 | H182: 22.4 | I182: 28.4
B183: 13.12.16 | C183: 12:12:27 | D183: 27.46 | E183: 27.15 | G183: 22.08 | H183: 22.41 | I183: 28.5
B184: 13.12.16 | C184: 12:12:57 | D184: 27.47 | E184: 27.15 | G184: 22.09 | H184: 22.42 | I184: 28.4
B185: 13.12.16 | C185: 12:13:27 | D185: 27.47 | E185: 27.16 | G185: 22.1 | H185: 22.43 | I185: 28.4
B186: 13.12.16 | C186: 12:13:57 | D186: 27.46 | E186: 27.16 | G186: 22.11 | H186: 22.45 | I186: 28.5
B187: 13.12.16 | C187: 12:14:27 | D187: 27.48 | E187: 27.17 | G187: 22.12 | H187: 22.46 | I187: 28.4
B188: 13.12.16 | C188: 12:14:57 | D188: 27.48 | E188: 27.17 | G188: 22.13 | H188: 22.48 | I188: 28.4
B189: 13.12.16 | C189: 12:15:27 | D189: 27.49 | E189: 27.18 | G189: 22.14 | H189: 22.49 | I189: 28.4
B190: 13.12.16 | C190: 12:15:57 | D190: 27.5 | E190: 27.18 | G190: 22.15 | H190: 22.49 | I190: 28.4
B191: 13.12.16 | C191: 12:16:27 | D191: 27.5 | E191: 27.19 | G191: 22.16 | H191: 22.49 | I191: 28.4
B192: 13.12.16 | C192: 12:16:57 | D192: 27.51 | E192: 27.2 | G192: 22.17 | H192: 22.5 | I192: 28.4
B193: 13.12.16 | C193: 12:17:27 | D193: 27.51 | E193: 27.2 | G193: 22.18 | H193: 22.5 | I193: 28.4
B194: 13.12.16 | C194: 12:17:57 | D194: 27.52 | E194: 27.21 | G194: 22.18 | H194: 22.51 | I194: 28.4
B195: 13.12.16 | C195: 12:18:27 | D195: 27.51 | E195: 27.21 | G195: 22.18 | H195: 22.52 | I195: 28.4
B196: 13.12.16 | C196: 12:18:57 | D196: 27.52 | E196: 27.21 | G196: 22.18 | H196: 22.52 | I196: 28.4
B197: 13.12.16 | C197: 12:19:27 | D197: 27.51 | E197: 27.22 | G197: 22.19 | H197: 22.53 | I197: 28.3
B198: 13.12.16 | C198: 12:19:57 | D198: 27.53 | E198: 27.22 | G198: 22.19 | H198: 22.53 | I198: 28.4
B199: 13.12.16 | C199: 12:20:27 | D199: 27.53 | E199: 27.23 | G199: 22.2 | H199: 22.53 | I199: 28.4
B200: 13.12.16 | C200: 12:20:57 | D200: 27.54 | E200: 27.23 | G200: 22.21 | H200: 22.54 | I200: 28.4
B201: 13.12.16 | C201: 12:21:27 | D201: 27.54 | E201: 27.23 | G201: 22.22 | H201: 22.55 | I201: 28.4
B202: 13.12.16 | C202: 12:21:57 | D202: 27.54 | E202: 27.24 | G202: 22.22 | H202: 22.57 | I202: 28.3
... 355 more rows

Sheet 24.11.DATA
A1: Program | C1: Almemo 4.9
A2: Soubor | C2: C:\Users\Zmrhal\Desktop\mereni\Pokus.alm
A4: Datum | B4: Čas | C4: M. místo 01 | D4: M. místo 02 | E4: M. místo 03 | F4: M. místo 04 | G4: M. místo 05 | H4: M. místo 06 | I4: M. místo 07 | J4: M. místo 17 | K4: M. místo 27 | L4: M. místo 37 | P4: Project: | Q4: 24.11
C5: Tp1 | D5: Tp2 | E5: Tk1 | F5: Tk2 | G5: Ta1 | H5: Ta2 | I5: Temperatur | J5: Vlhkost (7)) | K5: Taupunkt | L5: Mischung | P5: Date: | Q5: 24. listopadu 2016
C6: [°C] | D6: [°C] | E6: [°C] | F6: [°C] | G6: [°C] | H6: [°C] | I6: [°C] | J6: [%rH] | K6: [°C] | L6: [gk] | P6: Name: | Q6: 1
A7: 08.11.16 | B7: 16:20:44 | C7: 19.97 | D7: 19.57 | E7: 19.58 | F7: 19.53 | G7: 19.52 | H7: 19.58 | I7: 19.83 | J7: 35.7 | K7: 4.1 | L7: 5.1
A8: 08.11.16 | B8: 16:21:14 | C8: 19.96 | D8: 19.57 | E8: 19.58 | F8: 19.53 | G8: 19.51 | H8: 19.58 | I8: 19.83 | J8: 35.5 | K8: 4.1 | L8: 5 | P8: Transducer | Q8: time | R8: 54T21 | S8: Transducer | T8: time | U8: 54T21 | V8: Transducer | W8: time | X8: 54T21
A9: 08.11.16 | B9: 16:21:44 | C9: 19.97 | D9: 19.56 | E9: 19.57 | F9: 19.52 | G9: 19.49 | H9: 19.56 | I9: 19.83 | J9: 35.5 | K9: 4.1 | L9: 5 | P9: Transducer height | Q9: 13:54:02 | R9: 0 | S9: Transducer height | T9: 13:58:05 | U9: 0 | V9: Transducer height | W9: 13:58:05 | X9: 0
A10: 08.11.16 | B10: 16:22:14 | C10: 19.96 | D10: 19.56 | E10: 19.57 | F10: 19.52 | G10: 19.49 | H10: 19.55 | I10: 19.83 | J10: 35.6 | K10: 4.1 | L10: 5.1 | P10: V [m/s] | Q10: 13:54:02 | R10: 0.043 | S10: V [m/s] | T10: 13:58:05 | U10: 0.033 | V10: V [m/s] | W10: 13:58:05 | X10: 0.037
A11: 22.11.16 | B11: 11:06:53 | C11: 19.6 | D11: 19.35 | E11: 19.37 | F11: 19.31 | G11: 19.39 | H11: 19.47 | I11: 19.84 | J11: 43.4 | K11: 7 | L11: 6.2
A12: 22.11.16 | B12: 11:07:23 | C12: 19.62 | D12: 19.36 | E12: 19.37 | F12: 19.31 | G12: 19.39 | H12: 19.47 | I12: 19.85 | J12: 43.3 | K12: 7 | L12: 6.2 | P12: Tu % | Q12: 13:54:02 | R12: 47.974 | S12: Tu % | T12: 13:58:05 | U12: 63.256 | V12: Tu % | W12: 13:58:05 | X12: 56.0612
A13: 22.11.16 | B13: 11:07:53 | C13: 19.63 | D13: 19.37 | E13: 19.38 | F13: 19.32 | G13: 19.4 | H13: 19.48 | I13: 19.85 | J13: 43.4 | K13: 7 | L13: 6.2 | P13: T [C] | Q13: 13:54:02 | R13: 20.383 | S13: T [C] | T13: 13:58:05 | U13: 20.418 | V13: T [C] | W13: 13:58:05 | X13: 20.355
A14: 22.11.16 | B14: 11:08:23 | C14: 19.64 | D14: 19.38 | E14: 19.38 | F14: 19.32 | G14: 19.41 | H14: 19.49 | I14: 19.86 | J14: 43.4 | K14: 7 | L14: 6.2 | P14: DR % | Q14: 13:54:02 | R14: 0 | S14: DR % | T14: 13:58:05 | U14: 0 | V14: DR % | W14: 13:58:05 | X14: 0
A15: 22.11.16 | B15: 11:08:53 | C15: 19.64 | D15: 19.37 | E15: 19.38 | F15: 19.33 | G15: 19.41 | H15: 19.49 | I15: 19.86 | J15: 43.4 | K15: 7 | L15: 6.2
A16: 22.11.16 | B16: 11:09:23 | C16: 19.65 | D16: 19.38 | E16: 19.38 | F16: 19.33 | G16: 19.42 | H16: 19.49 | I16: 19.86 | J16: 43.5 | K16: 7 | L16: 6.2 | P16: Project: | Q16: 24.11
A17: 22.11.16 | B17: 11:09:53 | C17: 19.65 | D17: 19.38 | E17: 19.39 | F17: 19.34 | G17: 19.42 | H17: 19.5 | I17: 19.86 | J17: 43.4 | K17: 7 | L17: 6.2 | P17: Date: | Q17: 24. listopadu 2016
A18: 22.11.16 | B18: 11:10:23 | C18: 19.66 | D18: 19.38 | E18: 19.39 | F18: 19.34 | G18: 19.43 | H18: 19.51 | I18: 19.86 | J18: 43.6 | K18: 7 | L18: 6.2 | P18: Name: | Q18: 2
A19: 22.11.16 | B19: 11:10:53 | C19: 19.66 | D19: 19.4 | E19: 19.4 | F19: 19.35 | G19: 19.43 | H19: 19.51 | I19: 19.86 | J19: 43.6 | K19: 7 | L19: 6.2
A20: 22.11.16 | B20: 11:11:23 | C20: 19.68 | D20: 19.39 | E20: 19.41 | F20: 19.36 | G20: 19.44 | H20: 19.52 | I20: 19.86 | J20: 43.5 | K20: 7 | L20: 6.2 | P20: Transducer | Q20: time | R20: 54T21 | S20: Transducer | T20: time | U20: 54T21
A21: 22.11.16 | B21: 11:11:53 | C21: 19.68 | D21: 19.4 | E21: 19.41 | F21: 19.35 | G21: 19.43 | H21: 19.51 | I21: 19.86 | J21: 43.7 | K21: 7.1 | L21: 6.2 | P21: Transducer height | Q21: 14:19:01 | R21: 0 | S21: Transducer height | T21: 14:23:03 | U21: 0
A22: 22.11.16 | B22: 11:12:23 | C22: 19.68 | D22: 19.42 | E22: 19.42 | F22: 19.36 | G22: 19.44 | H22: 19.52 | I22: 19.87 | J22: 43.4 | K22: 7 | L22: 6.2 | P22: V [m/s] | Q22: 14:19:01 | R22: 0.074 | S22: V [m/s] | T22: 14:23:03 | U22: 0.076
A23: 22.11.16 | B23: 11:12:53 | C23: 19.69 | D23: 19.42 | E23: 19.42 | F23: 19.36 | G23: 19.44 | H23: 19.52 | I23: 19.87 | J23: 43.9 | K23: 7.2 | L23: 6.2
A24: 22.11.16 | B24: 11:13:23 | C24: 19.7 | D24: 19.42 | E24: 19.43 | F24: 19.37 | G24: 19.45 | H24: 19.53 | I24: 19.87 | J24: 44.3 | K24: 7.3 | L24: 6.3 | P24: Tu % | Q24: 14:19:01 | R24: 56.065 | S24: Tu % | T24: 14:23:03 | U24: 52.804
A25: 22.11.16 | B25: 11:13:53 | C25: 19.7 | D25: 19.42 | E25: 19.43 | F25: 19.37 | G25: 19.45 | H25: 19.53 | I25: 19.88 | J25: 43.9 | K25: 7.2 | L25: 6.2 | P25: T [C] | Q25: 14:19:01 | R25: 20.136 | S25: T [C] | T25: 14:23:03 | U25: 20.199
A26: 22.11.16 | B26: 11:14:23 | C26: 19.71 | D26: 19.43 | E26: 19.43 | F26: 19.38 | G26: 19.46 | H26: 19.53 | I26: 19.88 | J26: 43.9 | K26: 7.2 | L26: 6.2 | P26: DR % | Q26: 14:19:01 | R26: 6.359 | S26: DR % | T26: 14:23:03 | U26: 6.68
A27: 22.11.16 | B27: 11:14:53 | C27: 19.71 | D27: 19.43 | E27: 19.44 | F27: 19.38 | G27: 19.46 | H27: 19.54 | I27: 19.89 | J27: 43.6 | K27: 7.1 | L27: 6.2
A28: 22.11.16 | B28: 11:15:23 | C28: 19.72 | D28: 19.43 | E28: 19.44 | F28: 19.39 | G28: 19.46 | H28: 19.55 | I28: 19.9 | J28: 43.8 | K28: 7.2 | L28: 6.2 | P28: Project: | Q28: 24.11
A29: 22.11.16 | B29: 11:15:53 | C29: 19.72 | D29: 19.44 | E29: 19.45 | F29: 19.39 | G29: 19.47 | H29: 19.55 | I29: 19.9 | J29: 43.9 | K29: 7.2 | L29: 6.2 | P29: Date: | Q29: 24. listopadu 2016
A30: 22.11.16 | B30: 11:16:23 | C30: 19.73 | D30: 19.44 | E30: 19.45 | F30: 19.4 | G30: 19.48 | H30: 19.56 | I30: 19.91 | J30: 43.6 | K30: 7.1 | L30: 6.2 | P30: Name: | Q30: 3
A31: 22.11.16 | B31: 11:16:53 | C31: 19.73 | D31: 19.44 | E31: 19.46 | F31: 19.4 | G31: 19.48 | H31: 19.56 | I31: 19.91 | J31: 43.6 | K31: 7.1 | L31: 6.2 | P31: V [m/s] | Q31: 14:58:13 | R31: 0.078 | S31: V [m/s] | T31: 14:48:45 | U31: 0.079
A32: 22.11.16 | B32: 11:17:23 | C32: 19.74 | D32: 19.45 | E32: 19.46 | F32: 19.41 | G32: 19.49 | H32: 19.57 | I32: 19.93 | J32: 44 | K32: 7.2 | L32: 6.3
A33: 22.11.16 | B33: 11:17:53 | C33: 19.74 | D33: 19.47 | E33: 19.47 | F33: 19.42 | G33: 19.5 | H33: 19.58 | I33: 19.94 | J33: 44.2 | K33: 7.3 | L33: 6.3 | P33: Tu % | Q33: 14:58:13 | R33: 58.482 | S33: Tu % | T33: 14:48:45 | U33: 53.391
A34: 22.11.16 | B34: 11:18:23 | C34: 19.75 | D34: 19.47 | E34: 19.48 | F34: 19.42 | G34: 19.51 | H34: 19.59 | I34: 19.94 | J34: 43.5 | K34: 7.1 | L34: 6.2 | P34: T [C] | Q34: 14:58:13 | R34: 20.042 | S34: T [C] | T34: 14:48:45 | U34: 20.055
A35: 22.11.16 | B35: 11:18:53 | C35: 19.76 | D35: 19.48 | E35: 19.48 | F35: 19.43 | G35: 19.52 | H35: 19.6 | I35: 19.94 | J35: 43.5 | K35: 7.1 | L35: 6.2 | P35: DR % | Q35: 14:58:13 | R35: 7.386 | S35: DR % | T35: 14:48:45 | U35: 7.301
A36: 22.11.16 | B36: 11:19:23 | C36: 19.77 | D36: 19.46 | E36: 19.49 | F36: 19.43 | G36: 19.57 | H36: 19.62 | I36: 19.93 | J36: 43.9 | K36: 7.2 | L36: 6.2
A37: 22.11.16 | B37: 11:19:53 | C37: 19.77 | D37: 19.47 | E37: 19.52 | F37: 19.45 | G37: 19.59 | H37: 19.63 | I37: 19.95 | J37: 44.3 | K37: 7.4 | L37: 6.3
A38: 22.11.16 | B38: 11:20:23 | C38: 19.78 | D38: 19.48 | E38: 19.53 | F38: 19.46 | G38: 19.6 | H38: 19.64 | I38: 19.97 | J38: 44.7 | K38: 7.5 | L38: 6.4
A39: 22.11.16 | B39: 11:20:45 | C39: 19.78 | D39: 19.48 | E39: 19.54 | F39: 19.46 | G39: 19.61 | H39: 19.64 | I39: 19.99 | J39: 44.2 | K39: 7.4 | L39: 6.3
A40: 22.11.16 | B40: 11:21:33 | C40: 19.78 | D40: 19.48 | E40: 19.55 | F40: 19.47 | G40: 19.61 | H40: 19.65 | I40: 20.01 | J40: 44 | K40: 7.3 | L40: 6.3 | P40: Project: | Q40: 24.11
A41: 22.11.16 | B41: 11:22:02 | C41: 19.79 | D41: 19.49 | E41: 19.56 | F41: 19.48 | G41: 19.61 | H41: 19.68 | I41: 20.02 | J41: 43.7 | K41: 7.2 | L41: 6.2 | P41: Date: | Q41: 24. listopadu 2016
A42: 22.11.16 | B42: 11:22:32 | C42: 19.8 | D42: 19.49 | E42: 19.56 | F42: 19.48 | G42: 19.61 | H42: 19.68 | I42: 20.02 | J42: 43.9 | K42: 7.3 | L42: 6.3 | P42: Name: | Q42: 4
A43: 22.11.16 | B43: 11:23:02 | C43: 19.8 | D43: 19.5 | E43: 19.57 | F43: 19.49 | G43: 19.61 | H43: 19.69 | I43: 20.03 | J43: 44.2 | K43: 7.4 | L43: 6.3
A44: 22.11.16 | B44: 11:23:32 | C44: 19.81 | D44: 19.51 | E44: 19.57 | F44: 19.5 | G44: 19.61 | H44: 19.69 | I44: 20.04 | J44: 44.2 | K44: 7.4 | L44: 6.4 | P44: Transducer | Q44: time | R44: 54T21 | S44: Transducer | T44: time | V44: Transducer | W44: time
A45: 22.11.16 | B45: 11:24:02 | C45: 19.81 | D45: 19.51 | E45: 19.57 | F45: 19.5 | G45: 19.61 | H45: 19.69 | I45: 20.04 | J45: 44.1 | K45: 7.4 | L45: 6.3 | P45: Transducer height | Q45: 15:25:10 | R45: 0 | S45: Transducer height | T45: 15:21:05 | U45: 0 | V45: Transducer height | W45: 15:29:06 | X45: 0
A46: 22.11.16 | B46: 11:26:34 | C46: 19.83 | D46: 19.55 | E46: 19.59 | F46: 19.52 | G46: 19.63 | H46: 19.7 | I46: 20.07 | J46: 43.9 | K46: 7.3 | L46: 6.3 | P46: V [m/s] | Q46: 15:25:10 | R46: 0.113 | S46: V [m/s] | T46: 15:21:05 | U46: 0.094 | V46: V [m/s] | W46: 15:29:06 | X46: 0.093
A47: 22.11.16 | B47: 11:27:04 | C47: 19.84 | D47: 19.55 | E47: 19.59 | F47: 19.52 | G47: 19.63 | H47: 19.7 | I47: 20.09 | J47: 43.7 | K47: 7.3 | L47: 6.3
A48: 22.11.16 | B48: 11:27:34 | C48: 19.84 | D48: 19.56 | E48: 19.59 | F48: 19.53 | G48: 19.63 | H48: 19.71 | I48: 20.1 | J48: 43.9 | K48: 7.4 | L48: 6.3 | P48: Tu % | Q48: 15:25:10 | R48: 49.86 | S48: Tu % | T48: 15:21:05 | U48: 50.484 | V48: Tu % | W48: 15:29:06 | X48: 58.776
A49: 22.11.16 | B49: 11:28:04 | C49: 19.85 | D49: 19.57 | E49: 19.6 | F49: 19.53 | G49: 19.63 | H49: 19.71 | I49: 20.11 | J49: 44 | K49: 7.4 | L49: 6.3 | P49: T [C] | Q49: 15:25:10 | R49: 19.965 | S49: T [C] | T49: 15:21:05 | U49: 19.969 | V49: T [C] | W49: 15:29:06 | X49: 19.963
A50: 22.11.16 | B50: 11:28:34 | C50: 19.85 | D50: 19.57 | E50: 19.6 | F50: 19.53 | G50: 19.64 | H50: 19.71 | I50: 20.11 | J50: 43.6 | K50: 7.3 | L50: 6.3 | P50: DR % | Q50: 15:25:10 | R50: 13.218 | S50: DR % | T50: 15:21:05 | U50: 9.826 | V50: DR % | W50: 15:29:06 | X50: 10.315
A51: 22.11.16 | B51: 11:29:04 | C51: 19.86 | D51: 19.58 | E51: 19.61 | F51: 19.54 | G51: 19.64 | H51: 19.72 | I51: 20.12 | J51: 43.6 | K51: 7.3 | L51: 6.3
A52: 22.11.16 | B52: 11:29:34 | C52: 19.87 | D52: 19.59 | E52: 19.61 | F52: 19.54 | G52: 19.64 | H52: 19.72 | I52: 20.11 | J52: 43.6 | K52: 7.3 | L52: 6.3 | P52: Project: | Q52: 24.11
A53: 22.11.16 | B53: 11:30:04 | C53: 19.86 | D53: 19.59 | E53: 19.61 | F53: 19.54 | G53: 19.65 | H53: 19.73 | I53: 20.11 | J53: 43.9 | K53: 7.4 | L53: 6.3 | P53: Date: | Q53: 24. listopadu 2016
A54: 22.11.16 | B54: 11:30:34 | C54: 19.87 | D54: 19.59 | E54: 19.62 | F54: 19.55 | G54: 19.65 | H54: 19.73 | I54: 20.12 | J54: 43.8 | K54: 7.3 | L54: 6.3 | P54: Remarks: | Q54: 5
A55: 22.11.16 | B55: 11:31:04 | C55: 19.87 | D55: 19.6 | E55: 19.62 | F55: 19.55 | G55: 19.66 | H55: 19.73 | I55: 20.13 | J55: 43.7 | K55: 7.3 | L55: 6.3
A56: 22.11.16 | B56: 13:02:47 | C56: 20.66 | D56: 20.19 | E56: 20.28 | F56: 20.2 | G56: 20.34 | H56: 20.39 | I56: 20.41 | J56: 43.9 | K56: 7.6 | L56: 6.5 | P56: Transducer | Q56: time | R56: 54T21 | S56: Transducer | T56: time | U56: 54T21 | V56: Transducer | W56: time | Y56: Transducer | Z56: time
A57: 22.11.16 | B57: 13:03:17 | C57: 20.67 | D57: 20.2 | E57: 20.29 | F57: 20.22 | G57: 20.35 | H57: 20.41 | I57: 20.43 | J57: 43.5 | K57: 7.5 | L57: 6.4 | P57: Transducer height | Q57: 15:45:03 | R57: 0 | S57: Transducer height | T57: 16:09:31 | U57: 0 | V57: Transducer height | W57: 15:53:09 | X57: 0 | Y57: Transducer height | Z57: 16:05:06 | AA57: 0
A58: 22.11.16 | B58: 13:03:47 | C58: 20.68 | D58: 20.21 | E58: 20.3 | F58: 20.22 | G58: 20.36 | H58: 20.42 | I58: 20.45 | J58: 43.5 | K58: 7.5 | L58: 6.4 | P58: V [m/s] | Q58: 15:45:03 | R58: 0.127 | S58: V [m/s] | T58: 16:09:31 | U58: 0.108 | V58: V [m/s] | W58: 15:53:09 | X58: 0.115 | Y58: V [m/s] | Z58: 16:05:06 | AA58: 0.117
A59: 24.11.16 | B59: 13:38:37 | C59: 19.19 | D59: 18.93 | E59: 20.62 | F59: 20.61 | G59: 20.67 | H59: 20.84 | I59: 20.65 | J59: 44.1 | K59: 7.9 | L59: 6.5
A60: 24.11.16 | B60: 13:39:07 | C60: 19.18 | D60: 18.93 | E60: 20.62 | F60: 20.61 | G60: 20.67 | H60: 20.84 | I60: 20.67 | J60: 44 | K60: 7.9 | L60: 6.5 | P60: Tu % | Q60: 15:45:03 | R60: 45.052 | S60: Tu % | T60: 16:09:31 | U60: 53.936 | V60: Tu % | W60: 15:53:09 | X60: 49.723 | Y60: Tu % | Z60: 16:05:06 | AA60: 44.189
A61: 24.11.16 | B61: 13:39:37 | C61: 19.18 | D61: 18.92 | E61: 20.62 | F61: 20.61 | G61: 20.67 | H61: 20.84 | I61: 20.67 | J61: 43.7 | K61: 7.8 | L61: 6.5 | P61: T [C] | Q61: 15:45:03 | R61: 19.86 | S61: T [C] | T61: 16:09:31 | U61: 19.949 | V61: T [C] | W61: 15:53:09 | X61: 19.898 | Y61: T [C] | Z61: 16:05:06 | AA61: 19.867
A62: 24.11.16 | B62: 13:40:07 | C62: 19.18 | D62: 18.92 | E62: 20.62 | F62: 20.61 | G62: 20.67 | H62: 20.84 | I62: 20.68 | J62: 43.6 | K62: 7.8 | L62: 6.5 | P62: DR % | Q62: 15:45:03 | R62: 15.138 | S62: DR % | T62: 16:09:31 | U62: 12.81 | V62: DR % | W62: 15:53:09 | X62: 13.529 | Y62: DR % | Z62: 16:05:06 | AA62: 13.313
A63: 24.11.16 | B63: 13:40:37 | C63: 19.18 | D63: 18.92 | E63: 20.62 | F63: 20.61 | G63: 20.67 | H63: 20.84 | I63: 20.7 | J63: 44.3 | K63: 8 | L63: 6.6
A64: 24.11.16 | B64: 13:41:07 | C64: 19.18 | D64: 18.92 | E64: 20.63 | F64: 20.61 | G64: 20.67 | H64: 20.84 | I64: 20.72 | J64: 44 | K64: 7.9 | L64: 6.6 | P64: Project: | Q64: 24.11
A65: 24.11.16 | B65: 13:41:37 | C65: 19.18 | D65: 18.92 | E65: 20.63 | F65: 20.61 | G65: 20.67 | H65: 20.84 | I65: 20.73 | J65: 44.9 | K65: 8.2 | L65: 6.7 | P65: Date: | Q65: 24. listopadu 2016
A66: 24.11.16 | B66: 13:42:07 | C66: 19.17 | D66: 18.92 | E66: 20.63 | F66: 20.61 | G66: 20.68 | H66: 20.84 | I66: 20.77 | J66: 44.5 | K66: 8.1 | L66: 6.7 | P66: Remarks: | Q66: 6
A67: 24.11.16 | B67: 13:42:37 | C67: 19.17 | D67: 18.92 | E67: 20.63 | F67: 20.61 | G67: 20.69 | H67: 20.83 | I67: 20.78 | J67: 43.8 | K67: 7.9 | L67: 6.6
A68: 24.11.16 | B68: 13:43:07 | C68: 19.17 | D68: 18.92 | E68: 20.64 | F68: 20.61 | G68: 20.7 | H68: 20.84 | I68: 20.78 | J68: 43.6 | K68: 7.9 | L68: 6.5 | P68: Transducer | Q68: time | R68: 54T21 | V68: Transducer | W68: time | Y68: Transducer | Z68: time
A69: 24.11.16 | B69: 13:43:37 | C69: 19.17 | D69: 18.92 | E69: 20.64 | F69: 20.61 | G69: 20.71 | H69: 20.84 | I69: 20.78 | J69: 43.5 | K69: 7.8 | L69: 6.5 | P69: Transducer height | Q69: 16:30:18 | R69: 0 | V69: Transducer height | W69: 16:58:01 | X69: 0 | Y69: Transducer height | Z69: 17:03:04 | AA69: 0
A70: 24.11.16 | B70: 13:44:07 | C70: 19.17 | D70: 18.9 | E70: 20.65 | F70: 20.62 | G70: 20.71 | H70: 20.85 | I70: 20.78 | J70: 43.6 | K70: 7.9 | L70: 6.5 | P70: V [m/s] | Q70: 16:30:18 | R70: 0.122 | V70: V [m/s] | W70: 16:58:01 | X70: 0.132 | Y70: V [m/s] | Z70: 17:03:04 | AA70: 0.123
A71: 24.11.16 | B71: 13:44:37 | C71: 19.17 | D71: 18.9 | E71: 20.65 | F71: 20.62 | G71: 20.72 | H71: 20.85 | I71: 20.78 | J71: 43.6 | K71: 7.9 | L71: 6.5
A72: 24.11.16 | B72: 13:45:07 | C72: 19.16 | D72: 18.9 | E72: 20.66 | F72: 20.62 | G72: 20.72 | H72: 20.85 | I72: 20.78 | J72: 43.7 | K72: 7.9 | L72: 6.5 | P72: Tu % | Q72: 16:30:18 | R72: 49.846 | V72: Tu % | W72: 16:58:01 | X72: 41.722 | Y72: Tu % | Z72: 17:03:04 | AA72: 52.674
A73: 24.11.16 | B73: 13:45:37 | C73: 19.17 | D73: 18.9 | E73: 20.66 | F73: 20.62 | G73: 20.73 | H73: 20.85 | I73: 20.79 | J73: 44.2 | K73: 8.1 | L73: 6.6 | P73: T [C] | Q73: 16:30:18 | R73: 19.828 | V73: T [C] | W73: 16:58:01 | X73: 19.864 | Y73: T [C] | Z73: 17:03:04 | AA73: 19.858
A74: 24.11.16 | B74: 13:46:07 | C74: 19.16 | D74: 18.9 | E74: 20.66 | F74: 20.63 | G74: 20.73 | H74: 20.85 | I74: 20.8 | J74: 43.5 | K74: 7.8 | L74: 6.5 | P74: DR % | Q74: 16:30:18 | R74: 14.886 | V74: DR % | W74: 16:58:01 | X74: 15.459 | Y74: DR % | Z74: 17:03:04 | AA74: 15.498
A75: 24.11.16 | B75: 13:46:37 | C75: 19.16 | D75: 18.9 | E75: 20.67 | F75: 20.63 | G75: 20.74 | H75: 20.86 | I75: 20.79 | J75: 43.3 | K75: 7.8 | L75: 6.5
A76: 24.11.16 | B76: 13:47:07 | C76: 19.16 | D76: 18.9 | E76: 20.67 | F76: 20.63 | G76: 20.74 | H76: 20.86 | I76: 20.78 | J76: 43.2 | K76: 7.7 | L76: 6.5 | P76: Project: | Q76: SETUP2.cfg
A77: 24.11.16 | B77: 13:47:37 | C77: 19.16 | D77: 18.9 | E77: 20.67 | F77: 20.63 | G77: 20.74 | H77: 20.86 | I77: 20.78 | J77: 43.3 | K77: 7.7 | L77: 6.5 | P77: Date: | Q77: 24. listopadu 2016
A78: 24.11.16 | B78: 13:48:07 | C78: 19.16 | D78: 18.9 | E78: 20.67 | F78: 20.63 | G78: 20.74 | H78: 20.86 | I78: 20.78 | J78: 43.3 | K78: 7.7 | L78: 6.5 | P78: Remarks: | Q78: 7
A79: 24.11.16 | B79: 13:48:37 | C79: 19.16 | D79: 18.9 | E79: 20.67 | F79: 20.63 | G79: 20.73 | H79: 20.86 | I79: 20.78 | J79: 43.2 | K79: 7.7 | L79: 6.5
A80: 24.11.16 | B80: 13:49:07 | C80: 19.16 | D80: 18.9 | E80: 20.67 | F80: 20.63 | G80: 20.74 | H80: 20.86 | I80: 20.77 | J80: 43.1 | K80: 7.7 | L80: 6.5 | P80: Transducer | Q80: time | R80: 54T21 | V80: Transducer | W80: time | Y80: Transducer | Z80: time
A81: 24.11.16 | B81: 13:49:37 | C81: 19.16 | D81: 18.9 | E81: 20.67 | F81: 20.63 | G81: 20.74 | H81: 20.86 | I81: 20.77 | J81: 43.1 | K81: 7.7 | L81: 6.5 | P81: Transducer height | Q81: 17:19:16 | R81: 0 | V81: Transducer height | W81: 17:28:10 | X81: 0 | Y81: Transducer height | Z81: 17:33:03 | AA81: 0
A82: 24.11.16 | B82: 13:50:07 | C82: 19.16 | D82: 18.9 | E82: 20.67 | F82: 20.64 | G82: 20.74 | H82: 20.86 | I82: 20.77 | J82: 43.1 | K82: 7.7 | L82: 6.5 | P82: V [m/s] | Q82: 17:19:16 | R82: 0.139 | V82: V [m/s] | W82: 17:28:10 | X82: 0.139 | Y82: V [m/s] | Z82: 17:33:03 | AA82: 0.124
A83: 24.11.16 | B83: 13:50:37 | C83: 19.15 | D83: 18.9 | E83: 20.67 | F83: 20.64 | G83: 20.74 | H83: 20.86 | I83: 20.76 | J83: 43.1 | K83: 7.7 | L83: 6.5
A84: 24.11.16 | B84: 13:51:07 | C84: 19.15 | D84: 18.9 | E84: 20.67 | F84: 20.64 | G84: 20.73 | H84: 20.87 | I84: 20.76 | J84: 43.1 | K84: 7.7 | L84: 6.5 | P84: Tu % | Q84: 17:19:16 | R84: 49.287 | V84: Tu % | W84: 17:28:10 | X84: 48.073 | Y84: Tu % | Z84: 17:33:03 | AA84: 49.722
A85: 24.11.16 | B85: 13:51:37 | C85: 19.15 | D85: 18.9 | E85: 20.67 | F85: 20.64 | G85: 20.73 | H85: 20.87 | I85: 20.76 | J85: 43.2 | K85: 7.7 | L85: 6.5 | P85: T [C] | Q85: 17:19:16 | R85: 19.852 | V85: T [C] | W85: 17:28:10 | X85: 19.856 | Y85: T [C] | Z85: 17:33:03 | AA85: 19.687
A86: 24.11.16 | B86: 13:52:07 | C86: 19.15 | D86: 18.9 | E86: 20.67 | F86: 20.64 | G86: 20.73 | H86: 20.88 | I86: 20.76 | J86: 43.1 | K86: 7.7 | L86: 6.5 | P86: DR % | Q86: 17:19:16 | R86: 17.925 | V86: DR % | W86: 17:28:10 | X86: 17.666 | Y86: DR % | Z86: 17:33:03 | AA86: 15.396
A87: 24.11.16 | B87: 13:52:37 | C87: 19.15 | D87: 18.9 | E87: 20.67 | F87: 20.64 | G87: 20.74 | H87: 20.88 | I87: 20.76 | J87: 43.1 | K87: 7.7 | L87: 6.5
A88: 24.11.16 | B88: 13:53:07 | C88: 19.15 | D88: 18.9 | E88: 20.67 | F88: 20.65 | G88: 20.74 | H88: 20.89 | I88: 20.76 | J88: 43.1 | K88: 7.7 | L88: 6.5 | P88: ZIMA
A89: 24.11.16 | B89: 13:53:37 | C89: 19.15 | D89: 18.89 | E89: 20.67 | F89: 20.65 | G89: 20.73 | H89: 20.89 | I89: 20.75 | J89: 43.1 | K89: 7.7 | L89: 6.5 | P89: Project: | Q89: SETUP2.cfg
A90: 24.11.16 | B90: 13:54:07 | C90: 19.15 | D90: 18.89 | E90: 20.67 | F90: 20.65 | G90: 20.72 | H90: 20.89 | I90: 20.75 | J90: 43.1 | K90: 7.7 | L90: 6.5 | P90: Date: | Q90: 24. listopadu 2016
A91: 24.11.16 | B91: 13:54:37 | C91: 19.15 | D91: 18.89 | E91: 20.67 | F91: 20.65 | G91: 20.72 | H91: 20.9 | I91: 20.75 | J91: 43.1 | K91: 7.7 | L91: 6.5 | P91: Remarks: | Q91: 8
A92: 24.11.16 | B92: 13:55:07 | C92: 19.15 | D92: 18.89 | E92: 20.67 | F92: 20.65 | G92: 20.72 | H92: 20.9 | I92: 20.75 | J92: 43.1 | K92: 7.7 | L92: 6.5
A93: 24.11.16 | B93: 13:55:37 | C93: 19.15 | D93: 18.89 | E93: 20.67 | F93: 20.65 | G93: 20.72 | H93: 20.89 | I93: 20.76 | J93: 43.2 | K93: 7.7 | L93: 6.5 | P93: Transducer | Q93: time | R93: 54T21 | S93: Transducer | T93: time | V93: Transducer | W93: time
A94: 24.11.16 | B94: 13:56:07 | C94: 19.15 | D94: 18.89 | E94: 20.67 | F94: 20.65 | G94: 20.72 | H94: 20.89 | I94: 20.76 | J94: 43 | K94: 7.6 | L94: 6.5 | P94: Transducer height | Q94: 18:16:57 | R94: 0 | S94: Transducer height | T94: 18:20:47 | U94: 0 | V94: Transducer height | W94: 18:24:46 | X94: 0
A95: 24.11.16 | B95: 13:56:37 | C95: 19.15 | D95: 18.89 | E95: 20.67 | F95: 20.65 | G95: 20.71 | H95: 20.89 | I95: 20.76 | J95: 43.1 | K95: 7.7 | L95: 6.5 | P95: V [m/s] | Q95: 18:16:57 | R95: 0.107 | S95: V [m/s] | T95: 18:20:47 | U95: 0.124 | V95: V [m/s] | W95: 18:24:46 | X95: 0.116
A96: 24.11.16 | B96: 13:57:07 | C96: 19.14 | D96: 18.89 | E96: 20.66 | F96: 20.65 | G96: 20.71 | H96: 20.89 | I96: 20.75 | J96: 43 | K96: 7.6 | L96: 6.5
A97: 24.11.16 | B97: 13:57:37 | C97: 19.14 | D97: 18.89 | E97: 20.66 | F97: 20.65 | G97: 20.71 | H97: 20.89 | I97: 20.75 | J97: 43 | K97: 7.6 | L97: 6.5 | P97: Tu % | Q97: 18:16:57 | R97: 52.996 | S97: Tu % | T97: 18:20:47 | U97: 45.374 | V97: Tu % | W97: 18:24:46 | X97: 55.238
A98: 24.11.16 | B98: 13:58:07 | C98: 19.14 | D98: 18.89 | E98: 20.66 | F98: 20.65 | G98: 20.71 | H98: 20.89 | I98: 20.74 | J98: 43 | K98: 7.6 | L98: 6.5 | P98: T [C] | Q98: 18:16:57 | R98: 19.23 | S98: T [C] | T98: 18:20:47 | U98: 19.192 | V98: T [C] | W98: 18:24:46 | X98: 19.151
A99: 24.11.16 | B99: 13:58:38 | C99: 19.15 | D99: 18.89 | E99: 20.66 | F99: 20.65 | G99: 20.72 | H99: 20.89 | I99: 20.74 | J99: 43.1 | K99: 7.6 | L99: 6.5 | P99: DR % | Q99: 18:16:57 | R99: 13.1 | S99: DR % | T99: 18:20:47 | U99: 15.377 | V99: DR % | W99: 18:24:46 | X99: 15.2
A100: 24.11.16 | B100: 13:59:08 | C100: 19.14 | D100: 18.89 | E100: 20.66 | F100: 20.65 | G100: 20.72 | H100: 20.89 | I100: 20.75 | J100: 43.2 | K100: 7.7 | L100: 6.5
A101: 24.11.16 | B101: 13:59:38 | C101: 19.14 | D101: 18.89 | E101: 20.66 | F101: 20.65 | G101: 20.72 | H101: 20.89 | I101: 20.75 | J101: 43.1 | K101: 7.7 | L101: 6.5 | P101: Project: | Q101: SETUP2.cfg
A102: 24.11.16 | B102: 14:00:08 | C102: 19.15 | D102: 18.88 | E102: 20.66 | F102: 20.65 | G102: 20.71 | H102: 20.89 | I102: 20.76 | J102: 43.2 | K102: 7.7 | L102: 6.5 | P102: Date: | Q102: 24. listopadu 2016
A103: 24.11.16 | B103: 14:00:38 | C103: 19.13 | D103: 18.88 | E103: 20.66 | F103: 20.65 | G103: 20.71 | H103: 20.88 | I103: 20.76 | J103: 43.1 | K103: 7.7 | L103: 6.5 | P103: Remarks: | Q103: 9
A104: 24.11.16 | B104: 14:01:08 | C104: 19.11 | D104: 18.87 | E104: 20.66 | F104: 20.65 | G104: 20.72 | H104: 20.88 | I104: 20.76 | J104: 43 | K104: 7.6 | L104: 6.5
A105: 24.11.16 | B105: 14:01:38 | C105: 19.1 | D105: 18.86 | E105: 20.66 | F105: 20.65 | G105: 20.73 | H105: 20.87 | I105: 20.76 | J105: 43 | K105: 7.6 | L105: 6.5 | P105: Transducer | Q105: time | R105: 54T21 | S105: Transducer | T105: time | V105: Transducer | W105: time
A106: 24.11.16 | B106: 14:02:08 | C106: 19.09 | D106: 18.85 | E106: 20.67 | F106: 20.65 | G106: 20.74 | H106: 20.86 | I106: 20.75 | J106: 43 | K106: 7.6 | L106: 6.5 | P106: Transducer height | Q106: 18:45:08 | R106: 0 | S106: Transducer height | T106: 18:48:38 | U106: 0 | V106: Transducer height | W106: 18:52:55 | X106: 0
A107: 24.11.16 | B107: 14:02:38 | C107: 19.08 | D107: 18.84 | E107: 20.67 | F107: 20.65 | G107: 20.74 | H107: 20.85 | I107: 20.74 | J107: 43 | K107: 7.6 | L107: 6.5 | P107: V [m/s] | Q107: 18:45:08 | R107: 0.1 | S107: V [m/s] | T107: 18:48:38 | U107: 0.114 | V107: V [m/s] | W107: 18:52:55 | X107: 0.113
A108: 24.11.16 | B108: 14:03:08 | C108: 19.08 | D108: 18.84 | E108: 20.67 | F108: 20.64 | G108: 20.74 | H108: 20.85 | I108: 20.74 | J108: 43 | K108: 7.6 | L108: 6.5
A109: 24.11.16 | B109: 14:03:38 | C109: 19.07 | D109: 18.83 | E109: 20.67 | F109: 20.64 | G109: 20.74 | H109: 20.84 | I109: 20.73 | J109: 43 | K109: 7.6 | L109: 6.5 | P109: Tu % | Q109: 18:45:08 | R109: 57.055 | S109: Tu % | T109: 18:48:38 | U109: 54.766 | V109: Tu % | W109: 18:52:55 | X109: 49.741
A110: 24.11.16 | B110: 14:04:08 | C110: 19.07 | D110: 18.82 | E110: 20.67 | F110: 20.64 | G110: 20.74 | H110: 20.84 | I110: 20.73 | J110: 43 | K110: 7.6 | L110: 6.5 | P110: T [C] | Q110: 18:45:08 | R110: 18.85 | S110: T [C] | T110: 18:48:38 | U110: 18.772 | V110: T [C] | W110: 18:52:55 | X110: 18.734
A111: 24.11.16 | B111: 14:04:38 | C111: 19.07 | D111: 18.82 | E111: 20.67 | F111: 20.64 | G111: 20.74 | H111: 20.83 | I111: 20.71 | J111: 43.1 | K111: 7.6 | L111: 6.5 | P111: DR % | Q111: 18:45:08 | R111: 12.322 | S111: DR % | T111: 18:48:38 | U111: 15.013 | V111: DR % | W111: 18:52:55 | X111: 14.425
A112: 24.11.16 | B112: 14:05:08 | C112: 19.06 | D112: 18.82 | E112: 20.68 | F112: 20.63 | G112: 20.74 | H112: 20.84 | I112: 20.71 | J112: 43.1 | K112: 7.6 | L112: 6.5
A113: 24.11.16 | B113: 14:05:38 | C113: 19.06 | D113: 18.82 | E113: 20.68 | F113: 20.63 | G113: 20.74 | H113: 20.83 | I113: 20.7 | J113: 43.1 | K113: 7.6 | L113: 6.5
A114: 24.11.16 | B114: 14:06:08 | C114: 19.06 | D114: 18.82 | E114: 20.68 | F114: 20.63 | G114: 20.73 | H114: 20.82 | I114: 20.7 | J114: 43.1 | K114: 7.6 | L114: 6.5
A115: 24.11.16 | B115: 14:06:38 | C115: 19.06 | D115: 18.81 | E115: 20.68 | F115: 20.63 | G115: 20.73 | H115: 20.82 | I115: 20.69 | J115: 43.1 | K115: 7.6 | L115: 6.5
A116: 24.11.16 | B116: 14:07:08 | C116: 19.06 | D116: 18.81 | E116: 20.68 | F116: 20.63 | G116: 20.73 | H116: 20.8 | I116: 20.69 | J116: 43.1 | K116: 7.6 | L116: 6.5
A117: 24.11.16 | B117: 14:07:38 | C117: 19.06 | D117: 18.81 | E117: 20.68 | F117: 20.62 | G117: 20.73 | H117: 20.8 | I117: 20.69 | J117: 43.1 | K117: 7.6 | L117: 6.5
A118: 24.11.16 | B118: 14:08:08 | C118: 19.06 | D118: 18.81 | E118: 20.68 | F118: 20.62 | G118: 20.73 | H118: 20.8 | I118: 20.68 | J118: 43.1 | K118: 7.6 | L118: 6.5
A119: 24.11.16 | B119: 14:08:38 | C119: 19.06 | D119: 18.81 | E119: 20.68 | F119: 20.62 | G119: 20.72 | H119: 20.79 | I119: 20.68 | J119: 43.1 | K119: 7.6 | L119: 6.5
A120: 24.11.16 | B120: 14:09:08 | C120: 19.06 | D120: 18.81 | E120: 20.67 | F120: 20.62 | G120: 20.72 | H120: 20.79 | I120: 20.68 | J120: 43.1 | K120: 7.6 | L120: 6.5
A121: 24.11.16 | B121: 14:09:38 | C121: 19.06 | D121: 18.81 | E121: 20.67 | F121: 20.62 | G121: 20.71 | H121: 20.79 | I121: 20.67 | J121: 43.1 | K121: 7.6 | L121: 6.5
A122: 24.11.16 | B122: 14:10:08 | C122: 19.06 | D122: 18.81 | E122: 20.67 | F122: 20.62 | G122: 20.7 | H122: 20.78 | I122: 20.67 | J122: 43.1 | K122: 7.6 | L122: 6.5
A123: 24.11.16 | B123: 14:10:38 | C123: 19.06 | D123: 18.81 | E123: 20.67 | F123: 20.61 | G123: 20.71 | H123: 20.78 | I123: 20.67 | J123: 43.1 | K123: 7.6 | L123: 6.5
A124: 24.11.16 | B124: 14:11:08 | C124: 19.06 | D124: 18.81 | E124: 20.67 | F124: 20.61 | G124: 20.71 | H124: 20.78 | I124: 20.66 | J124: 43.1 | K124: 7.6 | L124: 6.5
A125: 24.11.16 | B125: 14:11:38 | C125: 19.06 | D125: 18.81 | E125: 20.67 | F125: 20.61 | G125: 20.71 | H125: 20.78 | I125: 20.66 | J125: 43.1 | K125: 7.6 | L125: 6.5
A126: 24.11.16 | B126: 14:12:08 | C126: 19.06 | D126: 18.81 | E126: 20.67 | F126: 20.61 | G126: 20.7 | H126: 20.78 | I126: 20.66 | J126: 43.1 | K126: 7.6 | L126: 6.5
A127: 24.11.16 | B127: 14:12:38 | C127: 19.06 | D127: 18.81 | E127: 20.67 | F127: 20.61 | G127: 20.7 | H127: 20.78 | I127: 20.66 | J127: 43.1 | K127: 7.6 | L127: 6.5
A128: 24.11.16 | B128: 14:13:08 | C128: 19.06 | D128: 18.81 | E128: 20.67 | F128: 20.61 | G128: 20.7 | H128: 20.78 | I128: 20.66 | J128: 43.1 | K128: 7.6 | L128: 6.5
A129: 24.11.16 | B129: 14:13:38 | C129: 19.06 | D129: 18.81 | E129: 20.67 | F129: 20.61 | G129: 20.69 | H129: 20.78 | I129: 20.65 | J129: 43.1 | K129: 7.6 | L129: 6.4
A130: 24.11.16 | B130: 14:14:08 | C130: 19.07 | D130: 18.82 | E130: 20.67 | F130: 20.61 | G130: 20.69 | H130: 20.78 | I130: 20.65 | J130: 43.1 | K130: 7.6 | L130: 6.4
A131: 24.11.16 | B131: 14:14:38 | C131: 19.07 | D131: 18.81 | E131: 20.66 | F131: 20.61 | G131: 20.68 | H131: 20.78 | I131: 20.65 | J131: 43.1 | K131: 7.6 | L131: 6.4
A132: 24.11.16 | B132: 14:15:08 | C132: 19.07 | D132: 18.82 | E132: 20.66 | F132: 20.61 | G132: 20.68 | H132: 20.77 | I132: 20.66 | J132: 43.1 | K132: 7.6 | L132: 6.5
A133: 24.11.16 | B133: 14:15:38 | C133: 19.07 | D133: 18.82 | E133: 20.66 | F133: 20.61 | G133: 20.68 | H133: 20.77 | I133: 20.65 | J133: 43.1 | K133: 7.6 | L133: 6.4
A134: 24.11.16 | B134: 14:16:08 | C134: 19.07 | D134: 18.82 | E134: 20.66 | F134: 20.61 | G134: 20.68 | H134: 20.77 | I134: 20.65 | J134: 43.2 | K134: 7.6 | L134: 6.5
A135: 24.11.16 | B135: 14:16:38 | C135: 19.07 | D135: 18.82 | E135: 20.66 | F135: 20.61 | G135: 20.68 | H135: 20.78 | I135: 20.66 | J135: 43.2 | K135: 7.6 | L135: 6.5
A136: 24.11.16 | B136: 14:17:08 | C136: 19.07 | D136: 18.82 | E136: 20.66 | F136: 20.61 | G136: 20.69 | H136: 20.77 | I136: 20.66 | J136: 43.1 | K136: 7.6 | L136: 6.5
A137: 24.11.16 | B137: 14:17:38 | C137: 19.07 | D137: 18.83 | E137: 20.66 | F137: 20.61 | G137: 20.69 | H137: 20.77 | I137: 20.66 | J137: 43.1 | K137: 7.6 | L137: 6.5
A138: 24.11.16 | B138: 14:18:08 | C138: 19.08 | D138: 18.83 | E138: 20.66 | F138: 20.61 | G138: 20.69 | H138: 20.77 | I138: 20.66 | J138: 43.2 | K138: 7.6 | L138: 6.5
A139: 24.11.16 | B139: 14:18:38 | C139: 19.08 | D139: 18.83 | E139: 20.66 | F139: 20.61 | G139: 20.7 | H139: 20.77 | I139: 20.66 | J139: 43.1 | K139: 7.6 | L139: 6.5
A140: 24.11.16 | B140: 14:19:08 | C140: 19.08 | D140: 18.83 | E140: 20.67 | F140: 20.61 | G140: 20.7 | H140: 20.77 | I140: 20.65 | J140: 43.2 | K140: 7.6 | L140: 6.5
A141: 24.11.16 | B141: 14:19:38 | C141: 19.08 | D141: 18.83 | E141: 20.67 | F141: 20.61 | G141: 20.7 | H141: 20.78 | I141: 20.66 | J141: 43.3 | K141: 7.6 | L141: 6.5
A142: 24.11.16 | B142: 14:20:08 | C142: 19.08 | D142: 18.84 | E142: 20.67 | F142: 20.61 | G142: 20.7 | H142: 20.78 | I142: 20.66 | J142: 43.3 | K142: 7.6 | L142: 6.5
A143: 24.11.16 | B143: 14:20:38 | C143: 19.08 | D143: 18.84 | E143: 20.67 | F143: 20.61 | G143: 20.7 | H143: 20.78 | I143: 20.67 | J143: 43.5 | K143: 7.7 | L143: 6.5
A144: 24.11.16 | B144: 14:21:08 | C144: 19.08 | D144: 18.84 | E144: 20.67 | F144: 20.61 | G144: 20.71 | H144: 20.79 | I144: 20.68 | J144: 43.2 | K144: 7.6 | L144: 6.5
A145: 24.11.16 | B145: 14:21:38 | C145: 19.08 | D145: 18.83 | E145: 20.67 | F145: 20.61 | G145: 20.71 | H145: 20.79 | I145: 20.67 | J145: 43.1 | K145: 7.6 | L145: 6.5
A146: 24.11.16 | B146: 14:22:08 | C146: 19.08 | D146: 18.84 | E146: 20.67 | F146: 20.61 | G146: 20.71 | H146: 20.79 | I146: 20.67 | J146: 43.2 | K146: 7.6 | L146: 6.5
A147: 24.11.16 | B147: 14:22:38 | C147: 19.08 | D147: 18.84 | E147: 20.67 | F147: 20.61 | G147: 20.71 | H147: 20.79 | I147: 20.67 | J147: 43.2 | K147: 7.6 | L147: 6.5
A148: 24.11.16 | B148: 14:23:08 | C148: 19.09 | D148: 18.84 | E148: 20.67 | F148: 20.61 | G148: 20.71 | H148: 20.79 | I148: 20.67 | J148: 43.1 | K148: 7.6 | L148: 6.5
A149: 24.11.16 | B149: 14:23:38 | C149: 19.09 | D149: 18.84 | E149: 20.67 | F149: 20.61 | G149: 20.71 | H149: 20.78 | I149: 20.66 | J149: 43.2 | K149: 7.6 | L149: 6.5
A150: 24.11.16 | B150: 14:24:08 | C150: 19.09 | D150: 18.84 | E150: 20.67 | F150: 20.61 | G150: 20.71 | H150: 20.78 | I150: 20.66 | J150: 43.2 | K150: 7.6 | L150: 6.5
A151: 24.11.16 | B151: 14:24:38 | C151: 19.08 | D151: 18.84 | E151: 20.67 | F151: 20.61 | G151: 20.71 | H151: 20.78 | I151: 20.65 | J151: 43.2 | K151: 7.6 | L151: 6.5
A152: 24.11.16 | B152: 14:25:08 | C152: 19.07 | D152: 18.83 | E152: 20.67 | F152: 20.61 | G152: 20.71 | H152: 20.78 | I152: 20.65 | J152: 43.2 | K152: 7.6 | L152: 6.5
A153: 24.11.16 | B153: 14:25:38 | C153: 19.06 | D153: 18.82 | E153: 20.67 | F153: 20.61 | G153: 20.7 | H153: 20.78 | I153: 20.65 | J153: 43.2 | K153: 7.6 | L153: 6.5
A154: 24.11.16 | B154: 14:26:08 | C154: 19.06 | D154: 18.82 | E154: 20.67 | F154: 20.61 | G154: 20.69 | H154: 20.77 | I154: 20.64 | J154: 43.2 | K154: 7.6 | L154: 6.5
A155: 24.11.16 | B155: 14:26:38 | C155: 19.06 | D155: 18.81 | E155: 20.67 | F155: 20.6 | G155: 20.68 | H155: 20.76 | I155: 20.63 | J155: 43.2 | K155: 7.6 | L155: 6.5
A156: 24.11.16 | B156: 14:27:08 | C156: 19.06 | D156: 18.81 | E156: 20.67 | F156: 20.6 | G156: 20.68 | H156: 20.75 | I156: 20.63 | J156: 43.2 | K156: 7.6 | L156: 6.5
A157: 24.11.16 | B157: 14:27:38 | C157: 19.05 | D157: 18.81 | E157: 20.66 | F157: 20.59 | G157: 20.67 | H157: 20.74 | I157: 20.63 | J157: 43.2 | K157: 7.6 | L157: 6.5
A158: 24.11.16 | B158: 14:28:08 | C158: 19.06 | D158: 18.81 | E158: 20.66 | F158: 20.59 | G158: 20.67 | H158: 20.73 | I158: 20.63 | J158: 43.2 | K158: 7.6 | L158: 6.5
A159: 24.11.16 | B159: 14:28:38 | C159: 19.06 | D159: 18.81 | E159: 20.65 | F159: 20.58 | G159: 20.66 | H159: 20.72 | I159: 20.62 | J159: 43.2 | K159: 7.6 | L159: 6.5
A160: 24.11.16 | B160: 14:29:09 | C160: 19.06 | D160: 18.81 | E160: 20.65 | F160: 20.58 | G160: 20.65 | H160: 20.72 | I160: 20.61 | J160: 43.2 | K160: 7.6 | L160: 6.4
A161: 24.11.16 | B161: 14:29:39 | C161: 19.06 | D161: 18.81 | E161: 20.65 | F161: 20.58 | G161: 20.64 | H161: 20.71 | I161: 20.61 | J161: 43.3 | K161: 7.6 | L161: 6.5
A162: 24.11.16 | B162: 14:30:09 | C162: 19.06 | D162: 18.82 | E162: 20.64 | F162: 20.57 | G162: 20.64 | H162: 20.71 | I162: 20.61 | J162: 43.2 | K162: 7.6 | L162: 6.4
A163: 24.11.16 | B163: 14:30:39 | C163: 19.06 | D163: 18.81 | E163: 20.64 | F163: 20.57 | G163: 20.63 | H163: 20.7 | I163: 20.6 | J163: 43.3 | K163: 7.6 | L163: 6.5
A164: 24.11.16 | B164: 14:31:09 | C164: 19.06 | D164: 18.82 | E164: 20.63 | F164: 20.57 | G164: 20.63 | H164: 20.7 | I164: 20.6 | J164: 43.3 | K164: 7.6 | L164: 6.5
A165: 24.11.16 | B165: 14:31:39 | C165: 19.07 | D165: 18.82 | E165: 20.63 | F165: 20.57 | G165: 20.63 | H165: 20.7 | I165: 20.6 | J165: 43.3 | K165: 7.6 | L165: 6.5
A166: 24.11.16 | B166: 14:32:09 | C166: 19.07 | D166: 18.82 | E166: 20.63 | F166: 20.56 | G166: 20.62 | H166: 20.69 | I166: 20.6 | J166: 43.3 | K166: 7.6 | L166: 6.5
A167: 24.11.16 | B167: 14:32:39 | C167: 19.07 | D167: 18.82 | E167: 20.63 | F167: 20.56 | G167: 20.62 | H167: 20.69 | I167: 20.59 | J167: 43.3 | K167: 7.6 | L167: 6.5
A168: 24.11.16 | B168: 14:33:09 | C168: 19.07 | D168: 18.82 | E168: 20.62 | F168: 20.56 | G168: 20.62 | H168: 20.69 | I168: 20.59 | J168: 43.3 | K168: 7.6 | L168: 6.5
A169: 24.11.16 | B169: 14:33:39 | C169: 19.08 | D169: 18.82 | E169: 20.62 | F169: 20.56 | G169: 20.61 | H169: 20.69 | I169: 20.58 | J169: 43.3 | K169: 7.6 | L169: 6.5
A170: 24.11.16 | B170: 14:34:09 | C170: 19.08 | D170: 18.83 | E170: 20.62 | F170: 20.56 | G170: 20.61 | H170: 20.68 | I170: 20.58 | J170: 43.3 | K170: 7.6 | L170: 6.5
A171: 24.11.16 | B171: 14:34:39 | C171: 19.08 | D171: 18.83 | E171: 20.61 | F171: 20.56 | G171: 20.61 | H171: 20.68 | I171: 20.58 | J171: 43.3 | K171: 7.6 | L171: 6.5
A172: 24.11.16 | B172: 14:35:09 | C172: 19.08 | D172: 18.83 | E172: 20.61 | F172: 20.55 | G172: 20.61 | H172: 20.68 | I172: 20.57 | J172: 43.3 | K172: 7.6 | L172: 6.4
A173: 24.11.16 | B173: 14:35:39 | C173: 19.09 | D173: 18.83 | E173: 20.61 | F173: 20.55 | G173: 20.6 | H173: 20.68 | I173: 20.57 | J173: 43.3 | K173: 7.6 | L173: 6.4
A174: 24.11.16 | B174: 14:36:09 | C174: 19.09 | D174: 18.84 | E174: 20.61 | F174: 20.55 | G174: 20.6 | H174: 20.67 | I174: 20.57 | J174: 43.3 | K174: 7.6 | L174: 6.4
A175: 24.11.16 | B175: 14:36:39 | C175: 19.09 | D175: 18.84 | E175: 20.6 | F175: 20.55 | G175: 20.59 | H175: 20.67 | I175: 20.57 | J175: 43.3 | K175: 7.6 | L175: 6.4
A176: 24.11.16 | B176: 14:37:09 | C176: 19.09 | D176: 18.84 | E176: 20.6 | F176: 20.54 | G176: 20.59 | H176: 20.67 | I176: 20.58 | J176: 43.5 | K176: 7.6 | L176: 6.5
A177: 24.11.16 | B177: 14:37:39 | C177: 19.1 | D177: 18.85 | E177: 20.6 | F177: 20.54 | G177: 20.6 | H177: 20.67 | I177: 20.6 | J177: 43.4 | K177: 7.6 | L177: 6.5
A178: 24.11.16 | B178: 14:38:09 | C178: 19.1 | D178: 18.85 | E178: 20.6 | F178: 20.54 | G178: 20.59 | H178: 20.67 | I178: 20.61 | J178: 43.8 | K178: 7.8 | L178: 6.5
A179: 24.11.16 | B179: 14:38:39 | C179: 19.1 | D179: 18.85 | E179: 20.6 | F179: 20.54 | G179: 20.59 | H179: 20.67 | I179: 20.63 | J179: 43.5 | K179: 7.7 | L179: 6.5
A180: 24.11.16 | B180: 14:39:09 | C180: 19.1 | D180: 18.85 | E180: 20.6 | F180: 20.54 | G180: 20.58 | H180: 20.67 | I180: 20.64 | J180: 43.5 | K180: 7.7 | L180: 6.5
A181: 24.11.16 | B181: 14:39:39 | C181: 19.1 | D181: 18.85 | E181: 20.6 | F181: 20.54 | G181: 20.59 | H181: 20.66 | I181: 20.63 | J181: 43.3 | K181: 7.6 | L181: 6.5
A182: 24.11.16 | B182: 14:40:09 | C182: 19.1 | D182: 18.85 | E182: 20.6 | F182: 20.53 | G182: 20.59 | H182: 20.66 | I182: 20.62 | J182: 43.3 | K182: 7.6 | L182: 6.5
A183: 24.11.16 | B183: 14:40:39 | C183: 19.11 | D183: 18.86 | E183: 20.6 | F183: 20.53 | G183: 20.6 | H183: 20.66 | I183: 20.61 | J183: 43.3 | K183: 7.6 | L183: 6.5
A184: 24.11.16 | B184: 14:41:09 | C184: 19.11 | D184: 18.86 | E184: 20.6 | F184: 20.53 | G184: 20.6 | H184: 20.66 | I184: 20.6 | J184: 43.3 | K184: 7.6 | L184: 6.5
A185: 24.11.16 | B185: 14:41:39 | C185: 19.11 | D185: 18.86 | E185: 20.6 | F185: 20.53 | G185: 20.6 | H185: 20.66 | I185: 20.59 | J185: 43.3 | K185: 7.6 | L185: 6.5
A186: 24.11.16 | B186: 14:42:09 | C186: 19.11 | D186: 18.86 | E186: 20.6 | F186: 20.53 | G186: 20.6 | H186: 20.66 | I186: 20.59 | J186: 43.3 | K186: 7.6 | L186: 6.5
A187: 24.11.16 | B187: 14:42:39 | C187: 19.11 | D187: 18.86 | E187: 20.6 | F187: 20.53 | G187: 20.6 | H187: 20.66 | I187: 20.59 | J187: 43.3 | K187: 7.6 | L187: 6.5
A188: 24.11.16 | B188: 14:43:09 | C188: 19.12 | D188: 18.86 | E188: 20.6 | F188: 20.53 | G188: 20.6 | H188: 20.66 | I188: 20.59 | J188: 43.3 | K188: 7.6 | L188: 6.5
A189: 24.11.16 | B189: 14:43:39 | C189: 19.12 | D189: 18.87 | E189: 20.6 | F189: 20.53 | G189: 20.59 | H189: 20.66 | I189: 20.58 | J189: 43.3 | K189: 7.6 | L189: 6.5
A190: 24.11.16 | B190: 14:44:09 | C190: 19.12 | D190: 18.87 | E190: 20.59 | F190: 20.53 | G190: 20.59 | H190: 20.66 | I190: 20.58 | J190: 43.3 | K190: 7.6 | L190: 6.5
A191: 24.11.16 | B191: 14:44:39 | C191: 19.12 | D191: 18.87 | E191: 20.59 | F191: 20.52 | G191: 20.59 | H191: 20.66 | I191: 20.58 | J191: 43.3 | K191: 7.6 | L191: 6.5
A192: 24.11.16 | B192: 14:45:09 | C192: 19.12 | D192: 18.87 | E192: 20.59 | F192: 20.52 | G192: 20.59 | H192: 20.66 | I192: 20.59 | J192: 43.4 | K192: 7.6 | L192: 6.5
A193: 24.11.16 | B193: 14:45:39 | C193: 19.12 | D193: 18.87 | E193: 20.59 | F193: 20.53 | G193: 20.59 | H193: 20.66 | I193: 20.6 | J193: 43.5 | K193: 7.6 | L193: 6.5
A194: 24.11.16 | B194: 14:46:09 | C194: 19.13 | D194: 18.88 | E194: 20.59 | F194: 20.53 | G194: 20.59 | H194: 20.66 | I194: 20.61 | J194: 43.5 | K194: 7.7 | L194: 6.5
A195: 24.11.16 | B195: 14:46:39 | C195: 19.13 | D195: 18.88 | E195: 20.6 | F195: 20.53 | G195: 20.6 | H195: 20.66 | I195: 20.61 | J195: 43.4 | K195: 7.6 | L195: 6.5
A196: 24.11.16 | B196: 14:47:09 | C196: 19.13 | D196: 18.88 | E196: 20.6 | F196: 20.53 | G196: 20.6 | H196: 20.66 | I196: 20.61 | J196: 43.4 | K196: 7.6 | L196: 6.5
A197: 24.11.16 | B197: 14:47:39 | C197: 19.13 | D197: 18.88 | E197: 20.6 | F197: 20.53 | G197: 20.6 | H197: 20.66 | I197: 20.6 | J197: 43.4 | K197: 7.6 | L197: 6.5
A198: 24.11.16 | B198: 14:48:09 | C198: 19.13 | D198: 18.88 | E198: 20.6 | F198: 20.53 | G198: 20.6 | H198: 20.66 | I198: 20.6 | J198: 43.3 | K198: 7.6 | L198: 6.5
A199: 24.11.16 | B199: 14:48:39 | C199: 19.13 | D199: 18.88 | E199: 20.6 | F199: 20.53 | G199: 20.6 | H199: 20.66 | I199: 20.6 | J199: 43.3 | K199: 7.6 | L199: 6.5
A200: 24.11.16 | B200: 14:49:09 | C200: 19.13 | D200: 18.88 | E200: 20.6 | F200: 20.53 | G200: 20.6 | H200: 20.66 | I200: 20.6 | J200: 43.3 | K200: 7.6 | L200: 6.5
A201: 24.11.16 | B201: 14:49:39 | C201: 19.14 | D201: 18.89 | E201: 20.6 | F201: 20.53 | G201: 20.6 | H201: 20.67 | I201: 20.6 | J201: 43.3 | K201: 7.6 | L201: 6.5
... 496 more rows

Sheet 25.11. DATA
A1: Program | C1: Almemo 4.9
A2: Soubor | C2: C:\Users\Zmrhal\Desktop\mereni\Pokus.alm
A4: Datum | B4: Čas | C4: M. místo 01 | D4: M. místo 02 | E4: M. místo 03 | F4: M. místo 04 | G4: M. místo 05 | H4: M. místo 06 | I4: M. místo 07 | J4: M. místo 17 | K4: M. místo 27 | L4: M. místo 37 | N4: Project: | O4: 25.11
C5: Tp1 | D5: Tp2 | E5: Tk1 | F5: Tk2 | G5: Ta1 | H5: Ta2 | I5: Temperatur | J5: Vlhkost (7)) | K5: Taupunkt | L5: Mischung | N5: Date: | O5: 25. listopadu 2016
C6: [°C] | D6: [°C] | E6: [°C] | F6: [°C] | G6: [°C] | H6: [°C] | I6: [°C] | J6: [%rH] | K6: [°C] | L6: [gk] | N6: Remarks: | O6: 10
A7: 08.11.16 | B7: 16:20:44 | C7: 19.97 | D7: 19.57 | E7: 19.58 | F7: 19.53 | G7: 19.52 | H7: 19.58 | I7: 19.83 | J7: 35.7 | K7: 4.1 | L7: 5.1
A8: 08.11.16 | B8: 16:21:14 | C8: 19.96 | D8: 19.57 | E8: 19.58 | F8: 19.53 | G8: 19.51 | H8: 19.58 | I8: 19.83 | J8: 35.5 | K8: 4.1 | L8: 5 | N8: Transducer | O8: time | P8: 54T21 | Q8: Transducer | R8: time | S8: 54T21 | T8: Transducer | U8: time | V8: 54T21
A9: 08.11.16 | B9: 16:21:44 | C9: 19.97 | D9: 19.56 | E9: 19.57 | F9: 19.52 | G9: 19.49 | H9: 19.56 | I9: 19.83 | J9: 35.5 | K9: 4.1 | L9: 5 | N9: Transducer height | O9: 16:09:40 | P9: 0,0 | Q9: Transducer height | R9: 16:14:18 | S9: 0 | T9: Transducer height | U9: 16:18:47 | V9: 0
A10: 08.11.16 | B10: 16:22:14 | C10: 19.96 | D10: 19.56 | E10: 19.57 | F10: 19.52 | G10: 19.49 | H10: 19.55 | I10: 19.83 | J10: 35.6 | K10: 4.1 | L10: 5.1 | N10: V [m/s] | O10: 16:09:40 | P10: 0.078 | Q10: V [m/s] | R10: 16:14:18 | S10: 0.072 | T10: V [m/s] | U10: 16:18:47 | V10: 0.082 | Z10: =AVERAGE(V10,S10,P10) -> 0.07733333333
A11: 22.11.16 | B11: 11:06:53 | C11: 19.6 | D11: 19.35 | E11: 19.37 | F11: 19.31 | G11: 19.39 | H11: 19.47 | I11: 19.84 | J11: 43.4 | K11: 7 | L11: 6.2
A12: 22.11.16 | B12: 11:07:23 | C12: 19.62 | D12: 19.36 | E12: 19.37 | F12: 19.31 | G12: 19.39 | H12: 19.47 | I12: 19.85 | J12: 43.3 | K12: 7 | L12: 6.2 | N12: Tu % | O12: 16:09:40 | P12: 62 | Q12: Tu % | R12: 16:14:18 | S12: 62.125 | T12: Tu % | U12: 16:18:47 | V12: 65.856 | Z12: =AVERAGE(V12,S12,P12) -> 63.327
A13: 22.11.16 | B13: 11:07:53 | C13: 19.63 | D13: 19.37 | E13: 19.38 | F13: 19.32 | G13: 19.4 | H13: 19.48 | I13: 19.85 | J13: 43.4 | K13: 7 | L13: 6.2 | N13: T [C] | O13: 16:09:40 | P13: 20 | Q13: T [C] | R13: 16:14:18 | S13: 19.762 | T13: T [C] | U13: 16:18:47 | V13: 19.801 | Z13: =AVERAGE(V13,S13,P13) -> 19.85433333
A14: 22.11.16 | B14: 11:08:23 | C14: 19.64 | D14: 19.38 | E14: 19.38 | F14: 19.32 | G14: 19.41 | H14: 19.49 | I14: 19.86 | J14: 43.4 | K14: 7 | L14: 6.2 | N14: DR % | O14: 16:09:40 | P14: 8 | Q14: DR % | R14: 16:14:18 | S14: 6.364 | T14: DR % | U14: 16:18:47 | V14: 8.662 | Z14: =dr(Z10,Z12,Z13) -> 7.518880195
A15: 22.11.16 | B15: 11:08:53 | C15: 19.64 | D15: 19.37 | E15: 19.38 | F15: 19.33 | G15: 19.41 | H15: 19.49 | I15: 19.86 | J15: 43.4 | K15: 7 | L15: 6.2
A16: 22.11.16 | B16: 11:09:23 | C16: 19.65 | D16: 19.38 | E16: 19.38 | F16: 19.33 | G16: 19.42 | H16: 19.49 | I16: 19.86 | J16: 43.5 | K16: 7 | L16: 6.2 | N16: Project: | O16: 25.11
A17: 22.11.16 | B17: 11:09:53 | C17: 19.65 | D17: 19.38 | E17: 19.39 | F17: 19.34 | G17: 19.42 | H17: 19.5 | I17: 19.86 | J17: 43.4 | K17: 7 | L17: 6.2 | N17: Date: | O17: 25. listopadu 2016
A18: 22.11.16 | B18: 11:10:23 | C18: 19.66 | D18: 19.38 | E18: 19.39 | F18: 19.34 | G18: 19.43 | H18: 19.51 | I18: 19.86 | J18: 43.6 | K18: 7 | L18: 6.2 | N18: Name: | O18: 11
A19: 22.11.16 | B19: 11:10:53 | C19: 19.66 | D19: 19.4 | E19: 19.4 | F19: 19.35 | G19: 19.43 | H19: 19.51 | I19: 19.86 | J19: 43.6 | K19: 7 | L19: 6.2
A20: 22.11.16 | B20: 11:11:23 | C20: 19.68 | D20: 19.39 | E20: 19.41 | F20: 19.36 | G20: 19.44 | H20: 19.52 | I20: 19.86 | J20: 43.5 | K20: 7 | L20: 6.2 | N20: Transducer | O20: time | P20: 54T21 | Q20: Transducer | R20: time | S20: 54T21 | T20: Transducer | U20: time | V20: 54T21 | W20: Transducer | X20: time | Y20: 54T21
A21: 22.11.16 | B21: 11:11:53 | C21: 19.68 | D21: 19.4 | E21: 19.41 | F21: 19.35 | G21: 19.43 | H21: 19.51 | I21: 19.86 | J21: 43.7 | K21: 7.1 | L21: 6.2 | N21: Transducer height | O21: 16:43:10 | P21: 0 | Q21: Transducer height | R21: 16:47:24 | S21: 0 | T21: Transducer height | U21: 16:51:39 | V21: 0 | W21: Transducer height | X21: 16:55:08 | Y21: 0
A22: 22.11.16 | B22: 11:12:23 | C22: 19.68 | D22: 19.42 | E22: 19.42 | F22: 19.36 | G22: 19.44 | H22: 19.52 | I22: 19.87 | J22: 43.4 | K22: 7 | L22: 6.2 | N22: V [m/s] | O22: 16:43:10 | P22: 0.084 | Q22: V [m/s] | R22: 16:47:24 | S22: 0.076 | T22: V [m/s] | U22: 16:51:39 | V22: 0.103 | W22: V [m/s] | X22: 16:55:08 | Y22: 0.099 | Z22: =AVERAGE(Y22,V22,S22,P22) -> 0.0905
A23: 22.11.16 | B23: 11:12:53 | C23: 19.69 | D23: 19.42 | E23: 19.42 | F23: 19.36 | G23: 19.44 | H23: 19.52 | I23: 19.87 | J23: 43.9 | K23: 7.2 | L23: 6.2
A24: 22.11.16 | B24: 11:13:23 | C24: 19.7 | D24: 19.42 | E24: 19.43 | F24: 19.37 | G24: 19.45 | H24: 19.53 | I24: 19.87 | J24: 44.3 | K24: 7.3 | L24: 6.3 | N24: Tu % | O24: 16:43:10 | P24: 66.747 | Q24: Tu % | R24: 16:47:24 | S24: 59.855 | T24: Tu % | U24: 16:51:39 | V24: 58.462 | W24: Tu % | X24: 16:55:08 | Y24: 48.589 | Z24: =AVERAGE(Y24,V24,S24,P24) -> 58.41325
A25: 22.11.16 | B25: 11:13:53 | C25: 19.7 | D25: 19.42 | E25: 19.43 | F25: 19.37 | G25: 19.45 | H25: 19.53 | I25: 19.88 | J25: 43.9 | K25: 7.2 | L25: 6.2 | N25: T [C] | O25: 16:43:10 | P25: 19.476 | Q25: T [C] | R25: 16:47:24 | S25: 19.444 | T25: T [C] | U25: 16:51:39 | V25: 19.413 | W25: T [C] | X25: 16:55:08 | Y25: 19.365 | Z25: =AVERAGE(Y25,V25,S25,P25) -> 19.4245
A26: 22.11.16 | B26: 11:14:23 | C26: 19.71 | D26: 19.43 | E26: 19.43 | F26: 19.38 | G26: 19.46 | H26: 19.53 | I26: 19.88 | J26: 43.9 | K26: 7.2 | L26: 6.2 | N26: DR % | O26: 16:43:10 | P26: 9.32 | Q26: DR % | R26: 16:47:24 | S26: 7.299 | T26: DR % | U26: 16:51:39 | V26: 12.605 | W26: DR % | X26: 16:55:08 | Y26: 11.068 | Z26: =dr(Z22,Z24,Z25) -> 10.17354337
A27: 22.11.16 | B27: 11:14:53 | C27: 19.71 | D27: 19.43 | E27: 19.44 | F27: 19.38 | G27: 19.46 | H27: 19.54 | I27: 19.89 | J27: 43.6 | K27: 7.1 | L27: 6.2
A28: 22.11.16 | B28: 11:15:23 | C28: 19.72 | D28: 19.43 | E28: 19.44 | F28: 19.39 | G28: 19.46 | H28: 19.55 | I28: 19.9 | J28: 43.8 | K28: 7.2 | L28: 6.2 | N28: Project: | O28: 25.11
A29: 22.11.16 | B29: 11:15:53 | C29: 19.72 | D29: 19.44 | E29: 19.45 | F29: 19.39 | G29: 19.47 | H29: 19.55 | I29: 19.9 | J29: 43.9 | K29: 7.2 | L29: 6.2 | N29: Date: | O29: 25. listopadu 2016
A30: 22.11.16 | B30: 11:16:23 | C30: 19.73 | D30: 19.44 | E30: 19.45 | F30: 19.4 | G30: 19.48 | H30: 19.56 | I30: 19.91 | J30: 43.6 | K30: 7.1 | L30: 6.2 | N30: Name: | O30: 12
A31: 22.11.16 | B31: 11:16:53 | C31: 19.73 | D31: 19.44 | E31: 19.46 | F31: 19.4 | G31: 19.48 | H31: 19.56 | I31: 19.91 | J31: 43.6 | K31: 7.1 | L31: 6.2
A32: 22.11.16 | B32: 11:17:23 | C32: 19.74 | D32: 19.45 | E32: 19.46 | F32: 19.41 | G32: 19.49 | H32: 19.57 | I32: 19.93 | J32: 44 | K32: 7.2 | L32: 6.3 | N32: Transducer | O32: time | P32: 54T21 | Q32: Transducer | R32: time | S32: 54T21 | T32: Transducer | U32: time | V32: 54T21 | W32: Transducer | X32: time | Y32: 54T21
A33: 22.11.16 | B33: 11:17:53 | C33: 19.74 | D33: 19.47 | E33: 19.47 | F33: 19.42 | G33: 19.5 | H33: 19.58 | I33: 19.94 | J33: 44.2 | K33: 7.3 | L33: 6.3 | N33: Transducer height | O33: 17:16:16 | P33: 0 | Q33: Transducer height | R33: 17:19:48 | S33: 0 | T33: Transducer height | U33: 17:28:10 | V33: 0 | W33: Transducer height | X33: 17:32:32 | Y33: 0
A34: 22.11.16 | B34: 11:18:23 | C34: 19.75 | D34: 19.47 | E34: 19.48 | F34: 19.42 | G34: 19.51 | H34: 19.59 | I34: 19.94 | J34: 43.5 | K34: 7.1 | L34: 6.2 | N34: V [m/s] | O34: 17:16:16 | P34: 0.124 | Q34: V [m/s] | R34: 17:19:48 | S34: 0.13 | T34: V [m/s] | U34: 17:28:10 | V34: 0.125 | W34: V [m/s] | X34: 17:32:32 | Y34: 0.128 | Z34: =AVERAGE(Y34,V34,S34,P34) -> 0.12675
A35: 22.11.16 | B35: 11:18:53 | C35: 19.76 | D35: 19.48 | E35: 19.48 | F35: 19.43 | G35: 19.52 | H35: 19.6 | I35: 19.94 | J35: 43.5 | K35: 7.1 | L35: 6.2
A36: 22.11.16 | B36: 11:19:23 | C36: 19.77 | D36: 19.46 | E36: 19.49 | F36: 19.43 | G36: 19.57 | H36: 19.62 | I36: 19.93 | J36: 43.9 | K36: 7.2 | L36: 6.2 | N36: Tu % | O36: 17:16:16 | P36: 45.486 | Q36: Tu % | R36: 17:19:48 | S36: 41.419 | T36: Tu % | U36: 17:28:10 | V36: 45.658 | W36: Tu % | X36: 17:32:32 | Y36: 49.911 | Z36: =AVERAGE(Y36,V36,S36,P36) -> 45.6185
A37: 22.11.16 | B37: 11:19:53 | C37: 19.77 | D37: 19.47 | E37: 19.52 | F37: 19.45 | G37: 19.59 | H37: 19.63 | I37: 19.95 | J37: 44.3 | K37: 7.4 | L37: 6.3 | N37: T [C] | O37: 17:16:16 | P37: 19.256 | Q37: T [C] | R37: 17:19:48 | S37: 19.247 | T37: T [C] | U37: 17:28:10 | V37: 19.192 | W37: T [C] | X37: 17:32:32 | Y37: 19.215 | Z37: =AVERAGE(Y37,V37,S37,P37) -> 19.2275
A38: 22.11.16 | B38: 11:20:23 | C38: 19.78 | D38: 19.48 | E38: 19.53 | F38: 19.46 | G38: 19.6 | H38: 19.64 | I38: 19.97 | J38: 44.7 | K38: 7.5 | L38: 6.4 | N38: DR % | O38: 17:16:16 | P38: 15.295 | Q38: DR % | R38: 17:19:48 | S38: 15.848 | T38: DR % | U38: 17:28:10 | V38: 15.695 | W38: DR % | X38: 17:32:32 | Y38: 16.695 | Z38: =dr(Z34,Z36,Z37) -> 15.87766515
A39: 22.11.16 | B39: 11:20:45 | C39: 19.78 | D39: 19.48 | E39: 19.54 | F39: 19.46 | G39: 19.61 | H39: 19.64 | I39: 19.99 | J39: 44.2 | K39: 7.4 | L39: 6.3
A40: 22.11.16 | B40: 11:21:33 | C40: 19.78 | D40: 19.48 | E40: 19.55 | F40: 19.47 | G40: 19.61 | H40: 19.65 | I40: 20.01 | J40: 44 | K40: 7.3 | L40: 6.3 | N40: Project: | O40: 25.11
A41: 22.11.16 | B41: 11:22:02 | C41: 19.79 | D41: 19.49 | E41: 19.56 | F41: 19.48 | G41: 19.61 | H41: 19.68 | I41: 20.02 | J41: 43.7 | K41: 7.2 | L41: 6.2 | N41: Date: | O41: 25. listopadu 2016
A42: 22.11.16 | B42: 11:22:32 | C42: 19.8 | D42: 19.49 | E42: 19.56 | F42: 19.48 | G42: 19.61 | H42: 19.68 | I42: 20.02 | J42: 43.9 | K42: 7.3 | L42: 6.3 | N42: Name: | O42: 13
A43: 22.11.16 | B43: 11:23:02 | C43: 19.8 | D43: 19.5 | E43: 19.57 | F43: 19.49 | G43: 19.61 | H43: 19.69 | I43: 20.03 | J43: 44.2 | K43: 7.4 | L43: 6.3
A44: 22.11.16 | B44: 11:23:32 | C44: 19.81 | D44: 19.51 | E44: 19.57 | F44: 19.5 | G44: 19.61 | H44: 19.69 | I44: 20.04 | J44: 44.2 | K44: 7.4 | L44: 6.4 | N44: Transducer | O44: time | P44: 54T21 | Q44: Transducer | R44: time | S44: 54T21 | T44: Transducer | U44: time | V44: 54T21
A45: 22.11.16 | B45: 11:24:02 | C45: 19.81 | D45: 19.51 | E45: 19.57 | F45: 19.5 | G45: 19.61 | H45: 19.69 | I45: 20.04 | J45: 44.1 | K45: 7.4 | L45: 6.3 | N45: Transducer height | O45: 18:03:00 | P45: 0 | Q45: Transducer height | R45: 18:07:31 | S45: 0 | T45: Transducer height | U45: 18:14:36 | V45: 0
